Workbook

Sheet Q (8) (hidden)
A1: 2017/2018 | B1: 1 | C1: Pensionsg. | D1: BG-afh. | E1: Regu-leret | F1: Lønberegning for: (navn eller initialer) - variable løndele i lin. 30-43. | G1: Q | H1: =G1 -> Q | I1: =H1 -> Q | J1: Q | K1: Q | L1: Q | M1: Q | N1: Q | O1: Q | P1: Q | Q1: Q | R1: Q | S1: Udfyld gule felter (alle forudfyldte tal i gule felter er eksempler)
A2: 2018 | B2: =B1+1 -> 2 | F2: Stillingsbetegnelse | G2: Stilling | H2: =G2 -> Stilling | I2: Stilling | J2: Stilling | K2: Stilling | L2: Stilling | M2: Stilling | N2: Stilling | O2: Stilling | P2: Stilling | Q2: Stilling | R2: Stilling
A3: jan-juli | B3: =B2+1 -> 3 | F3: Måned | G3: ="AUG "&RIGHT(A1,2)+0 -> AUG 18 | H3: ="SEP"&RIGHT(A1,2)+0 -> SEP18 | I3: ="OKT "&RIGHT(A1,2)+0 -> OKT 18 | J3: ="NOV "&RIGHT(A1,2)+0 -> NOV 18 | K3: ="DEC "&RIGHT(A1,2)+0 -> DEC 18 | L3: ="JAN "&RIGHT(A1,2)+1 -> JAN 19 | M3: ="FEB "&RIGHT(A1,2)+1 -> FEB 19 | N3: ="MAR "&RIGHT(A1,2)+1 -> MAR 19 | O3: ="APR "&RIGHT(A1,2)+1 -> APR 19 | P3: ="MAJ "&RIGHT(A1,2)+1 -> MAJ 19 | Q3: ="JUN "&RIGHT(A1,2)+1 -> JUN 19 | R3: ="JUL "&RIGHT(A1,2)+1 -> JUL 19 | S3: ansat d.
A4: For at beregne det særlige ferietillæg samt feriepengeberegningsgurndlaget, skal arket kende oplysninger vedr. Jan-juli mdr. Start med at udfylde linie 85 og 94 i denne kolonne! Har betydning for beregning af ferietillæg og feriepenge. | B4: =B3+1 -> 4 | C4: sæt 'x' | D4: sæt 'x' | E4: sæt 'x' | F4: Del af måned antal kalenderdage/månedens kalenderdage | G4: 1 | H4: =G4 -> 1 | I4: =H4 -> 1 | J4: 1 | K4: 1 | L4: 1 | M4: 1 | N4: 1 | O4: 1 | P4: 1 | Q4: 1 | R4: 1 | S4: Hvis ansat 10 oktober: 21/31 Hvis fratrådt 15. april: 15/30 | T4: 2
B5: =B4+1 -> 5 | F5: Pensionsprocent | G5: 14.7 | H5: =$G5 -> 14.7 | I5: 14.7 | J5: 14.7 | K5: 14.7 | L5: 14.7 | M5: 14.7 | N5: 14.7 | O5: 14.7 | P5: 14.7 | Q5: 14.7 | R5: 14.7 | S5: Skriv ikke procenttegnet, fx 14,7% - skriv 14,70 | T5: 3
B6: =B5+1 -> 6 | F6: Betales hele pensionen af skolen? JA/NEJ | G6: Ja | H6: =G6 -> Ja | I6: Ja | J6: Ja | K6: Ja | L6: Ja | M6: Ja | N6: Ja | O6: Ja | P6: Ja | Q6: Ja | R6: Ja | S6: Se ansættelsesbrev | T6: 4
B7: 7 | F7: Beregnes feriedifferende mv. efter Ferieaftalen i staten JA, eller efter Ferieloven NEJ | G7: Ja | H7: Ja | I7: Ja | J7: Ja | K7: Ja | L7: Ja | M7: Ja | N7: Ja | O7: Ja | P7: Ja | Q7: Ja | R7: Ja | S7: Ferieloven: mindst 20% differende, Ferieaftalen: enhver differende | T7: 5
B8: =B7+1 -> 8 | F8: Procentregulering +1 | G8: 1.069683 | H8: 1.069683 | J8: 0 | K8: =J8 -> 0 | L8: 0 | M8: 0 | N8: 0 | P8: =O8 -> 0 | Q8: =P8 -> 0 | R8: =Q8 -> 0 | T8: 6
B9: 9 | F9: Skolens stedtillægsområde | G9: 2 | H9: =G9 -> 2 | I9: 2 | J9: 2 | K9: 2 | L9: 2 | M9: 2 | N9: 2 | O9: 2 | P9: 2 | Q9: 2 | R9: 2
B10: 10 | F10: Beskæftigelsesgrad, aktuel | G10: 1 | H10: =G10 -> 1 | I10: 1 | J10: 1 | K10: 1 | L10: 1 | M10: 1 | N10: 1 | O10: 1 | P10: 0.9 | Q10: 0.9 | R10: 0.9
B11: 11 | C11: x | D11: x | E11: x | F11: Skalatrin eller HK-løntrin (HKx) | G11: 14 | H11: =G11 -> 14 | I11: 14 | J11: 14 | K11: 14 | L11: 14 | M11: 14 | N11: 14 | O11: 14 | P11: 14 | Q11: 14 | R11: 14 | S11: Statens løntabel eller HK-overenskomst-løntrin
B12: 12 | C12: x | D12: x | E12: x | F12: ="Fast aftalt årlig løn "&IF(E12<>"","i grundbeløb pr. 31.03.2012","(ikke reguleret)") -> Fast aftalt årlig løn i grundbeløb pr. 31.03.2012 | H12: 0 | I12: 0 | J12: 0 | K12: 0 | L12: 0 | M12: 0 | N12: 0 | O12: =N12 -> 0 | P12: 0 | Q12: 0 | R12: 0
B13: 13 | C13: x | E13: x | F13: Årligt sousdheftillæg eller lign. i grundbeløb | H13: =G13 -> 0 | I13: 0 | J13: 0 | K13: 0 | L13: 0 | M13: 0 | N13: 0 | O13: 0 | P13: 0 | Q13: 0 | R13: 0
B14: 14 | C14: x | E14: x | F14: Årligt funktionsstillæg i grundbeløb 1 | H14: =G14 -> 0 | I14: 0 | J14: 0 | K14: 0 | L14: 0 | M14: 0 | N14: 0 | O14: 0 | P14: 0 | Q14: 0 | R14: 0
B15: 15 | C15: x | E15: x | F15: Årligt funktionsstillæg i grundbeløb 2 | H15: =G15 -> 0 | I15: 0 | J15: 0 | K15: 0 | L15: 0 | M15: 0 | N15: 0 | O15: 0 | P15: 0 | Q15: 0 | R15: 0
B16: 16 | C16: x | E16: x | F16: Årligt funktionsstillæg i grundbeløb 3 | H16: =G16 -> 0 | I16: 0 | J16: 0 | K16: 0 | L16: 0 | M16: 0 | N16: 0 | O16: 0 | P16: 0 | Q16: 0 | R16: 0
B17: 17 | C17: x | D17: x | E17: x | F17: Årligt kvalifikationsstillæg i grundbeløb 1 | H17: 0 | I17: 0 | J17: 0 | K17: 0 | L17: 0 | M17: 0 | N17: 0 | O17: 0 | P17: 0 | Q17: 0 | R17: 0
B18: 18 | C18: x | D18: x | E18: x | F18: Årligt kvalifikationsstillæg i grundbeløb 2 | H18: 0 | I18: 0 | J18: 0 | K18: 0 | L18: 0 | M18: 0 | N18: 0 | O18: 0 | P18: 0 | Q18: 0 | R18: 0
B19: 19 | C19: x | D19: x | E19: x | F19: Årligt kvalifikationsstillæg i grundbeløb 3 | H19: 0 | I19: 0 | J19: 0 | K19: 0 | L19: 0 | M19: 0 | N19: 0 | O19: 0 | P19: 0 | Q19: 0 | R19: 0
B20: 20 | C20: x | D20: x | E20: x | F20: Udligningstillæg i årligt grundbeløb v. 100% BG | H20: 0 | I20: 0 | J20: 0 | K20: 0 | L20: 0 | M20: 0 | N20: 0 | O20: 0 | P20: 0 | Q20: 0 | R20: 0
B21: 21 | F21: Gruppelivsordning betalt af af skolen som et løntillæg. Skriv det månedlige beløb! | H21: 0 | I21: 0 | J21: 0 | K21: 0 | L21: 0 | M21: 0 | N21: 0 | O21: 0 | P21: 0 | Q21: 0 | R21: 0 | S21: Spedielt ved virksomhedsoverdragelse
B22: 22 | E22: x | F22: Lokalaftalt fast ulempegodtgørelse pr. måned. | H22: =G22 -> 0 | I22: 0 | J22: 0 | K22: 0 | L22: 0 | M22: 0 | N22: 0 | O22: =N22 -> 0 | P22: 0 | Q22: 0 | R22: 0 | S22: I stedet for variable arbejdstidsbestemte tillæg, iflg lokalaftale
B23: 23 | F23: Planlagte feriedage | I23: 5 | M23: 5 | P23: 0 | R23: 15 | S23: Normalt 15 dage i sommerhalvåret og 10 dage i vinterhalvåret
B24: 24 | F24: .. heraf antal feriedage, hvortil der ikke er optjent ferieret | R24: 0 | S24: Ferieloven: fradrag 4,8% pr. dag, Ferieaftalen: 4,62% pr. dag
B25: 25 | F25: ="Gennemsnitlig BG i "&Aar-1 -> Gennemsnitlig BG i 2017 | H25: =G25 -> 0 | I25: 0 | J25: 0 | K25: 0 | L25: 0 | M25: 0.85 | N25: 0.85 | O25: 0.85 | S25: Benyttes ved beregning af feriedifferende.
B26: 26 | F26: ="Gennemsnitlig BG i "&Aar -> Gennemsnitlig BG i 2018 | G26: Kalenderårets gennemsnit benyttes ved beregning af feriedifferende | Q26: =P26 -> 0 | R26: =Q26 -> 0 | S26: Benyttes ved beregning af feriedifferende.
B27: 27 | F27: Egenbetalte fridage | S27: Løn- og pensionsfradrag beregnes i lin 60 og 75
A28: Skatteop-lysninger | B28: 28 | F28: Skatteprocent | G28: 40 | H28: =G28 -> 40 | I28: 40 | J28: 40 | K28: 40 | L28: 40 | M28: 40 | N28: 40 | O28: 40 | P28: 40 | Q28: 40 | R28: 40 | S28: Skriv ikke procenttegnet, fx 42% - skriv 42
B29: 29 | C29: km- tak-ster | D29: =LEFT($A$1,4)+1 -> 2018 | E29: =LEFT($A$1,4)+2 -> 2019 | F29: Månedligt skattefradrag | G29: 4000 | H29: 4000 | I29: 4000 | J29: 4000 | K29: 4000 | L29: 4000 | M29: 4000 | N29: 4000 | O29: 4000 | P29: 4000 | Q29: 4000 | R29: 4000
B30: 30 | D30: 1.94 | F30: Km.godtgørelse, lav sats (skattefri), antal km:
B31: 31 | D31: 3.54 | F31: Km.godtgørelse, høj sats (skattefri), antal km:
B32: 32 | F32: Timedagpenge (skattefri) - Beregn selv | S32: Se løntabel
B33: 33 | F33: Jubilæumsgratiale (skattefri op til 8.000 kr.) | G33: 9000 | S33: Se løntabel
B34: 34 | F34: Arbejds- og arbejdstidsbestemte tillæg. Beregn selv | S34: ”Natpenge” iflg skema, hvis ikke der er lokalaftalt godtgørelse
B35: 35 | C35: x | F35: Merarbejdsbetaling. Beregn selv | S35: Efter årsopgørelse eller ved fratræden
B36: 36 | F36: Overtidsbetaling. Beregn selv | S36: Efter årsopgørelse eller ved fratræden
B37: 37 | F37: Særlige feriedage til udbetaling. Beregn selv | S37: Efter årsafslutning eller ved fratræden. Se pjeden "Ferievejledning"
B38: 38 | F38: ="Særlig ferietillæg "&IF(G7="ja","1,5%","1,0%"&"") -> Særlig ferietillæg 1,5% | G38: =IF(G7="ja","1,5%","1%") -> 1,5% | H38: ="Af den ferieberettigede løn for " &Aar+1&"" -> Af den ferieberettigede løn for 2019 | P38: =IF(P23>=0,ROUND((1%+0.5%*(P7="JA"))*S85,2),0) -> 633.09 | Q38: =IF(AND(Q23>0,P38=0),ROUND((1%+0.5%*(P7="JA"))*S85,2),0) -> 0 | R38: =IF(AND(R23>0,SUM(P38:Q38)=0),ROUND((1%+0.5%*(P7="JA"))*S85,2),0) -> 0 | S38: Udbetales forud for den måned, hvor hovedferien begynder
B39: 39 | F39: Resultatlønstillæg
B40: 40 | F40: Engangs nylønstillæg
B41: 41 | F41: Praktiklærervederlag | S41: =45*5*7.4 -> 1665
B42: 42 | F42: andet
B43: 43 | F43: andet
B44: 44 | C44: Disse tre linjer fradrages i den disponible løn | F44: gavekasse | H44: =G44 -> 0 | I44: =H44 -> 0 | J44: 0 | K44: 0 | L44: 0 | M44: 0 | N44: 0 | O44: 0 | P44: 0 | Q44: 0 | R44: 0 | S44: Fx: 'Kaffekasse'
B45: 45 | F45: kaffekasse | H45: =G45 -> 0 | I45: 0 | J45: 0 | K45: 0 | L45: 0 | M45: 0 | N45: 0 | O45: 0 | P45: 0 | Q45: 0 | R45: 0 | S45: Fx: 'Gavekasse'
B46: 46 | F46: Fagforenings-kontingent | H46: =G46 -> 0 | I46: 0 | J46: 0 | K46: 0 | L46: 0 | M46: 0 | N46: 0 | O46: 0 | P46: 0 | Q46: 0 | R46: 0 | S46: FX: 'Fagforeningskontingent'
A47: =A3 -> jan-juli | B47: =B46+1 -> 47 | F47: Måned | G47: =G3 -> AUG 18 | H47: SEP18 | I47: OKT 18 | J47: NOV 18 | K47: DEC 18 | L47: JAN 19 | M47: FEB 19 | N47: MAR 19 | O47: APR 19 | P47: MAJ 19 | Q47: JUN 19 | R47: JUL 19 | S47: SUM
B48: 48 | C48: =(C11<>"")*1 -> 1 | D48: 1 | E48: 1 | F48: =IF(ISNUMBER(G11),"Skalatrinsløn","HK-løn") -> Skalatrinsløn | G48: =ROUND(IF(AND(G$10>0,G11>0),ROUND((ROUND(VLOOKUP(G11,Skalalontabel12,G9,0)*G8,0))/12,2),0)*G10*G4,2) -> 20289.33 | H48: 20289.33 | I48: 0 | J48: 0 | K48: 0 | L48: 0 | M48: 0 | N48: 0 | O48: 0 | P48: 0 | Q48: 0 | R48: 0 | S48: =SUM(G48:R48) -> 40578.66
B49: 49 | C49: 1 | D49: 1 | E49: 1 | F49: Fast løn | G49: =ROUND(IF(G12>0,G12/12)*IF($D12<>"",G$10,1)*IF($E12<>"",G$8,1)*G4,2) -> 0 | H49: 0 | I49: 0 | J49: 0 | K49: 0 | L49: 0 | M49: 0 | N49: 0 | O49: 0 | P49: 0 | Q49: 0 | R49: 0 | S49: 0
B50: 50 | C50: 1 | D50: 0 | E50: 1 | F50: Souscheftillæg ell. lign. | G50: =ROUND(IF(AND(G$10>0,G13>0),G13/12)*IF($D13<>"",G$10,1)*IF($E13<>"",G$8,1)*G4,2) -> 0 | H50: 0 | I50: 0 | J50: 0 | K50: 0 | L50: 0 | M50: 0 | N50: 0 | O50: 0 | P50: 0 | Q50: 0 | R50: 0 | S50: 0
B51: 51 | C51: 1 | D51: 0 | E51: 1 | F51: Funktionstillæg 1 | G51: =ROUND(IF(AND(G$10>0,G14>0),G14/12)*IF($D14<>"",G$10,1)*IF($E14<>"",G$8,1)*G4,2) -> 0 | H51: 0 | I51: 0 | J51: 0 | K51: 0 | L51: 0 | M51: 0 | N51: 0 | O51: 0 | P51: 0 | Q51: 0 | R51: 0 | S51: 0
B52: 52 | C52: 1 | D52: 0 | E52: 1 | F52: Funktionstillæg 2 | G52: =ROUND(IF(AND(G$10>0,G15>0),G15/12)*IF($D15<>"",G$10,1)*IF($E15<>"",G$8,1)*G4,2) -> 0 | H52: 0 | I52: 0 | J52: 0 | K52: 0 | L52: 0 | M52: 0 | N52: 0 | O52: 0 | P52: 0 | Q52: 0 | R52: 0 | S52: 0
B53: 53 | C53: 1 | D53: 0 | E53: 1 | F53: Funktionstillæg 3 | G53: =ROUND(IF(AND(G$10>0,G16>0),G16/12)*IF($D16<>"",G$10,1)*IF($E16<>"",G$8,1)*G4,2) -> 0 | H53: 0 | I53: 0 | J53: 0 | K53: 0 | L53: 0 | M53: 0 | N53: 0 | O53: 0 | P53: 0 | Q53: 0 | R53: 0 | S53: 0
B54: 54 | C54: 1 | D54: 1 | E54: 1 | F54: Kvalifikationstillæg 1 | G54: =ROUND(IF(AND(G$10>0,G17>0),G17/12)*IF($D17<>"",G$10,1)*IF($E17<>"",G$8,1)*G4,2) -> 0 | H54: 0 | I54: 0 | J54: 0 | K54: 0 | L54: 0 | M54: 0 | N54: 0 | O54: 0 | P54: 0 | Q54: 0 | R54: 0 | S54: 0
B55: 55 | C55: 1 | D55: 1 | E55: 1 | F55: Kvalifikationstillæg 2 | G55: =ROUND(IF(AND(G$10>0,G18>0),G18/12)*IF($D18<>"",G$10,1)*IF($E18<>"",G$8,1)*G4,2) -> 0 | H55: 0 | I55: 0 | J55: 0 | K55: 0 | L55: 0 | M55: 0 | N55: 0 | O55: 0 | P55: 0 | Q55: 0 | R55: 0 | S55: 0
B56: 56 | C56: 1 | D56: 1 | E56: 1 | F56: Kvalifikationstillæg 3 | G56: =ROUND(IF(AND(G$10>0,G19>0),G19/12)*IF($D19<>"",G$10,1)*IF($E19<>"",G$8,1)*G$4,2) -> 0 | H56: 0 | I56: 0 | J56: 0 | K56: 0 | L56: 0 | M56: 0 | N56: 0 | O56: 0 | P56: 0 | Q56: 0 | R56: 0 | S56: 0
B57: 57 | C57: 1 | D57: 1 | E57: 1 | F57: Udligningstillæg | G57: 0 | H57: 0 | I57: 0 | J57: 0 | K57: 0 | L57: 0 | M57: 0 | N57: 0 | O57: 0 | P57: 0 | Q57: 0 | R57: 0 | S57: 0
B58: 58 | F58: Gruppelivstillæg | G58: =ROUND(IF(AND(G$10>0,G21>0),G21)*IF($D21<>"",G$10,1)*IF($E21<>"",G$8,1)*G$4,2) -> 0 | H58: 0 | I58: 0 | J58: 0 | K58: 0 | L58: 0 | M58: 0 | N58: 0 | O58: 0 | P58: 0 | Q58: 0 | R58: 0 | S58: 0
B59: 59 | D59: =(D22<>"")*1 -> 0 | E59: =(E22<>"")*1 -> 1 | F59: Lokalaftalt ulempegodtgørelse | G59: 0 | H59: 0 | I59: 0 | J59: 0 | K59: 0 | L59: 0 | M59: 0 | N59: 0 | O59: 0 | P59: 0 | Q59: 0 | R59: 0 | S59: 0
B60: 60 | C60: 1 | F60: Lønfradrag for ikke optjent ferie mv. | G60: =-ROUND((MAX(0,MIN(G23,G24*1))+G27)*IF(G7="JA",4.62%,4.8%)*SUM(G48:G59)*G$4,2) -> 0 | H60: 0 | I60: 0 | J60: 0 | K60: 0 | L60: 0 | M60: 0 | N60: 0 | O60: 0 | P60: 0 | Q60: 0 | R60: 0 | S60: 0
B61: 61 | C61: 1 | F61: Feriedifferende (af BG-afh. løndele) | G61: =ROUND(IF(LEFT(G7)="N",(G25-G10)*4.8%*G96/G10*MAX((G23-G24),0)*G97,(G25-G10)*4.62%*G96/G10*MAX((G23-G24),0))*G$4,0) -> 0 | H61: =ROUND(IF(LEFT(H7)="N",(H25-H10)*4.8%*H96/H10*MAX((H23-H24),0)*H97,(H25-H10)*4.62%*H96/H10*MAX((H23-H24),0))*H$4,0) -> 0 | I61: 0 | J61: 0 | K61: 0 | L61: 0 | M61: 0 | N61: 0 | O61: 0 | P61: =ROUND(IF(LEFT(P7)="N",(P26-P10)*4.8%*P96/P10*MAX((P23-P24),0)*P97,(P26-P10)*4.62%*P96/P10*MAX((P23-P24),0))*P$4,2) -> 0 | Q61: =ROUND(IF(LEFT(Q7)="N",(Q26-Q10)*4.8%*Q96/Q10*MAX((Q23-Q24),0)*Q97,(Q26-Q10)*4.62%*Q96/Q10*MAX((Q23-Q24),0))*Q$4,2) -> 0 | R61: 0 | S61: 0
B62: 62 | F62: Engangsudbetalinger iflg. specifikation | G62: =SUM(G34:G43)+MAX(G33*G8-8000,0) -> 1627.147 | H62: =SUM(H34:H43)+MAX(H33*H8-8000,0) -> 0 | I62: 0 | J62: 0 | K62: 0 | L62: 0 | M62: 0 | N62: 0 | O62: 0 | P62: =SUM(P34:P43)+MAX(P33*P8-8000,0) -> 633.09 | Q62: 0 | R62: 0 | S62: 2260.237
B63: 63 | F63: Skattefri engangsudbetalinger iflg. spec. | G63: =G30*$D30+G31*$D31+G32+IF(G33>0,MIN(G33*G8,8000),0) -> 8000 | H63: =H30*$D30+H31*$D31+H32+IF(H33>0,MIN(H33*H8,8000),0) -> 0 | I63: 0 | J63: 0 | K63: 0 | L63: =L30*$E30+L31*$E31+L32+IF(L33>0,MIN(L33*L8,8000),0) -> 0 | M63: =M30*$E30+M31*$E31+M32+IF(M33>0,MIN(M33*M8,8000),0) -> 0 | N63: 0 | O63: 0 | P63: 0 | Q63: 0 | R63: 0 | S63: 8000
B64: 64 | F64: Bruttoløn (ekskl. pensionstillæg og ATP) | G64: =SUM(G48:G63) -> 29916.477 | H64: 20289.33 | I64: 0 | J64: 0 | K64: 0 | L64: 0 | M64: 0 | N64: 0 | O64: 0 | P64: 633.09 | Q64: 0 | R64: 0 | S64: 50838.897
B65: 65 | F65: ="Pensionstillæg af pensionsg. "&IF(ISNUMBER(G11),"Skalatrinsløn","HK-løn") -> Pensionstillæg af pensionsg. Skalatrinsløn | G65: =ROUND(IF(AND(G$10>0,G11>0),ROUND((ROUND(VLOOKUP(G11,Skalalontabel12,7,0)*G8,0))/12,2),0)*G10*G4*G5/100/3,2) -> 929.52 | H65: 929.52 | I65: 0 | J65: 0 | K65: 0 | L65: 0 | M65: 0 | N65: 0 | O65: 0 | P65: 0 | Q65: 0 | R65: 0 | S65: 1859.04
B66: 66 | F66: Pensionstillæg fast løn | G66: =ROUND(G49*$C49*G$5/100/3,2) -> 0 | H66: 0 | I66: 0 | J66: 0 | K66: 0 | L66: 0 | M66: 0 | N66: 0 | O66: 0 | P66: 0 | Q66: 0 | R66: 0 | S66: 0
B67: 67 | F67: Pensionstillæg souscheftillæg | G67: 0 | H67: 0 | I67: 0 | J67: 0 | K67: 0 | L67: 0 | M67: 0 | N67: 0 | O67: 0 | P67: 0 | Q67: 0 | R67: 0 | S67: 0
B68: 68 | F68: Pensionstillæg Funktionstillæg 1 | G68: 0 | H68: 0 | I68: 0 | J68: 0 | K68: 0 | L68: 0 | M68: 0 | N68: 0 | O68: 0 | P68: 0 | Q68: 0 | R68: 0 | S68: 0
B69: 69 | F69: Pensionstillæg Funktionstillæg 2 | G69: 0 | H69: 0 | I69: 0 | J69: 0 | K69: 0 | L69: 0 | M69: 0 | N69: 0 | O69: 0 | P69: 0 | Q69: 0 | R69: 0 | S69: 0
B70: =B69+1 -> 70 | F70: Pensionstillæg Funktionstillæg 3 | G70: 0 | H70: 0 | I70: 0 | J70: 0 | K70: 0 | L70: 0 | M70: 0 | N70: 0 | O70: 0 | P70: 0 | Q70: 0 | R70: 0 | S70: 0
B71: 71 | F71: Pensionstillæg Kvalifikationstillæg 1 | G71: 0 | H71: 0 | I71: 0 | J71: 0 | K71: 0 | L71: 0 | M71: 0 | N71: 0 | O71: 0 | P71: 0 | Q71: 0 | R71: 0 | S71: 0
B72: 72 | F72: Pensionstillæg Kvalifikationstillæg 2 | G72: 0 | H72: 0 | I72: 0 | J72: 0 | K72: 0 | L72: 0 | M72: 0 | N72: 0 | O72: 0 | P72: 0 | Q72: 0 | R72: 0 | S72: 0
B73: 73 | F73: Pensionstillæg Kvalifikationstillæg 3 | G73: 0 | H73: 0 | I73: 0 | J73: 0 | K73: 0 | L73: 0 | M73: 0 | N73: 0 | O73: 0 | P73: 0 | Q73: 0 | R73: 0 | S73: 0
B74: 74 | F74: Pensionstillæg af udligningstillæg | G74: 0 | H74: 0 | I74: 0 | J74: 0 | K74: 0 | L74: 0 | M74: 0 | N74: 0 | O74: 0 | P74: 0 | Q74: 0 | R74: 0 | S74: 0
B75: 75 | F75: Fradrag i pensionstillæg for ikke optjent ferie mv. | G75: =ROUND(G60*$C60*G$5/100/3,2) -> 0 | H75: =ROUND(H60*$C60*H$5/100/3,2) -> 0 | I75: 0 | J75: 0 | K75: 0 | L75: 0 | M75: 0 | N75: 0 | O75: 0 | P75: 0 | Q75: 0 | R75: 0 | S75: 0
B76: 76 | F76: Pensionstillæg af feriedifference | G76: =ROUND(G61*$C61*G$5/100/3,2) -> 0 | H76: 0 | I76: 0 | J76: 0 | K76: 0 | L76: 0 | M76: 0 | N76: 0 | O76: 0 | P76: 0 | Q76: 0 | R76: 0 | S76: 0
B77: 77 | F77: Pensionstillæg af pensiong. engangstillæg | G77: =ROUND(G35*G5/100/3+G39*($C39<>"")*G5/100/3+G40*($C40<>"")*G5/100/3+G41*($C41<>"")*G5/100/3+G42*($C42<>"")*G5/100/3+G43*($C43<>"")*G5/100/3,2) -> 0 | H77: 0 | I77: 0 | J77: 0 | K77: 0 | L77: 0 | M77: 0 | N77: 0 | O77: 0 | P77: 0 | Q77: 0 | R77: 0 | S77: 0
B78: 78 | F78: Pensionstillæg i alt | G78: =SUM(G65:G77) -> 929.52 | H78: =SUM(H65:H77) -> 929.52 | I78: 0 | J78: 0 | K78: 0 | L78: 0 | M78: 0 | N78: 0 | O78: 0 | P78: 0 | Q78: 0 | R78: 0 | S78: 1859.04
B79: 79 | F79: Egetbidrag til ATP | G79: =ROUND(G91/3,2) -> 94.67 | H79: =ROUND(H91/3,2) -> 94.67 | I79: 94.67 | J79: 94.67 | K79: 94.67 | L79: 94.67 | M79: 94.67 | N79: 94.67 | O79: 94.67 | P79: 94.67 | Q79: 94.67 | R79: 94.67 | S79: =SUM(G79:R79) -> 1136.04
B80: 80 | F80: AMB-grundlag | G80: =IF(G6="nej",G78*-1)+SUM(G48:G62)-G79 -> 21821.807 | H80: 20194.66 | I80: -94.67 | J80: -94.67 | K80: -94.67 | L80: -94.67 | M80: -94.67 | N80: -94.67 | O80: -94.67 | P80: 538.42 | Q80: -94.67 | R80: -94.67 | S80: =SUM(G80:R80) -> 41702.857
B81: 81 | F81: AM-bidrag | G81: =ROUND(G80*8%,0) -> 1746 | H81: =ROUND(H80*8%,0) -> 1616 | I81: -8 | J81: -8 | K81: -8 | L81: -8 | M81: -8 | N81: -8 | O81: -8 | P81: 43 | Q81: -8 | R81: -8 | S81: 3333
B82: 82 | F82: A-indkomst | G82: =G80-G81 -> 20075.807 | H82: =H80-H81 -> 18578.66 | I82: -86.67 | J82: -86.67 | K82: -86.67 | L82: -86.67 | M82: -86.67 | N82: -86.67 | O82: -86.67 | P82: 495.42 | Q82: -86.67 | R82: -86.67 | S82: 38369.857
B83: 83 | F83: Skattegrundlag | G83: =FLOOR(G82-G29,10) -> 16070 | H83: =FLOOR(H82-H29,10) -> 14570 | I83: -4090 | J83: -4090 | K83: -4090 | L83: -4090 | M83: -4090 | N83: -4090 | O83: -4090 | P83: -3510 | Q83: -4090 | R83: -4090
B84: 84 | F84: Skat | G84: =ROUND(G83*G28/100,0) -> 6428 | H84: 5828 | I84: -1636 | J84: -1636 | K84: -1636 | L84: -1636 | M84: -1636 | N84: -1636 | O84: -1636 | P84: -1404 | Q84: -1636 | R84: -1636 | S84: -3872
B85: 85 | F85: ="Feriegodtgørelsesgrundlag, aug-dec "&Aar -> Feriegodtgørelsesgrundlag, aug-dec 2018 | G85: =SUM(G48:G62) -> 21916.477 | H85: =SUM(H48:H62) -> 20289.33 | I85: =SUM(I48:I62) -> 0 | J85: =SUM(J48:J62) -> 0 | K85: =SUM(K48:K62) -> 0 | L85: ="Kalenderåret "&Aar+1&" sum benyttes ved beregning af ferietillæg til udb. "&Aar+2&"" -> Kalenderåret 2019 sum benyttes ved beregning af ferietillæg til udb. 2020 | S85: =A85+SUM(G85:K85) -> 42205.807
B86: 86 | F86: ="Feriegodtgørelsesgrundlag, jan-juli "&Aar+1 -> Feriegodtgørelsesgrundlag, jan-juli 2019 | G86: ="Kalenderåret "&Aar+2&" - 7 første mdr. benyttes ved beregning af ferietillæg til udb. "&Aar+3&"" -> Kalenderåret 2020 - 7 første mdr. benyttes ved beregning af ferietillæg til udb. 2021 | L86: =SUM(L48:L62) -> 0 | M86: =SUM(M48:M62) -> 0 | N86: =SUM(N48:N62) -> 0 | O86: =SUM(O48:O62) -> 0 | P86: =SUM(P48:P62)-P38 -> 0 | Q86: =SUM(Q48:Q62)-Q38 -> 0 | R86: =SUM(R48:R62)-R38 -> 0 | S86: 0
B87: 87 | F87: Egetbidrag til pensionskasse | G87: =G78 -> 929.52 | H87: =H78 -> 929.52 | I87: 0 | J87: 0 | K87: 0 | L87: 0 | M87: 0 | N87: 0 | O87: 0 | P87: 0 | Q87: 0 | R87: 0 | S87: 1859.04
B88: 88 | F88: Arbejdsgiverbidrag til pensionskasse | G88: =G87*2 -> 1859.04 | H88: =H87*2 -> 1859.04 | I88: 0 | J88: 0 | K88: 0 | L88: 0 | M88: 0 | N88: 0 | O88: 0 | P88: 0 | Q88: 0 | R88: 0 | S88: 3718.08
B89: 89 | F89: Arbejdsgiverbidrag til ATP | G89: =G91*2/3 -> 189.3333333 | H89: =H91*2/3 -> 189.3333333 | I89: 189.3333333 | J89: 189.3333333 | K89: 189.3333333 | L89: 189.3333333 | M89: 189.3333333 | N89: 189.3333333 | O89: 189.3333333 | P89: 189.3333333 | Q89: 189.3333333 | R89: 189.3333333 | S89: 2272
B90: 90 | F90: Skolens samlede indbetaling til pensionskasse | G90: =G87+G88 -> 2788.56 | H90: =H87+H88 -> 2788.56 | I90: 0 | J90: 0 | K90: 0 | L90: 0 | M90: 0 | N90: 0 | O90: 0 | P90: 0 | Q90: 0 | R90: 0 | S90: 5577.12
B91: =B90+1 -> 91 | F91: Skolens samlede indbetaling til ATP | G91: =284/3*(((G10*G4)>=9/37)+((G10*G4)>=18/37)+((G10*G4)>=27/37)) -> 284 | H91: 284 | I91: 284 | J91: 284 | K91: 284 | L91: 284 | M91: 284 | N91: 284 | O91: 284 | P91: 284 | Q91: 284 | R91: 284 | S91: 3408
B92: 92 | F92: Indbetaling til Gruppeliv | G92: =G21 -> 0 | H92: =H21 -> 0 | I92: 0 | J92: 0 | K92: 0 | L92: 0 | M92: 0 | N92: 0 | O92: 0 | P92: 0 | Q92: 0 | R92: 0 | S92: 0
B93: 93 | F93: Løn til den ansattes disposition | G93: =IF(G6="nej",G78*-1)+G64-(G84+G79+G81+G92)-G44-G45-G46 -> 21647.807 | H93: =IF(H6="nej",H78*-1)+H64-(H84+H79+H81+H92)-H44-H45-H46 -> 12750.66 | I93: 1549.33 | J93: 1549.33 | K93: 1549.33 | L93: 1549.33 | M93: 1549.33 | N93: 1549.33 | O93: 1549.33 | P93: 1899.42 | Q93: 1549.33 | R93: 1549.33 | S93: =SUM(G93:R93) -> 50241.857
B94: 94 | F94: ="Feriepengeberegningsgrundlag, jan-dec "&Aar -> Feriepengeberegningsgrundlag, jan-dec 2018 | G94: =(SUM(G48:G62)+G78+G79)*(1-12/260*G23) -> 22940.667 | H94: =(SUM(H48:H62)+H78+H79)*(1-12/260*H23) -> 21313.52 | I94: =(SUM(I48:I62)+I78+I79)*(1-12/260*I23) -> 72.82307692 | J94: =(SUM(J48:J62)+J78+J79)*(1-12/260*J23) -> 94.67 | K94: =(SUM(K48:K62)+K78+K79)*(1-12/260*K23) -> 94.67 | L94: Kalenderårets sum benyttes ved fratræden og særlige feriedage | S94: =A94+SUM(G94:K94) -> 44516.35008
B95: =B94+1 -> 95 | F95: ="Feriepengeberegningsgrundlag, jan-jul "&Aar+1 -> Feriepengeberegningsgrundlag, jan-jul 2019 | G95: Kalenderårets sum benyttes ved fratræden og særlige feriedage | L95: =(SUM(L$48:L$62)+L$78+L79)*(1-12/260*L$23) -> 94.67 | M95: =(SUM(M$48:M$62)+M$78+M79)*(1-12/260*M$23) -> 72.82307692 | N95: 94.67 | O95: 94.67 | P95: 727.76 | Q95: 94.67 | R95: 29.12923077 | S95: 1208.392308
B96: =B95+1 -> 96 | F96: BG-afhængige løndele | G96: =G48*$D48+G49*$D49+G50*$D50+G51*$D51+G52*$D52+G53*$D53+G54*$D54+G55*$D55+G56*$D56+G57*$D57+G59*$D59 -> 20289.33 | H96: 20289.33 | I96: 0 | J96: 0 | K96: 0 | L96: 0 | M96: 0 | N96: 0 | O96: 0 | P96: 0 | Q96: 0 | R96: 0
B97: =B96+1 -> 97 | F97: BG-difference >=20% | G97: =IF(G10>0,IF(G10>G25,(G10-G25)/G25>=20%,(G10-G25)/G25<=-20%),"") ->  | H97: =IF(H10>0,IF(H10>H25,(H10-H25)/H25>=20%,(H10-H25)/H25<=-20%),"") ->  | M97: FALSE | N97: FALSE | O97: FALSE | P97: =IF(P10>0,IF(P10>P26,(P10-P26)/P26>=20%,(P10-P26)/P26<=-20%),"") ->  | Q97: =IF(Q10>0,IF(Q10>Q26,(Q10-Q26)/Q26>=20%,(Q10-Q26)/Q26<=-20%),"") ->  | R97: =IF(R10>0,IF(R10>R26,(R10-R26)/R26>=20%,(R10-R26)/R26<=-20%),"") -> 
B147: =B146+1 -> 1
B148: 2 | F148: =IF(ISNUMBER(G1),"Skalatrinsløn","HK-løn") -> HK-løn | G148: ="= "&TEXT(ROUND(VLOOKUP(G11,Skalalontabel12,G9,0)*G8,0),"#.000")&" / 12 * "&TEXT(G10,"0,0000")&" * "&TEXT(G$4,"#0/#0")&" =" -> = 243.472 / 12 * 1,0000 * 1/1 = | H148: = 243.472 / 12 * 1,0000 * 1/1 = | I148: = 000 / 12 * 1,0000 * 1/1 = | J148: = 000 / 12 * 1,0000 * 1/1 = | K148: = 000 / 12 * 1,0000 * 1/1 = | L148: = 000 / 12 * 1,0000 * 1/1 = | M148: = 000 / 12 * 1,0000 * 1/1 = | N148: = 000 / 12 * 1,0000 * 1/1 = | O148: = 000 / 12 * 1,0000 * 1/1 = | P148: = 000 / 12 * 0,9000 * 1/1 = | Q148: = 000 / 12 * 0,9000 * 1/1 = | R148: = 000 / 12 * 0,9000 * 1/1 =
B149: 3 | F149: Fast løn | G149: ="= "&TEXT(G12,"#.000,00")&" / 12 "&IF($D49>0," * "&TEXT(G$10,"0,0000"),"")&IF($E49>0," * "&G$8,"")&" * "&TEXT(G$4,"#0/#0")&" =" -> = 000,00 / 12 * 1,0000 * 1,069683 * 1/1 = | H149: = 000,00 / 12 * 1,0000 * 1,069683 * 1/1 = | I149: = 000,00 / 12 * 1,0000 * * 1/1 = | J149: = 000,00 / 12 * 1,0000 * 0 * 1/1 = | K149: = 000,00 / 12 * 1,0000 * 0 * 1/1 = | L149: = 000,00 / 12 * 1,0000 * 0 * 1/1 = | M149: = 000,00 / 12 * 1,0000 * 0 * 1/1 = | N149: = 000,00 / 12 * 1,0000 * 0 * 1/1 = | O149: = 000,00 / 12 * 1,0000 * * 1/1 = | P149: = 000,00 / 12 * 0,9000 * 0 * 1/1 = | Q149: = 000,00 / 12 * 0,9000 * 0 * 1/1 = | R149: = 000,00 / 12 * 0,9000 * 0 * 1/1 =
B150: 4 | F150: Sousdheftillæg | G150: = 000,00 / 12 * 1,069683 * 1/1 = | H150: = 000,00 / 12 * 1,069683 * 1/1 = | I150: = 000,00 / 12 * * 1/1 = | J150: = 000,00 / 12 * 0 * 1/1 = | K150: = 000,00 / 12 * 0 * 1/1 = | L150: = 000,00 / 12 * 0 * 1/1 = | M150: = 000,00 / 12 * 0 * 1/1 = | N150: = 000,00 / 12 * 0 * 1/1 = | O150: = 000,00 / 12 * * 1/1 = | P150: = 000,00 / 12 * 0 * 1/1 = | Q150: = 000,00 / 12 * 0 * 1/1 = | R150: = 000,00 / 12 * 0 * 1/1 =
B151: 5 | F151: Funktionstillæg 1 | G151: ="= "&TEXT(G14,"#.000,00")&" / 12 "&IF($D51>0," * "&TEXT(G$10,"0,0000"),"")&IF($E151>0," * "&G$8,"")&" * "&TEXT(G$4,"#0/#0")&" =" -> = 000,00 / 12 * 1/1 = | H151: = 000,00 / 12 * 1/1 = | I151: = 000,00 / 12 * 1/1 = | J151: = 000,00 / 12 * 1/1 = | K151: = 000,00 / 12 * 1/1 = | L151: = 000,00 / 12 * 1/1 = | M151: = 000,00 / 12 * 1/1 = | N151: = 000,00 / 12 * 1/1 = | O151: = 000,00 / 12 * 1/1 = | P151: = 000,00 / 12 * 1/1 = | Q151: = 000,00 / 12 * 1/1 = | R151: = 000,00 / 12 * 1/1 =
B152: 6 | F152: Funktionstillæg 2 | G152: ="= "&TEXT(G15,"#.000,00")&" / 12 "&IF($D52>0," * "&TEXT(G$10,"0,0000"),"")&IF($E52>0," * "&G$8,"")&" * "&TEXT(G$4,"#0/#0")&" =" -> = 000,00 / 12 * 1,069683 * 1/1 = | H152: = 000,00 / 12 * 1,069683 * 1/1 = | I152: = 000,00 / 12 * * 1/1 = | J152: = 000,00 / 12 * 0 * 1/1 = | K152: = 000,00 / 12 * 0 * 1/1 = | L152: = 000,00 / 12 * 0 * 1/1 = | M152: = 000,00 / 12 * 0 * 1/1 = | N152: = 000,00 / 12 * 0 * 1/1 = | O152: = 000,00 / 12 * * 1/1 = | P152: = 000,00 / 12 * 0 * 1/1 = | Q152: = 000,00 / 12 * 0 * 1/1 = | R152: = 000,00 / 12 * 0 * 1/1 =
B153: 7 | F153: Funktionstillæg 3 | G153: = 000,00 / 12 * 1,069683 * 1/1 = | H153: = 000,00 / 12 * 1,069683 * 1/1 = | I153: = 000,00 / 12 * * 1/1 = | J153: = 000,00 / 12 * 0 * 1/1 = | K153: = 000,00 / 12 * 0 * 1/1 = | L153: = 000,00 / 12 * 0 * 1/1 = | M153: = 000,00 / 12 * 0 * 1/1 = | N153: = 000,00 / 12 * 0 * 1/1 = | O153: = 000,00 / 12 * * 1/1 = | P153: = 000,00 / 12 * 0 * 1/1 = | Q153: = 000,00 / 12 * 0 * 1/1 = | R153: = 000,00 / 12 * 0 * 1/1 =
B154: 8 | F154: Kvalifikationstillæg 1 | G154: = 000,00 / 12 * 1,0000 * 1,069683 * 1/1 = | H154: = 000,00 / 12 * 1,0000 * 1,069683 * 1/1 = | I154: = 000,00 / 12 * 1,0000 * * 1/1 = | J154: = 000,00 / 12 * 1,0000 * 0 * 1/1 = | K154: = 000,00 / 12 * 1,0000 * 0 * 1/1 = | L154: = 000,00 / 12 * 1,0000 * 0 * 1/1 = | M154: = 000,00 / 12 * 1,0000 * 0 * 1/1 = | N154: = 000,00 / 12 * 1,0000 * 0 * 1/1 = | O154: = 000,00 / 12 * 1,0000 * * 1/1 = | P154: = 000,00 / 12 * 0,9000 * 0 * 1/1 = | Q154: = 000,00 / 12 * 0,9000 * 0 * 1/1 = | R154: = 000,00 / 12 * 0,9000 * 0 * 1/1 =
B155: 9 | F155: Kvalifikationstillæg 2 | G155: = 000,00 / 12 * 1,0000 * 1,069683 * 1/1 = | H155: = 000,00 / 12 * 1,0000 * 1,069683 * 1/1 = | I155: = 000,00 / 12 * 1,0000 * * 1/1 = | J155: = 000,00 / 12 * 1,0000 * 0 * 1/1 = | K155: = 000,00 / 12 * 1,0000 * 0 * 1/1 = | L155: = 000,00 / 12 * 1,0000 * 0 * 1/1 = | M155: = 000,00 / 12 * 1,0000 * 0 * 1/1 = | N155: = 000,00 / 12 * 1,0000 * 0 * 1/1 = | O155: = 000,00 / 12 * 1,0000 * * 1/1 = | P155: = 000,00 / 12 * 0,9000 * 0 * 1/1 = | Q155: = 000,00 / 12 * 0,9000 * 0 * 1/1 = | R155: = 000,00 / 12 * 0,9000 * 0 * 1/1 =
B156: 10 | F156: Kvalifikationstillæg 3 | G156: = 000,00 / 12 * 1,0000 * 1,069683 * 1/1 = | H156: = 000,00 / 12 * 1,0000 * 1,069683 * 1/1 = | I156: = 000,00 / 12 * 1,0000 * * 1/1 = | J156: = 000,00 / 12 * 1,0000 * 0 * 1/1 = | K156: = 000,00 / 12 * 1,0000 * 0 * 1/1 = | L156: = 000,00 / 12 * 1,0000 * 0 * 1/1 = | M156: = 000,00 / 12 * 1,0000 * 0 * 1/1 = | N156: = 000,00 / 12 * 1,0000 * 0 * 1/1 = | O156: = 000,00 / 12 * 1,0000 * * 1/1 = | P156: = 000,00 / 12 * 0,9000 * 0 * 1/1 = | Q156: = 000,00 / 12 * 0,9000 * 0 * 1/1 = | R156: = 000,00 / 12 * 0,9000 * 0 * 1/1 =
B157: 11 | F157: Udligningstillæg | G157: = 000,00 / 12 * 1,0000 * 1,069683 * 1/1 = | H157: = 000,00 / 12 * 1,0000 * 1,069683 * 1/1 = | I157: = 000,00 / 12 * 1,0000 * * 1/1 = | J157: = 000,00 / 12 * 1,0000 * 0 * 1/1 = | K157: = 000,00 / 12 * 1,0000 * 0 * 1/1 = | L157: = 000,00 / 12 * 1,0000 * 0 * 1/1 = | M157: = 000,00 / 12 * 1,0000 * 0 * 1/1 = | N157: = 000,00 / 12 * 1,0000 * 0 * 1/1 = | O157: = 000,00 / 12 * 1,0000 * * 1/1 = | P157: = 000,00 / 12 * 0,9000 * 0 * 1/1 = | Q157: = 000,00 / 12 * 0,9000 * 0 * 1/1 = | R157: = 000,00 / 12 * 0,9000 * 0 * 1/1 =
B158: 12 | F158: Gruppelivstillæg | G158: ="= "&TEXT(G21,"#.##0,00")&" * "&TEXT(G$4,"#0/#0")&" =" -> = 0,00 * 1/1 = | H158: ="= "&TEXT(H21,"#.##0,00")&" * "&TEXT(H$4,"#0/#0")&" =" -> = 0,00 * 1/1 = | I158: = 0,00 * 1/1 = | J158: = 0,00 * 1/1 = | K158: = 0,00 * 1/1 = | L158: = 0,00 * 1/1 = | M158: = 0,00 * 1/1 = | N158: = 0,00 * 1/1 = | O158: = 0,00 * 1/1 = | P158: = 0,00 * 1/1 = | Q158: = 0,00 * 1/1 = | R158: = 0,00 * 1/1 =
B159: 13 | F159: Lokalaftalt ulempegodtgørelse | G159: ="= "&TEXT(G22,"#,00")&IF($D59>0," * "&TEXT(G$10,"0,0000"),"")&IF($E59>0," * "&G$8,"")&" * "&TEXT(G$4,"#0/#0")&" =" -> = ,00 * 1,069683 * 1/1 = | H159: = ,00 * 1,069683 * 1/1 = | I159: = ,00 * * 1/1 = | J159: = ,00 * 0 * 1/1 = | K159: = ,00 * 0 * 1/1 = | L159: = ,00 * 0 * 1/1 = | M159: = ,00 * 0 * 1/1 = | N159: = ,00 * 0 * 1/1 = | O159: = ,00 * * 1/1 = | P159: = ,00 * 0 * 1/1 = | Q159: = ,00 * 0 * 1/1 = | R159: = ,00 * 0 * 1/1 =
B160: 14 | F160: Lønfradrag for ikke optjent ferie mv. | G160: ="= - "&MAX(0,MIN(G23,G24*1))+G27&" * "&IF(G7="JA","4,62%","4,8%")&" * SUM(Lin. 1 - Lin 12)"&" * "&TEXT(G$4,"#0/#0")&" =" -> = - 0 * 4,62% * SUM(Lin. 1 - Lin 12) * 1/1 = | H160: ="= - "&MAX(0,MIN(H23,H24*1))+H27&" * "&IF(H7="JA","4,62%","4,8%")&" * SUM(Lin. 1 - Lin 12) =" -> = - 0 * 4,62% * SUM(Lin. 1 - Lin 12) = | I160: = - 0 * 4,62% * SUM(Lin. 1 - Lin 12) = | J160: = - 0 * 4,62% * SUM(Lin. 1 - Lin 12) = | K160: = - 0 * 4,62% * SUM(Lin. 1 - Lin 12) = | L160: = - 0 * 4,62% * SUM(Lin. 1 - Lin 12) = | M160: = - 0 * 4,62% * SUM(Lin. 1 - Lin 12) = | N160: = - 0 * 4,62% * SUM(Lin. 1 - Lin 12) = | O160: = - 0 * 4,62% * SUM(Lin. 1 - Lin 12) = | P160: = - 0 * 4,62% * SUM(Lin. 1 - Lin 12) = | Q160: = - 0 * 4,62% * SUM(Lin. 1 - Lin 12) = | R160: = - 0 * 4,62% * SUM(Lin. 1 - Lin 12) =
B161: 15 | F161: Feriedifferende | G161: ="= "&IF(LEFT(G7)="N","( "&G25&" - "&G10&") * 4,8% * "&G96&" * "&MAX((G23-G24),0)*G97,"( "&G25&" - "&G10&") * 4,62% * "&G96&" * "&MAX((G23-G24),0))&" =" -> = ( - 1) * 4,62% * 20289,33 * 0 = | H161: = ( 0 - 1) * 4,62% * 20289,33 * 0 = | I161: = ( 0 - 1) * 4,62% * 0 * 5 = | J161: = ( 0 - 1) * 4,62% * 0 * 0 = | K161: = ( 0 - 1) * 4,62% * 0 * 0 = | L161: = ( 0 - 1) * 4,62% * 0 * 0 = | M161: = ( 0,85 - 1) * 4,62% * 0 * 5 = | N161: = ( 0,85 - 1) * 4,62% * 0 * 0 = | O161: = ( 0,85 - 1) * 4,62% * 0 * 0 = | P161: ="= "&IF(LEFT(P7)="N","( "&ROUND(P26,4)&" - "&P10&") * 4,8% * "&P96&" * "&MAX((P23-P24),0)*P97,"( "&ROUND(P26,4)&" - "&P10&") * 4,62% * "&P96&" * "&MAX((P23-P24),0))&" =" -> = ( 0 - 0,9) * 4,62% * 0 * 0 = | Q161: ="= "&IF(LEFT(Q7)="N","( "&ROUND(Q26,4)&" - "&Q10&") * 4,8% * "&Q96&" * "&MAX((Q23-Q24),0)*Q97,"( "&ROUND(Q26,4)&" - "&Q10&") * 4,62% * "&Q96&" * "&MAX((Q23-Q24),0))&" =" -> = ( 0 - 0,9) * 4,62% * 0 * 0 = | R161: ="= "&IF(LEFT(R7)="N","( "&ROUND(R26,4)&" - "&R10&") * 4,8% * "&R96&" * "&MAX((R23-R24),0)*R97,"( "&ROUND(R26,4)&" - "&R10&") * 4,62% * "&R96&" * "&MAX((R23-R24),0))&" =" -> = ( 0 - 0,9) * 4,62% * 0 * 15 =
B162: 16 | F162: Engangsudbetalinger iflg. specifikation | G162: =SUBSTITUTE(TRIM("=SUM("&MAX(G33-8000,0)&" "&G34&" "&G35&" "&G36&" "&G37&" "&G39&" "&G40&" "&G41&" "&G42&" "&G43&")")," ","; ")&" =" -> =SUM(1000; ) = | H162: =SUBSTITUTE(TRIM("=SUM("&MAX(H33-8000,0)&" "&H34&" "&H35&" "&H36&" "&H37&" "&H39&" "&H40&" "&H41&" "&H42&" "&H43&")")," ","; ")&" =" -> =SUM(0; ) = | I162: =SUM(0; ) = | J162: =SUM(0; ) = | K162: =SUM(0; ) = | L162: =SUM(0; ) = | M162: =SUM(0; ) = | N162: =SUM(0; ) = | O162: =SUM(0; ) = | P162: =SUM(0; ) = | Q162: =SUM(0; ) = | R162: =SUM(0; ) =
B163: 17 | F163: Skattefri engangsudbetalinger iflg. spec. | G163: =SUBSTITUTE(TRIM("=SUM("&G30&" * "&$D30&" "&G31&" * "&$D31&" "&G32&" "&MIN(G33,8000)&")")," ","; ")&" =" -> =SUM(; *; 1,94; *; 3,54; 8000) = | H163: =SUBSTITUTE(TRIM("=SUM("&H30&" * "&$D30&" "&H31&" * "&$D31&" "&H32&" "&MIN(H33,8000)&")")," ","; ")&" =" -> =SUM(; *; 1,94; *; 3,54; 8000) = | I163: =SUBSTITUTE(TRIM("=SUM("&I30&" * "&$D30&" "&I31&" * "&$D31&" "&I32&" "&MIN(I33,8000)&")")," ","; ")&" =" -> =SUM(; *; 1,94; *; 3,54; 8000) = | J163: =SUBSTITUTE(TRIM("=SUM("&J30&" * "&$D30&" "&J31&" * "&$D31&" "&J32&" "&MIN(J33,8000)&")")," ","; ")&" =" -> =SUM(; *; 1,94; *; 3,54; 8000) = | K163: =SUBSTITUTE(TRIM("=SUM("&K30&" * "&$D30&" "&K31&" * "&$D31&" "&K32&" "&MIN(K33,8000)&")")," ","; ")&" =" -> =SUM(; *; 1,94; *; 3,54; 8000) = | L163: =SUBSTITUTE(TRIM("=SUM("&L30&" * "&$E30&" "&L31&" * "&$E31&" "&L32&" "&MIN(L33,8000)&")")," ","; ")&" =" -> =SUM(; *; *; 8000) = | M163: =SUBSTITUTE(TRIM("=SUM("&M30&" * "&$E30&" "&M31&" * "&$E31&" "&M32&" "&MIN(M33,8000)&")")," ","; ")&" =" -> =SUM(; *; *; 8000) = | N163: =SUM(; *; *; 8000) = | O163: =SUM(; *; *; 8000) = | P163: =SUM(; *; *; 8000) = | Q163: =SUM(; *; *; 8000) = | R163: =SUM(; *; *; 8000) =
B164: 18 | F164: Bruttoløn (ekskl. pensionstillæg og ATP)
B165: 19 | F165: Pensionstillæg skalatrinsløn eller HK-løn | G165: ="= "&ROUND(VLOOKUP(G11,Skalalontabel12,7,0)*G$8,0)&" / 12 * "&TEXT(G$10,"0,0000")&" * "&G5&"% / 3 =" -> = 227638 / 12 * 1,0000 * 14,7% / 3 = | H165: = 227638 / 12 * 1,0000 * 14,7% / 3 = | I165: = 0 / 12 * 1,0000 * 14,7% / 3 = | J165: = 0 / 12 * 1,0000 * 14,7% / 3 = | K165: = 0 / 12 * 1,0000 * 14,7% / 3 = | L165: = 0 / 12 * 1,0000 * 14,7% / 3 = | M165: = 0 / 12 * 1,0000 * 14,7% / 3 = | N165: = 0 / 12 * 1,0000 * 14,7% / 3 = | O165: = 0 / 12 * 1,0000 * 14,7% / 3 = | P165: = 0 / 12 * 0,9000 * 14,7% / 3 = | Q165: = 0 / 12 * 0,9000 * 14,7% / 3 = | R165: = 0 / 12 * 0,9000 * 14,7% / 3 =
B166: 20 | F166: Pensionstillæg fast løn | G166: =IF($C49>0,"= "&G49&" * "&G$5&"% / 3 =") -> = 0 * 14,7% / 3 = | H166: =IF($C49>0,H49&" * "&H$5&"% / 3 =") -> 0 * 14,7% / 3 = | I166: 0 * 14,7% / 3 = | J166: 0 * 14,7% / 3 = | K166: 0 * 14,7% / 3 = | L166: 0 * 14,7% / 3 = | M166: 0 * 14,7% / 3 = | N166: 0 * 14,7% / 3 = | O166: 0 * 14,7% / 3 = | P166: 0 * 14,7% / 3 = | Q166: 0 * 14,7% / 3 = | R166: 0 * 14,7% / 3 =
B167: 21 | F167: Pensionstillæg souscheftillæg | G167: = 0 * 14,7% / 3 = | H167: 0 * 14,7% / 3 = | I167: 0 * 14,7% / 3 = | J167: 0 * 14,7% / 3 = | K167: 0 * 14,7% / 3 = | L167: 0 * 14,7% / 3 = | M167: 0 * 14,7% / 3 = | N167: 0 * 14,7% / 3 = | O167: 0 * 14,7% / 3 = | P167: 0 * 14,7% / 3 = | Q167: 0 * 14,7% / 3 = | R167: 0 * 14,7% / 3 =
B168: 22 | F168: Pensionstillæg Funktionstillæg 1 | G168: = 0 * 14,7% / 3 = | H168: 0 * 14,7% / 3 = | I168: 0 * 14,7% / 3 = | J168: 0 * 14,7% / 3 = | K168: 0 * 14,7% / 3 = | L168: 0 * 14,7% / 3 = | M168: 0 * 14,7% / 3 = | N168: 0 * 14,7% / 3 = | O168: 0 * 14,7% / 3 = | P168: 0 * 14,7% / 3 = | Q168: 0 * 14,7% / 3 = | R168: 0 * 14,7% / 3 =
B169: 23 | F169: Pensionstillæg Funktionstillæg 2 | G169: = 0 * 14,7% / 3 = | H169: 0 * 14,7% / 3 = | I169: 0 * 14,7% / 3 = | J169: 0 * 14,7% / 3 = | K169: 0 * 14,7% / 3 = | L169: 0 * 14,7% / 3 = | M169: 0 * 14,7% / 3 = | N169: 0 * 14,7% / 3 = | O169: 0 * 14,7% / 3 = | P169: 0 * 14,7% / 3 = | Q169: 0 * 14,7% / 3 = | R169: 0 * 14,7% / 3 =
B170: 24 | F170: Pensionstillæg Funktionstillæg 3 | G170: = 0 * 14,7% / 3 = | H170: 0 * 14,7% / 3 = | I170: 0 * 14,7% / 3 = | J170: 0 * 14,7% / 3 = | K170: 0 * 14,7% / 3 = | L170: 0 * 14,7% / 3 = | M170: 0 * 14,7% / 3 = | N170: 0 * 14,7% / 3 = | O170: 0 * 14,7% / 3 = | P170: 0 * 14,7% / 3 = | Q170: 0 * 14,7% / 3 = | R170: 0 * 14,7% / 3 =
B171: 25 | F171: Pensionstillæg Kvalifikationstillæg 1 | G171: = 0 * 14,7% / 3 = | H171: 0 * 14,7% / 3 = | I171: 0 * 14,7% / 3 = | J171: 0 * 14,7% / 3 = | K171: 0 * 14,7% / 3 = | L171: 0 * 14,7% / 3 = | M171: 0 * 14,7% / 3 = | N171: 0 * 14,7% / 3 = | O171: 0 * 14,7% / 3 = | P171: 0 * 14,7% / 3 = | Q171: 0 * 14,7% / 3 = | R171: 0 * 14,7% / 3 =
B172: 26 | F172: Pensionstillæg Kvalifikationstillæg 2 | G172: = 0 * 14,7% / 3 = | H172: 0 * 14,7% / 3 = | I172: 0 * 14,7% / 3 = | J172: 0 * 14,7% / 3 = | K172: 0 * 14,7% / 3 = | L172: 0 * 14,7% / 3 = | M172: 0 * 14,7% / 3 = | N172: 0 * 14,7% / 3 = | O172: 0 * 14,7% / 3 = | P172: 0 * 14,7% / 3 = | Q172: 0 * 14,7% / 3 = | R172: 0 * 14,7% / 3 =
B173: 27 | F173: Pensionstillæg Kvalifikationstillæg 3 | G173: = 0 * 14,7% / 3 = | H173: 0 * 14,7% / 3 = | I173: 0 * 14,7% / 3 = | J173: 0 * 14,7% / 3 = | K173: 0 * 14,7% / 3 = | L173: 0 * 14,7% / 3 = | M173: 0 * 14,7% / 3 = | N173: 0 * 14,7% / 3 = | O173: 0 * 14,7% / 3 = | P173: 0 * 14,7% / 3 = | Q173: 0 * 14,7% / 3 = | R173: 0 * 14,7% / 3 =
B174: 28 | F174: Pensionstillæg af udligningstillæg | G174: = 0 * 14,7% / 3 = | H174: 0 * 14,7% / 3 = | I174: 0 * 14,7% / 3 = | J174: 0 * 14,7% / 3 = | K174: 0 * 14,7% / 3 = | L174: 0 * 14,7% / 3 = | M174: 0 * 14,7% / 3 = | N174: 0 * 14,7% / 3 = | O174: 0 * 14,7% / 3 = | P174: 0 * 14,7% / 3 = | Q174: 0 * 14,7% / 3 = | R174: 0 * 14,7% / 3 =
B175: 29 | F175: Fradrag i pensionstillæg for ikke optjent ferie mv. | G175: ="= "&G60&" * "&G$5&"% / 3 =" -> = 0 * 14,7% / 3 = | H175: = 0 * 14,7% / 3 = | I175: = 0 * 14,7% / 3 = | J175: = 0 * 14,7% / 3 = | K175: = 0 * 14,7% / 3 = | L175: = 0 * 14,7% / 3 = | M175: = 0 * 14,7% / 3 = | N175: = 0 * 14,7% / 3 = | O175: = 0 * 14,7% / 3 = | P175: = 0 * 14,7% / 3 = | Q175: = 0 * 14,7% / 3 = | R175: = 0 * 14,7% / 3 =
B176: 30 | F176: Pensionstillæg af feriedifference | G176: = 0 * 14,7% / 3 = | H176: = 0 * 14,7% / 3 = | I176: = 0 * 14,7% / 3 = | J176: = 0 * 14,7% / 3 = | K176: = 0 * 14,7% / 3 = | L176: = 0 * 14,7% / 3 = | M176: = 0 * 14,7% / 3 = | N176: = 0 * 14,7% / 3 = | O176: = 0 * 14,7% / 3 = | P176: = 0 * 14,7% / 3 = | Q176: = 0 * 14,7% / 3 = | R176: = 0 * 14,7% / 3 =
B177: 31 | F177: Pensionstillæg af pensiong. engangstillæg | G177: =SUBSTITUTE(TRIM("=SUM("&IF($G35>0,G35&" ","")&IF($C39<>"",G39&" ","")&IF($C40<>"",G40&" ","")&IF($C41<>"",G41&" ","")&IF($C42<>"",G42&" ","")&IF($C43<>"",G43,"")&")")," ","; ")&" * "&G5&"% / 3 =" -> =SUM() * 14,7% / 3 = | H177: =SUM() * 14,7% / 3 = | I177: =SUM() * 14,7% / 3 = | J177: =SUM() * 14,7% / 3 = | K177: =SUM() * 14,7% / 3 = | L177: =SUM() * 14,7% / 3 = | M177: =SUM() * 14,7% / 3 = | N177: =SUM() * 14,7% / 3 = | O177: =SUM() * 14,7% / 3 = | P177: =SUM() * 14,7% / 3 = | Q177: =SUM() * 14,7% / 3 = | R177: =SUM() * 14,7% / 3 =
B178: 32 | F178: Pensionstillæg i alt
B179: 33 | F179: Egetbidrag til ATP
B180: 34 | F180: AMB-grundlag | G180: ="= SUM(Lin. 1 - Lin. 14) + SUM(Lin 19 - Lin28) - "&G79&" =" -> = SUM(Lin. 1 - Lin. 14) + SUM(Lin 19 - Lin28) - 94,67 = | H180: ="= SUM(Lin. 1 - Lin. 14) + SUM(Lin 19 - Lin28) - "&H79&" =" -> = SUM(Lin. 1 - Lin. 14) + SUM(Lin 19 - Lin28) - 94,67 = | I180: = SUM(Lin. 1 - Lin. 14) + SUM(Lin 19 - Lin28) - 94,67 = | J180: = SUM(Lin. 1 - Lin. 14) + SUM(Lin 19 - Lin28) - 94,67 = | K180: = SUM(Lin. 1 - Lin. 14) + SUM(Lin 19 - Lin28) - 94,67 = | L180: = SUM(Lin. 1 - Lin. 14) + SUM(Lin 19 - Lin28) - 94,67 = | M180: = SUM(Lin. 1 - Lin. 14) + SUM(Lin 19 - Lin28) - 94,67 = | N180: = SUM(Lin. 1 - Lin. 14) + SUM(Lin 19 - Lin28) - 94,67 = | O180: = SUM(Lin. 1 - Lin. 14) + SUM(Lin 19 - Lin28) - 94,67 = | P180: = SUM(Lin. 1 - Lin. 14) + SUM(Lin 19 - Lin28) - 94,67 = | Q180: = SUM(Lin. 1 - Lin. 14) + SUM(Lin 19 - Lin28) - 94,67 = | R180: = SUM(Lin. 1 - Lin. 14) + SUM(Lin 19 - Lin28) - 94,67 =
B181: 35 | F181: AM-bidrag | G181: ="= "&G80&" * 8% (afrundet) =" -> = 21821,807 * 8% (afrundet) = | H181: ="= "&H80&" * 8% (afrundet) =" -> = 20194,66 * 8% (afrundet) = | I181: = -94,67 * 8% (afrundet) = | J181: = -94,67 * 8% (afrundet) = | K181: = -94,67 * 8% (afrundet) = | L181: = -94,67 * 8% (afrundet) = | M181: = -94,67 * 8% (afrundet) = | N181: = -94,67 * 8% (afrundet) = | O181: = -94,67 * 8% (afrundet) = | P181: = 538,42 * 8% (afrundet) = | Q181: = -94,67 * 8% (afrundet) = | R181: = -94,67 * 8% (afrundet) =
B182: 36 | F182: A-indkomst | G182: ="= "&G80&" - "&G81&" =" -> = 21821,807 - 1746 = | H182: ="= "&H80&" - "&H81&" =" -> = 20194,66 - 1616 = | I182: = -94,67 - -8 = | J182: = -94,67 - -8 = | K182: = -94,67 - -8 = | L182: = -94,67 - -8 = | M182: = -94,67 - -8 = | N182: = -94,67 - -8 = | O182: = -94,67 - -8 = | P182: = 538,42 - 43 = | Q182: = -94,67 - -8 = | R182: = -94,67 - -8 =
B183: 37 | F183: Skattegrundlag
B184: 38 | F184: Skat | G184: ="= ("&G82&" - "&G29&") (afrundet) * "&G28&" / 100 =" -> = (20075,807 - 4000) (afrundet) * 40 / 100 = | H184: ="= ("&H82&" - "&H29&") (afrundet) * "&H28&" / 100 =" -> = (18578,66 - 4000) (afrundet) * 40 / 100 = | I184: = (-86,67 - 4000) (afrundet) * 40 / 100 = | J184: = (-86,67 - 4000) (afrundet) * 40 / 100 = | K184: = (-86,67 - 4000) (afrundet) * 40 / 100 = | L184: = (-86,67 - 4000) (afrundet) * 40 / 100 = | M184: = (-86,67 - 4000) (afrundet) * 40 / 100 = | N184: = (-86,67 - 4000) (afrundet) * 40 / 100 = | O184: = (-86,67 - 4000) (afrundet) * 40 / 100 = | P184: = (495,42 - 4000) (afrundet) * 40 / 100 = | Q184: = (-86,67 - 4000) (afrundet) * 40 / 100 = | R184: = (-86,67 - 4000) (afrundet) * 40 / 100 =
B185: 39 | F185: ="Feriegodtgørelsesgrundlag, aug-dec "&Aar -> Feriegodtgørelsesgrundlag, aug-dec 2018
B186: 40 | F186: ="Feriegodtgørelsesgrundlag, jan-juli "&Aar+1 -> Feriegodtgørelsesgrundlag, jan-juli 2019
B187: 41 | F187: Egetbidrag til pensionskasse | G187: ="= Lin. 43 =" -> = Lin. 43 = | H187: ="= Lin. 43 =" -> = Lin. 43 = | I187: = Lin. 43 = | J187: = Lin. 43 = | K187: = Lin. 43 = | L187: = Lin. 43 = | M187: = Lin. 43 = | N187: = Lin. 43 = | O187: = Lin. 43 = | P187: = Lin. 43 = | Q187: = Lin. 43 = | R187: = Lin. 43 =
B188: 42 | F188: Arbejdsgiverbidrag til pensionskasse | G188: ="= Lin. 43 * 2 =" -> = Lin. 43 * 2 = | H188: ="= Lin. 43 * 2 =" -> = Lin. 43 * 2 = | I188: = Lin. 43 * 2 = | J188: = Lin. 43 * 2 = | K188: = Lin. 43 * 2 = | L188: = Lin. 43 * 2 = | M188: = Lin. 43 * 2 = | N188: = Lin. 43 * 2 = | O188: = Lin. 43 * 2 = | P188: = Lin. 43 * 2 = | Q188: = Lin. 43 * 2 = | R188: = Lin. 43 * 2 =
B189: 43 | F189: Arbejdsgiverbidrag til ATP | G189: ="= Lin. 44 * 2 =" -> = Lin. 44 * 2 = | H189: ="= Lin. 44 * 2 =" -> = Lin. 44 * 2 = | I189: = Lin. 44 * 2 = | J189: = Lin. 44 * 2 = | K189: = Lin. 44 * 2 = | L189: = Lin. 44 * 2 = | M189: = Lin. 44 * 2 = | N189: = Lin. 44 * 2 = | O189: = Lin. 44 * 2 = | P189: = Lin. 44 * 2 = | Q189: = Lin. 44 * 2 = | R189: = Lin. 44 * 2 =
B190: 44 | F190: Skolens samlede indbetaling til pensionskasse | G190: ="= Lin. 51 + Lin. 52 =" -> = Lin. 51 + Lin. 52 = | H190: ="= Lin. 51 + Lin. 52 =" -> = Lin. 51 + Lin. 52 = | I190: = Lin. 51 + Lin. 52 = | J190: = Lin. 51 + Lin. 52 = | K190: = Lin. 51 + Lin. 52 = | L190: = Lin. 51 + Lin. 52 = | M190: = Lin. 51 + Lin. 52 = | N190: = Lin. 51 + Lin. 52 = | O190: = Lin. 51 + Lin. 52 = | P190: = Lin. 51 + Lin. 52 = | Q190: = Lin. 51 + Lin. 52 = | R190: = Lin. 51 + Lin. 52 =
B191: 45 | F191: Skolens samlede indbetaling til ATP | G191: ="= Lin. 44 + Lin. 53 =" -> = Lin. 44 + Lin. 53 = | H191: ="= Lin. 44 + Lin. 53 =" -> = Lin. 44 + Lin. 53 = | I191: = Lin. 44 + Lin. 53 = | J191: = Lin. 44 + Lin. 53 = | K191: = Lin. 44 + Lin. 53 = | L191: = Lin. 44 + Lin. 53 = | M191: = Lin. 44 + Lin. 53 = | N191: = Lin. 44 + Lin. 53 = | O191: = Lin. 44 + Lin. 53 = | P191: = Lin. 44 + Lin. 53 = | Q191: = Lin. 44 + Lin. 53 = | R191: = Lin. 44 + Lin. 53 =
B192: 46 | F192: Indbetaling til Gruppeliv
B193: 47 | F193: Løn til den ansattes disposition | G193: ="= "&G64&" - ( "&G84&" + "&G79&" + "&G81&" + "&G92&") - SUM(lin 57 : 59) =" -> = 29916,477 - ( 6428 + 94,67 + 1746 + 0) - SUM(lin 57 : 59) = | H193: ="= "&H64&" - ( "&H84&" + "&H79&" + "&H81&" + "&H92&") - SUM(lin 57 : 59) =" -> = 20289,33 - ( 5828 + 94,67 + 1616 + 0) - SUM(lin 57 : 59) = | I193: = 0 - ( -1636 + 94,67 + -8 + 0) - SUM(lin 57 : 59) = | J193: = 0 - ( -1636 + 94,67 + -8 + 0) - SUM(lin 57 : 59) = | K193: = 0 - ( -1636 + 94,67 + -8 + 0) - SUM(lin 57 : 59) = | L193: = 0 - ( -1636 + 94,67 + -8 + 0) - SUM(lin 57 : 59) = | M193: = 0 - ( -1636 + 94,67 + -8 + 0) - SUM(lin 57 : 59) = | N193: = 0 - ( -1636 + 94,67 + -8 + 0) - SUM(lin 57 : 59) = | O193: = 0 - ( -1636 + 94,67 + -8 + 0) - SUM(lin 57 : 59) = | P193: = 633,09 - ( -1404 + 94,67 + 43 + 0) - SUM(lin 57 : 59) = | Q193: = 0 - ( -1636 + 94,67 + -8 + 0) - SUM(lin 57 : 59) = | R193: = 0 - ( -1636 + 94,67 + -8 + 0) - SUM(lin 57 : 59) =
B194: 48 | F194: ="Feriepengeberegningsgrundlag, jan-dec "&Aar -> Feriepengeberegningsgrundlag, jan-dec 2018
F195: ="Feriepengeberegningsgrundlag, jan-jul "&Aar+1 -> Feriepengeberegningsgrundlag, jan-jul 2019

Sheet Vejledning
A1: LØNBEREGNING FOR FRISKOLER gældende for skoleåret 2023-2024
B5: Vejledning:
A6: • | B6: Friskolerne afholder kursus i brugen af lønberegningsarket. Det er interessekurser som oprettes når der er nok der viser interesse.
A8: • | B8: Lønspec.-arkene kan benyttes som bilag til skolens lønsystem. Du skal blot indtaste arkets navn og måneden for specifikationen og skrive arket ud. Kun linier med beløb udskrives. Linier uden beløb er tomme.
A10: • | B10: Tast kun i gule felter! (Medmindre, du virkelig ved, hvad du gør. Arkbeskyttelsen skal dog først ophæves) Alle indtastninger i gule felter kan/bør overskrives! Langt de fleste oplysninger skal indskrives i august-kolonnen, hvorefter de kopieres automatisk til de øvrige måneder.
A11: • | B11: Denne lønberegning er IKKE til brug for lærere og bhkl.ledere samt skoleledere!
A13: • | B13: Hvis der er brug for flere ark kan et vilkårligt ark (fane) kopieres.
A15: • | B15: Arkfanens navn kan/bør omdøbes til den ansattes initialer eller navn. Men husk at rette i specifikatonsarkene i overensstemmelse hermed.
A17: • | B17: Der er ikke taget hensyn til, at en ansat kan skifte beskæftigelsesgrad midt i en måned. Hvis dette er tilfældet, kan det løses ved at lave to ark. Spørg evt.!
A19: • | B19: Lønfradrag kan beregnes via brugen af de enkelte lønberegningsark. Feriedifference skal beregnes i fanen "Feriedifference ny ferielov", og beløbet/differencen der beregnes i arket tastes manuelt i den ansattes lønfane.
A20: OK24 | B20: Reguleringsprocenten pr. 1. april 2025 er tastet og gælder til 31. oktober. Pr. 1. november udmeldes ny gældende reguleringsprocent. Hold øje med skolenyt og tast selv den ændrede reguleringsprocent.
B21: Da Friskolerne ikke ved om brugerne har tiltrådt BUPL-FOA, 3F og HK overenskomst, skal skolen selv oplyst skalatrin, pensionsprocent, ferieregler, overenskomsttillæg mm.
A22: OK26 | B22: Pr. 1. april 2026 træder OK26 i kraft. Hold øje med skolenyt og tast selv evt. ændringer i løn vedr. BUPL-FÓA, 3F og HK overenskomster.
B23: Hvis der er yderligere spørgsmål eller kommentarer, kontakt:
B24: mailto:tove@friskolerne.dk

Sheet Foraeldreorlov (hidden)
A1: Forældreorlov uden løn
A2: • | B2: Som en del af barselsreglerne har forældre ret til at holde forældreorlov uden løn i en periode. I en sådan periode, skal skolen fortsat indbetale pension til pensionskassen som om der stadig udbetaltes løn.
A4: • | B4: For at holde rede på ændringerne i forbindelse mad forældreorlov uden løn (og anden bevilget orlov uden løn, men med pension) er der indsat en særlig årsspecifikation: 'LonspecAndreAarBarsel'.
A6: • | B6: De øvrige lønspecifikationsark vil ikke vise de rigtige tal for disse måneder, hvor der ikke udbetales løn!
A8: • | B8: Du skal i hver måned, hvor der holdes orlov uden løn skrive antallet af kalenderdage, i hvilke der ikke skal betales løn i lin 3.
A10: • | B10: Hvis der holdes deltidsforældreorlov, hvor orloven forlænges forholdsmæssigt, skrives i lin 5 den beskæftigelsesgrad, som der arbejdes efter.
A12: Eks. | B12: En nybagt mor med normalt 60% beskæftigelse har planlagt at holde 20 ugers forældreorlov uden løn. Imidlertid vil hun gerne udstrække orloven til 30 uger (= 30*7 dage = 210 dage), idet hun kun går på delvis orlov svarende til 20/30 af den hidtidige og så arbejder i den resterende beskæftigelse. Beskæftigelsen udgør altså kun 20%, der skrives i lin 5 i de måneder orloven varer. Pensionen for orlovsdelen udgør 2/3 af den hidtidige, men der betales også pension af den nedsatte beskæftigelse, de 20%. Så totalt set er der ingen ændring!
B13: I celle P3 bliver antallet af orlovsdage summeret. Husk dog, at medtælle orlovsdage fra tidligere eller senere skoleår.
B15: Herunder kan beskæftigelsesgraden beregnes ved forlænget deltidsorlov (hver uge er på 7 dage!)
B16: Hidtidig beskæftigelsesgrad: | C16: 0.9 | D16: antal dage
B17: Antal uger med forældreorlov uden løn iflg. normalreglerne: | C17: 20 | D17: =ROUND(C17*7,0) -> 140
B18: Ønskede antal uger med deltidsorlov: | C18: 45 | D18: =ROUND(C18*7,0) -> 315
B19: Beskæftigelsesgrad med arbejde under den forlængede orlov: | C19: =C16-ROUND(C17/C18*C16,4) -> 0.5
B21: Hvis du omvendt ønsker at beregne antal af uger/dage mrd deltidsorlov ved en given nedsat beskæftigelsesgrad, så benyt Excel-funktionen Målsøgning!

Sheet LonspecAndreAarBarsel (hidden)
B1: Ark: | C1: Q | D1: fx: Q | E1: Dette ark er kun at betragte som et hjælpeværktøj i forbindelse med forældreorlov uden eller med delvis løn! | Q1: Antal orlovs- | R1: Gule felter herunder
A2: Måned: | C2: aug | D2: g | E2: h | F2: i | G2: j | H2: k | I2: l | J2: m | K2: n | L2: o | M2: p | N2: q | O2: r | Q2: dage i alt: | R2: er kladdeområde
Q3: dage i alt: | R3: er kladdeområde
C4: Skriv antal dage med forældreorlov uden løn | D4: 31 | Q4: =SUM(D4:O4) -> 31
C5: antal dage i måneden | D5: 31 | E5: 30 | F5: 31 | G5: 30 | H5: 31 | I5: 31 | J5: 29 | K5: 31 | L5: 30 | M5: 31 | N5: 30 | O5: 31
C6: Ændret BG. under forældreorlov | D6: 0.8
A7: 1 | C7: LØNSPECIFIKATION for | D7: =INDIRECT($C$1&"!"&D$2&$A7) -> Q | E7: Q | F7: Q | G7: Q | H7: Q | I7: Q | J7: Q | K7: Q | L7: Q | M7: Q | N7: Q | O7: Q | P7: HELE
A8: 2 | C8: STILLINGSBETEGNELSE: | D8: Stilling | E8: Stilling | F8: Stilling | G8: Stilling | H8: Stilling | I8: Stilling | J8: Stilling | K8: Stilling | L8: Stilling | M8: Stilling | N8: Stilling | O8: Stilling | Q8: Feriegodt-
A9: 3 | C9: LØNPERIODE: | D9: AUG 25 | E9: SEP 25 | F9: OKT 25 | G9: NOV 25 | H9: DEC 25 | I9: JAN 26 | J9: FEB 26 | K9: MAR 26 | L9: APR 26 | M9: MAJ 26 | N9: JUN 26 | O9: JUL 26 | P9: SKOLEÅRET | Q9: gørelses- | T9: AUG | U9: g
A10: 10 | C10: BESKÆFTIGELSESGRAD: | D10: 1.233095 | E10: 1.233095 | F10: 1.233095 | G10: 0 | H10: 0 | I10: 0 | J10: 0 | K10: 0 | L10: 0 | M10: 0 | N10: 0 | O10: 0 | P10: =AVERAGE(D10:O10) -> 0.30827375 | Q10: grundlag | T10: SEP | U10: h
A11: 4 | C11: DEL AF MÅNED: | D11: 1 | E11: 1 | F11: 1 | G11: 1 | H11: 1 | I11: 1 | J11: 1 | K11: 1 | L11: 1 | M11: 1 | N11: 1 | O11: 1 | P11: =SUM(D11:O11) -> 12 | Q11: =2000+RIGHT($D$9,2) -> 2025 | T11: OKT | U11: i
A12: 11 | D12: 0 | E12: 0 | F12: 0 | G12: 0 | H12: 0 | I12: 0 | J12: 0 | K12: 0 | L12: 0 | M12: 0 | N12: 0 | O12: 0 | P12: =SUM(D12:M12) -> 0 | Q12: =INDIRECT($C$1&"!"&"A"&82)+SUM(D17:O31) ->  | T12: NOV | U12: j
A13: 12 | D13: 0 | E13: 0 | F13: 0 | G13: 0 | H13: 0 | I13: 0 | J13: 0 | K13: 0 | L13: 0 | M13: 0 | N13: 0 | O13: 0 | T13: DEC | U13: k
A14: 8 | C14: PROCENTREGULERING +1 | D14: Nej | E14: Nej | F14: Nej | G14: Nej | H14: Nej | I14: Nej | J14: Nej | K14: Nej | L14: Nej | M14: Nej | N14: Nej | O14: Nej | Q14: Feriegodt- | T14: JAN | U14: l
C15: DEL AF MÅNED med forældreorlov uden løn | D15: =D4/D5 -> 1 | E15: =E4/E5 -> 0 | F15: 0 | G15: 0 | H15: 0 | I15: 0 | J15: 0 | K15: 0 | L15: 0 | M15: 0 | N15: 0 | O15: 0 | P15: =SUM(D15:O15) -> 1 | Q15: gørelses- | T15: DEC | U15: k
C16: Ændret BG. I deltids-forældreorlovsperiode: | D16: =IF(AND(D10>D6,D6>0),D6,"") -> 0.8 | Q16: grundlag | T16: JAN | U16: l
A17: 48 | B17: 1 | C17: =IF(ABS(SUM(D17:O17))>0,INDIRECT($C$1&"!f"&A17),"") ->  | D17: =INDIRECT($C$1&"!"&D$2&$A17)*(1-D$4/D$5)+IF(D$16>0,INDIRECT($C$1&"!"&D$2&$A17)*D$4/D$5*D$6/D$10,0) -> 0 | E17: =INDIRECT($C$1&"!"&E$2&$A17)*(1-E$4/E$5)+IF(E$16>0,INDIRECT($C$1&"!"&E$2&$A17)*E$4/E$5*E$6/E$10,0) -> 0 | F17: 0 | P17: =SUM(D17:O17) ->  | Q17: =Q11+1 -> 2026 | T17: FEB | U17: m
A18: =A17+1 -> 49 | B18: =B17+1 -> 2 | C18: =IF(ABS(SUM(D18:O18))>0,INDIRECT($C$1&"!f"&A18),"") ->  | D18: =INDIRECT($C$1&"!"&D$2&$A18)*(1-D$4/D$5)+IF(D$16>0,INDIRECT($C$1&"!"&D$2&$A18)*D$4/D$5*D$6/D$10,0) -> 0 | E18: 0 | F18: 0 | Q18: =SUM(D17:O31) ->  | T18: MAR | U18: n
A19: =A18+1 -> 50 | B19: =B18+1 -> 3 | D19: 28810.75667 | E19: 44439 | F19: 44469 | T19: APR | U19: o
A20: 51 | B20: 4 | D20: 0 | E20: 0 | F20: 0 | T20: MAJ | U20: p
A21: 52 | B21: 5 | D21: 0 | E21: 0 | F21: 0 | Q21: Feriepenge- | T21: JUN | U21: q
A22: 53 | B22: 6 | D22: 0 | E22: 0 | F22: 0 | Q22: beregnings- | T22: JUL | U22: r
A23: 54 | B23: 7 | D23: 0 | E23: 0 | F23: 0 | Q23: grundlag
A24: 55 | B24: 8 | D24: 0 | E24: 0 | F24: 0 | Q24: =Q11 -> 2025
A25: 56 | B25: 9 | D25: 0 | E25: 0 | F25: 0 | Q25: =INDIRECT($C$1&"!"&"A"&91)+SUM(D62:H62) -> 
A26: 57 | B26: 10 | D26: 0 | E26: 0 | F26: 0
A27: 58 | B27: 11 | D27: 0 | E27: 0 | F27: 0 | Q27: Feriepenge-
A28: 59 | B28: 12 | D28: =INDIRECT($C$1&"!"&D$2&$A28) -> 0 | E28: 0 | F28: 0 | G28: 0 | H28: 0 | I28: 0 | J28: 0 | K28: 0 | L28: 0 | M28: 0 | N28: 0 | O28: 0 | P28: 0 | Q28: beregnings-
A29: 60 | B29: 13 | D29: 0 | E29: 0 | F29: 0 | G29: 0 | H29: 0 | I29: 0 | J29: 0 | K29: 0 | L29: 0 | M29: 0 | N29: 0 | O29: 0 | P29: 0 | Q29: grundlag
A30: 61 | B30: 14 | D30: 0 | E30: 0 | F30: 0 | G30: 0 | H30: 0 | I30: 0 | J30: 0 | K30: 0 | L30: 0 | M30: 0 | N30: 0 | O30: 0 | P30: 0 | Q30: =Q17 -> 2026
A31: 62 | B31: 15 | D31: 0 | E31: 0 | F31: 0 | G31: 0 | H31: 0 | I31: 0 | J31: 0 | K31: 0 | L31: 0 | M31: 0 | N31: 0 | O31: 0 | P31: 0 | Q31: =SUM(I62:O62) -> 
A32: 63 | B32: 16 | C32: =IF(ABS(SUM(D32:O32))>0,INDIRECT($C$1&"!f"&A32),"") ->  | D32: 0 | E32: 0 | F32: 0 | G32: 0 | H32: 0 | I32: 0 | J32: 0 | K32: 0 | L32: 0 | M32: 0 | N32: 0 | O32: 0 | P32: 0
A33: 64 | B33: =B32+1 -> 17 | D33: =SUM(D17:D32) -> 28810.75667 | E33: =SUM(E17:E32) -> 44439 | F33: 44469 | Q33: Benyt oven-
A34: 65 | B34: =B33+1 -> 18 | D34: =INDIRECT($C$1&"!"&D$2&$A34) -> 0 | E34: 0 | F34: 0 | G34: 0 | H34: 0 | I34: 0 | J34: 0 | K34: 0 | L34: 0 | M34: 0 | N34: 0 | O34: 0 | P34: 0 | Q34: stående tal i
A35: 66 | B35: 19 | D35: 0 | E35: 0 | F35: 0 | G35: 0 | H35: 0 | I35: 0 | J35: 0 | K35: 0 | L35: 0 | M35: 0 | N35: 0 | O35: 0 | P35: 0 | Q35: stedet for sum-
A36: 67 | B36: 20 | D36: 0 | E36: 0 | F36: 0 | G36: 0 | H36: 0 | I36: 0 | J36: 0 | K36: 0 | L36: 0 | M36: 0 | N36: 0 | O36: 0 | P36: 0 | Q36: merne på
A37: 68 | B37: 21 | D37: 0 | E37: 0 | F37: 0 | G37: 0 | H37: 0 | I37: 0 | J37: 0 | K37: 0 | L37: 0 | M37: 0 | N37: 0 | O37: 0 | P37: 0 | Q37: hovedarket.
A38: 69 | B38: 22 | D38: 0 | E38: 0 | F38: 0 | G38: 0 | H38: 0 | I38: 0 | J38: 0 | K38: 0 | L38: 0 | M38: 0 | N38: 0 | O38: 0 | P38: 0 | Q38: (lin 85 og lin 94)
A39: 70 | B39: 23 | D39: 0 | E39: 0 | F39: 0 | G39: 0 | H39: 0 | I39: 0 | J39: 0 | K39: 0 | L39: 0 | M39: 0 | N39: 0 | O39: 0 | P39: 0
A40: 71 | B40: 24 | D40: 0 | E40: 0 | F40: 0 | G40: 0 | H40: 0 | I40: 0 | J40: 0 | K40: 0 | L40: 0 | M40: 0 | N40: 0 | O40: 0 | P40: 0
A41: 72 | B41: 25 | D41: 0 | E41: 0 | F41: 0 | G41: 0 | H41: 0 | I41: 0 | J41: 0 | K41: 0 | L41: 0 | M41: 0 | N41: 0 | O41: 0 | P41: 0
A42: 73 | B42: 26 | D42: 0 | E42: 0 | F42: 0 | G42: 0 | H42: 0 | I42: 0 | J42: 0 | K42: 0 | L42: 0 | M42: 0 | N42: 0 | O42: 0 | P42: 0
A43: 74 | B43: 27 | D43: 0 | E43: 0 | F43: 0 | G43: 0 | H43: 0 | I43: 0 | J43: 0 | K43: 0 | L43: 0 | M43: 0 | N43: 0 | O43: 0 | P43: 0
A44: 75 | B44: 28 | D44: 0 | E44: 0 | F44: 0 | G44: 0 | H44: 0 | I44: 0 | J44: 0 | K44: 0 | L44: 0 | M44: 0 | N44: 0 | O44: 0 | P44: 0
A45: 76 | B45: 29 | D45: 0 | E45: 0 | F45: 0 | G45: 0 | H45: 0 | I45: 0 | J45: 0 | K45: 0 | L45: 0 | M45: 0 | N45: 0 | O45: 0 | P45: 0
A46: 77 | B46: 30 | D46: 0 | E46: 0 | F46: 0 | G46: 0 | H46: 0 | I46: 0 | J46: 0 | K46: 0 | L46: 0 | M46: 0 | N46: 0 | O46: 0 | P46: 0
A47: 78 | B47: 31 | D47: 0 | E47: 0 | F47: 0 | G47: 0 | H47: 0 | I47: 0 | J47: 0 | K47: 0 | L47: 0 | M47: 0 | N47: 0 | O47: 0 | P47: 0
A48: 79 | B48: =B47+1 -> 32 | C48: Pensionstillæg Funktionstillæg 1 | D48: =D59/3 -> 0 | E48: =E59/3 -> 90 | F48: 90 | G48: 0 | H48: 0 | I48: 0 | J48: 0 | K48: 0 | L48: 0 | M48: 0 | N48: 0 | O48: 0 | P48: 180
A49: 80 | B49: 33 | D49: =SUM(D17:D31)-D48 -> 28810.75667 | E49: =SUM(E17:E31)-E48 -> 44349 | F49: 44379
A50: 81 | B50: 34 | D50: =ROUND(D49*8%,0) -> 2305 | E50: =ROUND(E49*8%,0) -> 3548 | F50: 3550
A51: 82 | B51: 35 | D51: =D49-D50 -> 26505.75667 | E51: =E49-E50 -> 40801 | F51: 40829
A52: 29 | B52: 36 | D52: 0 | E52: =INDIRECT($C$1&"!"&E$2&$A52) -> 0 | F52: 0 | G52: 0 | H52: 0 | I52: 0 | J52: 0 | K52: 0 | L52: 0 | M52: 0 | N52: 0 | O52: 0
A53: 28 | B53: 37 | D53: 0 | E53: 0 | F53: 0 | G53: 0 | H53: 0 | I53: 0 | J53: 0 | K53: 0 | L53: 0 | M53: 0 | N53: 0 | O53: 0
A54: =A51+2 -> 84 | B54: 38 | D54: =MAX(0,TRUNC(ROUND(D51-D52,-2)*D53/100)) -> 0 | E54: =MAX(0,TRUNC(ROUND(E51-E52,-2)*E53/100)) -> 0 | F54: 0 | P54: =SUM(D54:O54) -> 
A55: =A54+3 -> 87 | B55: 39 | D55: =INDIRECT($C$1&"!"&D$2&$A55) -> 0 | E55: 0 | F55: 0 | G55: 0 | H55: 0 | I55: 0 | J55: 0 | K55: 0 | L55: 0 | M55: 0 | N55: 0 | O55: 0 | P55: 0
A56: =A55+1 -> 88 | B56: 40 | D56: =D55*2 -> 0 | E56: =E55*2 -> 0 | F56: 0 | G56: 0 | H56: 0 | I56: 0 | J56: 0 | K56: 0 | L56: 0 | M56: 0 | N56: 0 | O56: 0 | P56: 0
A57: 89 | B57: 41 | C57: Pensionstillæg af pensiong. engangstillæg | D57: =D59/3*2 -> 0 | E57: =E59/3*2 -> 180 | F57: 180 | G57: 0 | H57: 0 | I57: 0 | J57: 0 | K57: 0 | L57: 0 | M57: 0 | N57: 0 | O57: 0 | P57: 360
A58: 90 | B58: 42 | D58: 0 | E58: 0 | F58: 0 | G58: 0 | H58: 0 | I58: 0 | J58: 0 | K58: 0 | L58: 0 | M58: 0 | N58: 0 | O58: 0 | P58: 0
A59: 91 | B59: 43 | C59: Pensionstillæg i alt | D59: =90*(((D10*D11*(D5-D4)/D5)>=9/37)+((D10*D11*(D5-D4)/D5)>=18/37)+((D10*D11*(D5-D4)/D5)>=27/37)) -> 0 | E59: =90*(((E10*E11*(E5-E4)/E5)>=9/37)+((E10*E11*(E5-E4)/E5)>=18/37)+((E10*E11*(E5-E4)/E5)>=27/37)) -> 270 | F59: =90*(((F10*F11*(F5-F4)/F5)>=9/37)+((F10*F11*(F5-F4)/F5)>=18/37)+((F10*F11*(F5-F4)/F5)>=27/37)) -> 270 | G59: =90*(((G10*G11*(G5-G4)/G5)>=9/37)+((G10*G11*(G5-G4)/G5)>=18/37)+((G10*G11*(G5-G4)/G5)>=27/37)) -> 0 | H59: =90*(((H10*H11*(H5-H4)/H5)>=9/37)+((H10*H11*(H5-H4)/H5)>=18/37)+((H10*H11*(H5-H4)/H5)>=27/37)) -> 0 | I59: =284/3*(((I10*I11*(I5-I4)/I5)>=9/37)+((I10*I11*(I5-I4)/I5)>=18/37)+((I10*I11*(I5-I4)/I5)>=27/37)) -> 0 | J59: =284/3*(((J10*J11*(J5-J4)/J5)>=9/37)+((J10*J11*(J5-J4)/J5)>=18/37)+((J10*J11*(J5-J4)/J5)>=27/37)) -> 0 | K59: 0 | L59: 0 | M59: 0 | N59: 0 | O59: 0 | P59: 540
A60: 92 | B60: 44 | D60: =IF(D33>0,INDIRECT($C$1&"!"&D$2&$A60),0) -> 0 | E60: =IF(E33>0,INDIRECT($C$1&"!"&E$2&$A60),0) -> 0 | F60: 0
A61: 93 | B61: 45 | D61: =D33-D48-D50-D54-D60 -> 26505.75667 | E61: =E33-E48-E50-E54-E60 -> 40801 | F61: 40829
C62: Feriepengeberegningsgrundlag | D62: =SUM(D17:D31)+D47*(1-12/260*INDIRECT($C$1&"!"&D$2&"23")) -> 28810.75667 | E62: =SUM(E17:E31)+E47*(1-12/260*INDIRECT($C$1&"!"&E$2&"23")) -> 44439 | F62: 44469

Sheet LonspecAndreAar
B1: Ark: | C1: Q | D1: fx: Q | Q1: Gule felter herunder
A2: Måned: | C2: aug | D2: g | E2: h | F2: i | G2: j | H2: k | I2: l | J2: m | K2: n | L2: o | M2: p | N2: q | O2: r | Q2: er kladdeområde, som
Q3: ikke er med i udskriften
A4: 1 | C4: LØNSPECIFIKATION for | D4: =INDIRECT($C$1&"!"&D$2&$A4) -> Q | E4: =INDIRECT($C$1&"!"&E$2&$A4) -> Q | F4: Q | G4: Q | H4: Q | I4: Q | J4: Q | K4: Q | L4: Q | M4: Q | N4: Q | O4: Q | P4: HELE
A5: 2 | C5: STILLINGSBETEGNELSE: | D5: Stilling | E5: Stilling | F5: Stilling | G5: Stilling | H5: Stilling | I5: Stilling | J5: Stilling | K5: Stilling | L5: Stilling | M5: Stilling | N5: Stilling | O5: Stilling
A6: 3 | C6: LØNPERIODE: | D6: AUG 25 | E6: =INDIRECT($C$1&"!"&E$2&$A6) -> SEP 25 | F6: OKT 25 | G6: NOV 25 | H6: DEC 25 | I6: JAN 26 | J6: FEB 26 | K6: MAR 26 | L6: APR 26 | M6: MAJ 26 | N6: JUN 26 | O6: JUL 26 | P6: SKOLEÅRET | T6: AUG | U6: g
A7: 12 | C7: BESKÆFTIGELSESGRAD: | D7: 0 | E7: 0 | F7: 0 | G7: 0 | H7: 0 | I7: 0 | J7: 0 | K7: 0 | L7: 0 | M7: 0 | N7: 0 | O7: 0 | P7: =AVERAGE(D7:O7) -> 0 | T7: SEP | U7: h
A8: 4 | C8: DEL AF MÅNED: | D8: 1 | E8: 1 | F8: 1 | G8: 1 | H8: 1 | I8: 1 | J8: 1 | K8: 1 | L8: 1 | M8: 1 | N8: 1 | O8: 1 | P8: =SUM(D8:O8) -> 12 | T8: OKT | U8: i
A9: 13 | C9: STEDTILLÆGSOMRÅDE | D9: 0 | E9: 0 | F9: 0 | G9: 0 | H9: 0 | I9: 0 | J9: 0 | K9: 0 | L9: 0 | M9: 0 | N9: 0 | O9: 0 | P9: =SUM(D9:M9) -> 0 | T9: NOV | U9: j
A10: 11 | C10: SKALATRIN | D10: 0 | E10: 0 | F10: 0 | G10: 0 | H10: 0 | I10: 0 | J10: 0 | K10: 0 | L10: 0 | M10: 0 | N10: 0 | O10: 0 | T10: DEC | U10: k
A11: 5 | C11: PENSIONSPROCENT | D11: 0 | E11: 0 | F11: 0 | G11: 0 | H11: 0 | I11: 0 | J11: 0 | K11: 0 | L11: 0 | M11: 0 | N11: 0 | O11: 0 | T11: JAN | U11: l
B12: Lin: | T12: FEB | U12: m
A13: 51 | B13: 1 | C13: =IF(ABS(SUM(D13:O13))>0,INDIRECT($C$1&"!f"&A13),"") ->  | D13: =INDIRECT($C$1&"!"&D$2&$A13) -> 0 | E13: 0 | F13: 0 | G13: 0 | H13: 0 | I13: 0 | J13: 0 | K13: 0 | L13: 0 | M13: 0 | N13: 0 | O13: 0 | P13: =SUM(D13:O13) -> 0 | T13: MAR | U13: n
A14: =A13+1 -> 52 | B14: =B13+1 -> 2 | C14: =IF(ABS(SUM(D14:O14))>0,INDIRECT($C$1&"!f"&A14),"") ->  | D14: 0 | E14: 0 | F14: 0 | G14: 0 | H14: 0 | I14: 0 | J14: 0 | K14: 0 | L14: 0 | M14: 0 | N14: 0 | O14: 0 | P14: 0 | T14: APR | U14: o
A15: =A14+1 -> 53 | B15: =B14+1 -> 3 | D15: 0 | E15: 0 | F15: 0 | G15: 0 | H15: 0 | I15: 0 | J15: 0 | K15: 0 | L15: 0 | M15: 0 | N15: 0 | O15: 0 | P15: 0 | T15: MAJ | U15: p
A16: 54 | B16: 4 | D16: 0 | E16: 0 | F16: 0 | G16: 0 | H16: 0 | I16: 0 | J16: 0 | K16: 0 | L16: 0 | M16: 0 | N16: 0 | O16: 0 | P16: 0 | T16: JUN | U16: q
A17: 55 | B17: 5 | D17: 0 | E17: 0 | F17: 0 | G17: 0 | H17: 0 | I17: 0 | J17: 0 | K17: 0 | L17: 0 | M17: 0 | N17: 0 | O17: 0 | P17: 0 | T17: JUL | U17: r
A18: 56 | B18: 6 | D18: 0 | E18: 0 | F18: 0 | G18: 0 | H18: 0 | I18: 0 | J18: 0 | K18: 0 | L18: 0 | M18: 0 | N18: 0 | O18: 0 | P18: 0
A19: 57 | B19: 7 | D19: 0 | E19: 0 | F19: 0 | G19: 0 | H19: 0 | I19: 0 | J19: 0 | K19: 0 | L19: 0 | M19: 0 | N19: 0 | O19: 0 | P19: 0
A20: 58 | B20: 8 | D20: 0 | E20: 0 | F20: 0 | G20: 0 | H20: 0 | I20: 0 | J20: 0 | K20: 0 | L20: 0 | M20: 0 | N20: 0 | O20: 0 | P20: 0
A21: 59 | B21: 9 | D21: 0 | E21: 0 | F21: 0 | G21: 0 | H21: 0 | I21: 0 | J21: 0 | K21: 0 | L21: 0 | M21: 0 | N21: 0 | O21: 0 | P21: 0
A22: 60 | B22: 10 | D22: 0 | E22: 0 | F22: 0 | G22: 0 | H22: 0 | I22: 0 | J22: 0 | K22: 0 | L22: 0 | M22: 0 | N22: 0 | O22: 0 | P22: 0
A23: 61 | B23: 11 | D23: 0 | E23: 0 | F23: 0 | G23: 0 | H23: 0 | I23: 0 | J23: 0 | K23: 0 | L23: 0 | M23: 0 | N23: 0 | O23: 0 | P23: 0
A24: 62 | B24: 12 | D24: 0 | E24: 0 | F24: 0 | G24: 0 | H24: 0 | I24: 0 | J24: 0 | K24: 0 | L24: 0 | M24: 0 | N24: 0 | O24: 0 | P24: 0
A25: 63 | B25: 13 | D25: =INDIRECT($C$1&"!"&D$2&$A25) -> 0 | E25: 0 | F25: 0 | G25: 0 | H25: 0 | I25: 0 | J25: 0 | K25: =INDIRECT($C$1&"!"&K$2&$A25) -> 0 | L25: 0 | M25: 0 | N25: 0 | O25: 0 | P25: 0
A26: 64 | B26: 14 | D26: =INDIRECT($C$1&"!"&D$2&$A26) -> 0 | E26: 0 | F26: 0 | G26: 0 | H26: 0 | I26: 0 | J26: 0 | K26: 0 | L26: 0 | M26: 0 | N26: 0 | O26: 0 | P26: 0
A27: 65 | B27: =B26+1 -> 15 | C27: =IF(ABS(SUM(D27:O27))>0,INDIRECT($C$1&"!f"&A27),"") ->  | D27: 0 | E27: 0 | F27: 0 | G27: 0 | H27: 0 | I27: 0 | J27: 0 | K27: 0 | L27: 0 | M27: 0 | N27: 0 | O27: 0
A28: 66 | B28: =B27+1 -> 16 | C28: =IF(ABS(SUM(D28:O28))>0,LEFT(INDIRECT($C$1&"!f"&A28),36),"") ->  | D28: 0 | E28: 0 | F28: 0 | G28: 0 | H28: 0 | I28: 0 | J28: 0 | K28: 0 | L28: 0 | M28: 0 | N28: 0 | O28: 0 | P28: 0
A29: 67 | B29: =B28+1 -> 17 | C29: =IF(ABS(SUM(D29:O29))>0,LEFT(INDIRECT($C$1&"!f"&A29),36),"") ->  | D29: 0 | E29: 0 | F29: 0 | G29: 0 | H29: 0 | I29: 0 | J29: 0 | K29: 0 | L29: 0 | M29: 0 | N29: 0 | O29: 0 | P29: 0
A30: 68 | B30: =B29+1 -> 18 | D30: 0 | E30: 0 | F30: 0 | G30: 0 | H30: 0 | I30: 0 | J30: 0 | K30: 0 | L30: 0 | M30: 0 | N30: 0 | O30: 0 | P30: 0
A31: 69 | B31: =B30+1 -> 19 | D31: 0 | E31: 0 | F31: 0 | G31: 0 | H31: 0 | I31: 0 | J31: 0 | K31: 0 | L31: 0 | M31: 0 | N31: 0 | O31: 0 | P31: 0
A32: 70 | B32: =B31+1 -> 20 | D32: 0 | E32: 0 | F32: 0 | G32: 0 | H32: 0 | I32: 0 | J32: 0 | K32: 0 | L32: 0 | M32: 0 | N32: 0 | O32: 0 | P32: 0
A33: 71 | B33: =B32+1 -> 21 | D33: 0 | E33: 0 | F33: 0 | G33: 0 | H33: 0 | I33: 0 | J33: 0 | K33: 0 | L33: 0 | M33: 0 | N33: 0 | O33: 0 | P33: 0
A34: 72 | B34: =B33+1 -> 22 | D34: 0 | E34: 0 | F34: 0 | G34: 0 | H34: 0 | I34: 0 | J34: 0 | K34: 0 | L34: 0 | M34: 0 | N34: 0 | O34: 0 | P34: 0
A35: 73 | B35: =B34+1 -> 23 | D35: 0 | E35: 0 | F35: 0 | G35: 0 | H35: 0 | I35: 0 | J35: 0 | K35: 0 | L35: 0 | M35: 0 | N35: 0 | O35: 0 | P35: 0
A36: 74 | B36: =B35+1 -> 24 | D36: 0 | E36: 0 | F36: 0 | G36: 0 | H36: 0 | I36: 0 | J36: 0 | K36: 0 | L36: 0 | M36: 0 | N36: 0 | O36: 0 | P36: 0
A37: 75 | B37: =B36+1 -> 25 | D37: =IF(ISNUMBER(INDIRECT($C$1&"!"&D$2&$A37)),INDIRECT($C$1&"!"&D$2&$A37),0) -> 0 | E37: =IF(ISNUMBER(INDIRECT($C$1&"!"&E$2&$A37)),INDIRECT($C$1&"!"&E$2&$A37),0) -> 0 | F37: 0 | G37: 0 | H37: 0 | I37: 0 | J37: 0 | K37: 0 | L37: 0 | M37: 0 | N37: 0 | O37: =IF(ISNUMBER(INDIRECT($C$1&"!"&O$2&$A37)),INDIRECT($C$1&"!"&O$2&$A37),0) -> 0 | P37: 0
A38: 76 | B38: =B37+1 -> 26 | D38: 0 | E38: 0 | F38: 0 | G38: 0 | H38: 0 | I38: 0 | J38: 0 | K38: 0 | L38: 0 | M38: 0 | N38: 0 | O38: 0 | P38: 0
A39: 77 | B39: =B38+1 -> 27 | D39: 0 | E39: 0 | F39: 0 | G39: 0 | H39: 0 | I39: 0 | J39: 0 | K39: 0 | L39: 0 | M39: 0 | N39: 0 | O39: 0 | P39: 0
A40: 78 | B40: =B39+1 -> 28 | D40: 0 | E40: 0 | F40: 0 | G40: 0 | H40: 0 | I40: 0 | J40: 0 | K40: 0 | L40: 0 | M40: 0 | N40: 0 | O40: 0 | P40: 0
A41: 79 | B41: =B40+1 -> 29 | D41: 0 | E41: 0 | F41: 0 | G41: 0 | H41: 0 | I41: 0 | J41: 0 | K41: 0 | L41: 0 | M41: 0 | N41: 0 | O41: 0 | P41: 0
A42: 80 | B42: =B41+1 -> 30 | D42: 0 | E42: 0 | F42: 0 | G42: 0 | H42: 0 | I42: 0 | J42: 0 | K42: 0 | L42: 0 | M42: 0 | N42: 0 | O42: 0 | P42: 0
A43: 81 | B43: =B42+1 -> 31 | D43: 0 | E43: =INDIRECT($C$1&"!"&E$2&$A43) -> 0 | F43: 0 | G43: 0 | H43: 0 | I43: 0 | J43: 0 | K43: 0 | L43: 0 | M43: 0 | N43: 0 | O43: 0 | P43: 0
A44: 82 | B44: =B43+1 -> 32 | D44: 0 | E44: 0 | F44: 0 | G44: 0 | H44: 0 | I44: 0 | J44: 0 | K44: 0 | L44: 0 | M44: 0 | N44: 0 | O44: 0 | P44: 0
A45: 83 | B45: 33 | D45: 0 | E45: 0 | F45: 0 | G45: 0 | H45: 0 | I45: 0 | J45: 0 | K45: 0 | L45: 0 | M45: 0 | N45: 0 | O45: 0 | P45: 0
A46: 84 | B46: 34 | D46: 0 | E46: 0 | F46: 0 | G46: 0 | H46: 0 | I46: 0 | J46: 0 | K46: 0 | L46: 0 | M46: 0 | N46: 0 | O46: 0 | P46: 0
A47: 85 | B47: 35 | D47: 0 | E47: 0 | F47: 0 | G47: 0 | H47: 0 | I47: 0 | J47: 0 | K47: 0 | L47: 0 | M47: 0 | N47: 0 | O47: 0 | P47: 0
A48: 86 | B48: 36 | D48: 0 | E48: 0 | F48: 0 | G48: 0 | H48: 0 | I48: 0 | J48: 0 | K48: 0 | L48: 0 | M48: 0 | N48: 0 | O48: 0 | P48: 0
A49: 87 | B49: 37 | D49: 0 | E49: 0 | F49: 0 | G49: 0 | H49: 0 | I49: 0 | J49: 0 | K49: 0 | L49: 0 | M49: 0 | N49: 0 | O49: 0
A50: 88 | B50: 38 | D50: 0 | E50: 0 | F50: 0 | G50: 0 | H50: 0 | I50: 0 | J50: 0 | K50: 0 | L50: 0 | M50: 0 | N50: 0 | O50: 0
A51: 89 | B51: 39 | D51: 0 | E51: 0 | F51: 0 | G51: 0 | H51: 0 | I51: 0 | J51: 0 | K51: 0 | L51: 0 | M51: 0 | N51: 0 | O51: 0 | P51: =SUM(D51:O51) -> 0
A52: 90 | B52: 40 | D52: 0 | E52: 0 | F52: 0 | G52: 0 | H52: 0 | I52: 0 | J52: 0 | K52: 0 | L52: 0 | M52: 0 | N52: 0 | O52: 0 | P52: 0
A53: 91 | B53: 41 | D53: 0 | E53: 0 | F53: 0 | G53: 0 | H53: 0 | I53: 0 | J53: 0 | K53: 0 | L53: 0 | M53: 0 | N53: 0 | O53: 0 | P53: 0
A54: 92 | B54: 42 | D54: 0 | E54: 0 | F54: 0 | G54: 0 | H54: 0 | I54: 0 | J54: 0 | K54: 0 | L54: 0 | M54: 0 | N54: 0 | O54: 0 | P54: 0
A55: 93 | B55: 43 | D55: 0 | E55: 0 | F55: 0 | G55: 0 | H55: 0 | I55: 0 | J55: 0 | K55: 0 | L55: 0 | M55: 0 | N55: 0 | O55: 0 | P55: 0
A56: 94 | B56: 44 | D56: 0 | E56: 0 | F56: 0 | G56: 0 | H56: 0 | I56: 0 | J56: 0 | K56: 0 | L56: 0 | M56: 0 | N56: 0 | O56: 0 | P56: 0
A57: 95 | B57: 45 | D57: 0 | E57: 0 | F57: 0 | G57: 0 | H57: 0 | I57: 0 | J57: 0 | K57: 0 | L57: 0 | M57: 0 | N57: 0 | O57: 0 | P57: 0
A58: 31 | B58: 46 | D58: 0 | E58: 0 | F58: 0 | G58: 0 | H58: 0 | I58: 0 | J58: 0 | K58: 0 | L58: 0 | M58: 0 | N58: 0 | O58: 0 | P58: 0
A59: 32 | B59: 47 | C59: =IF(ABS(SUM(D59:O59))>0,INDIRECT($C$1&"!f"&A59),"") ->  | D59: 0 | E59: 0 | F59: 0 | G59: 0 | H59: 0 | I59: 0 | J59: 0 | K59: 0 | L59: 0 | M59: 0 | N59: 0 | O59: 0 | P59: =SUM(D59:O59) -> 0
A60: =A57+1 -> 96 | B60: 48 | C60: =IF(ABS(SUM(D60:O60))>0,INDIRECT($C$1&"!f"&A60),"") ->  | D60: 0 | E60: =INDIRECT($C$1&"!"&E$2&$A60) -> 0 | F60: 0 | G60: 0 | H60: 0 | I60: 0 | J60: 0 | K60: 0 | L60: 0 | M60: 0 | N60: 0 | O60: 0 | P60: =SUM(D60:O60) -> 0
A61: 97 | B61: =B60+1 -> 49 | C61: =IF(ABS(SUM(D61:O61))>0,INDIRECT($C$1&"!f"&A61),"") ->  | D61: 0 | E61: 0 | F61: 0 | G61: 0 | H61: 0 | I61: 0 | J61: 0 | K61: 0 | L61: 0 | M61: 0 | N61: 0 | O61: 0
A62: 99 | B62: =B61+1 -> 50 | C62: =IF(ABS(SUM(D62:O62))>0,INDIRECT($C$1&"!f"&A62),"") ->  | D62: =INDIRECT($C$1&"!"&D$2&$A62) -> 0 | E62: 0 | F62: 0 | G62: 0 | H62: 0 | I62: 0 | J62: 0 | K62: 0 | L62: 0 | M62: 0 | N62: 0 | O62: 0
A63: 100 | B63: =B62+1 -> 51 | C63: =IF(ABS(SUM(D63:O63))>0,INDIRECT($C$1&"!f"&A63),"") ->  | D63: =INDIRECT($C$1&"!"&D$2&$A63) -> 0 | E63: 0 | F63: 0 | G63: 0 | H63: 0 | I63: 0 | J63: 0 | K63: 0 | L63: 0 | M63: 0 | N63: 0 | O63: 0
A64: 101 | B64: =B63+1 -> 52 | D64: =INDIRECT($C$1&"!"&D$2&$A64) -> 0 | E64: 0 | F64: 0 | G64: 0 | H64: 0 | I64: 0 | J64: 0 | K64: 0 | L64: 0 | M64: 0 | N64: 0 | O64: 0 | P64: =SUM(D64:O64) -> 0
A65: 102 | B65: =B64+1 -> 53 | C65: =IF(ABS(SUM(D65:O65))>0,INDIRECT($C$1&"!f"&A65),"") ->  | D65: 0 | E65: 0 | F65: 0 | G65: 0 | H65: 0 | I65: 0 | J65: 0 | K65: 0 | L65: 0 | M65: 0 | N65: 0 | O65: 0
A66: 103 | B66: =B65+1 -> 54 | D66: 0 | E66: 0 | F66: 0 | G66: 0 | H66: 0 | I66: 0 | J66: 0 | K66: 0 | L66: 0 | M66: 0 | N66: 0 | O66: 0 | P66: 0
A67: 104 | B67: =B66+1 -> 55 | D67: 0 | E67: 0 | F67: 0 | G67: 0 | H67: 0 | I67: 0 | J67: 0 | K67: 0 | L67: 0 | M67: 0 | N67: 0 | O67: 0 | P67: 0
A68: 105 | B68: =B67+1 -> 56 | D68: 0 | E68: 0 | F68: 0 | G68: 0 | H68: 0 | I68: 0 | J68: 0 | K68: 0 | L68: 0 | M68: 0 | N68: 0 | O68: 0 | P68: 0
A69: 47 | B69: =B68+1 -> 57 | D69: 0 | E69: 0 | F69: 0 | G69: 0 | H69: 0 | I69: 0 | J69: 0 | K69: 0 | L69: 0 | M69: 0 | N69: 0 | O69: 0 | P69: 0
A70: 48 | B70: =B69+1 -> 58 | D70: 0 | E70: 0 | F70: 0 | G70: 0 | H70: 0 | I70: 0 | J70: 0 | K70: 0 | L70: 0 | M70: 0 | N70: 0 | O70: 0 | P70: 0
A71: 49 | B71: =B70+1 -> 59 | C71: =IF(ABS(SUM(D71:O71))>0,INDIRECT($C$1&"!f"&A71),"") ->  | D71: 0 | E71: 0 | F71: 0 | G71: 0 | H71: 0 | I71: 0 | J71: 0 | K71: 0 | L71: 0 | M71: 0 | N71: 0 | O71: 0
A72: 106 | B72: =B71+1 -> 60 | D72: 0 | E72: 0 | F72: 0 | G72: 0 | H72: 0 | I72: 0 | J72: 0 | K72: 0 | L72: 0 | M72: 0 | N72: 0 | O72: 0 | P72: 0
A73: =LonspecAndre!#REF! ->  | B73: =B72+1 -> 61
A74: =LonspecAndre!#REF! ->  | B74: =B73+1 -> 62
A75: =LonspecAndre!#REF! ->  | B75: =B74+1 -> 63
A76: =LonspecAndre!#REF! ->  | B76: =B75+1 -> 64 | D76: =INDIRECT($C$1&"!"&D$2&$A76) ->  | E76: =INDIRECT($C$1&"!"&E$2&$A76)-SUM(E73:E75) -> 
A77: =LonspecAndre!#REF! ->  | B77: =B76+1 -> 65 | D77: =INDIRECT($C$1&"!"&D$2&$A77) ->  | E77: =INDIRECT($C$1&"!"&E$2&$A77)-SUM(E74:E76) ->  | P77: =SUM(D77:O77) -> 
A78: =LonspecAndre!#REF! ->  | B78: 66 | E78: =INDIRECT($C$1&"!"&E$2&$A78)-SUM(E75:E77) -> 
A79: 100 | B79: =B78+1 -> 67 | C79: =IF(ABS(SUM(D79:O79))>0,INDIRECT($C$1&"!f"&A79),"") ->  | D79: 0 | E79: =INDIRECT($C$1&"!"&E$2&$A79)-SUM(E76:E78) -> 

Sheet LonspecAndreAlle
A1: Ark: | D1: Q | E1: R | F1: S | G1: T | H1: U | I1: V | J1: W | K1: X | L1: Y | M1: Z
C2: Hvis fanebladsnavnene er omdøbt, skal de gule felter i linie 1 ligeledes omdøbes manuelt. Det forudsættes at arknavnet i kolonne D er reelt eksisterende, da ledeteksterne i kolonne C tages herfra. (Fanenavne må ikke indeholde mellemrum.) | O2: Gule felter herunder
B3: Måned: | C3: sep | D3: fx: AUG (Kun 3 STORE bogstaver!) | O3: er kladdeområde, som
O4: ikke er med i udskriften
A5: 1 | C5: LØNSPECIFIKATION for | D5: =INDIRECT(D$1&"!"&VLOOKUP($C$3,mdr,2,0)&$A5) -> Q | E5: R | F5: S | G5: T | H5: U | I5: V | J5: W | K5: X | L5: Y | M5: Z | N5: ALLE
A6: 2 | C6: STILLINGSBETEGNELSE: | D6: Stilling | E6: Stilling | F6: Stilling | G6: Stilling | H6: Stilling | I6: Stilling | J6: Stilling | K6: Stilling | L6: Stilling | M6: Stilling
A7: 3 | C7: LØNPERIODE: | D7: SEP 25 | E7: SEP 25 | F7: SEP 25 | G7: SEP 25 | H7: SEP 25 | I7: SEP 25 | J7: SEP 25 | K7: SEP 25 | L7: SEP 25 | M7: SEP 25 | N7: =INDIRECT(D$1&"!"&VLOOKUP($C$3,mdr,2,0)&$A7) -> SEP 25 | R7: AUG | S7: g
A8: 12 | C8: BESKÆFTIGELSESGRAD: | D8: 0 | E8: 0 | F8: 0 | G8: 0 | H8: 0 | I8: 0 | J8: 0 | K8: 0 | L8: 0 | M8: 0 | N8: =SUM(D8:M8) -> 0 | R8: SEP | S8: h
A9: 4 | C9: DEL AF MÅNED: | D9: 1 | E9: 1 | F9: 1 | G9: 1 | H9: 1 | I9: 1 | J9: 1 | K9: 1 | L9: 1 | M9: 1 | R9: OKT | S9: i
A10: 13 | C10: SKALATRIN | D10: 0 | E10: 0 | F10: 0 | G10: 0 | H10: 0 | I10: 0 | J10: 0 | K10: 0 | L10: 0 | M10: 0 | N10: =SUM(D10:M10) -> 0 | R10: NOV | S10: j
A11: 11 | C11: STEDTILLÆGSOMRÅDE | D11: 0 | E11: 0 | F11: 0 | G11: 0 | H11: 0 | I11: 0 | J11: 0 | K11: 0 | L11: 0 | M11: 0 | R11: DEC | S11: k
A12: 5 | C12: PENSIONSPROCENT | D12: 0 | E12: 0 | F12: 0 | G12: 0 | H12: 0 | I12: 0 | J12: 0 | K12: 0 | L12: 0 | M12: 0 | R12: JAN | S12: l
B13: Lin: | R13: FEB | S13: m
A14: 51 | B14: 1 | C14: =IF(ABS(SUM(D14:M14))>0,INDIRECT($D$1&"!f"&A14),"") ->  | D14: =INDIRECT(D$1&"!"&VLOOKUP($C$3,mdr,2,0)&$A14) -> 0 | E14: 0 | F14: 0 | G14: 0 | H14: 0 | I14: 0 | J14: 0 | K14: 0 | L14: 0 | M14: 0 | N14: =SUM(D14:M14) -> 0 | R14: MAR | S14: n
A15: =A14+1 -> 52 | B15: =B14+1 -> 2 | C15: =IF(ABS(SUM(D15:M15))>0,INDIRECT($D$1&"!f"&A15),"") ->  | D15: 0 | E15: 0 | F15: 0 | G15: 0 | H15: 0 | I15: 0 | J15: 0 | K15: 0 | L15: 0 | M15: 0 | N15: 0 | R15: APR | S15: o
A16: =A15+1 -> 53 | B16: =B15+1 -> 3 | D16: 0 | E16: 0 | F16: 0 | G16: 0 | H16: 0 | I16: 0 | J16: 0 | K16: 0 | L16: 0 | M16: 0 | N16: 0 | R16: MAJ | S16: p
A17: 54 | B17: 4 | D17: 0 | E17: 0 | F17: 0 | G17: 0 | H17: 0 | I17: 0 | J17: 0 | K17: 0 | L17: 0 | M17: 0 | N17: 0 | R17: JUN | S17: q
A18: 55 | B18: 5 | D18: 0 | E18: 0 | F18: 0 | G18: 0 | H18: 0 | I18: 0 | J18: 0 | K18: 0 | L18: 0 | M18: 0 | N18: 0 | R18: JUL | S18: r
A19: 56 | B19: 6 | D19: 0 | E19: 0 | F19: 0 | G19: 0 | H19: 0 | I19: 0 | J19: 0 | K19: 0 | L19: 0 | M19: 0 | N19: 0
A20: 57 | B20: 7 | D20: 0 | E20: 0 | F20: 0 | G20: 0 | H20: 0 | I20: 0 | J20: 0 | K20: 0 | L20: 0 | M20: 0 | N20: 0
A21: 58 | B21: 8 | D21: 0 | E21: 0 | F21: 0 | G21: 0 | H21: 0 | I21: 0 | J21: 0 | K21: 0 | L21: 0 | M21: 0 | N21: 0
A22: 59 | B22: 9 | D22: 0 | E22: 0 | F22: 0 | G22: 0 | H22: 0 | I22: 0 | J22: 0 | K22: 0 | L22: 0 | M22: 0 | N22: 0
A23: 60 | B23: 10 | D23: 0 | E23: 0 | F23: 0 | G23: 0 | H23: 0 | I23: 0 | J23: 0 | K23: 0 | L23: 0 | M23: 0 | N23: 0
A24: 61 | B24: 11 | D24: =INDIRECT(D$1&"!"&VLOOKUP($C$3,mdr,2,0)&$A24) -> 0 | E24: 0 | F24: 0 | G24: 0 | H24: 0 | I24: 0 | J24: 0 | K24: 0 | L24: 0 | M24: 0 | N24: 0
A25: 62 | B25: 12 | D25: 0 | E25: 0 | F25: 0 | G25: 0 | H25: 0 | I25: 0 | J25: 0 | K25: 0 | L25: 0 | M25: 0 | N25: 0
A26: 63 | B26: 13 | D26: 0 | E26: 0 | F26: 0 | G26: 0 | H26: 0 | I26: 0 | J26: 0 | K26: 0 | L26: 0 | M26: 0 | N26: 0
A27: 64 | B27: 14 | D27: 0 | E27: 0 | F27: 0 | G27: 0 | H27: 0 | I27: 0 | J27: 0 | K27: 0 | L27: 0 | M27: 0 | N27: 0
A28: 65 | B28: 15 | D28: 0 | E28: 0 | F28: 0 | G28: 0 | H28: 0 | I28: 0 | J28: 0 | K28: 0 | L28: 0 | M28: 0 | N28: 0
A29: 66 | B29: 16 | C29: =IF(ABS(SUM(D29:M29))>0,LEFT(INDIRECT($D$1&"!f"&A29),36),"") ->  | D29: 0 | E29: 0 | F29: 0 | G29: 0 | H29: 0 | I29: 0 | J29: 0 | K29: 0 | L29: 0 | M29: 0 | N29: 0
A30: 67 | B30: 17 | C30: =IF(ABS(SUM(D30:M30))>0,LEFT(INDIRECT($D$1&"!f"&A30),36),"") ->  | D30: 0 | E30: 0 | F30: 0 | G30: 0 | H30: 0 | I30: 0 | J30: 0 | K30: 0 | L30: 0 | M30: 0 | N30: 0
A31: 68 | B31: 18 | D31: 0 | E31: 0 | F31: 0 | G31: 0 | H31: 0 | I31: 0 | J31: 0 | K31: 0 | L31: 0 | M31: 0 | N31: 0
A32: 69 | B32: 19 | D32: =IF(INDIRECT(D$1&"!"&VLOOKUP($C$3,mdr,2,0)&$A32)<>0,MIN(8000,INDIRECT(D$1&"!"&VLOOKUP($C$3,mdr,2,0)&$A32)),0) -> 0 | E32: 0 | F32: 0 | G32: 0 | H32: 0 | I32: 0 | J32: 0 | K32: 0 | L32: 0 | M32: 0 | N32: 0
A33: 70 | B33: =B32+1 -> 20 | D33: 0 | E33: 0 | F33: 0 | G33: 0 | H33: 0 | I33: 0 | J33: 0 | K33: 0 | L33: 0 | M33: 0 | N33: 0
A34: 71 | B34: 21 | D34: 0 | E34: 0 | F34: 0 | G34: 0 | H34: 0 | I34: 0 | J34: 0 | K34: 0 | L34: 0 | M34: 0 | N34: 0
A35: 72 | B35: 22 | D35: =INDIRECT(D$1&"!"&VLOOKUP($C$3,mdr,2,0)&$A35) -> 0 | E35: 0 | F35: 0 | G35: 0 | H35: 0 | I35: 0 | J35: 0 | K35: 0 | L35: 0 | M35: 0 | N35: 0
A36: 73 | B36: 23 | D36: 0 | E36: 0 | F36: 0 | G36: 0 | H36: 0 | I36: 0 | J36: 0 | K36: 0 | L36: 0 | M36: 0 | N36: 0
A37: 74 | B37: 24 | D37: 0 | E37: 0 | F37: 0 | G37: 0 | H37: 0 | I37: 0 | J37: 0 | K37: 0 | L37: 0 | M37: 0 | N37: 0
A38: 75 | B38: 25 | D38: =IF(ISNUMBER(INDIRECT(D$1&"!"&VLOOKUP($C$3,mdr,2,0)&$A38)),INDIRECT(D$1&"!"&VLOOKUP($C$3,mdr,2,0)&$A38),0) -> 0 | E38: 0 | F38: 0 | G38: 0 | H38: 0 | I38: 0 | J38: 0 | K38: 0 | L38: 0 | M38: 0 | N38: 0
A39: 76 | B39: 26 | D39: 0 | E39: 0 | F39: 0 | G39: 0 | H39: 0 | I39: 0 | J39: 0 | K39: 0 | L39: 0 | M39: 0 | N39: 0
A40: 77 | B40: 27 | D40: 0 | E40: 0 | F40: 0 | G40: 0 | H40: 0 | I40: 0 | J40: 0 | K40: 0 | L40: 0 | M40: 0 | N40: 0
A41: 78 | B41: 28 | D41: 0 | E41: 0 | F41: 0 | G41: 0 | H41: 0 | I41: 0 | J41: 0 | K41: 0 | L41: 0 | M41: 0 | N41: 0
A42: 79 | B42: 29 | D42: 0 | E42: 0 | F42: 0 | G42: 0 | H42: 0 | I42: 0 | J42: 0 | K42: 0 | L42: 0 | M42: 0 | N42: 0
A43: 80 | B43: 30 | D43: 0 | E43: 0 | F43: 0 | G43: 0 | H43: 0 | I43: 0 | J43: 0 | K43: 0 | L43: 0 | M43: 0 | N43: 0
A44: 81 | B44: =B43+1 -> 31 | D44: 0 | E44: 0 | F44: 0 | G44: 0 | H44: 0 | I44: 0 | J44: 0 | K44: 0 | L44: 0 | M44: 0 | N44: 0
A45: 82 | B45: =B44+1 -> 32 | D45: =INDIRECT(D$1&"!"&VLOOKUP($C$3,mdr,2,0)&$A45) -> 0 | E45: 0 | F45: 0 | G45: 0 | H45: 0 | I45: 0 | J45: 0 | K45: 0 | L45: 0 | M45: 0 | N45: 0
A46: 83 | B46: 33 | D46: 0 | E46: 0 | F46: 0 | G46: 0 | H46: 0 | I46: 0 | J46: 0 | K46: 0 | L46: 0 | M46: 0 | N46: 0
A47: 84 | B47: 34 | D47: 0 | E47: 0 | F47: 0 | G47: 0 | H47: 0 | I47: 0 | J47: 0 | K47: 0 | L47: 0 | M47: 0 | N47: 0
A48: 85 | B48: 35 | D48: 0 | E48: 0 | F48: 0 | G48: 0 | H48: 0 | I48: 0 | J48: 0 | K48: 0 | L48: 0 | M48: 0 | N48: 0
A49: 86 | B49: 36 | D49: 0 | E49: 0 | F49: 0 | G49: 0 | H49: 0 | I49: 0 | J49: 0 | K49: 0 | L49: 0 | M49: 0 | N49: 0
A50: 87 | B50: 37 | D50: 0 | E50: 0 | F50: 0 | G50: 0 | H50: 0 | I50: 0 | J50: 0 | K50: 0 | L50: 0 | M50: 0 | N50: 0
A51: 88 | B51: 38 | D51: 0 | E51: 0 | F51: 0 | G51: 0 | H51: 0 | I51: 0 | J51: 0 | K51: 0 | L51: 0 | M51: 0 | N51: 0
A52: 89 | B52: 39 | D52: 0 | E52: 0 | F52: 0 | G52: 0 | H52: 0 | I52: 0 | J52: 0 | K52: 0 | L52: 0 | M52: 0 | N52: 0
A53: 90 | B53: 40 | D53: 0 | E53: 0 | F53: 0 | G53: 0 | H53: 0 | I53: 0 | J53: 0 | K53: 0 | L53: 0 | M53: 0 | N53: 0
A54: 91 | B54: 41 | D54: 0 | E54: 0 | F54: 0 | G54: 0 | H54: 0 | I54: 0 | J54: 0 | K54: 0 | L54: 0 | M54: 0 | N54: 0
A55: 92 | B55: 42 | D55: 0 | E55: 0 | F55: 0 | G55: 0 | H55: 0 | I55: 0 | J55: 0 | K55: 0 | L55: 0 | M55: 0 | N55: 0
A56: 93 | B56: 43 | D56: 0 | E56: 0 | F56: 0 | G56: 0 | H56: 0 | I56: 0 | J56: 0 | K56: 0 | L56: 0 | M56: 0 | N56: 0
A57: 94 | B57: 44 | D57: 0 | E57: 0 | F57: 0 | G57: 0 | H57: 0 | I57: 0 | J57: 0 | K57: 0 | L57: 0 | M57: 0 | N57: 0
A58: 95 | B58: =B57+1 -> 45 | D58: 0 | E58: 0 | F58: 0 | G58: 0 | H58: 0 | I58: 0 | J58: 0 | K58: 0 | L58: 0 | M58: 0 | N58: 0
A59: 31 | B59: 46 | D59: 0 | E59: 0 | F59: 0 | G59: 0 | H59: 0 | I59: 0 | J59: 0 | K59: 0 | L59: 0 | M59: 0 | N59: 0
A60: 32 | B60: =B59+1 -> 47 | D60: 0 | E60: 0 | F60: 0 | G60: 0 | H60: 0 | I60: 0 | J60: 0 | K60: 0 | L60: 0 | M60: 0 | N60: 0
A61: =A58+1 -> 96 | B61: 48 | D61: 0 | E61: 0 | F61: 0 | G61: 0 | H61: 0 | I61: 0 | J61: 0 | K61: 0 | L61: 0 | M61: 0 | N61: 0
A62: 97 | B62: 49 | D62: 0 | E62: 0 | F62: 0 | G62: 0 | H62: 0 | I62: 0 | J62: 0 | K62: 0 | L62: 0 | M62: 0
A63: 99 | B63: 50 | D63: =INDIRECT(D$1&"!"&VLOOKUP($C$3,mdr,2,0)&$A63) -> 0 | E63: 0 | F63: 0 | G63: 0 | H63: 0 | I63: 0 | J63: 0 | K63: 0 | L63: 0 | M63: 0
A64: 100 | B64: 51 | D64: 0 | E64: 0 | F64: 0 | G64: 0 | H64: 0 | I64: 0 | J64: 0 | K64: 0 | L64: 0 | M64: 0 | N64: 0
A65: 101 | B65: 52 | D65: 0 | E65: 0 | F65: 0 | G65: 0 | H65: 0 | I65: 0 | J65: 0 | K65: 0 | L65: 0 | M65: 0 | N65: 0
A66: 102 | B66: 53 | D66: 0 | E66: 0 | F66: 0 | G66: 0 | H66: 0 | I66: 0 | J66: 0 | K66: 0 | L66: 0 | M66: 0 | N66: 0
A67: 103 | B67: 54 | D67: 0 | E67: 0 | F67: 0 | G67: 0 | H67: 0 | I67: 0 | J67: 0 | K67: 0 | L67: 0 | M67: 0 | N67: 0
A68: 104 | B68: 55 | D68: 0 | E68: 0 | F68: 0 | G68: 0 | H68: 0 | I68: 0 | J68: 0 | K68: 0 | L68: 0 | M68: 0 | N68: 0
A69: 105 | B69: 56 | D69: 0 | E69: 0 | F69: 0 | G69: 0 | H69: 0 | I69: 0 | J69: 0 | K69: 0 | L69: 0 | M69: 0 | N69: 0
A70: 47 | B70: 57 | D70: 0 | E70: 0 | F70: 0 | G70: 0 | H70: 0 | I70: 0 | J70: 0 | K70: 0 | L70: 0 | M70: 0 | N70: 0
A71: 48 | B71: 58 | D71: 0 | E71: 0 | F71: 0 | G71: 0 | H71: 0 | I71: 0 | J71: 0 | K71: 0 | L71: 0 | M71: 0 | N71: 0
A72: 49 | B72: =B71+1 -> 59 | C72: =IF(ABS(SUM(D72:M72))>0,INDIRECT($D$1&"!f"&A72),"") ->  | D72: 0 | E72: 0 | F72: 0 | G72: 0 | H72: 0 | I72: 0 | J72: 0 | K72: 0 | L72: 0 | M72: 0 | N72: 0
A73: 106 | B73: 60 | D73: 0 | E73: 0 | F73: 0 | G73: 0 | H73: 0 | I73: 0 | J73: 0 | K73: 0 | L73: 0 | M73: 0 | N73: 0
A74: 96 | B74: 61 | D74: 0 | E74: 0 | F74: 0 | G74: 0 | H74: 0 | I74: 0 | J74: 0 | K74: 0 | L74: 0 | M74: 0 | N74: 0
A75: 98 | B75: 62 | D75: 0 | E75: 0 | F75: 0 | G75: 0 | H75: 0 | I75: 0 | J75: 0 | K75: 0 | L75: 0 | M75: 0 | N75: 0
A76: 99 | B76: 63 | C76: =IF(ABS(SUM(D76:M76))>0,INDIRECT($D$1&"!f"&A76),"") ->  | D76: 0 | E76: 0 | F76: 0 | G76: 0 | H76: 0 | I76: 0 | J76: 0 | K76: 0 | L76: 0 | M76: 0 | N76: =SUM(D76:M76) -> 0
A77: 44 | B77: 64 | D77: 0 | E77: 0 | F77: 0 | G77: 0 | H77: 0 | I77: 0 | J77: 0 | K77: 0 | L77: 0 | M77: 0 | N77: 0
A78: 45 | B78: 65 | C78: =IF(ABS(SUM(D78:M78))>0,INDIRECT($D$1&"!f"&A78),"") ->  | D78: 0 | E78: 0 | F78: 0 | G78: 0 | H78: 0 | I78: 0 | J78: 0 | K78: 0 | L78: 0 | M78: 0 | N78: =SUM(D78:M78) -> 0
A79: 46 | B79: 66 | C79: =IF(ABS(SUM(D79:M79))>0,INDIRECT($D$1&"!f"&A79),"") ->  | D79: 0 | E79: 0 | F79: 0 | G79: 0 | H79: 0 | I79: 0 | J79: 0 | K79: 0 | L79: 0 | M79: 0 | N79: =SUM(D79:M79) -> 0
A80: 47 | B80: 67 | C80: =IF(ABS(SUM(D80:M80))>0,INDIRECT($D$1&"!f"&A80),"") ->  | D80: 0 | E80: 0 | F80: 0 | G80: 0 | H80: 0 | I80: 0 | J80: 0 | K80: 0 | L80: 0 | M80: 0 | N80: =SUM(D80:M80) -> 0
A81: 100 | B81: 68 | D81: =INDIRECT(D$1&"!"&VLOOKUP($C$3,mdr,2,0)&$A81) -> 0 | E81: 0 | F81: 0 | G81: 0 | H81: 0 | I81: 0 | J81: 0 | K81: 0 | L81: 0 | M81: 0 | N81: 0
C82: Hvis ikke der er brug for alle kolonner, kan de overflødige slettes. Nye kolonner kan indsættes ved at kopiere en eksisterende kolonne til en kolonne mellem den første og den sidste, og derefter udfylde linie 1, så det svarer til arknavnet.

Sheet LonspecAndre
B1: Ark: | C1: Q | D1: fx: Q | F1: Gule felter herunder
B2: Måned: | C2: sep | D2: fx: AUG (Kun 3 STORE bogstaver!) | F2: er kladdeområde, som
F3: ikke er med i udskriften
A4: 1 | C4: LØNSPECIFIKATION for: | D4: =INDIRECT($C$1&"!"&VLOOKUP($C$2,mdr,2,0)&A4) -> Q
A5: 2 | C5: STILLINGSBETEGNELSE: | D5: Stilling
A6: 3 | C6: LØNPERIODE: | D6: SEP 25 | J6: AUG | K6: g
A7: 12 | C7: BESKÆFTIGELSESGRAD: | D7: 0 | J7: SEP | K7: h
A8: 4 | C8: DEL AF MÅNED: | D8: 1 | J8: OKT | K8: i
A9: 10 | C9: =UPPER(IF(D9<>0,INDIRECT($C$1&"!f"&A9),""))&":" -> PROCENTREGULERING: | D9: =INDIRECT($C$1&"!"&VLOOKUP($C$2,mdr,2,0)&A9) -> 1.233095 | J9: NOV | K9: j
A10: 11 | C10: =UPPER(IF(D10<>0,INDIRECT($C$1&"!f"&A10),""))&":" -> : | D10: 0 | J10: DEC | K10: k
A11: 5 | C11: =UPPER(IF(D11<>0,INDIRECT($C$1&"!f"&A11),""))&":" -> : | D11: 0 | J11: JAN | K11: l
A12: 13 | C12: =UPPER(IF(D12<>0,INDIRECT($C$1&"!f"&A12),""))&":" -> : | D12: 0 | J12: FEB | K12: m
B13: Lin: | J13: MAR | K13: n
A14: 51 | B14: 1 | C14: =IF(E14<>0,INDIRECT($C$1&"!f"&A14),"") ->  | D14: =IF(E14<>0,INDIRECT($C$1&"!"&VLOOKUP($C$2,mdr,2,0)&A14+110),"") ->  | E14: =INDIRECT($C$1&"!"&VLOOKUP($C$2,mdr,2,0)&A14) -> 0 | J14: APR | K14: o
A15: =A14+1 -> 52 | B15: =B14+1 -> 2 | E15: 0 | J15: MAJ | K15: p
A16: =A15+1 -> 53 | B16: =B15+1 -> 3 | E16: 0 | J16: JUN | K16: q
A17: 54 | B17: 4 | E17: 0 | J17: JUL | K17: r
A18: 55 | B18: 5 | E18: 0
A19: 56 | B19: 6 | E19: 0
A20: 57 | B20: 7 | E20: 0
A21: 58 | B21: 8 | E21: 0
A22: 59 | B22: 9 | E22: 0
A23: 60 | B23: 10 | E23: 0
A24: 61 | B24: 11 | E24: 0
A25: 62 | B25: 12 | E25: 0
A26: 63 | B26: 13 | E26: 0
A27: 64 | B27: 14 | E27: 0
A28: 65 | B28: 15 | E28: 0
A29: 66 | B29: 16 | C29: =IF(E29<>0,INDIRECT($C$1&"!f"&A29),"") ->  | E29: =INDIRECT($C$1&"!"&VLOOKUP($C$2,mdr,2,0)&A29) -> 0
A30: 67 | B30: 17 | E30: 0
A31: 68 | B31: 18 | C31: =IF(E31<>0,INDIRECT($C$1&"!f"&A31),"") ->  | E31: =INDIRECT($C$1&"!"&VLOOKUP($C$2,mdr,2,0)&A31) -> 0
A32: 69 | B32: 19 | E32: =IF(INDIRECT($C$1&"!"&VLOOKUP($C$2,mdr,2,0)&A32)<>0,MIN(8000,INDIRECT($C$1&"!"&VLOOKUP($C$2,mdr,2,0)&A32)),0) -> 0
A33: 70 | B33: 20 | E33: 0
A34: 71 | B34: 21 | E34: 0
A35: 72 | B35: 22 | E35: 0
A36: 73 | B36: 23 | E36: 0
A37: 74 | B37: 24 | E37: 0
A38: 75 | B38: 25 | D38: =IF(E38<>0,INDIRECT($C$1&"!"&VLOOKUP($C$2,mdr,2,0)&A38+106),"") ->  | E38: =IF(ISNUMBER(INDIRECT($C$1&"!"&VLOOKUP($C$2,mdr,2,0)&A38)),INDIRECT($C$1&"!"&VLOOKUP($C$2,mdr,2,0)&A38),0) -> 0
A39: 76 | B39: 26 | E39: 0
A40: 77 | B40: 27 | E40: 0
A41: 78 | B41: 28 | E41: 0
A42: 79 | B42: 29 | E42: 0
A43: 80 | B43: 30 | E43: =INDIRECT($C$1&"!"&VLOOKUP($C$2,mdr,2,0)&A43) -> 0
A44: 81 | B44: 31 | E44: =INDIRECT($C$1&"!"&VLOOKUP($C$2,mdr,2,0)&A44) -> 0
A45: 82 | B45: 31 | E45: =INDIRECT($C$1&"!"&VLOOKUP($C$2,mdr,2,0)&A45) -> 0
A46: 83 | B46: 32 | E46: 0
A47: 84 | B47: 33 | E47: 0
A48: 85 | B48: 34 | E48: 0
A49: 86 | B49: 35 | E49: 0
A50: 87 | B50: 36 | E50: 0
A51: 88 | B51: 37 | E51: 0
A52: 89 | B52: 38 | E52: 0
A53: 90 | B53: 39 | E53: 0
A54: 91 | B54: 40 | D54: =IF(E54<>0,INDIRECT($C$1&"!"&VLOOKUP($C$2,mdr,2,0)&A54+105),"") ->  | E54: =INDIRECT($C$1&"!"&VLOOKUP($C$2,mdr,2,0)&A54) -> 0
A55: 92 | B55: 41 | D55: =IF(E55<>0,INDIRECT($C$1&"!"&VLOOKUP($C$2,mdr,2,0)&A55+106),"") ->  | E55: 0
A56: 93 | B56: 42 | E56: 0
A57: 94 | B57: 43 | E57: 0
A58: 95 | B58: 44 | E58: 0
A59: 31 | B59: 45 | C59: =IF(E59<>0,INDIRECT($C$1&"!f"&A59),"") ->  | E59: =INDIRECT($C$1&"!"&VLOOKUP($C$2,mdr,2,0)&A59) -> 0
A60: 32 | B60: 46 | E60: 0
A61: =A58+1 -> 96 | B61: 47 | E61: 0
A62: 97 | B62: 48 | E62: 0
A63: 99 | B63: 49 | E63: 0
A64: 100 | B64: 50 | E64: 0
A65: 101 | B65: 51 | E65: 0
A66: 102 | B66: 52 | C66: =IF(E66<>0,INDIRECT($C$1&"!f"&A66),"") ->  | E66: =INDIRECT($C$1&"!"&VLOOKUP($C$2,mdr,2,0)&A66) -> 0
A67: 103 | B67: 53 | E67: 0
A68: 104 | B68: 54 | E68: 0
A69: 105 | B69: 55 | E69: 0
A70: 47 | B70: 56 | E70: 0
A71: 48 | B71: 57 | E71: =INDIRECT($C$1&"!"&VLOOKUP($C$2,mdr,2,0)&A71) -> 0
A72: 49 | B72: 58 | E72: 0
A73: 106 | B73: 59 | E73: 0

Sheet Q
A1: 2024-2025 | B1: 1 | C1: Pensionsg. | D1: BG-afh. | E1: Regu-leret | F1: Lønberegning for: (navn eller initialer) - variable løndele i lin. 30-43. | G1: Q | H1: =G1 -> Q | I1: =H1 -> Q | J1: Q | K1: Q | L1: Q | M1: Q | N1: Q | O1: Q | P1: Q | Q1: Q | R1: Q | S1: Q | T1: =S1 -> Q | U1: =T1 -> Q | V1: =U1 -> Q | W1: =V1 -> Q | X1: =W1 -> Q | Y1: =X1 -> Q | Z1: =Y1 -> Q | AA1: =Z1 -> Q | AB1: =AA1 -> Q | AC1: =AB1 -> Q | AD1: =AC1 -> Q | AE1: Udfyld gule felter (alle forudfyldte tal i gule felter er eksempler)
B2: =B1+1 -> 2 | F2: Stillingsbetegnelse | G2: Stilling | H2: =G2 -> Stilling | I2: Stilling | J2: Stilling | K2: Stilling | L2: Stilling | M2: Stilling | N2: Stilling | O2: Stilling | P2: Stilling | Q2: Stilling | R2: Stilling | S2: Stilling | T2: =S2 -> Stilling | U2: Stilling | V2: Stilling | W2: Stilling | X2: Stilling | Y2: Stilling | Z2: Stilling | AA2: Stilling | AB2: Stilling | AC2: Stilling | AD2: Stilling
B3: =B2+1 -> 3 | F3: Måned | G3: ="AUG "&RIGHT(A1,2)+0 -> AUG 25 | H3: ="SEP "&RIGHT(A1,2)+0 -> SEP 25 | I3: ="OKT "&RIGHT(A1,2)+0 -> OKT 25 | J3: ="NOV "&RIGHT(A1,2)+0 -> NOV 25 | K3: ="DEC "&RIGHT(A1,2)+0 -> DEC 25 | L3: ="JAN "&RIGHT(A1,2)+1 -> JAN 26 | M3: ="FEB "&RIGHT(A1,2)+1 -> FEB 26 | N3: ="MAR "&RIGHT(A1,2)+1 -> MAR 26 | O3: ="APR "&RIGHT(A1,2)+1 -> APR 26 | P3: ="MAJ "&RIGHT(A1,2)+1 -> MAJ 26 | Q3: ="JUN "&RIGHT(A1,2)+1 -> JUN 26 | R3: ="JUL "&RIGHT(A1,2)+1 -> JUL 26 | S3: =G3 -> AUG 25 | T3: =H3 -> SEP 25 | U3: OKT 25 | V3: NOV 25 | W3: DEC 25 | X3: JAN 26 | Y3: FEB 26 | Z3: MAR 26 | AA3: APR 26 | AB3: MAJ 26 | AC3: JUN 26 | AD3: JUL 26 | AE3: ansat d.
B4: =B3+1 -> 4 | C4: sæt 'x' | D4: sæt 'x' | E4: sæt 'x' | F4: Del af måned antal kalenderdage/månedens kalenderdage | G4: 1 | H4: =G4 -> 1 | I4: =H4 -> 1 | J4: 1 | K4: 1 | L4: 1 | M4: 1 | N4: 1 | O4: 1 | P4: 1 | Q4: 1 | R4: 1 | S4: =G4 -> 1 | T4: 1 | U4: 1 | V4: 1 | W4: 1 | X4: 1 | Y4: 1 | Z4: 1 | AA4: 1 | AB4: 1 | AC4: 1 | AD4: 1 | AE4: Hvis ansat 10 oktober: 21/31 Hvis fratrådt 15. april: 15/30 | AF4: 2
B5: =B4+1 -> 5 | F5: Pensionsprocent | H5: =$G5 -> 0 | I5: 0 | J5: 0 | K5: 0 | L5: 0 | M5: 0 | N5: 0 | O5: 0 | P5: 0 | Q5: 0 | R5: 0 | S5: =G5 -> 0 | T5: 0 | U5: 0 | V5: 0 | W5: 0 | X5: 0 | Y5: 0 | Z5: 0 | AA5: 0 | AB5: 0 | AC5: 0 | AD5: 0 | AE5: Skriv ikke procenttegnet, fx 14,7% - skriv 14,70 | AF5: 3
B6: =B5+1 -> 6 | F6: Betales hele pensionen af skolen? JA/NEJ | G6: Ja | H6: =G6 -> Ja | I6: =H6 -> Ja | J6: Ja | K6: Ja | L6: Ja | M6: Ja | N6: Ja | O6: Ja | P6: Ja | Q6: Ja | R6: Ja | S6: =G6 -> Ja | T6: Ja | U6: Ja | V6: Ja | W6: Ja | X6: Ja | Y6: Ja | Z6: Ja | AA6: Ja | AB6: Ja | AC6: Ja | AD6: Ja | AE6: Se ansættelsesbrev | AF6: 4
B7: 7 | F7: Har den ansatte orlov uden løn men med pension? | G7: Nej | H7: =G7 -> Nej | I7: =H7 -> Nej | J7: Nej | K7: Nej | L7: Nej | M7: Nej | N7: Nej | O7: Nej | P7: Nej | Q7: Nej | R7: Nej
B8: =B7+1 -> 8 | F8: Har den ansatte ret til seniorbonus. BEMÆRK DET KUN GÆLDER HK-PRIVAT OG 3F. (IKKE BUPL-FOA). | G8: Nej | H8: =G8 -> Nej | I8: Nej | J8: Nej | K8: Nej | L8: Nej | M8: Nej | N8: Nej | O8: Nej | P8: Nej | Q8: Nej | R8: Nej
B9: =B8+1 -> 9 | F9: Beregnes feriedifferende mv. efter Ferieaftalen i staten JA, eller efter Ferieloven NEJ | G9: JA | H9: =G9 -> JA | I9: JA | J9: JA | K9: JA | L9: JA | M9: JA | N9: JA | O9: JA | P9: JA | Q9: JA | R9: JA | S9: =G9 -> JA | T9: =H9 -> JA | U9: JA | V9: JA | W9: JA | X9: JA | Y9: JA | Z9: JA | AA9: JA | AB9: JA | AC9: JA | AD9: JA | AE9: Ferieloven: mindst 20% differende, Ferieaftalen: enhver differende | AF9: 5
B10: 10 | F10: Procentregulering | G10: 1.233095 | H10: 1.233095 | I10: =H10 -> 1.233095 | K10: =J10 -> 0 | L10: =K10 -> 0 | M10: =L10 -> 0 | N10: =M10 -> 0 | P10: =O10 -> 0 | Q10: =P10 -> 0 | R10: =Q10 -> 0 | S10: =G10 -> 1.233095 | T10: 1.233095 | U10: 1.233095 | V10: 0 | W10: 0 | X10: 0 | Y10: 0 | Z10: 0 | AA10: 0 | AB10: 0 | AC10: 0 | AD10: 0 | AF10: 6
B11: 11 | F11: Skolens stedtillægsområde | H11: =G11 -> 0 | I11: 0 | J11: 0 | K11: 0 | L11: 0 | M11: 0 | N11: 0 | O11: 0 | P11: 0 | Q11: 0 | R11: 0 | S11: =G11 -> 0 | T11: 0 | U11: 0 | V11: 0 | W11: 0 | X11: 0 | Y11: 0 | Z11: 0 | AA11: 0 | AB11: 0 | AC11: 0 | AD11: 0
B12: 12 | F12: Beskæftigelsesgrad aktuel (Beskæftigelsesgrad løn beregnes ud fra) | H12: =G12 -> 0 | I12: 0 | J12: 0 | K12: 0 | L12: 0 | M12: 0 | N12: 0 | O12: 0 | P12: =O12 -> 0 | Q12: 0 | R12: 0 | S12: 0 | T12: 0 | U12: 0 | V12: 0 | W12: 0 | X12: 0 | Y12: 0 | Z12: 0 | AA12: 0 | AB12: 0 | AC12: 0 | AD12: 0
B13: 13 | C13: x | D13: x | E13: x | F13: Skalatrin | H13: =G13 -> 0 | I13: 0 | J13: 0 | K13: 0 | L13: 0 | M13: 0 | N13: 0 | O13: 0 | P13: 0 | Q13: 0 | R13: 0 | S13: 0 | T13: 0 | U13: 0 | V13: 0 | W13: 0 | X13: 0 | Y13: 0 | Z13: 0 | AA13: 0 | AB13: 0 | AC13: 0 | AD13: 0 | AE13: Statens løntabel eller HK-overenskomst-løntrin
B14: 14 | C14: x | D14: x | E14: x | F14: ="Overenskomstaftalt tillæg "&IF(E14<>"","i grundbeløb pr. 31.03.2012","(ikke reguleret)") -> Overenskomstaftalt tillæg i grundbeløb pr. 31.03.2012 | H14: 0 | I14: 0 | J14: 0 | K14: 0 | L14: 0 | M14: 0 | N14: 0 | O14: 0 | P14: 0 | Q14: 0 | R14: 0 | S14: 0 | T14: 0 | U14: 0 | V14: 0 | W14: 0 | X14: 0 | Y14: 0 | Z14: 0 | AA14: 0 | AB14: 0 | AC14: 0 | AD14: 0
B15: 15 | C15: x | D15: x | E15: x | F15: Trepartstillæg til pædagoger og afdelingsledere i årlig grundbeløb pr. 31.03.2012 | H15: 0 | I15: 0 | J15: =I15 -> 0 | K15: =J15 -> 0 | L15: 0 | M15: =L15 -> 0 | N15: =M15 -> 0 | O15: =N15 -> 0 | P15: =O15 -> 0 | Q15: =P15 -> 0 | R15: =Q15 -> 0 | S15: =G15 -> 0 | T15: =H15 -> 0 | U15: =I15 -> 0 | V15: =J15 -> 0 | W15: =K15 -> 0 | X15: =L15 -> 0 | Y15: =M15 -> 0 | Z15: =N15 -> 0 | AA15: =O15 -> 0 | AB15: =P15 -> 0 | AC15: =Q15 -> 0 | AD15: =R15 -> 0
B16: 16 | C16: x | E16: x | F16: Årligt sousdheftillæg eller lign. i grundbeløb | H16: =G16 -> 0 | I16: 0 | J16: 0 | K16: 0 | L16: 0 | M16: 0 | N16: 0 | O16: 0 | P16: 0 | Q16: 0 | R16: 0 | S16: 0 | T16: 0 | U16: 0 | V16: 0 | W16: 0 | X16: 0 | Y16: 0 | Z16: 0 | AA16: 0 | AB16: 0 | AC16: 0 | AD16: 0
B17: 17 | C17: x | E17: x | F17: Årligt funktionsstillæg i grundbeløb 1 | H17: =G17 -> 0 | I17: 0 | J17: 0 | K17: 0 | L17: 0 | M17: 0 | N17: 0 | O17: 0 | P17: 0 | Q17: 0 | R17: 0 | S17: 0 | T17: 0 | U17: 0 | V17: 0 | W17: 0 | X17: 0 | Y17: 0 | Z17: 0 | AA17: 0 | AB17: 0 | AC17: 0 | AD17: 0 | AF17: Ja
B18: 18 | C18: x | E18: x | F18: Årligt funktionsstillæg i grundbeløb 2 | H18: =G18 -> 0 | I18: 0 | J18: 0 | K18: 0 | L18: 0 | M18: 0 | N18: 0 | O18: 0 | P18: 0 | Q18: 0 | R18: 0 | S18: 0 | T18: 0 | U18: 0 | V18: 0 | W18: 0 | X18: 0 | Y18: 0 | Z18: 0 | AA18: 0 | AB18: 0 | AC18: 0 | AD18: 0 | AF18: Nej
B19: 19 | C19: x | E19: x | F19: Årligt funktionsstillæg i grundbeløb 3 | H19: =G19 -> 0 | I19: 0 | J19: 0 | K19: 0 | L19: 0 | M19: 0 | N19: 0 | O19: 0 | P19: 0 | Q19: 0 | R19: 0 | S19: 0 | T19: 0 | U19: 0 | V19: 0 | W19: 0 | X19: 0 | Y19: 0 | Z19: 0 | AA19: 0 | AB19: 0 | AC19: 0 | AD19: 0
B20: 20 | C20: x | D20: x | E20: x | F20: Årligt kvalifikationsstillæg i grundbeløb 1 | H20: 0 | I20: 0 | J20: 0 | K20: 0 | L20: 0 | M20: 0 | N20: 0 | O20: 0 | P20: 0 | Q20: 0 | R20: 0 | S20: 0 | T20: 0 | U20: 0 | V20: 0 | W20: 0 | X20: 0 | Y20: 0 | Z20: 0 | AA20: 0 | AB20: 0 | AC20: 0 | AD20: 0
B21: 21 | C21: x | D21: x | E21: x | F21: Årligt kvalifikationsstillæg i grundbeløb 2 | H21: 0 | I21: 0 | J21: 0 | K21: 0 | L21: 0 | M21: 0 | N21: 0 | O21: 0 | P21: 0 | Q21: 0 | R21: 0 | S21: 0 | T21: 0 | U21: 0 | V21: 0 | W21: 0 | X21: 0 | Y21: 0 | Z21: 0 | AA21: 0 | AB21: 0 | AC21: 0 | AD21: 0
B22: 22 | C22: x | D22: x | E22: x | F22: Årligt kvalifikationsstillæg i grundbeløb 3 | H22: 0 | I22: 0 | J22: 0 | K22: 0 | L22: 0 | M22: 0 | N22: 0 | O22: 0 | P22: 0 | Q22: 0 | R22: 0 | S22: 0 | T22: 0 | U22: 0 | V22: 0 | W22: 0 | X22: 0 | Y22: 0 | Z22: 0 | AA22: 0 | AB22: 0 | AC22: 0 | AD22: 0
B23: 23 | C23: x | D23: x | E23: x | F23: Udligningstillæg i årligt grundbeløb v. 100% BG | H23: 0 | I23: 0 | J23: 0 | K23: 0 | L23: 0 | M23: 0 | N23: 0 | O23: 0 | P23: 0 | Q23: 0 | R23: 0 | S23: 0 | T23: 0 | U23: 0 | V23: 0 | W23: 0 | X23: 0 | Y23: 0 | Z23: 0 | AA23: 0 | AB23: 0 | AC23: 0 | AD23: 0
B24: 24 | F24: Gruppelivsordning betalt af af skolen som et løntillæg. Skriv det månedlige beløb! | H24: 0 | I24: 0 | J24: 0 | K24: 0 | L24: 0 | M24: 0 | N24: 0 | O24: 0 | P24: 0 | Q24: 0 | R24: 0 | S24: 0 | T24: 0 | U24: 0 | V24: 0 | W24: 0 | X24: 0 | Y24: 0 | Z24: 0 | AA24: 0 | AB24: 0 | AC24: 0 | AD24: 0 | AE24: Spedielt ved virksomhedsoverdragelse
B25: 25 | E25: x | F25: Lokalaftalt fast ulempegodtgørelse pr. måned. - (pr. 31. marts 2012) | H25: =G25 -> 0 | I25: 0 | J25: 0 | K25: 0 | L25: 0 | M25: 0 | N25: 0 | O25: =N25 -> 0 | P25: 0 | Q25: 0 | R25: 0 | S25: 0 | T25: 0 | U25: 0 | V25: 0 | W25: 0 | X25: 0 | Y25: 0 | Z25: 0 | AA25: 0 | AB25: 0 | AC25: 0 | AD25: 0 | AE25: I stedet for variable arbejdstidsbestemte tillæg, iflg lokalaftale
B26: 26 | F26: Planlagte feriedage | G26: 2 | H26: =G26 -> 2 | I26: 5 | M26: 5 | R26: 15 | S26: =G26 -> 2 | T26: =H26 -> 2 | U26: 5 | V26: 0 | W26: 0 | X26: 0 | Y26: 5 | Z26: 0 | AA26: 0 | AB26: 0 | AC26: 0 | AD26: 15 | AE26: Normalt 15 dage i sommerhalvåret og 10 dage i vinterhalvåret
B27: 27 | F27: .. heraf antal feriedage, hvortil der ikke er optjent ferieret | H27: =G27 -> 0 | R27: 0 | S27: 0 | T27: 0 | U27: 0 | V27: 0 | W27: 0 | X27: 0 | Y27: 0 | Z27: 0 | AA27: 0 | AB27: 0 | AC27: 0 | AD27: 0 | AE27: Ferieloven: fradrag 4,8% pr. dag, Ferieaftalen: 4,62% pr. dag
B28: 28 | F28: Feriedifference pensionsgivende(udregnes i særskilt regneark) | S28: 0 | T28: 0 | U28: 0 | V28: 0 | W28: 0 | X28: 0 | Y28: 0 | Z28: 0 | AA28: 0 | AB28: 0 | AC28: 0 | AD28: 0 | AE28: Benyttes ved beregning af feriedifferende.
B29: 29 | F29: Feriedifference IKKE pensionsgivende(udregnes i særskilt regneark) | S29: 0 | T29: 0 | U29: 0 | V29: 0 | W29: 0 | X29: 0 | Y29: 0 | Z29: 0 | AA29: 0 | AB29: 0 | AC29: 0 | AD29: 0 | AE29: Benyttes ved beregning af feriedifference'
B30: 30 | F30: Egenbetalte fridage | S30: 0 | T30: 0 | U30: 0 | V30: 0 | W30: 0 | X30: 0 | Y30: 0 | Z30: 0 | AA30: 0 | AB30: 0 | AC30: 0 | AD30: 0 | AE30: Løn- og pensionsfradrag beregnes i lin 60 og 75
A31: Skatteop-lysninger | B31: 31 | F31: Skatteprocent | H31: =G31 -> 0 | I31: 0 | J31: 0 | K31: 0 | L31: 0 | M31: 0 | N31: 0 | O31: 0 | P31: 0 | Q31: 0 | R31: 0 | S31: 0 | T31: 0 | U31: 0 | V31: 0 | W31: 0 | X31: 0 | Y31: 0 | Z31: 0 | AA31: 0 | AB31: 0 | AC31: 0 | AD31: 0 | AE31: Skriv ikke procenttegnet, fx 42% - skriv 42
B32: 32 | C32: km- tak-ster | D32: =LEFT($A$1,4)+1 -> 2025 | E32: =LEFT($A$1,4)+2 -> 2026 | F32: Månedligt skattefradrag | H32: 0 | I32: 0 | J32: 0 | K32: 0 | L32: 0 | M32: 0 | N32: 0 | O32: 0 | P32: 0 | Q32: 0 | R32: 0 | S32: 0 | T32: 0 | U32: 0 | V32: 0 | W32: 0 | X32: 0 | Y32: 0 | Z32: 0 | AA32: 0 | AB32: 0 | AC32: 0 | AD32: 0
B33: 33 | D33: 2.23 | F33: Km.godtgørelse, lav sats (skattefri), antal km: | S33: 0 | T33: 0 | U33: 0 | V33: 0 | W33: 0 | X33: 0 | Y33: 0 | Z33: 0 | AA33: 0 | AB33: 0 | AC33: 0 | AD33: 0
B34: 34 | D34: 3.81 | F34: Km.godtgørelse, høj sats (skattefri), antal km: | S34: 0 | T34: 0 | U34: 0 | V34: 0 | W34: 0 | X34: 0 | Y34: 0 | Z34: 0 | AA34: 0 | AB34: 0 | AC34: 0 | AD34: 0
B35: 35 | F35: Timedagpenge (skattefri) - Beregn selv | S35: 0 | T35: 0 | U35: 0 | V35: 0 | W35: 0 | X35: 0 | Y35: 0 | Z35: 0 | AA35: 0 | AB35: 0 | AC35: 0 | AD35: 0 | AE35: Se løntabel
B36: 36 | F36: Jubilæumsgratiale (skattefri op til 8.000 kr.) | S36: 0 | T36: 0 | U36: 0 | V36: 0 | W36: 0 | X36: 0 | Y36: 0 | Z36: 0 | AA36: 0 | AB36: 0 | AC36: 0 | AD36: 0 | AE36: Se løntabel
B37: 37 | F37: Arbejds- og arbejdstidsbestemte tillæg. Beregn selv | S37: 0 | T37: 0 | U37: 0 | V37: 0 | W37: 0 | X37: 0 | Y37: 0 | Z37: 0 | AA37: 0 | AB37: 0 | AC37: 0 | AD37: 0 | AE37: ”Natpenge” iflg skema, hvis ikke der er lokalaftalt godtgørelse
B38: 38 | C38: x | F38: Merarbejdsbetaling. Beregn selv | S38: 0 | T38: 0 | U38: 0 | V38: 0 | W38: 0 | X38: 0 | Y38: 0 | Z38: 0 | AA38: 0 | AB38: 0 | AC38: 0 | AD38: 0 | AE38: Efter årsopgørelse eller ved fratræden
B39: 39 | F39: Overtidsbetaling. Beregn selv | S39: 0 | T39: 0 | U39: 0 | V39: 0 | W39: 0 | X39: 0 | Y39: 0 | Z39: 0 | AA39: 0 | AB39: 0 | AC39: 0 | AD39: 0 | AE39: Efter årsopgørelse eller ved fratræden
B40: 40 | F40: Særlige feriedage til udbetaling. Beregn selv | S40: =G40 -> 0 | T40: 0 | U40: 0 | V40: 0 | W40: 0 | X40: 0 | Y40: 0 | Z40: 0 | AA40: 0 | AB40: 0 | AC40: 0 | AD40: 0 | AE40: Efter årsafslutning eller ved fratræden. Se pjeden "Ferievejledning"
B41: 41 | F41: ="Særlig ferietillæg "&IF(G9="ja","2,02%","1,0%"&"") -> Særlig ferietillæg 2,02% | P41: 0 | S41: 0 | T41: 0 | U41: 0 | V41: 0 | W41: 0 | X41: 0 | Y41: 0 | Z41: 0 | AA41: 0 | AB41: 0 | AC41: 0 | AD41: 0
B42: 42 | C42: x | F42: Resultatlønstillæg | S42: 0 | T42: =H42 -> 0 | U42: =I42 -> 0 | V42: =J42 -> 0 | W42: =K42 -> 0 | X42: =L42 -> 0 | Y42: =M42 -> 0 | Z42: =N42 -> 0 | AA42: =O42 -> 0 | AB42: =P42 -> 0 | AC42: =Q42 -> 0 | AD42: =R42 -> 0
B43: 43 | C43: x | F43: Engangs nylønstillæg | S43: 0 | T43: 0 | U43: 0 | V43: 0 | W43: 0 | X43: 0 | Y43: 0 | Z43: 0 | AA43: 0 | AB43: 0 | AC43: 0 | AD43: 0
B44: 44 | C44: x | F44: Praktiklærervederlag | S44: 0 | T44: 0 | U44: 0 | V44: 0 | W44: 0 | X44: 0 | Y44: 0 | Z44: 0 | AA44: 0 | AB44: 0 | AC44: 0 | AD44: 0 | AE44: =45*5*7.4 -> 1665
B45: 45 | F45: andet | S45: 0 | T45: 0 | U45: 0 | V45: 0 | W45: 0 | X45: 0 | Y45: 0 | Z45: 0 | AA45: 0 | AB45: 0 | AC45: 0 | AD45: 0
B46: 46 | F46: andet | S46: 0 | T46: 0 | U46: 0 | V46: 0 | W46: 0 | X46: 0 | Y46: 0 | Z46: 0 | AA46: 0 | AB46: 0 | AC46: 0 | AD46: 0
B47: 47 | C47: Disse tre linjer fradrages i den disponible løn | F47: gavekasse | H47: =G47 -> 0 | I47: =H47 -> 0 | J47: 0 | K47: 0 | L47: 0 | M47: 0 | N47: 0 | O47: 0 | P47: 0 | Q47: 0 | R47: 0 | S47: 0 | T47: 0 | U47: 0 | V47: 0 | W47: 0 | X47: 0 | Y47: 0 | Z47: 0 | AA47: 0 | AB47: 0 | AC47: 0 | AD47: 0 | AE47: Fx: 'Kaffekasse'
B48: 48 | F48: kaffekasse | H48: =G48 -> 0 | I48: 0 | J48: 0 | K48: 0 | L48: 0 | M48: 0 | N48: 0 | O48: 0 | P48: 0 | Q48: 0 | R48: 0 | S48: 0 | T48: 0 | U48: 0 | V48: 0 | W48: 0 | X48: 0 | Y48: 0 | Z48: 0 | AA48: 0 | AB48: 0 | AC48: 0 | AD48: 0 | AE48: Fx: 'Gavekasse'
B49: 49 | F49: Fagforenings-kontingent | H49: =G49 -> 0 | I49: 0 | J49: 0 | K49: 0 | L49: 0 | M49: 0 | N49: 0 | O49: 0 | P49: 0 | Q49: 0 | R49: 0 | S49: 0 | T49: 0 | U49: 0 | V49: 0 | W49: 0 | X49: 0 | Y49: 0 | Z49: 0 | AA49: 0 | AB49: 0 | AC49: 0 | AD49: 0 | AE49: FX: 'Fagforeningskontingent'
A50: =A3 -> 1904-01-01 | B50: 50 | F50: Måned | G50: =G3 -> AUG 25 | H50: SEP 25 | I50: OKT 25 | J50: NOV 25 | K50: DEC 25 | L50: JAN 26 | M50: FEB 26 | N50: MAR 26 | O50: APR 26 | P50: MAJ 26 | Q50: JUN 26 | R50: JUL 26 | S50: AUG 25 | T50: SEP 25 | U50: OKT 25 | V50: NOV 25 | W50: DEC 25 | X50: JAN 26 | Y50: FEB 26 | Z50: MAR 26 | AA50: APR 26 | AB50: MAJ 26 | AC50: JUN 26 | AD50: JUL 26 | AE50: SUM
B51: 51 | C51: =(C13<>"")*1 -> 1 | D51: 1 | E51: 1 | F51: =IF(ISNUMBER(G13),"Skalatrinsløn","HK-løn") -> HK-løn | G51: =IF(G7="Ja",0,ROUND(IF(AND(G$12>0,G13>0),ROUND((ROUND(VLOOKUP(G13,Skalalontabel12,G11,0)*G10,0))/12,2),0)*G12*G4,2)) -> 0 | H51: 0 | I51: 0 | J51: 0 | K51: 0 | L51: 0 | M51: 0 | N51: 0 | O51: 0 | P51: 0 | Q51: 0 | R51: 0 | S51: =ROUND(IF(AND(S$12>0,S13>0),ROUND((ROUND(VLOOKUP(S13,Skalalontabel12,S11,0)*S10,0))/12,2),0)*S12*S4,2) -> 0 | T51: 0 | U51: 0 | V51: 0 | W51: 0 | X51: 0 | Y51: 0 | Z51: 0 | AA51: 0 | AB51: 0 | AC51: 0 | AD51: 0 | AE51: =SUM(G51:R51) -> 0
B52: 52 | C52: 1 | D52: 1 | E52: 1 | F52: OK-tillæg | G52: =IF(G7="Ja",0,ROUND(IF(G14>0,G14/12)*IF($D14<>"",G$12,1)*IF($E14<>"",G$10,1)*G4,2)) -> 0 | H52: 0 | I52: 0 | J52: 0 | K52: 0 | L52: 0 | M52: 0 | N52: 0 | O52: 0 | P52: 0 | Q52: 0 | R52: 0 | S52: =ROUND(IF(S14>0,S14/12)*IF($D14<>"",S$12,1)*IF($E14<>"",S$10,1)*S4,2) -> 0 | T52: 0 | U52: 0 | V52: 0 | W52: 0 | X52: 0 | Y52: 0 | Z52: 0 | AA52: 0 | AB52: 0 | AC52: 0 | AD52: 0 | AE52: 0
B53: 53 | C53: 1 | D53: 1 | E53: 1 | F53: Trepartstillæg | G53: =IF(G7="Ja",0,ROUND(IF(G15>0,G15/12)*IF($D15<>"",G$12,1)*IF($E15<>"",G$10,1)*G5,2)) -> 0 | H53: =IF(H7="Ja",0,ROUND(IF(H15>0,H15/12)*IF($D15<>"",H$12,1)*IF($E15<>"",H$10,1)*H4,2)) -> 0 | I53: =IF(I7="Ja",0,ROUND(IF(I15>0,I15/12)*IF($D15<>"",I$12,1)*IF($E15<>"",I$10,1)*I4,2)) -> 0 | J53: 0 | K53: 0 | L53: 0 | M53: 0 | N53: 0 | O53: 0 | P53: 0 | Q53: 0 | R53: 0 | S53: 0 | T53: 0 | U53: 0 | V53: 0 | W53: 0 | X53: 0 | Y53: 0 | Z53: 0 | AA53: 0 | AB53: 0 | AC53: 0 | AD53: 0 | AE53: =SUM(G53:R53) -> 0
B54: 54 | C54: 1 | D54: 0 | E54: 1 | F54: Souscheftillæg ell. lign. | G54: =IF(G7="Ja",0,ROUND(IF(AND(G$12>0,G16>0),G16/12)*IF($D16<>"",G$12,1)*IF($E16<>"",G$10,1)*G4,2)) -> 0 | H54: 0 | I54: 0 | J54: 0 | K54: 0 | L54: 0 | M54: 0 | N54: 0 | O54: 0 | P54: 0 | Q54: 0 | R54: 0 | S54: =ROUND(IF(AND(S$12>0,S16>0),S16/12)*IF($D16<>"",S$12,1)*IF($E16<>"",S$10,1)*S4,2) -> 0 | T54: 0 | U54: 0 | V54: 0 | W54: 0 | X54: 0 | Y54: 0 | Z54: 0 | AA54: 0 | AB54: 0 | AC54: 0 | AD54: 0 | AE54: 0
B55: 55 | C55: 1 | D55: 0 | E55: 1 | F55: Funktionstillæg 1 | G55: =IF(G7="Ja",0,ROUND(IF(AND(G$12>0,G17>0),G17/12)*IF($D17<>"",G$12,1)*IF($E17<>"",G$10,1)*G4,2)) -> 0 | H55: 0 | I55: 0 | J55: 0 | K55: 0 | L55: 0 | M55: 0 | N55: 0 | O55: 0 | P55: 0 | Q55: 0 | R55: 0 | S55: =ROUND(IF(AND(S$12>0,S17>0),S17/12)*IF($D17<>"",S$12,1)*IF($E17<>"",S$10,1)*S4,2) -> 0 | T55: 0 | U55: 0 | V55: 0 | W55: 0 | X55: 0 | Y55: 0 | Z55: 0 | AA55: 0 | AB55: 0 | AC55: 0 | AD55: 0 | AE55: 0
B56: 56 | C56: 1 | D56: 0 | E56: 1 | F56: Funktionstillæg 2 | G56: =IF(G7="Ja",0,ROUND(IF(AND(G$12>0,G18>0),G18/12)*IF($D18<>"",G$12,1)*IF($E18<>"",G$10,1)*G4,2)) -> 0 | H56: 0 | I56: 0 | J56: 0 | K56: 0 | L56: 0 | M56: 0 | N56: 0 | O56: 0 | P56: 0 | Q56: 0 | R56: 0 | S56: =ROUND(IF(AND(S$12>0,S18>0),S18/12)*IF($D18<>"",S$12,1)*IF($E18<>"",S$10,1)*S4,2) -> 0 | T56: 0 | U56: 0 | V56: 0 | W56: 0 | X56: 0 | Y56: 0 | Z56: 0 | AA56: 0 | AB56: 0 | AC56: 0 | AD56: 0 | AE56: 0
B57: 57 | C57: 1 | D57: 0 | E57: 1 | F57: Funktionstillæg 3 | G57: =IF(G7="Ja",0,ROUND(IF(AND(G$12>0,G19>0),G19/12)*IF($D19<>"",G$12,1)*IF($E19<>"",G$10,1)*G4,2)) -> 0 | H57: 0 | I57: 0 | J57: 0 | K57: 0 | L57: 0 | M57: 0 | N57: 0 | O57: 0 | P57: 0 | Q57: 0 | R57: 0 | S57: =ROUND(IF(AND(S$12>0,S19>0),S19/12)*IF($D19<>"",S$12,1)*IF($E19<>"",S$10,1)*S4,2) -> 0 | T57: 0 | U57: 0 | V57: 0 | W57: 0 | X57: 0 | Y57: 0 | Z57: 0 | AA57: 0 | AB57: 0 | AC57: 0 | AD57: 0 | AE57: 0
B58: 58 | C58: 1 | D58: 1 | E58: 1 | F58: Kvalifikationstillæg 1 | G58: =IF(G7="Ja",0,ROUND(IF(AND(G$12>0,G20>0),G20/12)*IF($D20<>"",G$12,1)*IF($E20<>"",G$10,1)*G4,2)) -> 0 | H58: 0 | I58: 0 | J58: 0 | K58: 0 | L58: 0 | M58: 0 | N58: 0 | O58: 0 | P58: 0 | Q58: 0 | R58: 0 | S58: =ROUND(IF(AND(S$12>0,S20>0),S20/12)*IF($D20<>"",S$12,1)*IF($E20<>"",S$10,1)*S4,2) -> 0 | T58: 0 | U58: 0 | V58: 0 | W58: 0 | X58: 0 | Y58: 0 | Z58: 0 | AA58: 0 | AB58: 0 | AC58: 0 | AD58: 0 | AE58: 0
B59: 59 | C59: 1 | D59: 1 | E59: 1 | F59: Kvalifikationstillæg 2 | G59: =IF(G7="Ja",0,ROUND(IF(AND(G$12>0,G21>0),G21/12)*IF($D21<>"",G$12,1)*IF($E21<>"",G$10,1)*G4,2)) -> 0 | H59: 0 | I59: 0 | J59: 0 | K59: 0 | L59: 0 | M59: 0 | N59: 0 | O59: 0 | P59: 0 | Q59: 0 | R59: 0 | S59: =ROUND(IF(AND(S$12>0,S21>0),S21/12)*IF($D21<>"",S$12,1)*IF($E21<>"",S$10,1)*S4,2) -> 0 | T59: 0 | U59: 0 | V59: 0 | W59: 0 | X59: 0 | Y59: 0 | Z59: 0 | AA59: 0 | AB59: 0 | AC59: 0 | AD59: 0 | AE59: 0
B60: 60 | C60: 1 | D60: 1 | E60: 1 | F60: Kvalifikationstillæg 3 | G60: =IF(G7="Ja",0,ROUND(IF(AND(G$12>0,G22>0),G22/12)*IF($D22<>"",G$12,1)*IF($E22<>"",G$10,1)*G$4,2)) -> 0 | H60: 0 | I60: 0 | J60: 0 | K60: 0 | L60: 0 | M60: 0 | N60: 0 | O60: 0 | P60: 0 | Q60: 0 | R60: 0 | S60: =ROUND(IF(AND(S$12>0,S22>0),S22/12)*IF($D22<>"",S$12,1)*IF($E22<>"",S$10,1)*S$4,2) -> 0 | T60: 0 | U60: 0 | V60: 0 | W60: 0 | X60: 0 | Y60: 0 | Z60: 0 | AA60: 0 | AB60: 0 | AC60: 0 | AD60: 0 | AE60: 0
B61: 61 | C61: 1 | D61: 1 | E61: 1 | F61: Udligningstillæg | G61: =IF(G7="Ja",0,ROUND(IF(AND(G$12>0,G23>0),G23/12)*IF($D23<>"",G$12,1)*IF($E23<>"",G$10,1)*G$4,2)) -> 0 | H61: 0 | I61: 0 | J61: 0 | K61: 0 | L61: 0 | M61: 0 | N61: 0 | O61: 0 | P61: 0 | Q61: 0 | R61: 0 | S61: =ROUND(IF(AND(S$12>0,S23>0),S23/12)*IF($D23<>"",S$12,1)*IF($E23<>"",S$10,1)*S$4,2) -> 0 | T61: 0 | U61: 0 | V61: 0 | W61: 0 | X61: 0 | Y61: 0 | Z61: 0 | AA61: 0 | AB61: 0 | AC61: 0 | AD61: 0 | AE61: 0
B62: 62 | C62: 1 | F62: Seniorbonus | G62: =IF(G8="Ja",(SUM(G51:G61)*0.8%),0) -> 0 | H62: =IF(H8="Ja",(SUM(H51:H61)*0.8%),0) -> 0 | I62: 0 | J62: 0 | K62: 0 | L62: 0 | M62: 0 | N62: 0 | O62: 0 | P62: 0 | Q62: 0 | R62: 0
B63: 63 | F63: Gruppelivstillæg | G63: =IF(G7="Ja",0,ROUND(IF(AND(G$12>0,G24>0),G24)*IF($D24<>"",G$12,1)*IF($E24<>"",G$10,1),2)) -> 0 | H63: =IF(H7="Ja",0,ROUND(IF(AND(H$12>0,H24>0),H24)*IF($D24<>"",H$12,1)*IF($E24<>"",H$10,1),2)) -> 0 | I63: 0 | J63: 0 | K63: 0 | L63: 0 | M63: 0 | N63: 0 | O63: 0 | P63: 0 | Q63: 0 | R63: 0 | S63: =ROUND(IF(AND(S$12>0,S24>0),S24)*IF($D24<>"",S$12,1)*IF($E24<>"",S$10,1)*S$4,2) -> 0 | T63: 0 | U63: 0 | V63: 0 | W63: 0 | X63: 0 | Y63: 0 | Z63: 0 | AA63: 0 | AB63: 0 | AC63: 0 | AD63: 0 | AE63: 0
B64: 64 | D64: =(D25<>"")*1 -> 0 | E64: =(E25<>"")*1 -> 1 | F64: Lokalaftalt ulempegodtgørelse | G64: =IF(G7="Ja",0,ROUND(IF(AND(G$12>0,G25>0),G25)*IF($D25<>"",G$12,1)*IF($E25<>"",G$10,1)*G$4,2)) -> 0 | H64: =IF(H7="Ja",0,ROUND(IF(AND(H$12>0,H25>0),H25)*IF($D25<>"",H$12,1)*IF($E25<>"",H$10,1)*H$4,2)) -> 0 | I64: 0 | J64: 0 | K64: 0 | L64: 0 | M64: 0 | N64: 0 | O64: 0 | P64: 0 | Q64: 0 | R64: 0 | S64: =ROUND(IF(AND(S$12>0,S25>0),S25)*IF($D25<>"",S$12,1)*IF($E25<>"",S$10,1)*S$4,2) -> 0 | T64: 0 | U64: 0 | V64: 0 | W64: 0 | X64: 0 | Y64: 0 | Z64: 0 | AA64: 0 | AB64: 0 | AC64: 0 | AD64: 0 | AE64: 0
B65: 65 | C65: 1 | F65: Lønfradrag for ikke optjent ferie mv. | G65: =-ROUND((MAX(0,MIN(S26,S27*1))+S30)*IF(S9="JA",4.62%,4.8%)*(S51+S52+G53+S54+S55+S56+S57+S58+S59+S60+S61+G62+S64)*S$4,2) -> 0 | H65: =-ROUND((MAX(0,MIN(T26,T27*1))+T30)*IF(T9="JA",4.62%,4.8%)*(T51+T52+H53+T54+T55+T56+T57+T58+T59+T60+T61+H62+T64)*T$4,2) -> 0 | I65: 0 | J65: 0 | K65: 0 | L65: 0 | M65: 0 | N65: 0 | O65: =-ROUND((MAX(0,MIN(AA26,AA27*1))+AA30)*IF(AA9="JA",4.62%,4.8%)*(AA51+AA52+O53+AA54+AA55+AA56+AA57+AA58+AA59+AA60+AA61+O62+AA64)*AA$4,2) -> 0 | P65: =-ROUND((MAX(0,MIN(AB26,AB27*1))+AB30)*IF(AB9="JA",4.62%,4.8%)*(AB51+AB52+P53+AB54+AB55+AB56+AB57+AB58+AB59+AB60+AB61+P62+AB64)*AB$4,2) -> 0 | Q65: =-ROUND((MAX(0,MIN(AC26,AC27*1))+AC30)*IF(AC9="JA",4.62%,4.8%)*(AC51+AC52+Q53+AC54+AC55+AC56+AC57+AC58+AC59+AC60+AC61+Q62+AC64)*AC$4,2) -> 0 | R65: =-ROUND((MAX(0,MIN(AD26,AD27*1))+AD30)*IF(AD9="JA",4.62%,4.8%)*(AD51+AD52+R53+AD54+AD55+AD56+AD57+AD58+AD59+AD60+AD61+R62+AD64)*AD$4,2) -> 0 | S65: =-ROUND((MAX(0,MIN(S26,S27*1))+S30)*IF(S9="JA",4.62%,4.8%)*(S51+S52+S54+S55+S56+S57+S58+S59+S60+S61+S64)*S$4,2) -> 0 | T65: 0 | U65: 0 | V65: 0 | W65: 0 | X65: 0 | Y65: 0 | Z65: 0 | AA65: 0 | AB65: 0 | AC65: 0 | AD65: 0 | AE65: 0
B66: 66 | C66: 1 | F66: Feriedifference pensionsgivende(udregnes i særskilt fane) | G66: =G28 -> 0 | H66: =H28 -> 0 | I66: 0 | J66: 0 | K66: 0 | L66: 0 | M66: 0 | N66: 0 | O66: 0 | P66: 0 | Q66: 0 | R66: 0 | S66: =S28 -> 0 | T66: =T28 -> 0 | U66: 0 | V66: 0 | W66: 0 | X66: 0 | Y66: 0 | Z66: 0 | AA66: 0 | AB66: 0 | AC66: 0 | AD66: 0 | AE66: 0
B67: 67 | F67: Feriedifference IKKE pensionsgivende(udregnes i særskilt fane) | G67: =G29 -> 0 | H67: =H29 -> 0 | I67: =I29 -> 0 | J67: 0 | K67: 0 | L67: 0 | M67: 0 | N67: 0 | O67: 0 | P67: 0 | Q67: 0 | R67: 0 | S67: =S29 -> 0 | T67: =T29 -> 0 | U67: 0 | V67: 0 | W67: 0 | X67: 0 | Y67: 0 | Z67: 0 | AA67: 0 | AB67: 0 | AC67: 0 | AD67: 0
B68: 68 | F68: Engangsudbetalinger iflg. specifikation | G68: =SUM(G37:G46) -> 0 | H68: =SUM(H37:H46) -> 0 | I68: 0 | J68: 0 | K68: 0 | L68: 0 | M68: 0 | N68: 0 | O68: 0 | P68: 0 | Q68: 0 | R68: 0 | S68: =SUM(S37:S46) -> 0 | T68: =SUM(T37:T46)+MAX(T36*T10-8000,0) -> 0 | U68: 0 | V68: 0 | W68: 0 | X68: 0 | Y68: 0 | Z68: 0 | AA68: 0 | AB68: 0 | AC68: 0 | AD68: 0 | AE68: 0
B69: 69 | F69: Skattefrie km. Godtgørelse lav sats | G69: =G33*$D$33 -> 0 | H69: =H33*$D$33 -> 0 | I69: 0 | J69: 0 | K69: 0 | L69: 0 | M69: 0 | N69: 0 | O69: 0 | P69: 0 | Q69: 0 | R69: 0 | S69: =S33*$D$33 -> 0 | T69: =T33*$D$33 -> 0 | U69: 0 | V69: 0 | W69: 0 | X69: 0 | Y69: 0 | Z69: 0 | AA69: 0 | AB69: 0 | AC69: 0 | AD69: 0
B70: 70 | F70: Skattefrie km. Godtgørelse høj sats | G70: =G34*$D$34 -> 0 | H70: =H34*$D$34 -> 0 | I70: 0 | J70: 0 | K70: 0 | L70: 0 | M70: 0 | N70: 0 | O70: 0 | P70: 0 | Q70: 0 | R70: 0 | S70: =S34*$D$34 -> 0 | T70: =T34*$D$34 -> 0 | U70: 0 | V70: 0 | W70: 0 | X70: 0 | Y70: 0 | Z70: 0 | AA70: 0 | AB70: 0 | AC70: 0 | AD70: 0
B71: 71 | F71: Timedagpenge(skattefrie) | G71: =IF(G35>0,G35,0) -> 0 | H71: =IF(H35>0,H35,0) -> 0 | I71: 0 | J71: 0 | K71: 0 | L71: 0 | M71: 0 | N71: 0 | O71: 0 | P71: 0 | Q71: 0 | R71: 0 | S71: =IF(S35>0,S35,0) -> 0 | T71: =IF(T35>0,T35,0) -> 0 | U71: 0 | V71: 0 | W71: 0 | X71: 0 | Y71: 0 | Z71: 0 | AA71: 0 | AB71: 0 | AC71: 0 | AD71: 0 | AE71: 0
B72: 72 | F72: Skattefri jubilæumsgratiale | G72: =MIN(8000,G36*G10) -> 0 | H72: 0 | I72: 0 | J72: 0 | K72: 0 | L72: 0 | M72: 0 | N72: 0 | O72: 0 | P72: 0 | Q72: 0 | R72: 0 | S72: 0 | T72: 0 | U72: 0 | V72: 0 | W72: 0 | X72: 0 | Y72: 0 | Z72: 0 | AA72: 0 | AB72: 0 | AC72: 0 | AD72: 0
B73: =B72+1 -> 73 | F73: Skattepligtig jubilæumsgratiaale | G73: =IF(G36>0,MAX(G36*G10-8000,0),0) -> 0 | H73: 0 | I73: 0 | J73: 0 | K73: 0 | L73: 0 | M73: 0 | N73: 0 | O73: 0 | P73: 0 | Q73: 0 | R73: 0 | S73: 0 | T73: 0 | U73: 0 | V73: 0 | W73: 0 | X73: 0 | Y73: 0 | Z73: 0 | AA73: 0 | AB73: 0 | AC73: 0 | AD73: 0
B74: 74 | F74: Bruttoløn (ekskl. pensionstillæg og ATP) | G74: =SUM(G51:G73) -> 0 | H74: =SUM(H51:H73) -> 0 | I74: =SUM(I51:I73) -> 0 | J74: 0 | K74: 0 | L74: 0 | M74: 0 | N74: 0 | O74: 0 | P74: 0 | Q74: 0 | R74: 0 | S74: 0 | T74: 0 | U74: 0 | V74: 0 | W74: 0 | X74: 0 | Y74: 0 | Z74: 0 | AA74: 0 | AB74: 0 | AC74: 0 | AD74: 0 | AE74: 0
B75: 75 | F75: ="Pensionstillæg af pensionsg. "&IF(ISNUMBER(G13),"Skalatrinsløn","HK-løn") -> Pensionstillæg af pensionsg. HK-løn | G75: =IF(G7="Ja",0,ROUND(IF(AND(G$12>0,G13>0),ROUND((ROUND(VLOOKUP(G13,Skalalontabel12,7,0)*G10,0))/12,2),0)*G12*G4*G5/100/3,2)) -> 0 | H75: 0 | I75: 0 | J75: 0 | K75: 0 | L75: 0 | M75: 0 | N75: 0 | O75: 0 | P75: 0 | Q75: 0 | R75: 0 | S75: =ROUND(IF(AND(S$12>0,S13>0),ROUND((ROUND(VLOOKUP(S13,Skalalontabel12,7,0)*S10,0))/12,2),0)*S12*S4*S5/100/3,2) -> 0 | T75: 0 | U75: 0 | V75: 0 | W75: 0 | X75: 0 | Y75: 0 | Z75: 0 | AA75: 0 | AB75: 0 | AC75: 0 | AD75: 0 | AE75: 0
B76: 76 | F76: Pensionstillæg overenskomsttillæg | G76: =ROUND(G52*$C52*G$5/100/3,2) -> 0 | H76: 0 | I76: 0 | J76: 0 | K76: 0 | L76: 0 | M76: 0 | N76: 0 | O76: 0 | P76: 0 | Q76: 0 | R76: 0 | S76: =ROUND(S52*$C52*S$5/100/3,2) -> 0 | T76: 0 | U76: 0 | V76: 0 | W76: 0 | X76: 0 | Y76: 0 | Z76: 0 | AA76: 0 | AB76: 0 | AC76: 0 | AD76: 0 | AE76: 0
F77: Pensionstillæg af Trepartstillæg | G77: 0 | H77: 0 | I77: 0 | J77: 0 | K77: 0 | L77: 0 | M77: 0 | N77: 0 | O77: 0 | P77: 0 | Q77: 0 | R77: 0
B78: =B76+1 -> 77 | F78: Pensionstillæg souscheftillæg | G78: =ROUND(G54*$C54*G$5/100/3,2) -> 0 | H78: 0 | I78: 0 | J78: 0 | K78: 0 | L78: 0 | M78: 0 | N78: 0 | O78: 0 | P78: 0 | Q78: 0 | R78: 0 | S78: =ROUND(S54*$C54*S$5/100/3,2) -> 0 | T78: 0 | U78: 0 | V78: 0 | W78: 0 | X78: 0 | Y78: 0 | Z78: 0 | AA78: 0 | AB78: 0 | AC78: 0 | AD78: 0 | AE78: 0
B79: 78 | F79: Pensionstillæg Funktionstillæg 1 | G79: =ROUND(G55*$C55*G$5/100/3,2) -> 0 | H79: 0 | I79: 0 | J79: 0 | K79: 0 | L79: 0 | M79: 0 | N79: 0 | O79: 0 | P79: 0 | Q79: 0 | R79: 0 | S79: =ROUND(S55*$C55*S$5/100/3,2) -> 0 | T79: 0 | U79: 0 | V79: 0 | W79: 0 | X79: 0 | Y79: 0 | Z79: 0 | AA79: 0 | AB79: 0 | AC79: 0 | AD79: 0 | AE79: 0
B80: 79 | F80: Pensionstillæg Funktionstillæg 2 | G80: =ROUND(G56*$C56*G$5/100/3,2) -> 0 | H80: 0 | I80: 0 | J80: 0 | K80: 0 | L80: 0 | M80: 0 | N80: 0 | O80: 0 | P80: 0 | Q80: 0 | R80: 0 | S80: =ROUND(S56*$C56*S$5/100/3,2) -> 0 | T80: 0 | U80: 0 | V80: 0 | W80: 0 | X80: 0 | Y80: 0 | Z80: 0 | AA80: 0 | AB80: 0 | AC80: 0 | AD80: 0 | AE80: 0
B81: 80 | F81: Pensionstillæg Funktionstillæg 3 | G81: =ROUND(G57*$C57*G$5/100/3,2) -> 0 | H81: 0 | I81: 0 | J81: 0 | K81: 0 | L81: 0 | M81: 0 | N81: 0 | O81: 0 | P81: 0 | Q81: 0 | R81: 0 | S81: =ROUND(S57*$C57*S$5/100/3,2) -> 0 | T81: 0 | U81: 0 | V81: 0 | W81: 0 | X81: 0 | Y81: 0 | Z81: 0 | AA81: 0 | AB81: 0 | AC81: 0 | AD81: 0 | AE81: 0
B82: 81 | F82: Pensionstillæg Kvalifikationstillæg 1 | G82: =ROUND(G58*$C58*G$5/100/3,2) -> 0 | H82: 0 | I82: 0 | J82: 0 | K82: 0 | L82: 0 | M82: 0 | N82: 0 | O82: 0 | P82: 0 | Q82: 0 | R82: 0 | S82: =ROUND(S58*$C58*S$5/100/3,2) -> 0 | T82: 0 | U82: 0 | V82: 0 | W82: 0 | X82: 0 | Y82: 0 | Z82: 0 | AA82: 0 | AB82: 0 | AC82: 0 | AD82: 0 | AE82: 0
B83: 82 | F83: Pensionstillæg Kvalifikationstillæg 2 | G83: =ROUND(G59*$C59*G$5/100/3,2) -> 0 | H83: 0 | I83: 0 | J83: 0 | K83: 0 | L83: 0 | M83: 0 | N83: 0 | O83: 0 | P83: 0 | Q83: 0 | R83: 0 | S83: =ROUND(S59*$C59*S$5/100/3,2) -> 0 | T83: 0 | U83: 0 | V83: 0 | W83: 0 | X83: 0 | Y83: 0 | Z83: 0 | AA83: 0 | AB83: 0 | AC83: 0 | AD83: 0 | AE83: 0
B84: 83 | F84: Pensionstillæg Kvalifikationstillæg 3 | G84: =ROUND(G60*$C60*G$5/100/3,2) -> 0 | H84: 0 | I84: 0 | J84: 0 | K84: 0 | L84: 0 | M84: 0 | N84: 0 | O84: 0 | P84: 0 | Q84: 0 | R84: 0 | S84: =ROUND(S60*$C60*S$5/100/3,2) -> 0 | T84: 0 | U84: 0 | V84: 0 | W84: 0 | X84: 0 | Y84: 0 | Z84: 0 | AA84: 0 | AB84: 0 | AC84: 0 | AD84: 0 | AE84: 0
B85: 84 | F85: Pensionstillæg af udligningstillæg | G85: =ROUND(G61*$C61*G$5/100/3,2) -> 0 | H85: 0 | I85: 0 | J85: 0 | K85: 0 | L85: 0 | M85: 0 | N85: 0 | O85: 0 | P85: 0 | Q85: 0 | R85: 0 | S85: =ROUND(S61*$C61*S$5/100/3,2) -> 0 | T85: 0 | U85: 0 | V85: 0 | W85: 0 | X85: 0 | Y85: 0 | Z85: 0 | AA85: 0 | AB85: 0 | AC85: 0 | AD85: 0 | AE85: 0
B86: 85 | F86: Pensionstillæg af seniorbonus | G86: =ROUND(G62*$C62*G$5/100/3,2) -> 0 | H86: =ROUND(H62*$C62*H$5/100/3,2) -> 0 | I86: 0 | J86: 0 | K86: 0 | L86: 0 | M86: 0 | N86: 0 | O86: 0 | P86: 0 | Q86: 0 | R86: 0
B87: 86 | F87: Fradrag i pensionstillæg for ikke optjent ferie mv. | G87: =ROUND(G65*$C65*G$5/100/3,2) -> 0 | H87: 0 | I87: 0 | J87: 0 | K87: 0 | L87: 0 | M87: 0 | N87: 0 | O87: 0 | P87: 0 | Q87: 0 | R87: 0 | S87: =ROUND(S65*$C65*S$5/100/3,2) -> 0 | T87: 0 | U87: 0 | V87: 0 | W87: 0 | X87: 0 | Y87: 0 | Z87: 0 | AA87: 0 | AB87: 0 | AC87: 0 | AD87: 0 | AE87: 0
B88: 87 | F88: Pensionstillæg af feriedifference | G88: =ROUND(G66*$C66*G$5/100/3,2) -> 0 | H88: 0 | I88: 0 | J88: 0 | K88: 0 | L88: 0 | M88: 0 | N88: 0 | O88: 0 | P88: 0 | Q88: 0 | R88: 0 | S88: =ROUND(S66*$C66*S$5/100/3,2) -> 0 | T88: 0 | U88: 0 | V88: 0 | W88: 0 | X88: 0 | Y88: 0 | Z88: 0 | AA88: 0 | AB88: 0 | AC88: 0 | AD88: 0 | AE88: 0
B89: 88 | F89: Pensionstillæg af pensiong. engangstillæg | G89: =ROUND(G38*G5/100/3+G42*($C42<>"")*G5/100/3+G43*($C43<>"")*G5/100/3+G44*($C44<>"")*G5/100/3+G45*($C45<>"")*G5/100/3+G46*($C46<>"")*G5/100/3,2) -> 0 | H89: =ROUND(H38*H5/100/3+H42*($C42<>"")*H5/100/3+H43*($C43<>"")*H5/100/3+H44*($C44<>"")*H5/100/3+H45*($C45<>"")*H5/100/3+H46*($C46<>"")*H5/100/3,2) -> 0 | I89: 0 | J89: 0 | K89: 0 | L89: 0 | M89: 0 | N89: 0 | O89: 0 | P89: 0 | Q89: 0 | R89: 0 | S89: 0 | T89: 0 | U89: 0 | V89: 0 | W89: 0 | X89: 0 | Y89: 0 | Z89: 0 | AA89: 0 | AB89: 0 | AC89: 0 | AD89: 0 | AE89: 0
B90: 89 | F90: Ekstra pension hvis orlov uden løn | G90: =IF(G7="Ja",SUM(S75:S88)-SUM(G75:G89),0) -> 0 | H90: =IF(H7="Ja",SUM(T75:T89)-SUM(H75:H89),0) -> 0 | I90: =IF(I7="Ja",SUM(U75:U88)-SUM(I75:I89),0) -> 0 | J90: 0 | K90: 0 | L90: 0 | M90: 0 | N90: 0 | O90: 0 | P90: 0 | Q90: 0 | R90: 0
B91: 90 | F91: Pensionstillæg i alt | G91: =SUM(G75:G90) -> 0 | H91: =SUM(H75:H90) -> 0 | I91: 0 | J91: 0 | K91: 0 | L91: 0 | M91: 0 | N91: 0 | O91: 0 | P91: 0 | Q91: 0 | R91: 0 | S91: =SUM(S75:S89) -> 0 | T91: =SUM(T75:T89) -> 0 | U91: 0 | V91: 0 | W91: 0 | X91: 0 | Y91: 0 | Z91: 0 | AA91: 0 | AB91: 0 | AC91: 0 | AD91: 0 | AE91: 0
B92: 91 | F92: Egetbidrag til ATP | G92: =ROUND(G104/3,2) -> 0 | H92: =ROUND(H104/3,2) -> 0 | I92: 0 | J92: 0 | K92: 0 | L92: 0 | M92: 0 | N92: 0 | O92: 0 | P92: 0 | Q92: 0 | R92: 0 | S92: =ROUND(S104/3,2) -> 0 | T92: =ROUND(T104/3,2) -> 0 | U92: 0 | V92: 0 | W92: 0 | X92: 0 | Y92: 0 | Z92: 0 | AA92: 0 | AB92: 0 | AC92: 0 | AD92: 0 | AE92: =SUM(G92:R92) -> 0
B93: 92 | F93: AMB-grundlag | G93: =IF(G6="nej",G91*-1)+SUM(G51:G68)-G92+G73 -> 0 | H93: =IF(H6="nej",H91*-1)+SUM(H51:H68)-H92+H73 -> 0 | I93: =IF(I6="nej",I91*-1)+SUM(I51:I68)-I92+I73 -> 0 | J93: 0 | K93: 0 | L93: 0 | M93: 0 | N93: 0 | O93: 0 | P93: 0 | Q93: 0 | R93: 0 | S93: =IF(S6="nej",S91*-1)+SUM(S51:S68)-S92 -> 0 | T93: 0 | U93: 0 | V93: 0 | W93: 0 | X93: 0 | Y93: 0 | Z93: 0 | AA93: 0 | AB93: 0 | AC93: 0 | AD93: 0 | AE93: =SUM(G93:R93) -> 0
B94: 93 | F94: AM-bidrag | G94: =ROUND(G93*8%,0) -> 0 | H94: =ROUND(H93*8%,0) -> 0 | I94: 0 | J94: 0 | K94: 0 | L94: 0 | M94: 0 | N94: 0 | O94: 0 | P94: 0 | Q94: 0 | R94: 0 | S94: =ROUND(S93*8%,0) -> 0 | T94: =ROUND(T93*8%,0) -> 0 | U94: 0 | V94: 0 | W94: 0 | X94: 0 | Y94: 0 | Z94: 0 | AA94: 0 | AB94: 0 | AC94: 0 | AD94: 0 | AE94: 0
B95: 94 | F95: A-indkomst | G95: =G93-G94 -> 0 | H95: =H93-H94 -> 0 | I95: 0 | J95: 0 | K95: 0 | L95: 0 | M95: 0 | N95: 0 | O95: 0 | P95: 0 | Q95: 0 | R95: 0 | S95: =S93-S94 -> 0 | T95: =T93-T94 -> 0 | U95: 0 | V95: 0 | W95: 0 | X95: 0 | Y95: 0 | Z95: 0 | AA95: 0 | AB95: 0 | AC95: 0 | AD95: 0 | AE95: 0
B96: 95 | F96: Skattegrundlag | G96: =FLOOR(G95-G32,10) -> 0 | H96: =FLOOR(H95-H32,10) -> 0 | I96: 0 | J96: 0 | K96: 0 | L96: 0 | M96: 0 | N96: 0 | O96: 0 | P96: 0 | Q96: 0 | R96: 0 | S96: =FLOOR(S95-S32,10) -> 0 | T96: =FLOOR(T95-T32,10) -> 0 | U96: 0 | V96: 0 | W96: 0 | X96: 0 | Y96: 0 | Z96: 0 | AA96: 0 | AB96: 0 | AC96: 0 | AD96: 0
B97: 96 | F97: Skat | G97: =ROUND(G96*G31/100,0) -> 0 | H97: 0 | I97: 0 | J97: 0 | K97: 0 | L97: 0 | M97: 0 | N97: 0 | O97: 0 | P97: 0 | Q97: 0 | R97: 0 | S97: =ROUND(S96*S31/100,0) -> 0 | T97: 0 | U97: 0 | V97: 0 | W97: 0 | X97: 0 | Y97: 0 | Z97: 0 | AA97: 0 | AB97: 0 | AC97: 0 | AD97: 0 | AE97: 0
B98: 97 | F98: Feriegodtgørelsesgrundlag | G98: =SUM(G51:G68) -> 0 | H98: =SUM(H51:H68) -> 0 | I98: =SUM(I51:I68) -> 0 | J98: =SUM(J51:J68) -> 0 | K98: =SUM(K51:K68) -> 0 | L98: =SUM(L51:L68) -> 0 | M98: 0 | N98: 0 | O98: 0 | P98: 0 | Q98: 0 | R98: 0 | S98: =SUM(S51:S68) -> 0 | T98: =SUM(T51:T68) -> 0 | U98: =SUM(U51:U68) -> 0 | V98: =SUM(V51:V68) -> 0 | W98: =SUM(W51:W68) -> 0 | X98: =SUM(X51:X68) -> 0 | Y98: 0 | Z98: 0 | AA98: 0 | AB98: 0 | AC98: 0 | AD98: 0 | AE98: =SUM(H98:P98) -> 0
B99: 98 | F99: ="Feriegodtgørelsesgrundlag, juni-juli " -> Feriegodtgørelsesgrundlag, juni-juli | Q99: =SUM(Q51:Q68)-Q41 -> 0 | R99: =SUM(R51:R68)-R41 -> 0 | AC99: =SUM(AC51:AC68)-AC41 -> 0 | AD99: =SUM(AD51:AD68)-AD41 -> 0 | AE99: =SUM(G99:R99) -> 0
B100: 99 | F100: Egetbidrag til pensionskasse | G100: =G91 -> 0 | H100: =H91 -> 0 | I100: 0 | J100: 0 | K100: 0 | L100: 0 | M100: 0 | N100: 0 | O100: 0 | P100: 0 | Q100: 0 | R100: 0 | S100: =S91 -> 0 | T100: =T91 -> 0 | U100: 0 | V100: 0 | W100: 0 | X100: 0 | Y100: 0 | Z100: 0 | AA100: 0 | AB100: 0 | AC100: 0 | AD100: 0 | AE100: 0
B101: 100 | F101: Arbejdsgiverbidrag til pensionskasse | G101: =G100*2 -> 0 | H101: =H100*2 -> 0 | I101: 0 | J101: 0 | K101: 0 | L101: 0 | M101: 0 | N101: 0 | O101: 0 | P101: 0 | Q101: 0 | R101: 0 | S101: =S100*2 -> 0 | T101: =T100*2 -> 0 | U101: 0 | V101: 0 | W101: 0 | X101: 0 | Y101: 0 | Z101: 0 | AA101: 0 | AB101: 0 | AC101: 0 | AD101: 0 | AE101: 0
B102: 101 | F102: Arbejdsgiverbidrag til ATP | G102: =G104*2/3 -> 0 | H102: =H104*2/3 -> 0 | I102: 0 | J102: 0 | K102: 0 | L102: 0 | M102: 0 | N102: 0 | O102: 0 | P102: 0 | Q102: 0 | R102: 0 | S102: =S104*2/3 -> 0 | T102: =T104*2/3 -> 0 | U102: 0 | V102: 0 | W102: 0 | X102: 0 | Y102: 0 | Z102: 0 | AA102: 0 | AB102: 0 | AC102: 0 | AD102: 0 | AE102: 0
B103: 102 | F103: Skolens samlede indbetaling til pensionskasse | G103: =G100+G101 -> 0 | H103: =H100+H101 -> 0 | I103: 0 | J103: 0 | K103: 0 | L103: 0 | M103: 0 | N103: 0 | O103: 0 | P103: 0 | Q103: 0 | R103: 0 | S103: =S100+S101 -> 0 | T103: =T100+T101 -> 0 | U103: 0 | V103: 0 | W103: 0 | X103: 0 | Y103: 0 | Z103: 0 | AA103: 0 | AB103: 0 | AC103: 0 | AD103: 0 | AE103: 0
B104: 103 | F104: Skolens samlede indbetaling til ATP | G104: =297/3*(((G12*G4)>=9/37)+((G12*G4)>=18/37)+((G12*G4)>=27/37)) -> 0 | H104: 0 | I104: 0 | J104: 0 | K104: 0 | L104: =297/3*(((L12*L4)>=9/37)+((L12*L4)>=18/37)+((L12*L4)>=27/37)) -> 0 | M104: =297/3*(((M12*M4)>=9/37)+((M12*M4)>=18/37)+((M12*M4)>=27/37)) -> 0 | N104: 0 | O104: 0 | P104: 0 | Q104: 0 | R104: 0 | S104: 0 | T104: 0 | U104: 0 | V104: 0 | W104: 0 | X104: 0 | Y104: 0 | Z104: 0 | AA104: 0 | AB104: 0 | AC104: 0 | AD104: 0 | AE104: 0
B105: 104 | F105: Indbetaling til Gruppeliv | G105: =G24 -> 0 | H105: =H24 -> 0 | I105: 0 | J105: 0 | K105: 0 | L105: 0 | M105: 0 | N105: 0 | O105: 0 | P105: 0 | Q105: 0 | R105: 0 | S105: =S24 -> 0 | T105: =T24 -> 0 | U105: 0 | V105: 0 | W105: 0 | X105: 0 | Y105: 0 | Z105: 0 | AA105: 0 | AB105: 0 | AC105: 0 | AD105: 0 | AE105: 0
B106: 105 | F106: Løn til den ansattes disposition | G106: =IF(G6="nej",G91*-1)+G74-(G97+G92+G94+G105)-G47-G48-G49 -> 0 | H106: 0 | I106: 0 | J106: 0 | K106: 0 | L106: 0 | M106: 0 | N106: 0 | O106: 0 | P106: 0 | Q106: 0 | R106: 0 | S106: 0 | T106: 0 | U106: 0 | V106: 0 | W106: 0 | X106: 0 | Y106: 0 | Z106: 0 | AA106: 0 | AB106: 0 | AC106: 0 | AD106: 0 | AE106: =SUM(G106:R106) -> 0
B107: 106 | F107: ="Feriepengeberegningsgrundlag, jan-dec "&Aar -> Feriepengeberegningsgrundlag, jan-dec | G107: =(SUM(G51:G68)+G91+G92)*(1-12/260*G26) -> 0 | H107: =(SUM(H51:H68)+H91+H92)*(1-12/260*H26) -> 0 | I107: =(SUM(I51:I68)+I91+I92)*(1-12/260*I26) -> 0 | J107: =(SUM(J51:J68)+J91+J92)*(1-12/260*J26) -> 0 | K107: =(SUM(K51:K68)+K91+K92)*(1-12/260*K26) -> 0 | L107: Kalenderårets sum benyttes ved fratræden og særlige feriedage | S107: =(SUM(S51:S68)+S91+S92)*(1-12/260*S26) -> 0 | T107: =(SUM(T51:T68)+T91+T92)*(1-12/260*T26) -> 0 | U107: =(SUM(U51:U68)+U91+U92)*(1-12/260*U26) -> 0 | V107: =(SUM(V51:V68)+V91+V92)*(1-12/260*V26) -> 0 | W107: =(SUM(W51:W68)+W91+W92)*(1-12/260*W26) -> 0 | X107: Kalenderårets sum benyttes ved fratræden og særlige feriedage | AE107: =A107+SUM(G107:K107) -> 0
B108: 107 | F108: ="Feriepengeberegningsgrundlag, jan-jul "&Aar -> Feriepengeberegningsgrundlag, jan-jul | G108: Kalenderårets sum benyttes ved fratræden og særlige feriedage | L108: =(SUM(L$51:L$68)+L$91+L92)*(1-12/260*L$26) -> 0 | M108: =(SUM(M$51:M$68)+M$91+M92)*(1-12/260*M$26) -> 0 | N108: 0 | O108: 0 | P108: 0 | Q108: 0 | R108: 0 | S108: Kalenderårets sum benyttes ved fratræden og særlige feriedage | X108: =(SUM(X$51:X$68)+X$91+X92)*(1-12/260*X$26) -> 0 | Y108: =(SUM(Y$51:Y$68)+Y$91+Y92)*(1-12/260*Y$26) -> 0 | Z108: 0 | AA108: 0 | AB108: 0 | AC108: 0 | AD108: 0 | AE108: 0
B109: 108 | F109: BG-afhængige løndele | G109: =G51*$D51+G52*$D52+G54*$D54+G55*$D55+G56*$D56+G57*$D57+G58*$D58+G59*$D59+G60*$D60+G61*$D61+G64*$D64 -> 0 | H109: 0 | I109: 0 | J109: 0 | K109: 0 | L109: 0 | M109: 0 | N109: 0 | O109: 0 | P109: 0 | Q109: 0 | R109: 0 | S109: =S51*$D51+S52*$D52+S54*$D54+S55*$D55+S56*$D56+S57*$D57+S58*$D58+S59*$D59+S60*$D60+S61*$D61+S64*$D64 -> 0 | T109: 0 | U109: 0 | V109: 0 | W109: 0 | X109: 0 | Y109: 0 | Z109: 0 | AA109: 0 | AB109: 0 | AC109: 0 | AD109: 0
B110: 109 | F110: BG-difference >=20% | G110: =IF(G12>0,IF(G12>G28,(G12-G28)/G28>=20%,(G12-G28)/G28<=-20%),"") ->  | P110: =IF(P12>0,IF(P12>P29,(P12-P29)/P29>=20%,(P12-P29)/P29<=-20%),"") ->  | Q110: =IF(Q12>0,IF(Q12>Q29,(Q12-Q29)/Q29>=20%,(Q12-Q29)/Q29<=-20%),"") ->  | R110: =IF(R12>0,IF(R12>R29,(R12-R29)/R29>=20%,(R12-R29)/R29<=-20%),"") ->  | S110: =IF(S12>0,IF(S12>S28,(S12-S28)/S28>=20%,(S12-S28)/S28<=-20%),"") ->  | AB110: =IF(AB12>0,IF(AB12>AB29,(AB12-AB29)/AB29>=20%,(AB12-AB29)/AB29<=-20%),"") ->  | AC110: =IF(AC12>0,IF(AC12>AC29,(AC12-AC29)/AC29>=20%,(AC12-AC29)/AC29<=-20%),"") ->  | AD110: =IF(AD12>0,IF(AD12>AD29,(AD12-AD29)/AD29>=20%,(AD12-AD29)/AD29<=-20%),"") -> 
B160: =B159+1 -> 1
B161: 2 | F161: =IF(ISNUMBER(G1),"Skalatrinsløn","HK-løn") -> HK-løn | G161: ="= "&TEXT(ROUND(VLOOKUP(G13,Skalalontabel12,G11,0)*G10,0),"#.000")&" / 12 * "&TEXT(G12,"0,0000")&" * "&TEXT(G$4,"#0/#0")&" =" -> 
B162: 3 | F162: Fast løn | G162: ="= "&TEXT(G14,"#.000,00")&" / 12 "&IF($D52>0," * "&TEXT(G$12,"0,0000"),"")&IF($E52>0," * "&G$10,"")&" * "&TEXT(G$4,"#0/#0")&" =" -> = 000,00 / 12 * 0,0000 * 1,233095 * 1/1 = | H162: = 000,00 / 12 * 0,0000 * 1,233095 * 1/1 = | I162: = 000,00 / 12 * 0,0000 * 1,233095 * 1/1 = | J162: = 000,00 / 12 * 0,0000 * * 1/1 = | K162: = 000,00 / 12 * 0,0000 * 0 * 1/1 = | L162: = 000,00 / 12 * 0,0000 * 0 * 1/1 = | M162: = 000,00 / 12 * 0,0000 * 0 * 1/1 = | N162: = 000,00 / 12 * 0,0000 * 0 * 1/1 = | O162: = 000,00 / 12 * 0,0000 * * 1/1 = | P162: = 000,00 / 12 * 0,0000 * 0 * 1/1 = | Q162: = 000,00 / 12 * 0,0000 * 0 * 1/1 = | R162: = 000,00 / 12 * 0,0000 * 0 * 1/1 = | S162: ="= "&TEXT(S14,"#.000,00")&" / 12 "&IF($D52>0," * "&TEXT(S$12,"0,0000"),"")&IF($E52>0," * "&S$10,"")&" * "&TEXT(S$4,"#0/#0")&" =" -> = 000,00 / 12 * 0,0000 * 1,233095 * 1/1 = | T162: = 000,00 / 12 * 0,0000 * 1,233095 * 1/1 = | U162: = 000,00 / 12 * 0,0000 * 1,233095 * 1/1 = | V162: = 000,00 / 12 * 0,0000 * 0 * 1/1 = | W162: = 000,00 / 12 * 0,0000 * 0 * 1/1 = | X162: = 000,00 / 12 * 0,0000 * 0 * 1/1 = | Y162: = 000,00 / 12 * 0,0000 * 0 * 1/1 = | Z162: = 000,00 / 12 * 0,0000 * 0 * 1/1 = | AA162: = 000,00 / 12 * 0,0000 * 0 * 1/1 = | AB162: = 000,00 / 12 * 0,0000 * 0 * 1/1 = | AC162: = 000,00 / 12 * 0,0000 * 0 * 1/1 = | AD162: = 000,00 / 12 * 0,0000 * 0 * 1/1 =
F163: Trepartstllæg | G163: ="= "&TEXT(G15,"#.000,00")&" / 12 "&IF($D53>0," * "&TEXT(G$12,"0,0000"),"")&IF($E53>0," * "&G$10,"")&" * "&TEXT(G$4,"#0/#0")&" =" -> = 000,00 / 12 * 0,0000 * 1,233095 * 1/1 = | H163: = 000,00 / 12 * 0,0000 * 1,233095 * 1/1 = | I163: = 000,00 / 12 * 0,0000 * 1,233095 * 1/1 = | J163: = 000,00 / 12 * 0,0000 * * 1/1 = | K163: = 000,00 / 12 * 0,0000 * 0 * 1/1 = | L163: = 000,00 / 12 * 0,0000 * 0 * 1/1 = | M163: = 000,00 / 12 * 0,0000 * 0 * 1/1 = | N163: = 000,00 / 12 * 0,0000 * 0 * 1/1 = | O163: = 000,00 / 12 * 0,0000 * * 1/1 = | P163: = 000,00 / 12 * 0,0000 * 0 * 1/1 = | Q163: = 000,00 / 12 * 0,0000 * 0 * 1/1 = | R163: = 000,00 / 12 * 0,0000 * 0 * 1/1 =
B164: =B162+1 -> 4 | F164: Sousdheftillæg | G164: ="= "&TEXT(G16,"#.000,00")&" / 12 "&IF($D54>0," * "&TEXT(G$12,"0,0000"),"")&IF($E54>0," * "&G$10,"")&" * "&TEXT(G$4,"#0/#0")&" =" -> = 000,00 / 12 * 1,233095 * 1/1 = | H164: = 000,00 / 12 * 1,233095 * 1/1 = | I164: = 000,00 / 12 * 1,233095 * 1/1 = | J164: = 000,00 / 12 * * 1/1 = | K164: = 000,00 / 12 * 0 * 1/1 = | L164: = 000,00 / 12 * 0 * 1/1 = | M164: = 000,00 / 12 * 0 * 1/1 = | N164: = 000,00 / 12 * 0 * 1/1 = | O164: = 000,00 / 12 * * 1/1 = | P164: = 000,00 / 12 * 0 * 1/1 = | Q164: = 000,00 / 12 * 0 * 1/1 = | R164: = 000,00 / 12 * 0 * 1/1 = | S164: ="= "&TEXT(S16,"#.000,00")&" / 12 "&IF($D54>0," * "&TEXT(S$12,"0,0000"),"")&IF($E54>0," * "&S$10,"")&" * "&TEXT(S$4,"#0/#0")&" =" -> = 000,00 / 12 * 1,233095 * 1/1 = | T164: = 000,00 / 12 * 1,233095 * 1/1 = | U164: = 000,00 / 12 * 1,233095 * 1/1 = | V164: = 000,00 / 12 * 0 * 1/1 = | W164: = 000,00 / 12 * 0 * 1/1 = | X164: = 000,00 / 12 * 0 * 1/1 = | Y164: = 000,00 / 12 * 0 * 1/1 = | Z164: = 000,00 / 12 * 0 * 1/1 = | AA164: = 000,00 / 12 * 0 * 1/1 = | AB164: = 000,00 / 12 * 0 * 1/1 = | AC164: = 000,00 / 12 * 0 * 1/1 = | AD164: = 000,00 / 12 * 0 * 1/1 =
B165: 5 | F165: Funktionstillæg 1 | G165: ="= "&TEXT(G17,"#.000,00")&" / 12 "&IF($D55>0," * "&TEXT(G$12,"0,0000"),"")&IF($E55>0," * "&G$10,"")&" * "&TEXT(G$4,"#0/#0")&" =" -> = 000,00 / 12 * 1,233095 * 1/1 = | H165: ="= "&TEXT(H17,"#.000,00")&" / 12 "&IF($D55>0," * "&TEXT(H$12,"0,0000"),"")&IF($E165>0," * "&H$10,"")&" * "&TEXT(H$4,"#0/#0")&" =" -> = 000,00 / 12 * 1/1 = | I165: = 000,00 / 12 * 1/1 = | J165: = 000,00 / 12 * 1/1 = | K165: = 000,00 / 12 * 1/1 = | L165: = 000,00 / 12 * 1/1 = | M165: = 000,00 / 12 * 1/1 = | N165: = 000,00 / 12 * 1/1 = | O165: = 000,00 / 12 * 1/1 = | P165: = 000,00 / 12 * 1/1 = | Q165: = 000,00 / 12 * 1/1 = | R165: = 000,00 / 12 * 1/1 = | S165: ="= "&TEXT(S17,"#.000,00")&" / 12 "&IF($D55>0," * "&TEXT(S$12,"0,0000"),"")&IF($E165>0," * "&S$10,"")&" * "&TEXT(S$4,"#0/#0")&" =" -> = 000,00 / 12 * 1/1 = | T165: = 000,00 / 12 * 1/1 = | U165: = 000,00 / 12 * 1/1 = | V165: = 000,00 / 12 * 1/1 = | W165: = 000,00 / 12 * 1/1 = | X165: = 000,00 / 12 * 1/1 = | Y165: = 000,00 / 12 * 1/1 = | Z165: = 000,00 / 12 * 1/1 = | AA165: = 000,00 / 12 * 1/1 = | AB165: = 000,00 / 12 * 1/1 = | AC165: = 000,00 / 12 * 1/1 = | AD165: = 000,00 / 12 * 1/1 =
B166: 6 | F166: Funktionstillæg 2 | G166: ="= "&TEXT(G18,"#.000,00")&" / 12 "&IF($D56>0," * "&TEXT(G$12,"0,0000"),"")&IF($E56>0," * "&G$10,"")&" * "&TEXT(G$4,"#0/#0")&" =" -> = 000,00 / 12 * 1,233095 * 1/1 = | H166: = 000,00 / 12 * 1,233095 * 1/1 = | I166: = 000,00 / 12 * 1,233095 * 1/1 = | J166: = 000,00 / 12 * * 1/1 = | K166: = 000,00 / 12 * 0 * 1/1 = | L166: = 000,00 / 12 * 0 * 1/1 = | M166: = 000,00 / 12 * 0 * 1/1 = | N166: = 000,00 / 12 * 0 * 1/1 = | O166: = 000,00 / 12 * * 1/1 = | P166: = 000,00 / 12 * 0 * 1/1 = | Q166: = 000,00 / 12 * 0 * 1/1 = | R166: = 000,00 / 12 * 0 * 1/1 = | S166: ="= "&TEXT(S18,"#.000,00")&" / 12 "&IF($D56>0," * "&TEXT(S$12,"0,0000"),"")&IF($E56>0," * "&S$10,"")&" * "&TEXT(S$4,"#0/#0")&" =" -> = 000,00 / 12 * 1,233095 * 1/1 = | T166: = 000,00 / 12 * 1,233095 * 1/1 = | U166: = 000,00 / 12 * 1,233095 * 1/1 = | V166: = 000,00 / 12 * 0 * 1/1 = | W166: = 000,00 / 12 * 0 * 1/1 = | X166: = 000,00 / 12 * 0 * 1/1 = | Y166: = 000,00 / 12 * 0 * 1/1 = | Z166: = 000,00 / 12 * 0 * 1/1 = | AA166: = 000,00 / 12 * 0 * 1/1 = | AB166: = 000,00 / 12 * 0 * 1/1 = | AC166: = 000,00 / 12 * 0 * 1/1 = | AD166: = 000,00 / 12 * 0 * 1/1 =
B167: 7 | F167: Funktionstillæg 3 | G167: ="= "&TEXT(G19,"#.000,00")&" / 12 "&IF($D57>0," * "&TEXT(G$12,"0,0000"),"")&IF($E57>0," * "&G$10,"")&" * "&TEXT(G$4,"#0/#0")&" =" -> = 000,00 / 12 * 1,233095 * 1/1 = | H167: = 000,00 / 12 * 1,233095 * 1/1 = | I167: = 000,00 / 12 * 1,233095 * 1/1 = | J167: = 000,00 / 12 * * 1/1 = | K167: = 000,00 / 12 * 0 * 1/1 = | L167: = 000,00 / 12 * 0 * 1/1 = | M167: = 000,00 / 12 * 0 * 1/1 = | N167: = 000,00 / 12 * 0 * 1/1 = | O167: = 000,00 / 12 * * 1/1 = | P167: = 000,00 / 12 * 0 * 1/1 = | Q167: = 000,00 / 12 * 0 * 1/1 = | R167: = 000,00 / 12 * 0 * 1/1 = | S167: ="= "&TEXT(S19,"#.000,00")&" / 12 "&IF($D57>0," * "&TEXT(S$12,"0,0000"),"")&IF($E57>0," * "&S$10,"")&" * "&TEXT(S$4,"#0/#0")&" =" -> = 000,00 / 12 * 1,233095 * 1/1 = | T167: = 000,00 / 12 * 1,233095 * 1/1 = | U167: = 000,00 / 12 * 1,233095 * 1/1 = | V167: = 000,00 / 12 * 0 * 1/1 = | W167: = 000,00 / 12 * 0 * 1/1 = | X167: = 000,00 / 12 * 0 * 1/1 = | Y167: = 000,00 / 12 * 0 * 1/1 = | Z167: = 000,00 / 12 * 0 * 1/1 = | AA167: = 000,00 / 12 * 0 * 1/1 = | AB167: = 000,00 / 12 * 0 * 1/1 = | AC167: = 000,00 / 12 * 0 * 1/1 = | AD167: = 000,00 / 12 * 0 * 1/1 =
B168: 8 | F168: Kvalifikationstillæg 1 | G168: ="= "&TEXT(G20,"#.000,00")&" / 12 "&IF($D58>0," * "&TEXT(G$12,"0,0000"),"")&IF($E58>0," * "&G$10,"")&" * "&TEXT(G$4,"#0/#0")&" =" -> = 000,00 / 12 * 0,0000 * 1,233095 * 1/1 = | H168: = 000,00 / 12 * 0,0000 * 1,233095 * 1/1 = | I168: = 000,00 / 12 * 0,0000 * 1,233095 * 1/1 = | J168: = 000,00 / 12 * 0,0000 * * 1/1 = | K168: = 000,00 / 12 * 0,0000 * 0 * 1/1 = | L168: = 000,00 / 12 * 0,0000 * 0 * 1/1 = | M168: = 000,00 / 12 * 0,0000 * 0 * 1/1 = | N168: = 000,00 / 12 * 0,0000 * 0 * 1/1 = | O168: = 000,00 / 12 * 0,0000 * * 1/1 = | P168: = 000,00 / 12 * 0,0000 * 0 * 1/1 = | Q168: = 000,00 / 12 * 0,0000 * 0 * 1/1 = | R168: = 000,00 / 12 * 0,0000 * 0 * 1/1 = | S168: ="= "&TEXT(S20,"#.000,00")&" / 12 "&IF($D58>0," * "&TEXT(S$12,"0,0000"),"")&IF($E58>0," * "&S$10,"")&" * "&TEXT(S$4,"#0/#0")&" =" -> = 000,00 / 12 * 0,0000 * 1,233095 * 1/1 = | T168: = 000,00 / 12 * 0,0000 * 1,233095 * 1/1 = | U168: = 000,00 / 12 * 0,0000 * 1,233095 * 1/1 = | V168: = 000,00 / 12 * 0,0000 * 0 * 1/1 = | W168: = 000,00 / 12 * 0,0000 * 0 * 1/1 = | X168: = 000,00 / 12 * 0,0000 * 0 * 1/1 = | Y168: = 000,00 / 12 * 0,0000 * 0 * 1/1 = | Z168: = 000,00 / 12 * 0,0000 * 0 * 1/1 = | AA168: = 000,00 / 12 * 0,0000 * 0 * 1/1 = | AB168: = 000,00 / 12 * 0,0000 * 0 * 1/1 = | AC168: = 000,00 / 12 * 0,0000 * 0 * 1/1 = | AD168: = 000,00 / 12 * 0,0000 * 0 * 1/1 =
B169: 9 | F169: Kvalifikationstillæg 2 | G169: ="= "&TEXT(G21,"#.000,00")&" / 12 "&IF($D59>0," * "&TEXT(G$12,"0,0000"),"")&IF($E59>0," * "&G$10,"")&" * "&TEXT(G$4,"#0/#0")&" =" -> = 000,00 / 12 * 0,0000 * 1,233095 * 1/1 = | H169: = 000,00 / 12 * 0,0000 * 1,233095 * 1/1 = | I169: = 000,00 / 12 * 0,0000 * 1,233095 * 1/1 = | J169: = 000,00 / 12 * 0,0000 * * 1/1 = | K169: = 000,00 / 12 * 0,0000 * 0 * 1/1 = | L169: = 000,00 / 12 * 0,0000 * 0 * 1/1 = | M169: = 000,00 / 12 * 0,0000 * 0 * 1/1 = | N169: = 000,00 / 12 * 0,0000 * 0 * 1/1 = | O169: = 000,00 / 12 * 0,0000 * * 1/1 = | P169: = 000,00 / 12 * 0,0000 * 0 * 1/1 = | Q169: = 000,00 / 12 * 0,0000 * 0 * 1/1 = | R169: = 000,00 / 12 * 0,0000 * 0 * 1/1 = | S169: ="= "&TEXT(S21,"#.000,00")&" / 12 "&IF($D59>0," * "&TEXT(S$12,"0,0000"),"")&IF($E59>0," * "&S$10,"")&" * "&TEXT(S$4,"#0/#0")&" =" -> = 000,00 / 12 * 0,0000 * 1,233095 * 1/1 = | T169: = 000,00 / 12 * 0,0000 * 1,233095 * 1/1 = | U169: = 000,00 / 12 * 0,0000 * 1,233095 * 1/1 = | V169: = 000,00 / 12 * 0,0000 * 0 * 1/1 = | W169: = 000,00 / 12 * 0,0000 * 0 * 1/1 = | X169: = 000,00 / 12 * 0,0000 * 0 * 1/1 = | Y169: = 000,00 / 12 * 0,0000 * 0 * 1/1 = | Z169: = 000,00 / 12 * 0,0000 * 0 * 1/1 = | AA169: = 000,00 / 12 * 0,0000 * 0 * 1/1 = | AB169: = 000,00 / 12 * 0,0000 * 0 * 1/1 = | AC169: = 000,00 / 12 * 0,0000 * 0 * 1/1 = | AD169: = 000,00 / 12 * 0,0000 * 0 * 1/1 =
B170: 10 | F170: Kvalifikationstillæg 3 | G170: ="= "&TEXT(G22,"#.000,00")&" / 12 "&IF($D60>0," * "&TEXT(G$12,"0,0000"),"")&IF($E60>0," * "&G$10,"")&" * "&TEXT(G$4,"#0/#0")&" =" -> = 000,00 / 12 * 0,0000 * 1,233095 * 1/1 = | H170: = 000,00 / 12 * 0,0000 * 1,233095 * 1/1 = | I170: = 000,00 / 12 * 0,0000 * 1,233095 * 1/1 = | J170: = 000,00 / 12 * 0,0000 * * 1/1 = | K170: = 000,00 / 12 * 0,0000 * 0 * 1/1 = | L170: = 000,00 / 12 * 0,0000 * 0 * 1/1 = | M170: = 000,00 / 12 * 0,0000 * 0 * 1/1 = | N170: = 000,00 / 12 * 0,0000 * 0 * 1/1 = | O170: = 000,00 / 12 * 0,0000 * * 1/1 = | P170: = 000,00 / 12 * 0,0000 * 0 * 1/1 = | Q170: = 000,00 / 12 * 0,0000 * 0 * 1/1 = | R170: = 000,00 / 12 * 0,0000 * 0 * 1/1 = | S170: ="= "&TEXT(S22,"#.000,00")&" / 12 "&IF($D60>0," * "&TEXT(S$12,"0,0000"),"")&IF($E60>0," * "&S$10,"")&" * "&TEXT(S$4,"#0/#0")&" =" -> = 000,00 / 12 * 0,0000 * 1,233095 * 1/1 = | T170: = 000,00 / 12 * 0,0000 * 1,233095 * 1/1 = | U170: = 000,00 / 12 * 0,0000 * 1,233095 * 1/1 = | V170: = 000,00 / 12 * 0,0000 * 0 * 1/1 = | W170: = 000,00 / 12 * 0,0000 * 0 * 1/1 = | X170: = 000,00 / 12 * 0,0000 * 0 * 1/1 = | Y170: = 000,00 / 12 * 0,0000 * 0 * 1/1 = | Z170: = 000,00 / 12 * 0,0000 * 0 * 1/1 = | AA170: = 000,00 / 12 * 0,0000 * 0 * 1/1 = | AB170: = 000,00 / 12 * 0,0000 * 0 * 1/1 = | AC170: = 000,00 / 12 * 0,0000 * 0 * 1/1 = | AD170: = 000,00 / 12 * 0,0000 * 0 * 1/1 =
B171: 11 | F171: Udligningstillæg | G171: ="= "&TEXT(G23,"#.000,00")&" / 12 "&IF($D61>0," * "&TEXT(G$12,"0,0000"),"")&IF($E61>0," * "&G$10,"")&" * "&TEXT(G$4,"#0/#0")&" =" -> = 000,00 / 12 * 0,0000 * 1,233095 * 1/1 = | H171: = 000,00 / 12 * 0,0000 * 1,233095 * 1/1 = | I171: = 000,00 / 12 * 0,0000 * 1,233095 * 1/1 = | J171: = 000,00 / 12 * 0,0000 * * 1/1 = | K171: = 000,00 / 12 * 0,0000 * 0 * 1/1 = | L171: = 000,00 / 12 * 0,0000 * 0 * 1/1 = | M171: = 000,00 / 12 * 0,0000 * 0 * 1/1 = | N171: = 000,00 / 12 * 0,0000 * 0 * 1/1 = | O171: = 000,00 / 12 * 0,0000 * * 1/1 = | P171: = 000,00 / 12 * 0,0000 * 0 * 1/1 = | Q171: = 000,00 / 12 * 0,0000 * 0 * 1/1 = | R171: = 000,00 / 12 * 0,0000 * 0 * 1/1 = | S171: ="= "&TEXT(S23,"#.000,00")&" / 12 "&IF($D61>0," * "&TEXT(S$12,"0,0000"),"")&IF($E61>0," * "&S$10,"")&" * "&TEXT(S$4,"#0/#0")&" =" -> = 000,00 / 12 * 0,0000 * 1,233095 * 1/1 = | T171: = 000,00 / 12 * 0,0000 * 1,233095 * 1/1 = | U171: = 000,00 / 12 * 0,0000 * 1,233095 * 1/1 = | V171: = 000,00 / 12 * 0,0000 * 0 * 1/1 = | W171: = 000,00 / 12 * 0,0000 * 0 * 1/1 = | X171: = 000,00 / 12 * 0,0000 * 0 * 1/1 = | Y171: = 000,00 / 12 * 0,0000 * 0 * 1/1 = | Z171: = 000,00 / 12 * 0,0000 * 0 * 1/1 = | AA171: = 000,00 / 12 * 0,0000 * 0 * 1/1 = | AB171: = 000,00 / 12 * 0,0000 * 0 * 1/1 = | AC171: = 000,00 / 12 * 0,0000 * 0 * 1/1 = | AD171: = 000,00 / 12 * 0,0000 * 0 * 1/1 =
F172: Seniorbonus | G172: 0,8% af alle fastpåregnelige tillæg | H172: 0,8% af alle fastpåregnelige tillæg | I172: 0,8% af alle fastpåregnelige tillæg | J172: 0,8% af alle fastpåregnelige tillæg | K172: 0,8% af alle fastpåregnelige tillæg | L172: 0,8% af alle fastpåregnelige tillæg | M172: 0,8% af alle fastpåregnelige tillæg | N172: 0,8% af alle fastpåregnelige tillæg | O172: 0,8% af alle fastpåregnelige tillæg | P172: 0,8% af alle fastpåregnelige tillæg | Q172: 0,8% af alle fastpåregnelige tillæg | R172: 0,8% af alle fastpåregnelige tillæg
B173: =B171+1 -> 12 | F173: Gruppelivstillæg | G173: ="= "&TEXT(G24,"#.##0,00")&" * "&TEXT(G$4,"#0/#0")&" =" -> = 0,00 * 1/1 = | H173: ="= "&TEXT(H24,"#.##0,00")&" * "&TEXT(H$4,"#0/#0")&" =" -> = 0,00 * 1/1 = | I173: = 0,00 * 1/1 = | J173: = 0,00 * 1/1 = | K173: = 0,00 * 1/1 = | L173: = 0,00 * 1/1 = | M173: = 0,00 * 1/1 = | N173: = 0,00 * 1/1 = | O173: = 0,00 * 1/1 = | P173: = 0,00 * 1/1 = | Q173: = 0,00 * 1/1 = | R173: = 0,00 * 1/1 = | S173: ="= "&TEXT(S24,"#.##0,00")&" * "&TEXT(S$4,"#0/#0")&" =" -> = 0,00 * 1/1 = | T173: ="= "&TEXT(T24,"#.##0,00")&" * "&TEXT(T$4,"#0/#0")&" =" -> = 0,00 * 1/1 = | U173: = 0,00 * 1/1 = | V173: = 0,00 * 1/1 = | W173: = 0,00 * 1/1 = | X173: = 0,00 * 1/1 = | Y173: = 0,00 * 1/1 = | Z173: = 0,00 * 1/1 = | AA173: = 0,00 * 1/1 = | AB173: = 0,00 * 1/1 = | AC173: = 0,00 * 1/1 = | AD173: = 0,00 * 1/1 =
B174: 13 | F174: Lokalaftalt ulempegodtgørelse | G174: ="= "&TEXT(G25,"#,00")&IF($D64>0," * "&TEXT(G$12,"0,0000"),"")&IF($E64>0," * "&G$10,"")&" * "&TEXT(G$4,"#0/#0")&" =" -> = ,00 * 1,233095 * 1/1 = | H174: = ,00 * 1,233095 * 1/1 = | I174: = ,00 * 1,233095 * 1/1 = | J174: = ,00 * * 1/1 = | K174: = ,00 * 0 * 1/1 = | L174: = ,00 * 0 * 1/1 = | M174: = ,00 * 0 * 1/1 = | N174: = ,00 * 0 * 1/1 = | O174: = ,00 * * 1/1 = | P174: = ,00 * 0 * 1/1 = | Q174: = ,00 * 0 * 1/1 = | R174: = ,00 * 0 * 1/1 = | S174: ="= "&TEXT(S25,"#,00")&IF($D64>0," * "&TEXT(S$12,"0,0000"),"")&IF($E64>0," * "&S$10,"")&" * "&TEXT(S$4,"#0/#0")&" =" -> = ,00 * 1,233095 * 1/1 = | T174: = ,00 * 1,233095 * 1/1 = | U174: = ,00 * 1,233095 * 1/1 = | V174: = ,00 * 0 * 1/1 = | W174: = ,00 * 0 * 1/1 = | X174: = ,00 * 0 * 1/1 = | Y174: = ,00 * 0 * 1/1 = | Z174: = ,00 * 0 * 1/1 = | AA174: = ,00 * 0 * 1/1 = | AB174: = ,00 * 0 * 1/1 = | AC174: = ,00 * 0 * 1/1 = | AD174: = ,00 * 0 * 1/1 =
B175: 14 | F175: Lønfradrag for ikke optjent ferie mv. | G175: ="= - "&MAX(0,MIN(G26,G27*1))+G30&" * "&IF(G9="JA","4,62%","4,8%")&" * SUM(Lin. 1 - Lin 12)"&" * "&TEXT(G$4,"#0/#0")&" =" -> = - 0 * 4,62% * SUM(Lin. 1 - Lin 12) * 1/1 = | H175: ="= - "&MAX(0,MIN(H26,H27*1))+H30&" * "&IF(H9="JA","4,62%","4,8%")&" * SUM(Lin. 1 - Lin 12) =" -> = - 0 * 4,62% * SUM(Lin. 1 - Lin 12) = | I175: = - 0 * 4,62% * SUM(Lin. 1 - Lin 12) = | J175: = - 0 * 4,62% * SUM(Lin. 1 - Lin 12) = | K175: = - 0 * 4,62% * SUM(Lin. 1 - Lin 12) = | L175: = - 0 * 4,62% * SUM(Lin. 1 - Lin 12) = | M175: = - 0 * 4,62% * SUM(Lin. 1 - Lin 12) = | N175: = - 0 * 4,62% * SUM(Lin. 1 - Lin 12) = | O175: = - 0 * 4,62% * SUM(Lin. 1 - Lin 12) = | P175: = - 0 * 4,62% * SUM(Lin. 1 - Lin 12) = | Q175: = - 0 * 4,62% * SUM(Lin. 1 - Lin 12) = | R175: = - 0 * 4,62% * SUM(Lin. 1 - Lin 12) = | S175: ="= - "&MAX(0,MIN(S26,S27*1))+S30&" * "&IF(S9="JA","4,62%","4,8%")&" * SUM(Lin. 1 - Lin 12)"&" * "&TEXT(S$4,"#0/#0")&" =" -> = - 0 * 4,62% * SUM(Lin. 1 - Lin 12) * 1/1 = | T175: ="= - "&MAX(0,MIN(T26,T27*1))+T30&" * "&IF(T9="JA","4,62%","4,8%")&" * SUM(Lin. 1 - Lin 12) =" -> = - 0 * 4,62% * SUM(Lin. 1 - Lin 12) = | U175: = - 0 * 4,62% * SUM(Lin. 1 - Lin 12) = | V175: = - 0 * 4,62% * SUM(Lin. 1 - Lin 12) = | W175: = - 0 * 4,62% * SUM(Lin. 1 - Lin 12) = | X175: = - 0 * 4,62% * SUM(Lin. 1 - Lin 12) = | Y175: = - 0 * 4,62% * SUM(Lin. 1 - Lin 12) = | Z175: = - 0 * 4,62% * SUM(Lin. 1 - Lin 12) = | AA175: = - 0 * 4,62% * SUM(Lin. 1 - Lin 12) = | AB175: = - 0 * 4,62% * SUM(Lin. 1 - Lin 12) = | AC175: = - 0 * 4,62% * SUM(Lin. 1 - Lin 12) = | AD175: = - 0 * 4,62% * SUM(Lin. 1 - Lin 12) =
B176: 16 | F176: Feriedifference. Pensionsgivende | H176: ="= "&IF(LEFT(H9)="N","( "&H28&" - "&H12&") * 4,8% * "&H109&" * "&MAX((H26-H27),0)*H110,"( "&H28&" - "&H12&") * 4,62% * "&H109&" * "&MAX((H26-H27),0))&" =" -> = ( - 0) * 4,62% * 0 * 2 = | I176: = ( - 0) * 4,62% * 0 * 5 = | J176: = ( - 0) * 4,62% * 0 * 0 = | K176: = ( - 0) * 4,62% * 0 * 0 = | L176: = ( - 0) * 4,62% * 0 * 0 = | M176: = ( - 0) * 4,62% * 0 * 5 = | N176: = ( - 0) * 4,62% * 0 * 0 = | O176: = ( - 0) * 4,62% * 0 * 0 = | P176: ="= "&IF(LEFT(P9)="N","( "&ROUND(P29,4)&" - "&P12&") * 4,8% * "&P109&" * "&MAX((P26-P27),0)*P110,"( "&ROUND(P29,4)&" - "&P12&") * 4,62% * "&P109&" * "&MAX((P26-P27),0))&" =" -> = ( 0 - 0) * 4,62% * 0 * 0 = | Q176: ="= "&IF(LEFT(Q9)="N","( "&ROUND(Q29,4)&" - "&Q12&") * 4,8% * "&Q109&" * "&MAX((Q26-Q27),0)*Q110,"( "&ROUND(Q29,4)&" - "&Q12&") * 4,62% * "&Q109&" * "&MAX((Q26-Q27),0))&" =" -> = ( 0 - 0) * 4,62% * 0 * 0 = | R176: ="= "&IF(LEFT(R9)="N","( "&ROUND(R29,4)&" - "&R12&") * 4,8% * "&R109&" * "&MAX((R26-R27),0)*R110,"( "&ROUND(R29,4)&" - "&R12&") * 4,62% * "&R109&" * "&MAX((R26-R27),0))&" =" -> = ( 0 - 0) * 4,62% * 0 * 15 = | T176: ="= "&IF(LEFT(T9)="N","( "&T28&" - "&T12&") * 4,8% * "&T109&" * "&MAX((T26-T27),0)*T110,"( "&T28&" - "&T12&") * 4,62% * "&T109&" * "&MAX((T26-T27),0))&" =" -> = ( 0 - 0) * 4,62% * 0 * 2 = | U176: = ( 0 - 0) * 4,62% * 0 * 5 = | V176: = ( 0 - 0) * 4,62% * 0 * 0 = | W176: = ( 0 - 0) * 4,62% * 0 * 0 = | X176: = ( 0 - 0) * 4,62% * 0 * 0 = | Y176: = ( 0 - 0) * 4,62% * 0 * 5 = | Z176: = ( 0 - 0) * 4,62% * 0 * 0 = | AA176: = ( 0 - 0) * 4,62% * 0 * 0 = | AB176: ="= "&IF(LEFT(AB9)="N","( "&ROUND(AB29,4)&" - "&AB12&") * 4,8% * "&AB109&" * "&MAX((AB26-AB27),0)*AB110,"( "&ROUND(AB29,4)&" - "&AB12&") * 4,62% * "&AB109&" * "&MAX((AB26-AB27),0))&" =" -> = ( 0 - 0) * 4,62% * 0 * 0 = | AC176: ="= "&IF(LEFT(AC9)="N","( "&ROUND(AC29,4)&" - "&AC12&") * 4,8% * "&AC109&" * "&MAX((AC26-AC27),0)*AC110,"( "&ROUND(AC29,4)&" - "&AC12&") * 4,62% * "&AC109&" * "&MAX((AC26-AC27),0))&" =" -> = ( 0 - 0) * 4,62% * 0 * 0 = | AD176: ="= "&IF(LEFT(AD9)="N","( "&ROUND(AD29,4)&" - "&AD12&") * 4,8% * "&AD109&" * "&MAX((AD26-AD27),0)*AD110,"( "&ROUND(AD29,4)&" - "&AD12&") * 4,62% * "&AD109&" * "&MAX((AD26-AD27),0))&" =" -> = ( 0 - 0) * 4,62% * 0 * 15 =
B177: 17 | F177: Feriedifferende. Ikke pensionsgivende
B178: 18 | F178: Engangsudbetalinger iflg. specifikation | G178: =SUBSTITUTE(TRIM("=SUM("&MAX(G36-8000,0)&" "&G37&" "&G38&" "&G39&" "&G40&" "&G42&" "&G43&" "&G44&" "&G45&" "&G46&")")," ","; ")&" =" -> =SUM(0; ) = | H178: =SUBSTITUTE(TRIM("=SUM("&MAX(H36-8000,0)&" "&H37&" "&H38&" "&H39&" "&H40&" "&H42&" "&H43&" "&H44&" "&H45&" "&H46&")")," ","; ")&" =" -> =SUM(0; ) = | I178: =SUM(0; ) = | J178: =SUM(0; ) = | K178: =SUM(0; ) = | L178: =SUM(0; ) = | M178: =SUM(0; ) = | N178: =SUM(0; ) = | O178: =SUM(0; ) = | P178: =SUM(0; ) = | Q178: =SUM(0; ) = | R178: =SUM(0; ) = | S178: =SUBSTITUTE(TRIM("=SUM("&MAX(S36-8000,0)&" "&S37&" "&S38&" "&S39&" "&S40&" "&S42&" "&S43&" "&S44&" "&S45&" "&S46&")")," ","; ")&" =" -> =SUM(0; 0; 0; 0; 0; 0; 0; 0; 0; 0) = | T178: =SUBSTITUTE(TRIM("=SUM("&MAX(T36-8000,0)&" "&T37&" "&T38&" "&T39&" "&T40&" "&T42&" "&T43&" "&T44&" "&T45&" "&T46&")")," ","; ")&" =" -> =SUM(0; 0; 0; 0; 0; 0; 0; 0; 0; 0) = | U178: =SUM(0; 0; 0; 0; 0; 0; 0; 0; 0; 0) = | V178: =SUM(0; 0; 0; 0; 0; 0; 0; 0; 0; 0) = | W178: =SUM(0; 0; 0; 0; 0; 0; 0; 0; 0; 0) = | X178: =SUM(0; 0; 0; 0; 0; 0; 0; 0; 0; 0) = | Y178: =SUM(0; 0; 0; 0; 0; 0; 0; 0; 0; 0) = | Z178: =SUM(0; 0; 0; 0; 0; 0; 0; 0; 0; 0) = | AA178: =SUM(0; 0; 0; 0; 0; 0; 0; 0; 0; 0) = | AB178: =SUM(0; 0; 0; 0; 0; 0; 0; 0; 0; 0) = | AC178: =SUM(0; 0; 0; 0; 0; 0; 0; 0; 0; 0) = | AD178: =SUM(0; 0; 0; 0; 0; 0; 0; 0; 0; 0) =
B179: 19 | F179: Skattefri engangsudbetalinger iflg. spec. | G179: =SUBSTITUTE(TRIM("=SUM("&G33&" * "&$D33&" "&G34&" * "&$D34&" "&G35&" "&MIN(G36,8000)&")")," ","; ")&" =" -> =SUM(; *; 2,23; *; 3,81; 8000) = | H179: =SUBSTITUTE(TRIM("=SUM("&H33&" * "&$D33&" "&H34&" * "&$D34&" "&H35&" "&MIN(H36,8000)&")")," ","; ")&" =" -> =SUM(; *; 2,23; *; 3,81; 8000) = | I179: =SUBSTITUTE(TRIM("=SUM("&I33&" * "&$D33&" "&I34&" * "&$D34&" "&I35&" "&MIN(I36,8000)&")")," ","; ")&" =" -> =SUM(; *; 2,23; *; 3,81; 8000) = | J179: =SUBSTITUTE(TRIM("=SUM("&J33&" * "&$D33&" "&J34&" * "&$D34&" "&J35&" "&MIN(J36,8000)&")")," ","; ")&" =" -> =SUM(; *; 2,23; *; 3,81; 8000) = | K179: =SUBSTITUTE(TRIM("=SUM("&K33&" * "&$D33&" "&K34&" * "&$D34&" "&K35&" "&MIN(K36,8000)&")")," ","; ")&" =" -> =SUM(; *; 2,23; *; 3,81; 8000) = | L179: =SUBSTITUTE(TRIM("=SUM("&L33&" * "&$E33&" "&L34&" * "&$E34&" "&L35&" "&MIN(L36,8000)&")")," ","; ")&" =" -> =SUM(; *; *; 8000) = | M179: =SUBSTITUTE(TRIM("=SUM("&M33&" * "&$E33&" "&M34&" * "&$E34&" "&M35&" "&MIN(M36,8000)&")")," ","; ")&" =" -> =SUM(; *; *; 8000) = | N179: =SUM(; *; *; 8000) = | O179: =SUM(; *; *; 8000) = | P179: =SUM(; *; *; 8000) = | Q179: =SUM(; *; *; 8000) = | R179: =SUM(; *; *; 8000) = | S179: =SUBSTITUTE(TRIM("=SUM("&S33&" * "&$D33&" "&S34&" * "&$D34&" "&S35&" "&MIN(S36,8000)&")")," ","; ")&" =" -> =SUM(0; *; 2,23; 0; *; 3,81; 0; 0) = | T179: =SUBSTITUTE(TRIM("=SUM("&T33&" * "&$D33&" "&T34&" * "&$D34&" "&T35&" "&MIN(T36,8000)&")")," ","; ")&" =" -> =SUM(0; *; 2,23; 0; *; 3,81; 0; 0) = | U179: =SUBSTITUTE(TRIM("=SUM("&U33&" * "&$D33&" "&U34&" * "&$D34&" "&U35&" "&MIN(U36,8000)&")")," ","; ")&" =" -> =SUM(0; *; 2,23; 0; *; 3,81; 0; 0) = | V179: =SUBSTITUTE(TRIM("=SUM("&V33&" * "&$D33&" "&V34&" * "&$D34&" "&V35&" "&MIN(V36,8000)&")")," ","; ")&" =" -> =SUM(0; *; 2,23; 0; *; 3,81; 0; 0) = | W179: =SUBSTITUTE(TRIM("=SUM("&W33&" * "&$D33&" "&W34&" * "&$D34&" "&W35&" "&MIN(W36,8000)&")")," ","; ")&" =" -> =SUM(0; *; 2,23; 0; *; 3,81; 0; 0) = | X179: =SUBSTITUTE(TRIM("=SUM("&X33&" * "&$E33&" "&X34&" * "&$E34&" "&X35&" "&MIN(X36,8000)&")")," ","; ")&" =" -> =SUM(0; *; 0; *; 0; 0) = | Y179: =SUBSTITUTE(TRIM("=SUM("&Y33&" * "&$E33&" "&Y34&" * "&$E34&" "&Y35&" "&MIN(Y36,8000)&")")," ","; ")&" =" -> =SUM(0; *; 0; *; 0; 0) = | Z179: =SUM(0; *; 0; *; 0; 0) = | AA179: =SUM(0; *; 0; *; 0; 0) = | AB179: =SUM(0; *; 0; *; 0; 0) = | AC179: =SUM(0; *; 0; *; 0; 0) = | AD179: =SUM(0; *; 0; *; 0; 0) =
B180: 20 | F180: Bruttoløn (ekskl. pensionstillæg og ATP)
B181: 21 | F181: Pensionstillæg skalatrinsløn eller HK-løn | G181: ="= "&ROUND(VLOOKUP(G13,Skalalontabel12,7,0)*G$10,0)&" / 12 * "&TEXT(G$12,"0,0000")&" * "&G5&"% / 3 =" -> 
B182: 22 | F182: Pensionstillæg overenskomsttillæg | G182: =IF($C52>0,"= "&G52&" * "&G$5&"% / 3 =") -> = 0 * % / 3 = | H182: =IF($C52>0,H52&" * "&H$5&"% / 3 =") -> 0 * 0% / 3 = | I182: 0 * 0% / 3 = | J182: 0 * 0% / 3 = | K182: 0 * 0% / 3 = | L182: 0 * 0% / 3 = | M182: 0 * 0% / 3 = | N182: 0 * 0% / 3 = | O182: 0 * 0% / 3 = | P182: 0 * 0% / 3 = | Q182: 0 * 0% / 3 = | R182: 0 * 0% / 3 = | S182: =IF($C52>0,"= "&S52&" * "&S$5&"% / 3 =") -> = 0 * 0% / 3 = | T182: =IF($C52>0,T52&" * "&T$5&"% / 3 =") -> 0 * 0% / 3 = | U182: 0 * 0% / 3 = | V182: 0 * 0% / 3 = | W182: 0 * 0% / 3 = | X182: 0 * 0% / 3 = | Y182: 0 * 0% / 3 = | Z182: 0 * 0% / 3 = | AA182: 0 * 0% / 3 = | AB182: 0 * 0% / 3 = | AC182: 0 * 0% / 3 = | AD182: 0 * 0% / 3 =
F183: Pensionstillæg Trepartsaftale | G183: = 0 * % / 3 = | H183: =IF($C53>0,"= "&H53&" * "&H$5&"% / 3 =") -> = 0 * 0% / 3 = | I183: = 0 * 0% / 3 = | J183: = 0 * 0% / 3 = | K183: = 0 * 0% / 3 = | L183: = 0 * 0% / 3 = | M183: = 0 * 0% / 3 = | N183: = 0 * 0% / 3 = | O183: = 0 * 0% / 3 = | P183: = 0 * 0% / 3 = | Q183: = 0 * 0% / 3 = | R183: = 0 * 0% / 3 =
B184: =B182+1 -> 23 | F184: Pensionstillæg souscheftillæg | G184: = 0 * % / 3 = | H184: =IF($C54>0,H54&" * "&H$5&"% / 3 =") -> 0 * 0% / 3 = | I184: 0 * 0% / 3 = | J184: 0 * 0% / 3 = | K184: 0 * 0% / 3 = | L184: 0 * 0% / 3 = | M184: 0 * 0% / 3 = | N184: 0 * 0% / 3 = | O184: 0 * 0% / 3 = | P184: 0 * 0% / 3 = | Q184: 0 * 0% / 3 = | R184: 0 * 0% / 3 = | S184: =IF($C54>0,"= "&S54&" * "&S$5&"% / 3 =") -> = 0 * 0% / 3 = | T184: =IF($C54>0,T54&" * "&T$5&"% / 3 =") -> 0 * 0% / 3 = | U184: 0 * 0% / 3 = | V184: 0 * 0% / 3 = | W184: 0 * 0% / 3 = | X184: 0 * 0% / 3 = | Y184: 0 * 0% / 3 = | Z184: 0 * 0% / 3 = | AA184: 0 * 0% / 3 = | AB184: 0 * 0% / 3 = | AC184: 0 * 0% / 3 = | AD184: 0 * 0% / 3 =
B185: 24 | F185: Pensionstillæg Funktionstillæg 1 | G185: = 0 * % / 3 = | H185: =IF($C55>0,H55&" * "&H$5&"% / 3 =") -> 0 * 0% / 3 = | I185: 0 * 0% / 3 = | J185: 0 * 0% / 3 = | K185: 0 * 0% / 3 = | L185: 0 * 0% / 3 = | M185: 0 * 0% / 3 = | N185: 0 * 0% / 3 = | O185: 0 * 0% / 3 = | P185: 0 * 0% / 3 = | Q185: 0 * 0% / 3 = | R185: 0 * 0% / 3 = | S185: = 0 * 0% / 3 = | T185: =IF($C55>0,T55&" * "&T$5&"% / 3 =") -> 0 * 0% / 3 = | U185: 0 * 0% / 3 = | V185: 0 * 0% / 3 = | W185: 0 * 0% / 3 = | X185: 0 * 0% / 3 = | Y185: 0 * 0% / 3 = | Z185: 0 * 0% / 3 = | AA185: 0 * 0% / 3 = | AB185: 0 * 0% / 3 = | AC185: 0 * 0% / 3 = | AD185: 0 * 0% / 3 =
B186: 25 | F186: Pensionstillæg Funktionstillæg 2 | G186: = 0 * % / 3 = | H186: =IF($C56>0,H56&" * "&H$5&"% / 3 =") -> 0 * 0% / 3 = | I186: 0 * 0% / 3 = | J186: 0 * 0% / 3 = | K186: 0 * 0% / 3 = | L186: 0 * 0% / 3 = | M186: 0 * 0% / 3 = | N186: 0 * 0% / 3 = | O186: 0 * 0% / 3 = | P186: 0 * 0% / 3 = | Q186: 0 * 0% / 3 = | R186: 0 * 0% / 3 = | S186: = 0 * 0% / 3 = | T186: =IF($C56>0,T56&" * "&T$5&"% / 3 =") -> 0 * 0% / 3 = | U186: 0 * 0% / 3 = | V186: 0 * 0% / 3 = | W186: 0 * 0% / 3 = | X186: 0 * 0% / 3 = | Y186: 0 * 0% / 3 = | Z186: 0 * 0% / 3 = | AA186: 0 * 0% / 3 = | AB186: 0 * 0% / 3 = | AC186: 0 * 0% / 3 = | AD186: 0 * 0% / 3 =
B187: 26 | F187: Pensionstillæg Funktionstillæg 3 | G187: = 0 * % / 3 = | H187: =IF($C57>0,H57&" * "&H$5&"% / 3 =") -> 0 * 0% / 3 = | I187: 0 * 0% / 3 = | J187: 0 * 0% / 3 = | K187: 0 * 0% / 3 = | L187: 0 * 0% / 3 = | M187: 0 * 0% / 3 = | N187: 0 * 0% / 3 = | O187: 0 * 0% / 3 = | P187: 0 * 0% / 3 = | Q187: 0 * 0% / 3 = | R187: 0 * 0% / 3 = | S187: = 0 * 0% / 3 = | T187: =IF($C57>0,T57&" * "&T$5&"% / 3 =") -> 0 * 0% / 3 = | U187: 0 * 0% / 3 = | V187: 0 * 0% / 3 = | W187: 0 * 0% / 3 = | X187: 0 * 0% / 3 = | Y187: 0 * 0% / 3 = | Z187: 0 * 0% / 3 = | AA187: 0 * 0% / 3 = | AB187: 0 * 0% / 3 = | AC187: 0 * 0% / 3 = | AD187: 0 * 0% / 3 =
B188: 27 | F188: Pensionstillæg Kvalifikationstillæg 1 | G188: = 0 * % / 3 = | H188: =IF($C58>0,H58&" * "&H$5&"% / 3 =") -> 0 * 0% / 3 = | I188: 0 * 0% / 3 = | J188: 0 * 0% / 3 = | K188: 0 * 0% / 3 = | L188: 0 * 0% / 3 = | M188: 0 * 0% / 3 = | N188: 0 * 0% / 3 = | O188: 0 * 0% / 3 = | P188: 0 * 0% / 3 = | Q188: 0 * 0% / 3 = | R188: 0 * 0% / 3 = | S188: = 0 * 0% / 3 = | T188: =IF($C58>0,T58&" * "&T$5&"% / 3 =") -> 0 * 0% / 3 = | U188: 0 * 0% / 3 = | V188: 0 * 0% / 3 = | W188: 0 * 0% / 3 = | X188: 0 * 0% / 3 = | Y188: 0 * 0% / 3 = | Z188: 0 * 0% / 3 = | AA188: 0 * 0% / 3 = | AB188: 0 * 0% / 3 = | AC188: 0 * 0% / 3 = | AD188: 0 * 0% / 3 =
B189: 28 | F189: Pensionstillæg Kvalifikationstillæg 2 | G189: = 0 * % / 3 = | H189: =IF($C59>0,H59&" * "&H$5&"% / 3 =") -> 0 * 0% / 3 = | I189: 0 * 0% / 3 = | J189: 0 * 0% / 3 = | K189: 0 * 0% / 3 = | L189: 0 * 0% / 3 = | M189: 0 * 0% / 3 = | N189: 0 * 0% / 3 = | O189: 0 * 0% / 3 = | P189: 0 * 0% / 3 = | Q189: 0 * 0% / 3 = | R189: 0 * 0% / 3 = | S189: = 0 * 0% / 3 = | T189: =IF($C59>0,T59&" * "&T$5&"% / 3 =") -> 0 * 0% / 3 = | U189: 0 * 0% / 3 = | V189: 0 * 0% / 3 = | W189: 0 * 0% / 3 = | X189: 0 * 0% / 3 = | Y189: 0 * 0% / 3 = | Z189: 0 * 0% / 3 = | AA189: 0 * 0% / 3 = | AB189: 0 * 0% / 3 = | AC189: 0 * 0% / 3 = | AD189: 0 * 0% / 3 =
B190: 29 | F190: Pensionstillæg Kvalifikationstillæg 3 | G190: = 0 * % / 3 = | H190: =IF($C60>0,H60&" * "&H$5&"% / 3 =") -> 0 * 0% / 3 = | I190: 0 * 0% / 3 = | J190: 0 * 0% / 3 = | K190: 0 * 0% / 3 = | L190: 0 * 0% / 3 = | M190: 0 * 0% / 3 = | N190: 0 * 0% / 3 = | O190: 0 * 0% / 3 = | P190: 0 * 0% / 3 = | Q190: 0 * 0% / 3 = | R190: 0 * 0% / 3 = | S190: = 0 * 0% / 3 = | T190: =IF($C60>0,T60&" * "&T$5&"% / 3 =") -> 0 * 0% / 3 = | U190: 0 * 0% / 3 = | V190: 0 * 0% / 3 = | W190: 0 * 0% / 3 = | X190: 0 * 0% / 3 = | Y190: 0 * 0% / 3 = | Z190: 0 * 0% / 3 = | AA190: 0 * 0% / 3 = | AB190: 0 * 0% / 3 = | AC190: 0 * 0% / 3 = | AD190: 0 * 0% / 3 =
B191: 30 | F191: Pensionstillæg af udligningstillæg | G191: = 0 * % / 3 = | H191: =IF($C61>0,H61&" * "&H$5&"% / 3 =") -> 0 * 0% / 3 = | I191: 0 * 0% / 3 = | J191: 0 * 0% / 3 = | K191: 0 * 0% / 3 = | L191: 0 * 0% / 3 = | M191: 0 * 0% / 3 = | N191: 0 * 0% / 3 = | O191: 0 * 0% / 3 = | P191: 0 * 0% / 3 = | Q191: 0 * 0% / 3 = | R191: 0 * 0% / 3 = | S191: = 0 * 0% / 3 = | T191: =IF($C61>0,T61&" * "&T$5&"% / 3 =") -> 0 * 0% / 3 = | U191: 0 * 0% / 3 = | V191: 0 * 0% / 3 = | W191: 0 * 0% / 3 = | X191: 0 * 0% / 3 = | Y191: 0 * 0% / 3 = | Z191: 0 * 0% / 3 = | AA191: 0 * 0% / 3 = | AB191: 0 * 0% / 3 = | AC191: 0 * 0% / 3 = | AD191: 0 * 0% / 3 =
B192: 31 | F192: Fradrag i pensionstillæg for ikke optjent ferie mv. | G192: ="= "&G65&" * "&G$5&"% / 3 =" -> = 0 * % / 3 = | H192: = 0 * 0% / 3 = | I192: = 0 * 0% / 3 = | J192: = 0 * 0% / 3 = | K192: = 0 * 0% / 3 = | L192: = 0 * 0% / 3 = | M192: = 0 * 0% / 3 = | N192: = 0 * 0% / 3 = | O192: = 0 * 0% / 3 = | P192: = 0 * 0% / 3 = | Q192: = 0 * 0% / 3 = | R192: = 0 * 0% / 3 = | S192: ="= "&S65&" * "&S$5&"% / 3 =" -> = 0 * 0% / 3 = | T192: = 0 * 0% / 3 = | U192: = 0 * 0% / 3 = | V192: = 0 * 0% / 3 = | W192: = 0 * 0% / 3 = | X192: = 0 * 0% / 3 = | Y192: = 0 * 0% / 3 = | Z192: = 0 * 0% / 3 = | AA192: = 0 * 0% / 3 = | AB192: = 0 * 0% / 3 = | AC192: = 0 * 0% / 3 = | AD192: = 0 * 0% / 3 =
B193: 32 | F193: Pensionstillæg af feriedifference | G193: ="= "&G66&" * "&G$5&"% / 3 =" -> = 0 * % / 3 = | H193: = 0 * 0% / 3 = | I193: = 0 * 0% / 3 = | J193: = 0 * 0% / 3 = | K193: = 0 * 0% / 3 = | L193: = 0 * 0% / 3 = | M193: = 0 * 0% / 3 = | N193: = 0 * 0% / 3 = | O193: = 0 * 0% / 3 = | P193: = 0 * 0% / 3 = | Q193: = 0 * 0% / 3 = | R193: = 0 * 0% / 3 = | S193: ="= "&S66&" * "&S$5&"% / 3 =" -> = 0 * 0% / 3 = | T193: = 0 * 0% / 3 = | U193: = 0 * 0% / 3 = | V193: = 0 * 0% / 3 = | W193: = 0 * 0% / 3 = | X193: = 0 * 0% / 3 = | Y193: = 0 * 0% / 3 = | Z193: = 0 * 0% / 3 = | AA193: = 0 * 0% / 3 = | AB193: = 0 * 0% / 3 = | AC193: = 0 * 0% / 3 = | AD193: = 0 * 0% / 3 =
B194: 33 | F194: Pensionstillæg af pensiong. engangstillæg | G194: =SUBSTITUTE(TRIM("=SUM("&IF($G38>0,G38&" ","")&IF($C42<>"",G42&" ","")&IF($C43<>"",G43&" ","")&IF($C44<>"",G44&" ","")&IF($C45<>"",G45&" ","")&IF($C46<>"",G46,"")&")")," ","; ")&" * "&G5&"% / 3 =" -> =SUM(; ) * % / 3 = | H194: =SUM(; ) * 0% / 3 = | I194: =SUM(; ) * 0% / 3 = | J194: =SUM(; ) * 0% / 3 = | K194: =SUM(; ) * 0% / 3 = | L194: =SUM(; ) * 0% / 3 = | M194: =SUM(; ) * 0% / 3 = | N194: =SUM(; ) * 0% / 3 = | O194: =SUM(; ) * 0% / 3 = | P194: =SUM(; ) * 0% / 3 = | Q194: =SUM(; ) * 0% / 3 = | R194: =SUM(; ) * 0% / 3 = | S194: =SUM(0; 0; 0; ) * 0% / 3 = | T194: =SUM(0; 0; 0; ) * 0% / 3 = | U194: =SUM(0; 0; 0; ) * 0% / 3 = | V194: =SUM(0; 0; 0; ) * 0% / 3 = | W194: =SUM(0; 0; 0; ) * 0% / 3 = | X194: =SUM(0; 0; 0; ) * 0% / 3 = | Y194: =SUM(0; 0; 0; ) * 0% / 3 = | Z194: =SUM(0; 0; 0; ) * 0% / 3 = | AA194: =SUM(0; 0; 0; ) * 0% / 3 = | AB194: =SUM(0; 0; 0; ) * 0% / 3 = | AC194: =SUM(0; 0; 0; ) * 0% / 3 = | AD194: =SUM(0; 0; 0; ) * 0% / 3 =
B195: 34 | F195: Ekstra pension ved orlov uden løn | G195: Ekstra pension ved orlov uden løn | H195: Ekstra pension ved orlov uden løn | I195: Ekstra pension ved orlov uden løn | J195: Ekstra pension ved orlov uden løn | K195: Ekstra pension ved orlov uden løn | L195: Ekstra pension ved orlov uden løn | M195: Ekstra pension ved orlov uden løn | N195: Ekstra pension ved orlov uden løn | O195: Ekstra pension ved orlov uden løn | P195: Ekstra pension ved orlov uden løn | Q195: Ekstra pension ved orlov uden løn | R195: Ekstra pension ved orlov uden løn
B196: 35 | F196: Pensionstillæg i alt
B197: 36 | F197: Egetbidrag til ATP
B198: 37 | F198: AMB-grundlag | G198: ="= SUM(Lin. 1 - Lin. 18) + SUM(Lin 22 - Lin23) - "&G92&" =" -> = SUM(Lin. 1 - Lin. 18) + SUM(Lin 22 - Lin23) - 0 = | H198: ="= SUM(Lin. 1 - Lin. 18) + SUM(Lin 22 - Lin23) - "&H92&" =" -> = SUM(Lin. 1 - Lin. 18) + SUM(Lin 22 - Lin23) - 0 = | I198: = SUM(Lin. 1 - Lin. 18) + SUM(Lin 22 - Lin23) - 0 = | J198: = SUM(Lin. 1 - Lin. 18) + SUM(Lin 22 - Lin23) - 0 = | K198: = SUM(Lin. 1 - Lin. 18) + SUM(Lin 22 - Lin23) - 0 = | L198: = SUM(Lin. 1 - Lin. 18) + SUM(Lin 22 - Lin23) - 0 = | M198: = SUM(Lin. 1 - Lin. 18) + SUM(Lin 22 - Lin23) - 0 = | N198: = SUM(Lin. 1 - Lin. 18) + SUM(Lin 22 - Lin23) - 0 = | O198: = SUM(Lin. 1 - Lin. 18) + SUM(Lin 22 - Lin23) - 0 = | P198: = SUM(Lin. 1 - Lin. 18) + SUM(Lin 22 - Lin23) - 0 = | Q198: = SUM(Lin. 1 - Lin. 18) + SUM(Lin 22 - Lin23) - 0 = | R198: = SUM(Lin. 1 - Lin. 18) + SUM(Lin 22 - Lin23) - 0 = | S198: ="= SUM(Lin. 1 - Lin. 14) + SUM(Lin 19 - Lin28) - "&S92&" =" -> = SUM(Lin. 1 - Lin. 14) + SUM(Lin 19 - Lin28) - 0 = | T198: ="= SUM(Lin. 1 - Lin. 14) + SUM(Lin 19 - Lin28) - "&T92&" =" -> = SUM(Lin. 1 - Lin. 14) + SUM(Lin 19 - Lin28) - 0 = | U198: = SUM(Lin. 1 - Lin. 14) + SUM(Lin 19 - Lin28) - 0 = | V198: = SUM(Lin. 1 - Lin. 14) + SUM(Lin 19 - Lin28) - 0 = | W198: = SUM(Lin. 1 - Lin. 14) + SUM(Lin 19 - Lin28) - 0 = | X198: = SUM(Lin. 1 - Lin. 14) + SUM(Lin 19 - Lin28) - 0 = | Y198: = SUM(Lin. 1 - Lin. 14) + SUM(Lin 19 - Lin28) - 0 = | Z198: = SUM(Lin. 1 - Lin. 14) + SUM(Lin 19 - Lin28) - 0 = | AA198: = SUM(Lin. 1 - Lin. 14) + SUM(Lin 19 - Lin28) - 0 = | AB198: = SUM(Lin. 1 - Lin. 14) + SUM(Lin 19 - Lin28) - 0 = | AC198: = SUM(Lin. 1 - Lin. 14) + SUM(Lin 19 - Lin28) - 0 = | AD198: = SUM(Lin. 1 - Lin. 14) + SUM(Lin 19 - Lin28) - 0 =
B199: 38 | F199: AM-bidrag | G199: ="= "&G93&" * 8% (afrundet) =" -> = 0 * 8% (afrundet) = | H199: ="= "&H93&" * 8% (afrundet) =" -> = 0 * 8% (afrundet) = | I199: = 0 * 8% (afrundet) = | J199: = 0 * 8% (afrundet) = | K199: = 0 * 8% (afrundet) = | L199: = 0 * 8% (afrundet) = | M199: = 0 * 8% (afrundet) = | N199: = 0 * 8% (afrundet) = | O199: = 0 * 8% (afrundet) = | P199: = 0 * 8% (afrundet) = | Q199: = 0 * 8% (afrundet) = | R199: = 0 * 8% (afrundet) = | S199: ="= "&S93&" * 8% (afrundet) =" -> = 0 * 8% (afrundet) = | T199: ="= "&T93&" * 8% (afrundet) =" -> = 0 * 8% (afrundet) = | U199: = 0 * 8% (afrundet) = | V199: = 0 * 8% (afrundet) = | W199: = 0 * 8% (afrundet) = | X199: = 0 * 8% (afrundet) = | Y199: = 0 * 8% (afrundet) = | Z199: = 0 * 8% (afrundet) = | AA199: = 0 * 8% (afrundet) = | AB199: = 0 * 8% (afrundet) = | AC199: = 0 * 8% (afrundet) = | AD199: = 0 * 8% (afrundet) =
B200: 39 | F200: A-indkomst | G200: ="= "&G93&" - "&G94&" =" -> = 0 - 0 = | H200: ="= "&H93&" - "&H94&" =" -> = 0 - 0 = | I200: = 0 - 0 = | J200: = 0 - 0 = | K200: = 0 - 0 = | L200: = 0 - 0 = | M200: = 0 - 0 = | N200: = 0 - 0 = | O200: = 0 - 0 = | P200: = 0 - 0 = | Q200: = 0 - 0 = | R200: = 0 - 0 = | S200: ="= "&S93&" - "&S94&" =" -> = 0 - 0 = | T200: ="= "&T93&" - "&T94&" =" -> = 0 - 0 = | U200: = 0 - 0 = | V200: = 0 - 0 = | W200: = 0 - 0 = | X200: = 0 - 0 = | Y200: = 0 - 0 = | Z200: = 0 - 0 = | AA200: = 0 - 0 = | AB200: = 0 - 0 = | AC200: = 0 - 0 = | AD200: = 0 - 0 =
B201: 40 | F201: Skattegrundlag
B202: 41 | F202: Skat | G202: ="= ("&G95&" - "&G32&") (afrundet) * "&G31&" / 100 =" -> = (0 - ) (afrundet) * / 100 = | H202: ="= ("&H95&" - "&H32&") (afrundet) * "&H31&" / 100 =" -> = (0 - 0) (afrundet) * 0 / 100 = | I202: = (0 - 0) (afrundet) * 0 / 100 = | J202: = (0 - 0) (afrundet) * 0 / 100 = | K202: = (0 - 0) (afrundet) * 0 / 100 = | L202: = (0 - 0) (afrundet) * 0 / 100 = | M202: = (0 - 0) (afrundet) * 0 / 100 = | N202: = (0 - 0) (afrundet) * 0 / 100 = | O202: = (0 - 0) (afrundet) * 0 / 100 = | P202: = (0 - 0) (afrundet) * 0 / 100 = | Q202: = (0 - 0) (afrundet) * 0 / 100 = | R202: = (0 - 0) (afrundet) * 0 / 100 = | S202: ="= ("&S95&" - "&S32&") (afrundet) * "&S31&" / 100 =" -> = (0 - 0) (afrundet) * 0 / 100 = | T202: ="= ("&T95&" - "&T32&") (afrundet) * "&T31&" / 100 =" -> = (0 - 0) (afrundet) * 0 / 100 = | U202: = (0 - 0) (afrundet) * 0 / 100 = | V202: = (0 - 0) (afrundet) * 0 / 100 = | W202: = (0 - 0) (afrundet) * 0 / 100 = | X202: = (0 - 0) (afrundet) * 0 / 100 = | Y202: = (0 - 0) (afrundet) * 0 / 100 = | Z202: = (0 - 0) (afrundet) * 0 / 100 = | AA202: = (0 - 0) (afrundet) * 0 / 100 = | AB202: = (0 - 0) (afrundet) * 0 / 100 = | AC202: = (0 - 0) (afrundet) * 0 / 100 = | AD202: = (0 - 0) (afrundet) * 0 / 100 =
B203: 42 | F203: Feriegodtgørelsesgrundlag
B204: 43 | F204: ="Feriegodtgørelsesgrundlag, jan-juli "&Aar+1 -> Feriegodtgørelsesgrundlag, jan-juli 1
B205: 44 | F205: Egetbidrag til pensionskasse | G205: ="= Lin. 43 =" -> = Lin. 43 = | H205: ="= Lin. 43 =" -> = Lin. 43 = | I205: = Lin. 43 = | J205: = Lin. 43 = | K205: = Lin. 43 = | L205: = Lin. 43 = | M205: = Lin. 43 = | N205: = Lin. 43 = | O205: = Lin. 43 = | P205: = Lin. 43 = | Q205: = Lin. 43 = | R205: = Lin. 43 = | S205: ="= Lin. 43 =" -> = Lin. 43 = | T205: = Lin. 43 = | U205: = Lin. 43 = | V205: = Lin. 43 = | W205: = Lin. 43 = | X205: = Lin. 43 = | Y205: = Lin. 43 = | Z205: = Lin. 43 = | AA205: = Lin. 43 = | AB205: = Lin. 43 = | AC205: = Lin. 43 = | AD205: = Lin. 43 =
B206: 45 | F206: Arbejdsgiverbidrag til pensionskasse | G206: ="= Lin. 43 * 2 =" -> = Lin. 43 * 2 = | H206: ="= Lin. 43 * 2 =" -> = Lin. 43 * 2 = | I206: = Lin. 43 * 2 = | J206: = Lin. 43 * 2 = | K206: = Lin. 43 * 2 = | L206: = Lin. 43 * 2 = | M206: = Lin. 43 * 2 = | N206: = Lin. 43 * 2 = | O206: = Lin. 43 * 2 = | P206: = Lin. 43 * 2 = | Q206: = Lin. 43 * 2 = | R206: = Lin. 43 * 2 = | S206: ="= Lin. 43 * 2 =" -> = Lin. 43 * 2 = | T206: = Lin. 43 * 2 = | U206: = Lin. 43 * 2 = | V206: = Lin. 43 * 2 = | W206: = Lin. 43 * 2 = | X206: = Lin. 43 * 2 = | Y206: = Lin. 43 * 2 = | Z206: = Lin. 43 * 2 = | AA206: = Lin. 43 * 2 = | AB206: = Lin. 43 * 2 = | AC206: = Lin. 43 * 2 = | AD206: = Lin. 43 * 2 =
B207: 46 | F207: Arbejdsgiverbidrag til ATP | G207: ="= Lin. 44 * 2 =" -> = Lin. 44 * 2 = | H207: ="= Lin. 44 * 2 =" -> = Lin. 44 * 2 = | I207: = Lin. 44 * 2 = | J207: = Lin. 44 * 2 = | K207: = Lin. 44 * 2 = | L207: = Lin. 44 * 2 = | M207: = Lin. 44 * 2 = | N207: = Lin. 44 * 2 = | O207: = Lin. 44 * 2 = | P207: = Lin. 44 * 2 = | Q207: = Lin. 44 * 2 = | R207: = Lin. 44 * 2 = | S207: ="= Lin. 44 * 2 =" -> = Lin. 44 * 2 = | T207: = Lin. 44 * 2 = | U207: = Lin. 44 * 2 = | V207: = Lin. 44 * 2 = | W207: = Lin. 44 * 2 = | X207: = Lin. 44 * 2 = | Y207: = Lin. 44 * 2 = | Z207: = Lin. 44 * 2 = | AA207: = Lin. 44 * 2 = | AB207: = Lin. 44 * 2 = | AC207: = Lin. 44 * 2 = | AD207: = Lin. 44 * 2 =
B208: 47 | F208: Skolens samlede indbetaling til pensionskasse | G208: ="= Lin. 51 + Lin. 52 =" -> = Lin. 51 + Lin. 52 = | H208: ="= Lin. 51 + Lin. 52 =" -> = Lin. 51 + Lin. 52 = | I208: = Lin. 51 + Lin. 52 = | J208: = Lin. 51 + Lin. 52 = | K208: = Lin. 51 + Lin. 52 = | L208: = Lin. 51 + Lin. 52 = | M208: = Lin. 51 + Lin. 52 = | N208: = Lin. 51 + Lin. 52 = | O208: = Lin. 51 + Lin. 52 = | P208: = Lin. 51 + Lin. 52 = | Q208: = Lin. 51 + Lin. 52 = | R208: = Lin. 51 + Lin. 52 = | S208: ="= Lin. 51 + Lin. 52 =" -> = Lin. 51 + Lin. 52 = | T208: = Lin. 51 + Lin. 52 = | U208: = Lin. 51 + Lin. 52 = | V208: = Lin. 51 + Lin. 52 = | W208: = Lin. 51 + Lin. 52 = | X208: = Lin. 51 + Lin. 52 = | Y208: = Lin. 51 + Lin. 52 = | Z208: = Lin. 51 + Lin. 52 = | AA208: = Lin. 51 + Lin. 52 = | AB208: = Lin. 51 + Lin. 52 = | AC208: = Lin. 51 + Lin. 52 = | AD208: = Lin. 51 + Lin. 52 =
B209: 48 | F209: Skolens samlede indbetaling til ATP | G209: ="= Lin. 44 + Lin. 53 =" -> = Lin. 44 + Lin. 53 = | H209: ="= Lin. 44 + Lin. 53 =" -> = Lin. 44 + Lin. 53 = | I209: = Lin. 44 + Lin. 53 = | J209: = Lin. 44 + Lin. 53 = | K209: = Lin. 44 + Lin. 53 = | L209: = Lin. 44 + Lin. 53 = | M209: = Lin. 44 + Lin. 53 = | N209: = Lin. 44 + Lin. 53 = | O209: = Lin. 44 + Lin. 53 = | P209: = Lin. 44 + Lin. 53 = | Q209: = Lin. 44 + Lin. 53 = | R209: = Lin. 44 + Lin. 53 = | S209: ="= Lin. 44 + Lin. 53 =" -> = Lin. 44 + Lin. 53 = | T209: = Lin. 44 + Lin. 53 = | U209: = Lin. 44 + Lin. 53 = | V209: = Lin. 44 + Lin. 53 = | W209: = Lin. 44 + Lin. 53 = | X209: = Lin. 44 + Lin. 53 = | Y209: = Lin. 44 + Lin. 53 = | Z209: = Lin. 44 + Lin. 53 = | AA209: = Lin. 44 + Lin. 53 = | AB209: = Lin. 44 + Lin. 53 = | AC209: = Lin. 44 + Lin. 53 = | AD209: = Lin. 44 + Lin. 53 =
B210: 49 | F210: Indbetaling til Gruppeliv
B211: 50 | F211: Løn til den ansattes disposition | G211: ="= "&G74&" - ( "&G97&" + "&G92&" + "&G94&" + "&G105&") - SUM(lin 57 : 59) =" -> = 0 - ( 0 + 0 + 0 + 0) - SUM(lin 57 : 59) = | H211: ="= "&H74&" - ( "&H97&" + "&H92&" + "&H94&" + "&H105&") - SUM(lin 57 : 59) =" -> = 0 - ( 0 + 0 + 0 + 0) - SUM(lin 57 : 59) = | I211: = 0 - ( 0 + 0 + 0 + 0) - SUM(lin 57 : 59) = | J211: = 0 - ( 0 + 0 + 0 + 0) - SUM(lin 57 : 59) = | K211: = 0 - ( 0 + 0 + 0 + 0) - SUM(lin 57 : 59) = | L211: = 0 - ( 0 + 0 + 0 + 0) - SUM(lin 57 : 59) = | M211: = 0 - ( 0 + 0 + 0 + 0) - SUM(lin 57 : 59) = | N211: = 0 - ( 0 + 0 + 0 + 0) - SUM(lin 57 : 59) = | O211: = 0 - ( 0 + 0 + 0 + 0) - SUM(lin 57 : 59) = | P211: = 0 - ( 0 + 0 + 0 + 0) - SUM(lin 57 : 59) = | Q211: = 0 - ( 0 + 0 + 0 + 0) - SUM(lin 57 : 59) = | R211: = 0 - ( 0 + 0 + 0 + 0) - SUM(lin 57 : 59) = | S211: ="= "&S74&" - ( "&S97&" + "&S92&" + "&S94&" + "&S105&") - SUM(lin 57 : 59) =" -> = 0 - ( 0 + 0 + 0 + 0) - SUM(lin 57 : 59) = | T211: ="= "&T74&" - ( "&T97&" + "&T92&" + "&T94&" + "&T105&") - SUM(lin 57 : 59) =" -> = 0 - ( 0 + 0 + 0 + 0) - SUM(lin 57 : 59) = | U211: = 0 - ( 0 + 0 + 0 + 0) - SUM(lin 57 : 59) = | V211: = 0 - ( 0 + 0 + 0 + 0) - SUM(lin 57 : 59) = | W211: = 0 - ( 0 + 0 + 0 + 0) - SUM(lin 57 : 59) = | X211: = 0 - ( 0 + 0 + 0 + 0) - SUM(lin 57 : 59) = | Y211: = 0 - ( 0 + 0 + 0 + 0) - SUM(lin 57 : 59) = | Z211: = 0 - ( 0 + 0 + 0 + 0) - SUM(lin 57 : 59) = | AA211: = 0 - ( 0 + 0 + 0 + 0) - SUM(lin 57 : 59) = | AB211: = 0 - ( 0 + 0 + 0 + 0) - SUM(lin 57 : 59) = | AC211: = 0 - ( 0 + 0 + 0 + 0) - SUM(lin 57 : 59) = | AD211: = 0 - ( 0 + 0 + 0 + 0) - SUM(lin 57 : 59) =
B212: 51 | F212: ="Feriepengeberegningsgrundlag, jan-dec "&Aar -> Feriepengeberegningsgrundlag, jan-dec
F213: ="Feriepengeberegningsgrundlag, jan-jul "&Aar+1 -> Feriepengeberegningsgrundlag, jan-jul 1

Sheet R
A1: 2024-2025 | B1: 1 | C1: Pensionsg. | D1: BG-afh. | E1: Regu-leret | F1: Lønberegning for: (navn eller initialer) - variable løndele i lin. 30-43. | G1: R | H1: =G1 -> R | I1: =H1 -> R | J1: R | K1: R | L1: R | M1: R | N1: R | O1: R | P1: R | Q1: R | R1: R | S1: Q | T1: =S1 -> Q | U1: =T1 -> Q | V1: Q | W1: Q | X1: Q | Y1: Q | Z1: Q | AA1: Q | AB1: Q | AC1: Q | AD1: Q | AE1: Udfyld gule felter (alle forudfyldte tal i gule felter er eksempler)
B2: =B1+1 -> 2 | F2: Stillingsbetegnelse | G2: Stilling | H2: =G2 -> Stilling | I2: Stilling | J2: Stilling | K2: Stilling | L2: Stilling | M2: Stilling | N2: Stilling | O2: Stilling | P2: Stilling | Q2: Stilling | R2: Stilling | S2: Stilling | T2: =S2 -> Stilling | U2: Stilling | V2: Stilling | W2: Stilling | X2: Stilling | Y2: Stilling | Z2: Stilling | AA2: Stilling | AB2: Stilling | AC2: Stilling | AD2: Stilling
B3: =B2+1 -> 3 | F3: Måned | G3: ="AUG "&RIGHT(A1,2)+0 -> AUG 25 | H3: ="SEP "&RIGHT(A1,2)+0 -> SEP 25 | I3: ="OKT "&RIGHT(A1,2)+0 -> OKT 25 | J3: ="NOV "&RIGHT(A1,2)+0 -> NOV 25 | K3: ="DEC "&RIGHT(A1,2)+0 -> DEC 25 | L3: ="JAN "&RIGHT(A1,2)+1 -> JAN 26 | M3: ="FEB "&RIGHT(A1,2)+1 -> FEB 26 | N3: ="MAR "&RIGHT(A1,2)+1 -> MAR 26 | O3: ="APR "&RIGHT(A1,2)+1 -> APR 26 | P3: ="MAJ "&RIGHT(A1,2)+1 -> MAJ 26 | Q3: ="JUN "&RIGHT(A1,2)+1 -> JUN 26 | R3: ="JUL "&RIGHT(A1,2)+1 -> JUL 26 | S3: =G3 -> AUG 25 | T3: =H3 -> SEP 25 | U3: OKT 25 | V3: NOV 25 | W3: DEC 25 | X3: JAN 26 | Y3: FEB 26 | Z3: MAR 26 | AA3: APR 26 | AB3: MAJ 26 | AC3: JUN 26 | AD3: JUL 26 | AE3: ansat d.
B4: =B3+1 -> 4 | C4: sæt 'x' | D4: sæt 'x' | E4: sæt 'x' | F4: Del af måned antal kalenderdage/månedens kalenderdage | G4: 1 | H4: =G4 -> 1 | I4: =H4 -> 1 | J4: 1 | K4: 1 | L4: 1 | M4: 1 | N4: 1 | O4: 1 | P4: 1 | Q4: 1 | R4: 1 | S4: =G4 -> 1 | T4: 1 | U4: 1 | V4: 1 | W4: 1 | X4: 1 | Y4: 1 | Z4: 1 | AA4: 1 | AB4: 1 | AC4: 1 | AD4: 1 | AE4: Hvis ansat 10 oktober: 21/31 Hvis fratrådt 15. april: 15/30 | AF4: 2
B5: =B4+1 -> 5 | F5: Pensionsprocent | H5: =$G5 -> 0 | I5: 0 | J5: 0 | K5: 0 | L5: 0 | M5: 0 | N5: 0 | O5: 0 | P5: 0 | Q5: 0 | R5: 0 | S5: =G5 -> 0 | T5: 0 | U5: 0 | V5: 0 | W5: 0 | X5: 0 | Y5: 0 | Z5: 0 | AA5: 0 | AB5: 0 | AC5: 0 | AD5: 0 | AE5: Skriv ikke procenttegnet, fx 14,7% - skriv 14,70 | AF5: 3
B6: =B5+1 -> 6 | F6: Betales hele pensionen af skolen? JA/NEJ | G6: Ja | H6: =G6 -> Ja | I6: =H6 -> Ja | J6: Ja | K6: Ja | L6: Ja | M6: Ja | N6: Ja | O6: Ja | P6: Ja | Q6: Ja | R6: Ja | S6: =G6 -> Ja | T6: Ja | U6: Ja | V6: Ja | W6: Ja | X6: Ja | Y6: Ja | Z6: Ja | AA6: Ja | AB6: Ja | AC6: Ja | AD6: Ja | AE6: Se ansættelsesbrev | AF6: 4
B7: 7 | F7: Har den ansatte orlov uden løn men med pension? | G7: Nej | H7: =G7 -> Nej | I7: Nej | J7: Nej | K7: Nej | L7: Nej | M7: Nej | N7: Nej | O7: Nej | P7: Nej | Q7: Nej | R7: Nej
B8: =B7+1 -> 8 | F8: Har den ansatte ret til seniorbonus. BEMÆRK DET KUN GÆLDER HK-PRIVAT OG 3F. (IKKE BUPL-FOA). | G8: Nej | H8: =G8 -> Nej | I8: Nej | J8: Nej | K8: Nej | L8: Nej | M8: Nej | N8: Nej | O8: Nej | P8: Nej | Q8: Nej | R8: Nej
B9: =B8+1 -> 9 | F9: Beregnes feriedifferende mv. efter Ferieaftalen i staten JA, eller efter Ferieloven NEJ | G9: JA | H9: =G9 -> JA | I9: JA | J9: JA | K9: JA | L9: JA | M9: JA | N9: JA | O9: JA | P9: JA | Q9: JA | R9: JA | S9: =G9 -> JA | T9: =H9 -> JA | U9: JA | V9: JA | W9: JA | X9: JA | Y9: JA | Z9: JA | AA9: JA | AB9: JA | AC9: JA | AD9: JA | AE9: Ferieloven: mindst 20% differende, Ferieaftalen: enhver differende | AF9: 5
B10: 10 | F10: Procentregulering | G10: 1.233095 | H10: 1.233095 | I10: 1.233095 | K10: 0 | L10: 0 | M10: 0 | N10: 0 | P10: =O10 -> 0 | Q10: =P10 -> 0 | R10: =Q10 -> 0 | S10: =G10 -> 1.233095 | T10: 1.233095 | U10: 1.233095 | V10: 0 | W10: 0 | X10: 0 | Y10: 0 | Z10: 0 | AA10: 0 | AB10: 0 | AC10: 0 | AD10: 0 | AF10: 6
B11: 11 | F11: Skolens stedtillægsområde | H11: =G11 -> 0 | I11: 0 | J11: 0 | K11: 0 | L11: 0 | M11: 0 | N11: 0 | O11: 0 | P11: 0 | Q11: 0 | R11: 0 | S11: =G11 -> 0 | T11: 0 | U11: 0 | V11: 0 | W11: 0 | X11: 0 | Y11: 0 | Z11: 0 | AA11: 0 | AB11: 0 | AC11: 0 | AD11: 0
B12: 12 | F12: Beskæftigelsesgrad aktuel (Beskæftigelsesgrad løn beregnes ud fra) | H12: =G12 -> 0 | I12: 0 | J12: 0 | K12: 0 | L12: 0 | M12: 0 | N12: 0 | O12: 0 | P12: =O12 -> 0 | Q12: 0 | R12: 0 | S12: 0 | T12: 0 | U12: 0 | V12: 0 | W12: 0 | X12: 0 | Y12: 0 | Z12: 0 | AA12: 0 | AB12: 0 | AC12: 0 | AD12: 0
B13: 13 | C13: x | D13: x | E13: x | F13: Skalatrin | H13: =G13 -> 0 | I13: 0 | J13: 0 | K13: 0 | L13: 0 | M13: 0 | N13: 0 | O13: 0 | P13: 0 | Q13: 0 | R13: 0 | S13: 0 | T13: 0 | U13: 0 | V13: 0 | W13: 0 | X13: 0 | Y13: 0 | Z13: 0 | AA13: 0 | AB13: 0 | AC13: 0 | AD13: 0 | AE13: Statens løntabel eller HK-overenskomst-løntrin
B14: 14 | C14: x | D14: x | E14: x | F14: ="Overenskomstaftalt tillæg "&IF(E14<>"","i grundbeløb pr. 31.03.2012","(ikke reguleret)") -> Overenskomstaftalt tillæg i grundbeløb pr. 31.03.2012 | H14: 0 | I14: 0 | J14: 0 | K14: 0 | L14: 0 | M14: 0 | N14: 0 | O14: 0 | P14: 0 | Q14: 0 | R14: 0 | S14: 0 | T14: 0 | U14: 0 | V14: 0 | W14: 0 | X14: 0 | Y14: 0 | Z14: 0 | AA14: 0 | AB14: 0 | AC14: 0 | AD14: 0
B15: 15 | C15: x | D15: x | E15: x | F15: Trepartstillæg til pædagoger og afdelingsledere i årlig grundbeløb pr. 31.03.2012 | H15: =G15 -> 0 | I15: =H15 -> 0 | J15: 0 | K15: 0 | L15: 0 | M15: 0 | N15: 0 | O15: =N15 -> 0 | P15: 0 | Q15: 0 | R15: 0 | S15: 0 | T15: 0 | U15: 0 | V15: 0 | W15: 0 | X15: 0 | Y15: 0 | Z15: 0 | AA15: 0 | AB15: 0 | AC15: 0 | AD15: 0
B16: 16 | C16: x | E16: x | F16: Årligt sousdheftillæg eller lign. i grundbeløb | H16: =G16 -> 0 | I16: 0 | J16: 0 | K16: 0 | L16: 0 | M16: 0 | N16: 0 | O16: 0 | P16: 0 | Q16: 0 | R16: 0 | S16: 0 | T16: 0 | U16: 0 | V16: 0 | W16: 0 | X16: 0 | Y16: 0 | Z16: 0 | AA16: 0 | AB16: 0 | AC16: 0 | AD16: 0
B17: 17 | C17: x | E17: x | F17: Årligt funktionsstillæg i grundbeløb 1 | H17: =G17 -> 0 | I17: 0 | J17: 0 | K17: 0 | L17: 0 | M17: 0 | N17: 0 | O17: 0 | P17: 0 | Q17: 0 | R17: 0 | S17: 0 | T17: 0 | U17: 0 | V17: 0 | W17: 0 | X17: 0 | Y17: 0 | Z17: 0 | AA17: 0 | AB17: 0 | AC17: 0 | AD17: 0 | AF17: Ja
B18: 18 | C18: x | E18: x | F18: Årligt funktionsstillæg i grundbeløb 2 | H18: =G18 -> 0 | I18: 0 | J18: 0 | K18: 0 | L18: 0 | M18: 0 | N18: 0 | O18: 0 | P18: 0 | Q18: 0 | R18: 0 | S18: 0 | T18: 0 | U18: 0 | V18: 0 | W18: 0 | X18: 0 | Y18: 0 | Z18: 0 | AA18: 0 | AB18: 0 | AC18: 0 | AD18: 0 | AF18: Nej
B19: 19 | C19: x | E19: x | F19: Årligt funktionsstillæg i grundbeløb 3 | H19: =G19 -> 0 | I19: 0 | J19: 0 | K19: 0 | L19: 0 | M19: 0 | N19: 0 | O19: 0 | P19: 0 | Q19: 0 | R19: 0 | S19: 0 | T19: 0 | U19: 0 | V19: 0 | W19: 0 | X19: 0 | Y19: 0 | Z19: 0 | AA19: 0 | AB19: 0 | AC19: 0 | AD19: 0
B20: 20 | C20: x | D20: x | E20: x | F20: Årligt kvalifikationsstillæg i grundbeløb 1 | H20: 0 | I20: 0 | J20: 0 | K20: 0 | L20: 0 | M20: 0 | N20: 0 | O20: 0 | P20: 0 | Q20: 0 | R20: 0 | S20: 0 | T20: 0 | U20: 0 | V20: 0 | W20: 0 | X20: 0 | Y20: 0 | Z20: 0 | AA20: 0 | AB20: 0 | AC20: 0 | AD20: 0
B21: 21 | C21: x | D21: x | E21: x | F21: Årligt kvalifikationsstillæg i grundbeløb 2 | H21: 0 | I21: 0 | J21: 0 | K21: 0 | L21: 0 | M21: 0 | N21: 0 | O21: 0 | P21: 0 | Q21: 0 | R21: 0 | S21: 0 | T21: 0 | U21: 0 | V21: 0 | W21: 0 | X21: 0 | Y21: 0 | Z21: 0 | AA21: 0 | AB21: 0 | AC21: 0 | AD21: 0
B22: 22 | C22: x | D22: x | E22: x | F22: Årligt kvalifikationsstillæg i grundbeløb 3 | H22: 0 | I22: 0 | J22: 0 | K22: 0 | L22: 0 | M22: 0 | N22: 0 | O22: 0 | P22: 0 | Q22: 0 | R22: 0 | S22: 0 | T22: 0 | U22: 0 | V22: 0 | W22: 0 | X22: 0 | Y22: 0 | Z22: 0 | AA22: 0 | AB22: 0 | AC22: 0 | AD22: 0
B23: 23 | C23: x | D23: x | E23: x | F23: Udligningstillæg i årligt grundbeløb v. 100% BG | H23: 0 | I23: 0 | J23: 0 | K23: 0 | L23: 0 | M23: 0 | N23: 0 | O23: 0 | P23: 0 | Q23: 0 | R23: 0 | S23: 0 | T23: 0 | U23: 0 | V23: 0 | W23: 0 | X23: 0 | Y23: 0 | Z23: 0 | AA23: 0 | AB23: 0 | AC23: 0 | AD23: 0
B24: 24 | F24: Gruppelivsordning betalt af af skolen som et løntillæg. Skriv det månedlige beløb! | H24: 0 | I24: 0 | J24: 0 | K24: 0 | L24: 0 | M24: 0 | N24: 0 | O24: 0 | P24: 0 | Q24: 0 | R24: 0 | S24: 0 | T24: 0 | U24: 0 | V24: 0 | W24: 0 | X24: 0 | Y24: 0 | Z24: 0 | AA24: 0 | AB24: 0 | AC24: 0 | AD24: 0 | AE24: Spedielt ved virksomhedsoverdragelse
B25: 25 | E25: x | F25: Lokalaftalt fast ulempegodtgørelse pr. måned. - (pr. 31. marts 2012) | H25: =G25 -> 0 | I25: 0 | J25: 0 | K25: 0 | L25: 0 | M25: 0 | N25: 0 | O25: =N25 -> 0 | P25: 0 | Q25: 0 | R25: 0 | S25: 0 | T25: 0 | U25: 0 | V25: 0 | W25: 0 | X25: 0 | Y25: 0 | Z25: 0 | AA25: 0 | AB25: 0 | AC25: 0 | AD25: 0 | AE25: I stedet for variable arbejdstidsbestemte tillæg, iflg lokalaftale
B26: 26 | F26: Planlagte feriedage | G26: 2 | H26: =G26 -> 2 | I26: 5 | M26: 5 | R26: 15 | S26: =G26 -> 2 | T26: =H26 -> 2 | U26: 5 | V26: 0 | W26: 0 | X26: 0 | Y26: 5 | Z26: 0 | AA26: 0 | AB26: 0 | AC26: 0 | AD26: 15 | AE26: Normalt 15 dage i sommerhalvåret og 10 dage i vinterhalvåret
B27: 27 | F27: .. heraf antal feriedage, hvortil der ikke er optjent ferieret | H27: =G27 -> 0 | R27: 0 | S27: 0 | T27: 0 | U27: 0 | V27: 0 | W27: 0 | X27: 0 | Y27: 0 | Z27: 0 | AA27: 0 | AB27: 0 | AC27: 0 | AD27: 0 | AE27: Ferieloven: fradrag 4,8% pr. dag, Ferieaftalen: 4,62% pr. dag
B28: 28 | F28: Feriedifference pensionsgivende(udregnes i særskilt regneark) | S28: 0 | T28: 0 | U28: 0 | V28: 0 | W28: 0 | X28: 0 | Y28: 0 | Z28: 0 | AA28: 0 | AB28: 0 | AC28: 0 | AD28: 0 | AE28: Benyttes ved beregning af feriedifferende.
B29: 29 | F29: Feriedifference IKKE pensionsgivende(udregnes i særskilt regneark) | S29: 0 | T29: 0 | U29: 0 | V29: 0 | W29: 0 | X29: 0 | Y29: 0 | Z29: 0 | AA29: 0 | AB29: 0 | AC29: 0 | AD29: 0 | AE29: Benyttes ved beregning af feriedifference'
B30: 30 | F30: Egenbetalte fridage | S30: 0 | T30: 0 | U30: 0 | V30: 0 | W30: 0 | X30: 0 | Y30: 0 | Z30: 0 | AA30: 0 | AB30: 0 | AC30: 0 | AD30: 0 | AE30: Løn- og pensionsfradrag beregnes i lin 60 og 75
A31: Skatteop-lysninger | B31: 31 | F31: Skatteprocent | H31: =G31 -> 0 | I31: 0 | J31: 0 | K31: 0 | L31: 0 | M31: 0 | N31: 0 | O31: 0 | P31: 0 | Q31: 0 | R31: 0 | S31: 0 | T31: 0 | U31: 0 | V31: 0 | W31: 0 | X31: 0 | Y31: 0 | Z31: 0 | AA31: 0 | AB31: 0 | AC31: 0 | AD31: 0 | AE31: Skriv ikke procenttegnet, fx 42% - skriv 42
B32: 32 | C32: km- tak-ster | D32: =LEFT($A$1,4)+1 -> 2025 | E32: =LEFT($A$1,4)+2 -> 2026 | F32: Månedligt skattefradrag | H32: 0 | I32: 0 | J32: 0 | K32: 0 | L32: 0 | M32: 0 | N32: 0 | O32: 0 | P32: 0 | Q32: 0 | R32: 0 | S32: 0 | T32: 0 | U32: 0 | V32: 0 | W32: 0 | X32: 0 | Y32: 0 | Z32: 0 | AA32: 0 | AB32: 0 | AC32: 0 | AD32: 0
B33: 33 | D33: 2.23 | F33: Km.godtgørelse, lav sats (skattefri), antal km: | S33: 0 | T33: 0 | U33: 0 | V33: 0 | W33: 0 | X33: 0 | Y33: 0 | Z33: 0 | AA33: 0 | AB33: 0 | AC33: 0 | AD33: 0
B34: 34 | D34: 3.81 | F34: Km.godtgørelse, høj sats (skattefri), antal km: | S34: 0 | T34: 0 | U34: 0 | V34: 0 | W34: 0 | X34: 0 | Y34: 0 | Z34: 0 | AA34: 0 | AB34: 0 | AC34: 0 | AD34: 0
B35: 35 | F35: Timedagpenge (skattefri) - Beregn selv | S35: 0 | T35: 0 | U35: 0 | V35: 0 | W35: 0 | X35: 0 | Y35: 0 | Z35: 0 | AA35: 0 | AB35: 0 | AC35: 0 | AD35: 0 | AE35: Se løntabel
B36: 36 | F36: Jubilæumsgratiale (skattefri op til 8.000 kr.) | S36: 0 | T36: 0 | U36: 0 | V36: 0 | W36: 0 | X36: 0 | Y36: 0 | Z36: 0 | AA36: 0 | AB36: 0 | AC36: 0 | AD36: 0 | AE36: Se løntabel
B37: 37 | F37: Arbejds- og arbejdstidsbestemte tillæg. Beregn selv | S37: 0 | T37: 0 | U37: 0 | V37: 0 | W37: 0 | X37: 0 | Y37: 0 | Z37: 0 | AA37: 0 | AB37: 0 | AC37: 0 | AD37: 0 | AE37: ”Natpenge” iflg skema, hvis ikke der er lokalaftalt godtgørelse
B38: 38 | C38: x | F38: Merarbejdsbetaling. Beregn selv | S38: 0 | T38: 0 | U38: 0 | V38: 0 | W38: 0 | X38: 0 | Y38: 0 | Z38: 0 | AA38: 0 | AB38: 0 | AC38: 0 | AD38: 0 | AE38: Efter årsopgørelse eller ved fratræden
B39: 39 | F39: Overtidsbetaling. Beregn selv | S39: 0 | T39: 0 | U39: 0 | V39: 0 | W39: 0 | X39: 0 | Y39: 0 | Z39: 0 | AA39: 0 | AB39: 0 | AC39: 0 | AD39: 0 | AE39: Efter årsopgørelse eller ved fratræden
B40: 40 | F40: Særlige feriedage til udbetaling. Beregn selv | S40: =G40 -> 0 | T40: 0 | U40: 0 | V40: 0 | W40: 0 | X40: 0 | Y40: 0 | Z40: 0 | AA40: 0 | AB40: 0 | AC40: 0 | AD40: 0 | AE40: Efter årsafslutning eller ved fratræden. Se pjeden "Ferievejledning"
B41: 41 | F41: ="Særlig ferietillæg "&IF(G9="ja","2,02%","1,0%"&"") -> Særlig ferietillæg 2,02% | P41: 0 | S41: 0 | T41: 0 | U41: 0 | V41: 0 | W41: 0 | X41: 0 | Y41: 0 | Z41: 0 | AA41: 0 | AB41: 0 | AC41: 0 | AD41: 0
B42: 42 | C42: x | F42: Resultatlønstillæg | S42: 0 | T42: 0 | U42: 0 | V42: 0 | W42: 0 | X42: 0 | Y42: 0 | Z42: 0 | AA42: 0 | AB42: 0 | AC42: 0 | AD42: 0
B43: 43 | C43: x | F43: Engangs nylønstillæg | S43: 0 | T43: 0 | U43: 0 | V43: 0 | W43: 0 | X43: 0 | Y43: 0 | Z43: 0 | AA43: 0 | AB43: 0 | AC43: 0 | AD43: 0
B44: 44 | C44: x | F44: Praktiklærervederlag | S44: 0 | T44: 0 | U44: 0 | V44: 0 | W44: 0 | X44: 0 | Y44: 0 | Z44: 0 | AA44: 0 | AB44: 0 | AC44: 0 | AD44: 0 | AE44: =45*5*7.4 -> 1665
B45: 45 | F45: andet | S45: 0 | T45: 0 | U45: 0 | V45: 0 | W45: 0 | X45: 0 | Y45: 0 | Z45: 0 | AA45: 0 | AB45: 0 | AC45: 0 | AD45: 0
B46: 46 | F46: andet | S46: 0 | T46: 0 | U46: 0 | V46: 0 | W46: 0 | X46: 0 | Y46: 0 | Z46: 0 | AA46: 0 | AB46: 0 | AC46: 0 | AD46: 0
B47: 47 | C47: Disse tre linjer fradrages i den disponible løn | F47: gavekasse | H47: =G47 -> 0 | I47: =H47 -> 0 | J47: 0 | K47: 0 | L47: 0 | M47: 0 | N47: 0 | O47: 0 | P47: 0 | Q47: 0 | R47: 0 | S47: 0 | T47: 0 | U47: 0 | V47: 0 | W47: 0 | X47: 0 | Y47: 0 | Z47: 0 | AA47: 0 | AB47: 0 | AC47: 0 | AD47: 0 | AE47: Fx: 'Kaffekasse'
B48: 48 | F48: kaffekasse | H48: =G48 -> 0 | I48: 0 | J48: 0 | K48: 0 | L48: 0 | M48: 0 | N48: 0 | O48: 0 | P48: 0 | Q48: 0 | R48: 0 | S48: 0 | T48: 0 | U48: 0 | V48: 0 | W48: 0 | X48: 0 | Y48: 0 | Z48: 0 | AA48: 0 | AB48: 0 | AC48: 0 | AD48: 0 | AE48: Fx: 'Gavekasse'
B49: 49 | F49: Fagforenings-kontingent | H49: =G49 -> 0 | I49: 0 | J49: 0 | K49: 0 | L49: 0 | M49: 0 | N49: 0 | O49: 0 | P49: 0 | Q49: 0 | R49: 0 | S49: 0 | T49: 0 | U49: 0 | V49: 0 | W49: 0 | X49: 0 | Y49: 0 | Z49: 0 | AA49: 0 | AB49: 0 | AC49: 0 | AD49: 0 | AE49: FX: 'Fagforeningskontingent'
A50: =A3 -> 1904-01-01 | B50: 50 | F50: Måned | G50: =G3 -> AUG 25 | H50: SEP 25 | I50: OKT 25 | J50: NOV 25 | K50: DEC 25 | L50: JAN 26 | M50: FEB 26 | N50: MAR 26 | O50: APR 26 | P50: MAJ 26 | Q50: JUN 26 | R50: JUL 26 | S50: AUG 25 | T50: SEP 25 | U50: OKT 25 | V50: NOV 25 | W50: DEC 25 | X50: JAN 26 | Y50: FEB 26 | Z50: MAR 26 | AA50: APR 26 | AB50: MAJ 26 | AC50: JUN 26 | AD50: JUL 26 | AE50: SUM
B51: 51 | C51: =(C13<>"")*1 -> 1 | D51: 1 | E51: 1 | F51: =IF(ISNUMBER(G13),"Skalatrinsløn","HK-løn") -> HK-løn | G51: =IF(G7="Ja",0,ROUND(IF(AND(G$12>0,G13>0),ROUND((ROUND(VLOOKUP(G13,Skalalontabel12,G11,0)*G10,0))/12,2),0)*G12*G4,2)) -> 0 | H51: 0 | I51: 0 | J51: 0 | K51: 0 | L51: 0 | M51: 0 | N51: 0 | O51: 0 | P51: 0 | Q51: 0 | R51: 0 | S51: =ROUND(IF(AND(S$12>0,S13>0),ROUND((ROUND(VLOOKUP(S13,Skalalontabel12,S11,0)*S10,0))/12,2),0)*S12*S4,2) -> 0 | T51: 0 | U51: 0 | V51: 0 | W51: 0 | X51: 0 | Y51: 0 | Z51: 0 | AA51: 0 | AB51: 0 | AC51: 0 | AD51: 0 | AE51: =SUM(G51:R51) -> 0
B52: 52 | C52: 1 | D52: 1 | E52: 1 | F52: OK-tillæg | G52: =IF(G7="Ja",0,ROUND(IF(G14>0,G14/12)*IF($D14<>"",G$12,1)*IF($E14<>"",G$10,1)*G4,2)) -> 0 | H52: 0 | I52: 0 | J52: 0 | K52: 0 | L52: 0 | M52: 0 | N52: 0 | O52: 0 | P52: 0 | Q52: 0 | R52: 0 | S52: =ROUND(IF(S14>0,S14/12)*IF($D14<>"",S$12,1)*IF($E14<>"",S$10,1)*S4,2) -> 0 | T52: 0 | U52: 0 | V52: 0 | W52: 0 | X52: 0 | Y52: 0 | Z52: 0 | AA52: 0 | AB52: 0 | AC52: 0 | AD52: 0 | AE52: 0
B53: 53 | C53: 1 | D53: 1 | E53: 1 | F53: Trepartstillæg | G53: =IF(G7="Ja",0,ROUND(IF(G15>0,G15/12)*IF($D15<>"",G$12,1)*IF($E15<>"",G$10,1)*G5,2)) -> 0 | H53: =IF(H7="Ja",0,ROUND(IF(H15>0,H15/12)*IF($D15<>"",H$12,1)*IF($E15<>"",H$10,1)*H4,2)) -> 0 | I53: =IF(I7="Ja",0,ROUND(IF(I15>0,I15/12)*IF($D15<>"",I$12,1)*IF($E15<>"",I$10,1)*I4,2)) -> 0 | J53: 0 | K53: 0 | L53: 0 | M53: 0 | N53: 0 | O53: 0 | P53: 0 | Q53: 0 | R53: 0 | S53: 0 | T53: 0 | U53: 0 | V53: 0 | W53: 0 | X53: 0 | Y53: 0 | Z53: 0 | AA53: 0 | AB53: 0 | AC53: 0 | AD53: 0 | AE53: =SUM(G53:R53) -> 0
B54: 54 | C54: 1 | D54: 0 | E54: 1 | F54: Souscheftillæg ell. lign. | G54: =IF(G7="Ja",0,ROUND(IF(AND(G$12>0,G16>0),G16/12)*IF($D16<>"",G$12,1)*IF($E16<>"",G$10,1)*G4,2)) -> 0 | H54: 0 | I54: 0 | J54: 0 | K54: 0 | L54: 0 | M54: 0 | N54: 0 | O54: 0 | P54: 0 | Q54: 0 | R54: 0 | S54: =ROUND(IF(AND(S$12>0,S16>0),S16/12)*IF($D16<>"",S$12,1)*IF($E16<>"",S$10,1)*S4,2) -> 0 | T54: 0 | U54: 0 | V54: 0 | W54: 0 | X54: 0 | Y54: 0 | Z54: 0 | AA54: 0 | AB54: 0 | AC54: 0 | AD54: 0 | AE54: 0
B55: 55 | C55: 1 | D55: 0 | E55: 1 | F55: Funktionstillæg 1 | G55: =IF(G7="Ja",0,ROUND(IF(AND(G$12>0,G17>0),G17/12)*IF($D17<>"",G$12,1)*IF($E17<>"",G$10,1)*G4,2)) -> 0 | H55: 0 | I55: 0 | J55: 0 | K55: 0 | L55: 0 | M55: 0 | N55: 0 | O55: 0 | P55: 0 | Q55: 0 | R55: 0 | S55: =ROUND(IF(AND(S$12>0,S17>0),S17/12)*IF($D17<>"",S$12,1)*IF($E17<>"",S$10,1)*S4,2) -> 0 | T55: 0 | U55: 0 | V55: 0 | W55: 0 | X55: 0 | Y55: 0 | Z55: 0 | AA55: 0 | AB55: 0 | AC55: 0 | AD55: 0 | AE55: 0
B56: 56 | C56: 1 | D56: 0 | E56: 1 | F56: Funktionstillæg 2 | G56: =IF(G7="Ja",0,ROUND(IF(AND(G$12>0,G18>0),G18/12)*IF($D18<>"",G$12,1)*IF($E18<>"",G$10,1)*G4,2)) -> 0 | H56: 0 | I56: 0 | J56: 0 | K56: 0 | L56: 0 | M56: 0 | N56: 0 | O56: 0 | P56: 0 | Q56: 0 | R56: 0 | S56: =ROUND(IF(AND(S$12>0,S18>0),S18/12)*IF($D18<>"",S$12,1)*IF($E18<>"",S$10,1)*S4,2) -> 0 | T56: 0 | U56: 0 | V56: 0 | W56: 0 | X56: 0 | Y56: 0 | Z56: 0 | AA56: 0 | AB56: 0 | AC56: 0 | AD56: 0 | AE56: 0
B57: 57 | C57: 1 | D57: 0 | E57: 1 | F57: Funktionstillæg 3 | G57: =IF(G7="Ja",0,ROUND(IF(AND(G$12>0,G19>0),G19/12)*IF($D19<>"",G$12,1)*IF($E19<>"",G$10,1)*G4,2)) -> 0 | H57: 0 | I57: 0 | J57: 0 | K57: 0 | L57: 0 | M57: 0 | N57: 0 | O57: 0 | P57: 0 | Q57: 0 | R57: 0 | S57: =ROUND(IF(AND(S$12>0,S19>0),S19/12)*IF($D19<>"",S$12,1)*IF($E19<>"",S$10,1)*S4,2) -> 0 | T57: 0 | U57: 0 | V57: 0 | W57: 0 | X57: 0 | Y57: 0 | Z57: 0 | AA57: 0 | AB57: 0 | AC57: 0 | AD57: 0 | AE57: 0
B58: 58 | C58: 1 | D58: 1 | E58: 1 | F58: Kvalifikationstillæg 1 | G58: =IF(G7="Ja",0,ROUND(IF(AND(G$12>0,G20>0),G20/12)*IF($D20<>"",G$12,1)*IF($E20<>"",G$10,1)*G4,2)) -> 0 | H58: 0 | I58: 0 | J58: 0 | K58: 0 | L58: 0 | M58: 0 | N58: 0 | O58: 0 | P58: 0 | Q58: 0 | R58: 0 | S58: =ROUND(IF(AND(S$12>0,S20>0),S20/12)*IF($D20<>"",S$12,1)*IF($E20<>"",S$10,1)*S4,2) -> 0 | T58: 0 | U58: 0 | V58: 0 | W58: 0 | X58: 0 | Y58: 0 | Z58: 0 | AA58: 0 | AB58: 0 | AC58: 0 | AD58: 0 | AE58: 0
B59: 59 | C59: 1 | D59: 1 | E59: 1 | F59: Kvalifikationstillæg 2 | G59: =IF(G7="Ja",0,ROUND(IF(AND(G$12>0,G21>0),G21/12)*IF($D21<>"",G$12,1)*IF($E21<>"",G$10,1)*G4,2)) -> 0 | H59: 0 | I59: 0 | J59: 0 | K59: 0 | L59: 0 | M59: 0 | N59: 0 | O59: 0 | P59: 0 | Q59: 0 | R59: 0 | S59: =ROUND(IF(AND(S$12>0,S21>0),S21/12)*IF($D21<>"",S$12,1)*IF($E21<>"",S$10,1)*S4,2) -> 0 | T59: 0 | U59: 0 | V59: 0 | W59: 0 | X59: 0 | Y59: 0 | Z59: 0 | AA59: 0 | AB59: 0 | AC59: 0 | AD59: 0 | AE59: 0
B60: 60 | C60: 1 | D60: 1 | E60: 1 | F60: Kvalifikationstillæg 3 | G60: =IF(G7="Ja",0,ROUND(IF(AND(G$12>0,G22>0),G22/12)*IF($D22<>"",G$12,1)*IF($E22<>"",G$10,1)*G$4,2)) -> 0 | H60: 0 | I60: 0 | J60: 0 | K60: 0 | L60: 0 | M60: 0 | N60: 0 | O60: 0 | P60: 0 | Q60: 0 | R60: 0 | S60: =ROUND(IF(AND(S$12>0,S22>0),S22/12)*IF($D22<>"",S$12,1)*IF($E22<>"",S$10,1)*S$4,2) -> 0 | T60: 0 | U60: 0 | V60: 0 | W60: 0 | X60: 0 | Y60: 0 | Z60: 0 | AA60: 0 | AB60: 0 | AC60: 0 | AD60: 0 | AE60: 0
B61: 61 | C61: 1 | D61: 1 | E61: 1 | F61: Udligningstillæg | G61: =IF(G7="Ja",0,ROUND(IF(AND(G$12>0,G23>0),G23/12)*IF($D23<>"",G$12,1)*IF($E23<>"",G$10,1)*G$4,2)) -> 0 | H61: 0 | I61: 0 | J61: 0 | K61: 0 | L61: 0 | M61: 0 | N61: 0 | O61: 0 | P61: 0 | Q61: 0 | R61: 0 | S61: 0 | T61: 0 | U61: 0 | V61: 0 | W61: 0 | X61: 0 | Y61: 0 | Z61: 0 | AA61: 0 | AB61: 0 | AC61: 0 | AD61: 0 | AE61: 0
B62: 62 | C62: 1 | F62: Seniorbonus | G62: =IF(G8="Ja",(SUM(G51:G61)*0.8%),0) -> 0 | H62: =IF(H8="Ja",(SUM(H51:H61)*0.8%),0) -> 0 | I62: 0 | J62: 0 | K62: 0 | L62: 0 | M62: 0 | N62: 0 | O62: 0 | P62: 0 | Q62: 0 | R62: 0
B63: 63 | F63: Gruppelivstillæg | G63: =IF(G7="Ja",0,ROUND(IF(AND(G$12>0,G24>0),G24)*IF($D24<>"",G$12,1)*IF($E24<>"",G$10,1),2)) -> 0 | H63: =IF(H7="Ja",0,ROUND(IF(AND(H$12>0,H24>0),H24)*IF($D24<>"",H$12,1)*IF($E24<>"",H$10,1),2)) -> 0 | I63: 0 | J63: 0 | K63: 0 | L63: 0 | M63: 0 | N63: 0 | O63: 0 | P63: 0 | Q63: 0 | R63: 0 | S63: =ROUND(IF(AND(S$12>0,S24>0),S24)*IF($D24<>"",S$12,1)*IF($E24<>"",S$10,1)*S$4,2) -> 0 | T63: 0 | U63: 0 | V63: 0 | W63: 0 | X63: 0 | Y63: 0 | Z63: 0 | AA63: 0 | AB63: 0 | AC63: 0 | AD63: 0 | AE63: 0
B64: 64 | D64: =(D25<>"")*1 -> 0 | E64: =(E25<>"")*1 -> 1 | F64: Lokalaftalt ulempegodtgørelse | G64: =IF(G7="Ja",0,ROUND(IF(AND(G$12>0,G25>0),G25)*IF($D25<>"",G$12,1)*IF($E25<>"",G$10,1)*G$4,2)) -> 0 | H64: =IF(H7="Ja",0,ROUND(IF(AND(H$12>0,H25>0),H25)*IF($D25<>"",H$12,1)*IF($E25<>"",H$10,1)*H$4,2)) -> 0 | I64: 0 | J64: 0 | K64: 0 | L64: 0 | M64: 0 | N64: 0 | O64: 0 | P64: 0 | Q64: 0 | R64: 0 | S64: 0 | T64: 0 | U64: 0 | V64: 0 | W64: 0 | X64: 0 | Y64: 0 | Z64: 0 | AA64: 0 | AB64: 0 | AC64: 0 | AD64: 0 | AE64: 0
B65: 65 | C65: 1 | F65: Lønfradrag for ikke optjent ferie mv. | G65: =-ROUND((MAX(0,MIN(S26,S27*1))+S30)*IF(S9="JA",4.62%,4.8%)*(S51+S52+G53+S54+S55+S56+S57+S58+S59+S60+S61+G62+S64)*S$4,2) -> 0 | H65: =-ROUND((MAX(0,MIN(T26,T27*1))+T30)*IF(T9="JA",4.62%,4.8%)*(T51+T52+H53+T54+T55+T56+T57+T58+T59+T60+T61+H62+T64)*T$4,2) -> 0 | I65: 0 | J65: 0 | K65: 0 | L65: 0 | M65: 0 | N65: 0 | O65: 0 | P65: 0 | Q65: 0 | R65: =-ROUND((MAX(0,MIN(AD26,AD27*1))+AD30)*IF(AD9="JA",4.62%,4.8%)*(AD51+AD52+R53+AD54+AD55+AD56+AD57+AD58+AD59+AD60+AD61+R62+AD64)*AD$4,2) -> 0 | S65: =-ROUND((MAX(0,MIN(S26,S27*1))+S30)*IF(S9="JA",4.62%,4.8%)*(S51+S52+S54+S55+S56+S57+S58+S59+S60+S61+S64)*S$4,2) -> 0 | T65: 0 | U65: 0 | V65: 0 | W65: 0 | X65: 0 | Y65: 0 | Z65: 0 | AA65: 0 | AB65: 0 | AC65: 0 | AD65: 0 | AE65: 0
B66: 66 | C66: 1 | F66: Feriedifference pensionsgivende(udregnes i særskilt fane) | G66: =G28 -> 0 | H66: =H28 -> 0 | I66: 0 | J66: 0 | K66: 0 | L66: 0 | M66: 0 | N66: 0 | O66: 0 | P66: 0 | Q66: 0 | R66: 0 | S66: =S28 -> 0 | T66: =T28 -> 0 | U66: 0 | V66: 0 | W66: 0 | X66: 0 | Y66: 0 | Z66: 0 | AA66: 0 | AB66: 0 | AC66: 0 | AD66: 0 | AE66: 0
B67: 67 | F67: Feriedifference IKKE pensionsgivende(udregnes i særskilt fane) | G67: =G29 -> 0 | H67: =H29 -> 0 | I67: 0 | J67: 0 | K67: 0 | L67: 0 | M67: 0 | N67: 0 | O67: 0 | P67: 0 | Q67: 0 | R67: 0 | S67: =S29 -> 0 | T67: 0 | U67: 0 | V67: 0 | W67: 0 | X67: 0 | Y67: 0 | Z67: 0 | AA67: 0 | AB67: 0 | AC67: 0 | AD67: 0
B68: 68 | F68: Engangsudbetalinger iflg. specifikation | G68: =SUM(G37:G46) -> 0 | H68: =SUM(H37:H46) -> 0 | I68: 0 | J68: 0 | K68: 0 | L68: 0 | M68: 0 | N68: 0 | O68: 0 | P68: 0 | Q68: 0 | R68: 0 | S68: =SUM(S37:S46) -> 0 | T68: =SUM(T37:T46)+MAX(T36*T10-8000,0) -> 0 | U68: 0 | V68: 0 | W68: 0 | X68: 0 | Y68: 0 | Z68: 0 | AA68: 0 | AB68: 0 | AC68: 0 | AD68: 0 | AE68: 0
B69: 69 | F69: Skattefrie km. Godtgørelse lav sats | G69: =G33*$D$33 -> 0 | H69: =H33*$D$33 -> 0 | I69: 0 | J69: 0 | K69: 0 | L69: 0 | M69: 0 | N69: 0 | O69: 0 | P69: 0 | Q69: 0 | R69: 0 | S69: =S33*$D$33 -> 0 | T69: =T33*$D$33 -> 0 | U69: 0 | V69: 0 | W69: 0 | X69: 0 | Y69: 0 | Z69: 0 | AA69: 0 | AB69: 0 | AC69: 0 | AD69: 0
B70: 70 | F70: Skattefrie km. Godtgørelse høj sats | G70: =G34*$D$34 -> 0 | H70: =H34*$D$34 -> 0 | I70: 0 | J70: 0 | K70: 0 | L70: 0 | M70: 0 | N70: 0 | O70: 0 | P70: 0 | Q70: 0 | R70: 0 | S70: =S34*$D$34 -> 0 | T70: =T34*$D$34 -> 0 | U70: 0 | V70: 0 | W70: 0 | X70: 0 | Y70: 0 | Z70: 0 | AA70: 0 | AB70: 0 | AC70: 0 | AD70: 0
B71: 71 | F71: Timedagpenge(skattefrie) | G71: =IF(G35>0,G35,0) -> 0 | H71: =IF(H35>0,H35,0) -> 0 | I71: 0 | J71: 0 | K71: 0 | L71: 0 | M71: 0 | N71: 0 | O71: 0 | P71: 0 | Q71: 0 | R71: 0 | S71: =IF(S35>0,S35,0) -> 0 | T71: =IF(T35>0,T35,0) -> 0 | U71: 0 | V71: 0 | W71: 0 | X71: 0 | Y71: 0 | Z71: 0 | AA71: 0 | AB71: 0 | AC71: 0 | AD71: 0 | AE71: 0
B72: 72 | F72: Skattefri jubilæumsgratiale | G72: =MIN(8000,G36*G10) -> 0 | H72: 0 | I72: 0 | J72: 0 | K72: 0 | L72: 0 | M72: 0 | N72: 0 | O72: 0 | P72: 0 | Q72: 0 | R72: 0 | S72: 0 | T72: 0 | U72: 0 | V72: 0 | W72: 0 | X72: 0 | Y72: 0 | Z72: 0 | AA72: 0 | AB72: 0 | AC72: 0 | AD72: 0
B73: =B72+1 -> 73 | F73: Skattepligtig jubilæumsgratiaale | G73: =IF(G36>0,MAX(G36*G10-8000,0),0) -> 0 | H73: 0 | I73: 0 | J73: 0 | K73: 0 | L73: 0 | M73: 0 | N73: 0 | O73: 0 | P73: 0 | Q73: 0 | R73: 0 | S73: 0 | T73: 0 | U73: 0 | V73: 0 | W73: 0 | X73: 0 | Y73: 0 | Z73: 0 | AA73: 0 | AB73: 0 | AC73: 0 | AD73: 0
B74: 74 | F74: Bruttoløn (ekskl. pensionstillæg og ATP) | G74: =SUM(G51:G73) -> 0 | H74: =SUM(H51:H73) -> 0 | I74: =SUM(I51:I73) -> 0 | J74: 0 | K74: 0 | L74: 0 | M74: 0 | N74: 0 | O74: 0 | P74: 0 | Q74: 0 | R74: 0 | S74: 0 | T74: 0 | U74: 0 | V74: 0 | W74: 0 | X74: 0 | Y74: 0 | Z74: 0 | AA74: 0 | AB74: 0 | AC74: 0 | AD74: 0 | AE74: 0
B75: 75 | F75: ="Pensionstillæg af pensionsg. "&IF(ISNUMBER(G13),"Skalatrinsløn","HK-løn") -> Pensionstillæg af pensionsg. HK-løn | G75: =IF(G7="Ja",0,ROUND(IF(AND(G$12>0,G13>0),ROUND((ROUND(VLOOKUP(G13,Skalalontabel12,7,0)*G10,0))/12,2),0)*G12*G4*G5/100/3,2)) -> 0 | H75: 0 | I75: 0 | J75: 0 | K75: 0 | L75: 0 | M75: 0 | N75: 0 | O75: 0 | P75: 0 | Q75: 0 | R75: 0 | S75: =ROUND(IF(AND(S$12>0,S13>0),ROUND((ROUND(VLOOKUP(S13,Skalalontabel12,7,0)*S10,0))/12,2),0)*S12*S4*S5/100/3,2) -> 0 | T75: 0 | U75: 0 | V75: 0 | W75: 0 | X75: 0 | Y75: 0 | Z75: 0 | AA75: 0 | AB75: 0 | AC75: 0 | AD75: 0 | AE75: 0
B76: 76 | F76: Pensionstillæg overenskomsttillæg | G76: =ROUND(G52*$C52*G$5/100/3,2) -> 0 | H76: 0 | I76: 0 | J76: 0 | K76: 0 | L76: 0 | M76: 0 | N76: 0 | O76: 0 | P76: 0 | Q76: 0 | R76: 0 | S76: 0 | T76: 0 | U76: 0 | V76: 0 | W76: 0 | X76: 0 | Y76: 0 | Z76: 0 | AA76: 0 | AB76: 0 | AC76: 0 | AD76: 0 | AE76: 0
F77: Pensionstillæg af Trepartstillæg | G77: 0 | H77: 0 | I77: 0 | J77: 0 | K77: 0 | L77: 0 | M77: 0 | N77: 0 | O77: 0 | P77: 0 | Q77: 0 | R77: 0
B78: =B76+1 -> 77 | F78: Pensionstillæg souscheftillæg | G78: 0 | H78: 0 | I78: 0 | J78: 0 | K78: 0 | L78: 0 | M78: 0 | N78: 0 | O78: 0 | P78: 0 | Q78: 0 | R78: 0 | S78: 0 | T78: 0 | U78: 0 | V78: 0 | W78: 0 | X78: 0 | Y78: 0 | Z78: 0 | AA78: 0 | AB78: 0 | AC78: 0 | AD78: 0 | AE78: 0
B79: 78 | F79: Pensionstillæg Funktionstillæg 1 | G79: 0 | H79: 0 | I79: 0 | J79: 0 | K79: 0 | L79: 0 | M79: 0 | N79: 0 | O79: 0 | P79: 0 | Q79: 0 | R79: 0 | S79: 0 | T79: 0 | U79: 0 | V79: 0 | W79: 0 | X79: 0 | Y79: 0 | Z79: 0 | AA79: 0 | AB79: 0 | AC79: 0 | AD79: 0 | AE79: 0
B80: 79 | F80: Pensionstillæg Funktionstillæg 2 | G80: 0 | H80: 0 | I80: 0 | J80: 0 | K80: 0 | L80: 0 | M80: 0 | N80: 0 | O80: 0 | P80: 0 | Q80: 0 | R80: 0 | S80: 0 | T80: 0 | U80: 0 | V80: 0 | W80: 0 | X80: 0 | Y80: 0 | Z80: 0 | AA80: 0 | AB80: 0 | AC80: 0 | AD80: 0 | AE80: 0
B81: 80 | F81: Pensionstillæg Funktionstillæg 3 | G81: 0 | H81: 0 | I81: 0 | J81: 0 | K81: 0 | L81: 0 | M81: 0 | N81: 0 | O81: 0 | P81: 0 | Q81: 0 | R81: 0 | S81: 0 | T81: 0 | U81: 0 | V81: 0 | W81: 0 | X81: 0 | Y81: 0 | Z81: 0 | AA81: 0 | AB81: 0 | AC81: 0 | AD81: 0 | AE81: 0
B82: 81 | F82: Pensionstillæg Kvalifikationstillæg 1 | G82: 0 | H82: 0 | I82: 0 | J82: 0 | K82: 0 | L82: 0 | M82: 0 | N82: 0 | O82: 0 | P82: 0 | Q82: 0 | R82: 0 | S82: 0 | T82: 0 | U82: 0 | V82: 0 | W82: 0 | X82: 0 | Y82: 0 | Z82: 0 | AA82: 0 | AB82: 0 | AC82: 0 | AD82: 0 | AE82: 0
B83: 82 | F83: Pensionstillæg Kvalifikationstillæg 2 | G83: 0 | H83: 0 | I83: 0 | J83: 0 | K83: 0 | L83: 0 | M83: 0 | N83: 0 | O83: 0 | P83: 0 | Q83: 0 | R83: 0 | S83: 0 | T83: 0 | U83: 0 | V83: 0 | W83: 0 | X83: 0 | Y83: 0 | Z83: 0 | AA83: 0 | AB83: 0 | AC83: 0 | AD83: 0 | AE83: 0
B84: 83 | F84: Pensionstillæg Kvalifikationstillæg 3 | G84: 0 | H84: 0 | I84: 0 | J84: 0 | K84: 0 | L84: 0 | M84: 0 | N84: 0 | O84: 0 | P84: 0 | Q84: 0 | R84: 0 | S84: 0 | T84: 0 | U84: 0 | V84: 0 | W84: 0 | X84: 0 | Y84: 0 | Z84: 0 | AA84: 0 | AB84: 0 | AC84: 0 | AD84: 0 | AE84: 0
B85: 84 | F85: Pensionstillæg af udligningstillæg | G85: 0 | H85: 0 | I85: 0 | J85: 0 | K85: 0 | L85: 0 | M85: 0 | N85: 0 | O85: 0 | P85: 0 | Q85: 0 | R85: 0 | S85: 0 | T85: 0 | U85: 0 | V85: 0 | W85: 0 | X85: 0 | Y85: 0 | Z85: 0 | AA85: 0 | AB85: 0 | AC85: 0 | AD85: 0 | AE85: 0
B86: 85 | F86: Pensionstillæg af seniorbonus | G86: =ROUND(G62*$C62*G$5/100/3,2) -> 0 | H86: 0 | I86: 0 | J86: 0 | K86: 0 | L86: 0 | M86: 0 | N86: 0 | O86: 0 | P86: 0 | Q86: 0 | R86: 0
B87: 86 | F87: Fradrag i pensionstillæg for ikke optjent ferie mv. | G87: =ROUND(G65*$C65*G$5/100/3,2) -> 0 | H87: 0 | I87: 0 | J87: 0 | K87: 0 | L87: 0 | M87: 0 | N87: 0 | O87: 0 | P87: 0 | Q87: 0 | R87: 0 | S87: 0 | T87: 0 | U87: 0 | V87: 0 | W87: 0 | X87: 0 | Y87: 0 | Z87: 0 | AA87: 0 | AB87: 0 | AC87: 0 | AD87: 0 | AE87: 0
B88: 87 | F88: Pensionstillæg af feriedifference | G88: 0 | H88: 0 | I88: 0 | J88: 0 | K88: 0 | L88: 0 | M88: 0 | N88: 0 | O88: 0 | P88: 0 | Q88: 0 | R88: 0 | S88: 0 | T88: 0 | U88: 0 | V88: 0 | W88: 0 | X88: 0 | Y88: 0 | Z88: 0 | AA88: 0 | AB88: 0 | AC88: 0 | AD88: 0 | AE88: 0
B89: 88 | F89: Pensionstillæg af pensiong. engangstillæg | G89: =ROUND(G38*G5/100/3+G42*($C42<>"")*G5/100/3+G43*($C43<>"")*G5/100/3+G44*($C44<>"")*G5/100/3+G45*($C45<>"")*G5/100/3+G46*($C46<>"")*G5/100/3,2) -> 0 | H89: =ROUND(H38*H5/100/3+H42*($C42<>"")*H5/100/3+H43*($C43<>"")*H5/100/3+H44*($C44<>"")*H5/100/3+H45*($C45<>"")*H5/100/3+H46*($C46<>"")*H5/100/3,2) -> 0 | I89: 0 | J89: 0 | K89: 0 | L89: 0 | M89: 0 | N89: 0 | O89: 0 | P89: 0 | Q89: 0 | R89: 0 | S89: 0 | T89: 0 | U89: 0 | V89: 0 | W89: 0 | X89: 0 | Y89: 0 | Z89: 0 | AA89: 0 | AB89: 0 | AC89: 0 | AD89: 0 | AE89: 0
B90: 89 | F90: Ekstra pension hvis orlov uden løn | G90: =IF(G7="Ja",SUM(S75:S88)-SUM(G75:G89),0) -> 0 | H90: =IF(H7="Ja",SUM(T75:T89)-SUM(H75:H89),0) -> 0 | I90: =IF(I7="Ja",SUM(U75:U88)-SUM(I75:I89),0) -> 0 | J90: 0 | K90: 0 | L90: 0 | M90: 0 | N90: 0 | O90: 0 | P90: 0 | Q90: 0 | R90: 0
B91: 90 | F91: Pensionstillæg i alt | G91: =SUM(G75:G90) -> 0 | H91: =SUM(H75:H90) -> 0 | I91: 0 | J91: 0 | K91: 0 | L91: 0 | M91: 0 | N91: 0 | O91: 0 | P91: 0 | Q91: 0 | R91: 0 | S91: =SUM(S75:S89) -> 0 | T91: =SUM(T75:T89) -> 0 | U91: 0 | V91: 0 | W91: 0 | X91: 0 | Y91: 0 | Z91: 0 | AA91: 0 | AB91: 0 | AC91: 0 | AD91: 0 | AE91: 0
B92: 91 | F92: Egetbidrag til ATP | G92: =ROUND(G104/3,2) -> 0 | H92: =ROUND(H104/3,2) -> 0 | I92: 0 | J92: 0 | K92: 0 | L92: 0 | M92: 0 | N92: 0 | O92: 0 | P92: 0 | Q92: 0 | R92: 0 | S92: =ROUND(S104/3,2) -> 0 | T92: =ROUND(T104/3,2) -> 0 | U92: 0 | V92: 0 | W92: 0 | X92: 0 | Y92: 0 | Z92: 0 | AA92: 0 | AB92: 0 | AC92: 0 | AD92: 0 | AE92: =SUM(G92:R92) -> 0
B93: 92 | F93: AMB-grundlag | G93: =IF(G6="nej",G91*-1)+SUM(G51:G68)-G92+G73 -> 0 | H93: =IF(H6="nej",H91*-1)+SUM(H51:H68)-H92+H73 -> 0 | I93: =IF(I6="nej",I91*-1)+SUM(I51:I68)-I92+I73 -> 0 | J93: 0 | K93: 0 | L93: 0 | M93: 0 | N93: 0 | O93: 0 | P93: 0 | Q93: 0 | R93: 0 | S93: =IF(S6="nej",S91*-1)+SUM(S51:S68)-S92 -> 0 | T93: 0 | U93: 0 | V93: 0 | W93: 0 | X93: 0 | Y93: 0 | Z93: 0 | AA93: 0 | AB93: 0 | AC93: 0 | AD93: 0 | AE93: =SUM(G93:R93) -> 0
B94: 93 | F94: AM-bidrag | G94: =ROUND(G93*8%,0) -> 0 | H94: =ROUND(H93*8%,0) -> 0 | I94: 0 | J94: 0 | K94: 0 | L94: 0 | M94: 0 | N94: 0 | O94: 0 | P94: 0 | Q94: 0 | R94: 0 | S94: =ROUND(S93*8%,0) -> 0 | T94: =ROUND(T93*8%,0) -> 0 | U94: 0 | V94: 0 | W94: 0 | X94: 0 | Y94: 0 | Z94: 0 | AA94: 0 | AB94: 0 | AC94: 0 | AD94: 0 | AE94: 0
B95: 94 | F95: A-indkomst | G95: =G93-G94 -> 0 | H95: =H93-H94 -> 0 | I95: 0 | J95: 0 | K95: 0 | L95: 0 | M95: 0 | N95: 0 | O95: 0 | P95: 0 | Q95: 0 | R95: 0 | S95: =S93-S94 -> 0 | T95: =T93-T94 -> 0 | U95: 0 | V95: 0 | W95: 0 | X95: 0 | Y95: 0 | Z95: 0 | AA95: 0 | AB95: 0 | AC95: 0 | AD95: 0 | AE95: 0
B96: 95 | F96: Skattegrundlag | G96: =FLOOR(G95-G32,10) -> 0 | H96: =FLOOR(H95-H32,10) -> 0 | I96: 0 | J96: 0 | K96: 0 | L96: 0 | M96: 0 | N96: 0 | O96: 0 | P96: 0 | Q96: 0 | R96: 0 | S96: =FLOOR(S95-S32,10) -> 0 | T96: =FLOOR(T95-T32,10) -> 0 | U96: 0 | V96: 0 | W96: 0 | X96: 0 | Y96: 0 | Z96: 0 | AA96: 0 | AB96: 0 | AC96: 0 | AD96: 0
B97: 96 | F97: Skat | G97: =ROUND(G96*G31/100,0) -> 0 | H97: 0 | I97: 0 | J97: 0 | K97: 0 | L97: 0 | M97: 0 | N97: 0 | O97: 0 | P97: 0 | Q97: 0 | R97: 0 | S97: 0 | T97: 0 | U97: 0 | V97: 0 | W97: 0 | X97: 0 | Y97: 0 | Z97: 0 | AA97: 0 | AB97: 0 | AC97: 0 | AD97: 0 | AE97: 0
B98: 97 | F98: Feriegodtgørelsesgrundlag | G98: =SUM(G51:G68) -> 0 | H98: =SUM(H51:H68) -> 0 | I98: =SUM(I51:I68) -> 0 | J98: =SUM(J51:J68) -> 0 | K98: =SUM(K51:K68) -> 0 | L98: =SUM(L51:L68) -> 0 | M98: 0 | N98: 0 | O98: 0 | P98: 0 | Q98: 0 | R98: 0 | S98: =SUM(S51:S68) -> 0 | T98: =SUM(T51:T68) -> 0 | U98: =SUM(U51:U68) -> 0 | V98: =SUM(V51:V68) -> 0 | W98: =SUM(W51:W68) -> 0 | X98: =SUM(X51:X68) -> 0 | Y98: 0 | Z98: 0 | AA98: 0 | AB98: 0 | AC98: 0 | AD98: 0 | AE98: =SUM(H98:P98) -> 0
B99: 98 | F99: ="Feriegodtgørelsesgrundlag, juni-juli " -> Feriegodtgørelsesgrundlag, juni-juli | Q99: =SUM(Q51:Q68)-Q41 -> 0 | R99: =SUM(R51:R68)-R41 -> 0 | AC99: =SUM(AC51:AC68)-AC41 -> 0 | AD99: =SUM(AD51:AD68)-AD41 -> 0 | AE99: =SUM(G99:R99) -> 0
B100: 99 | F100: Egetbidrag til pensionskasse | G100: =G91 -> 0 | H100: =H91 -> 0 | I100: 0 | J100: 0 | K100: 0 | L100: 0 | M100: 0 | N100: 0 | O100: 0 | P100: 0 | Q100: 0 | R100: 0 | S100: =S91 -> 0 | T100: =T91 -> 0 | U100: 0 | V100: 0 | W100: 0 | X100: 0 | Y100: 0 | Z100: 0 | AA100: 0 | AB100: 0 | AC100: 0 | AD100: 0 | AE100: 0
B101: 100 | F101: Arbejdsgiverbidrag til pensionskasse | G101: =G100*2 -> 0 | H101: =H100*2 -> 0 | I101: 0 | J101: 0 | K101: 0 | L101: 0 | M101: 0 | N101: 0 | O101: 0 | P101: 0 | Q101: 0 | R101: 0 | S101: =S100*2 -> 0 | T101: =T100*2 -> 0 | U101: 0 | V101: 0 | W101: 0 | X101: 0 | Y101: 0 | Z101: 0 | AA101: 0 | AB101: 0 | AC101: 0 | AD101: 0 | AE101: 0
B102: 101 | F102: Arbejdsgiverbidrag til ATP | G102: =G104*2/3 -> 0 | H102: =H104*2/3 -> 0 | I102: 0 | J102: 0 | K102: 0 | L102: 0 | M102: 0 | N102: 0 | O102: 0 | P102: 0 | Q102: 0 | R102: 0 | S102: =S104*2/3 -> 0 | T102: =T104*2/3 -> 0 | U102: 0 | V102: 0 | W102: 0 | X102: 0 | Y102: 0 | Z102: 0 | AA102: 0 | AB102: 0 | AC102: 0 | AD102: 0 | AE102: 0
B103: 102 | F103: Skolens samlede indbetaling til pensionskasse | G103: =G100+G101 -> 0 | H103: =H100+H101 -> 0 | I103: 0 | J103: 0 | K103: 0 | L103: 0 | M103: 0 | N103: 0 | O103: 0 | P103: 0 | Q103: 0 | R103: 0 | S103: =S100+S101 -> 0 | T103: =T100+T101 -> 0 | U103: 0 | V103: 0 | W103: 0 | X103: 0 | Y103: 0 | Z103: 0 | AA103: 0 | AB103: 0 | AC103: 0 | AD103: 0 | AE103: 0
B104: 103 | F104: Skolens samlede indbetaling til ATP | G104: =297/3*(((G12*G4)>=9/37)+((G12*G4)>=18/37)+((G12*G4)>=27/37)) -> 0 | H104: 0 | I104: 0 | J104: 0 | K104: 0 | L104: =297/3*(((L12*L4)>=9/37)+((L12*L4)>=18/37)+((L12*L4)>=27/37)) -> 0 | M104: =297/3*(((M12*M4)>=9/37)+((M12*M4)>=18/37)+((M12*M4)>=27/37)) -> 0 | N104: 0 | O104: 0 | P104: 0 | Q104: 0 | R104: 0 | S104: 0 | T104: 0 | U104: 0 | V104: 0 | W104: 0 | X104: 0 | Y104: 0 | Z104: 0 | AA104: 0 | AB104: 0 | AC104: 0 | AD104: 0 | AE104: 0
B105: 104 | F105: Indbetaling til Gruppeliv | G105: =G24 -> 0 | H105: =H24 -> 0 | I105: 0 | J105: 0 | K105: 0 | L105: 0 | M105: 0 | N105: 0 | O105: 0 | P105: 0 | Q105: 0 | R105: 0 | S105: =S24 -> 0 | T105: =T24 -> 0 | U105: 0 | V105: 0 | W105: 0 | X105: 0 | Y105: 0 | Z105: 0 | AA105: 0 | AB105: 0 | AC105: 0 | AD105: 0 | AE105: 0
B106: 105 | F106: Løn til den ansattes disposition | G106: =IF(G6="nej",G91*-1)+G74-(G97+G92+G94+G105)-G47-G48-G49 -> 0 | H106: 0 | I106: 0 | J106: 0 | K106: 0 | L106: 0 | M106: 0 | N106: 0 | O106: 0 | P106: 0 | Q106: 0 | R106: 0 | S106: 0 | T106: 0 | U106: 0 | V106: 0 | W106: 0 | X106: 0 | Y106: 0 | Z106: 0 | AA106: 0 | AB106: 0 | AC106: 0 | AD106: 0 | AE106: =SUM(G106:R106) -> 0
B107: 106 | F107: ="Feriepengeberegningsgrundlag, jan-dec "&Aar -> Feriepengeberegningsgrundlag, jan-dec | G107: =(SUM(G51:G68)+G91+G92)*(1-12/260*G26) -> 0 | H107: =(SUM(H51:H68)+H91+H92)*(1-12/260*H26) -> 0 | I107: =(SUM(I51:I68)+I91+I92)*(1-12/260*I26) -> 0 | J107: =(SUM(J51:J68)+J91+J92)*(1-12/260*J26) -> 0 | K107: =(SUM(K51:K68)+K91+K92)*(1-12/260*K26) -> 0 | L107: Kalenderårets sum benyttes ved fratræden og særlige feriedage | S107: =(SUM(S51:S68)+S91+S92)*(1-12/260*S26) -> 0 | T107: =(SUM(T51:T68)+T91+T92)*(1-12/260*T26) -> 0 | U107: =(SUM(U51:U68)+U91+U92)*(1-12/260*U26) -> 0 | V107: =(SUM(V51:V68)+V91+V92)*(1-12/260*V26) -> 0 | W107: =(SUM(W51:W68)+W91+W92)*(1-12/260*W26) -> 0 | X107: Kalenderårets sum benyttes ved fratræden og særlige feriedage | AE107: =A107+SUM(G107:K107) -> 0
B108: 107 | F108: ="Feriepengeberegningsgrundlag, jan-jul "&Aar -> Feriepengeberegningsgrundlag, jan-jul | G108: Kalenderårets sum benyttes ved fratræden og særlige feriedage | L108: =(SUM(L$51:L$68)+L$91+L92)*(1-12/260*L$26) -> 0 | M108: =(SUM(M$51:M$68)+M$91+M92)*(1-12/260*M$26) -> 0 | N108: 0 | O108: 0 | P108: 0 | Q108: 0 | R108: 0 | S108: Kalenderårets sum benyttes ved fratræden og særlige feriedage | X108: =(SUM(X$51:X$68)+X$91+X92)*(1-12/260*X$26) -> 0 | Y108: =(SUM(Y$51:Y$68)+Y$91+Y92)*(1-12/260*Y$26) -> 0 | Z108: 0 | AA108: 0 | AB108: 0 | AC108: 0 | AD108: 0 | AE108: 0
B109: 108 | F109: BG-afhængige løndele | G109: =G51*$D51+G52*$D52+G54*$D54+G55*$D55+G56*$D56+G57*$D57+G58*$D58+G59*$D59+G60*$D60+G61*$D61+G64*$D64 -> 0 | H109: 0 | I109: 0 | J109: 0 | K109: 0 | L109: 0 | M109: 0 | N109: 0 | O109: 0 | P109: 0 | Q109: 0 | R109: 0 | S109: 0 | T109: 0 | U109: 0 | V109: 0 | W109: 0 | X109: 0 | Y109: 0 | Z109: 0 | AA109: 0 | AB109: 0 | AC109: 0 | AD109: 0
B110: 109 | F110: BG-difference >=20% | G110: =IF(G12>0,IF(G12>G28,(G12-G28)/G28>=20%,(G12-G28)/G28<=-20%),"") ->  | P110: =IF(P12>0,IF(P12>P29,(P12-P29)/P29>=20%,(P12-P29)/P29<=-20%),"") ->  | Q110: =IF(Q12>0,IF(Q12>Q29,(Q12-Q29)/Q29>=20%,(Q12-Q29)/Q29<=-20%),"") ->  | R110: =IF(R12>0,IF(R12>R29,(R12-R29)/R29>=20%,(R12-R29)/R29<=-20%),"") ->  | S110: =IF(S12>0,IF(S12>S28,(S12-S28)/S28>=20%,(S12-S28)/S28<=-20%),"") ->  | AB110: =IF(AB12>0,IF(AB12>AB29,(AB12-AB29)/AB29>=20%,(AB12-AB29)/AB29<=-20%),"") ->  | AC110: =IF(AC12>0,IF(AC12>AC29,(AC12-AC29)/AC29>=20%,(AC12-AC29)/AC29<=-20%),"") ->  | AD110: =IF(AD12>0,IF(AD12>AD29,(AD12-AD29)/AD29>=20%,(AD12-AD29)/AD29<=-20%),"") -> 
B160: =B159+1 -> 1
B161: 2 | F161: =IF(ISNUMBER(G1),"Skalatrinsløn","HK-løn") -> HK-løn | G161: ="= "&TEXT(ROUND(VLOOKUP(G13,Skalalontabel12,G11,0)*G10,0),"#.000")&" / 12 * "&TEXT(G12,"0,0000")&" * "&TEXT(G$4,"#0/#0")&" =" -> 
B162: 3 | F162: Fast løn | G162: ="= "&TEXT(G14,"#.000,00")&" / 12 "&IF($D52>0," * "&TEXT(G$12,"0,0000"),"")&IF($E52>0," * "&G$10,"")&" * "&TEXT(G$4,"#0/#0")&" =" -> = 000,00 / 12 * 0,0000 * 1,233095 * 1/1 = | H162: = 000,00 / 12 * 0,0000 * 1,233095 * 1/1 = | I162: = 000,00 / 12 * 0,0000 * 1,233095 * 1/1 = | J162: = 000,00 / 12 * 0,0000 * * 1/1 = | K162: = 000,00 / 12 * 0,0000 * 0 * 1/1 = | L162: = 000,00 / 12 * 0,0000 * 0 * 1/1 = | M162: = 000,00 / 12 * 0,0000 * 0 * 1/1 = | N162: = 000,00 / 12 * 0,0000 * 0 * 1/1 = | O162: = 000,00 / 12 * 0,0000 * * 1/1 = | P162: = 000,00 / 12 * 0,0000 * 0 * 1/1 = | Q162: = 000,00 / 12 * 0,0000 * 0 * 1/1 = | R162: = 000,00 / 12 * 0,0000 * 0 * 1/1 = | S162: = 000,00 / 12 * 0,0000 * 1,233095 * 1/1 = | T162: = 000,00 / 12 * 0,0000 * 1,233095 * 1/1 = | U162: = 000,00 / 12 * 0,0000 * 1,233095 * 1/1 = | V162: = 000,00 / 12 * 0,0000 * 0 * 1/1 = | W162: = 000,00 / 12 * 0,0000 * 0 * 1/1 = | X162: = 000,00 / 12 * 0,0000 * 0 * 1/1 = | Y162: = 000,00 / 12 * 0,0000 * 0 * 1/1 = | Z162: = 000,00 / 12 * 0,0000 * 0 * 1/1 = | AA162: = 000,00 / 12 * 0,0000 * 0 * 1/1 = | AB162: = 000,00 / 12 * 0,0000 * 0 * 1/1 = | AC162: = 000,00 / 12 * 0,0000 * 0 * 1/1 = | AD162: = 000,00 / 12 * 0,0000 * 0 * 1/1 =
F163: Trepartstllæg | G163: = 000,00 / 12 * 0,0000 * 1,233095 * 1/1 = | H163: = 000,00 / 12 * 0,0000 * 1,233095 * 1/1 = | I163: = 000,00 / 12 * 0,0000 * 1,233095 * 1/1 = | J163: = 000,00 / 12 * 0,0000 * * 1/1 = | K163: = 000,00 / 12 * 0,0000 * 0 * 1/1 = | L163: = 000,00 / 12 * 0,0000 * 0 * 1/1 = | M163: = 000,00 / 12 * 0,0000 * 0 * 1/1 = | N163: = 000,00 / 12 * 0,0000 * 0 * 1/1 = | O163: = 000,00 / 12 * 0,0000 * * 1/1 = | P163: = 000,00 / 12 * 0,0000 * 0 * 1/1 = | Q163: = 000,00 / 12 * 0,0000 * 0 * 1/1 = | R163: = 000,00 / 12 * 0,0000 * 0 * 1/1 =
B164: =B162+1 -> 4 | F164: Sousdheftillæg | G164: = 000,00 / 12 * 1,233095 * 1/1 = | H164: = 000,00 / 12 * 1,233095 * 1/1 = | I164: = 000,00 / 12 * 1,233095 * 1/1 = | J164: = 000,00 / 12 * * 1/1 = | K164: = 000,00 / 12 * 0 * 1/1 = | L164: = 000,00 / 12 * 0 * 1/1 = | M164: = 000,00 / 12 * 0 * 1/1 = | N164: = 000,00 / 12 * 0 * 1/1 = | O164: = 000,00 / 12 * * 1/1 = | P164: = 000,00 / 12 * 0 * 1/1 = | Q164: = 000,00 / 12 * 0 * 1/1 = | R164: = 000,00 / 12 * 0 * 1/1 = | S164: = 000,00 / 12 * 1,233095 * 1/1 = | T164: = 000,00 / 12 * 1,233095 * 1/1 = | U164: = 000,00 / 12 * 1,233095 * 1/1 = | V164: = 000,00 / 12 * 0 * 1/1 = | W164: = 000,00 / 12 * 0 * 1/1 = | X164: = 000,00 / 12 * 0 * 1/1 = | Y164: = 000,00 / 12 * 0 * 1/1 = | Z164: = 000,00 / 12 * 0 * 1/1 = | AA164: = 000,00 / 12 * 0 * 1/1 = | AB164: = 000,00 / 12 * 0 * 1/1 = | AC164: = 000,00 / 12 * 0 * 1/1 = | AD164: = 000,00 / 12 * 0 * 1/1 =
B165: 5 | F165: Funktionstillæg 1 | G165: ="= "&TEXT(G17,"#.000,00")&" / 12 "&IF($D55>0," * "&TEXT(G$12,"0,0000"),"")&IF($E55>0," * "&G$10,"")&" * "&TEXT(G$4,"#0/#0")&" =" -> = 000,00 / 12 * 1,233095 * 1/1 = | H165: ="= "&TEXT(H17,"#.000,00")&" / 12 "&IF($D55>0," * "&TEXT(H$12,"0,0000"),"")&IF($E165>0," * "&H$10,"")&" * "&TEXT(H$4,"#0/#0")&" =" -> = 000,00 / 12 * 1/1 = | I165: = 000,00 / 12 * 1/1 = | J165: = 000,00 / 12 * 1/1 = | K165: = 000,00 / 12 * 1/1 = | L165: = 000,00 / 12 * 1/1 = | M165: = 000,00 / 12 * 1/1 = | N165: = 000,00 / 12 * 1/1 = | O165: = 000,00 / 12 * 1/1 = | P165: = 000,00 / 12 * 1/1 = | Q165: = 000,00 / 12 * 1/1 = | R165: = 000,00 / 12 * 1/1 = | S165: = 000,00 / 12 * 1/1 = | T165: = 000,00 / 12 * 1/1 = | U165: = 000,00 / 12 * 1/1 = | V165: = 000,00 / 12 * 1/1 = | W165: = 000,00 / 12 * 1/1 = | X165: = 000,00 / 12 * 1/1 = | Y165: = 000,00 / 12 * 1/1 = | Z165: = 000,00 / 12 * 1/1 = | AA165: = 000,00 / 12 * 1/1 = | AB165: = 000,00 / 12 * 1/1 = | AC165: = 000,00 / 12 * 1/1 = | AD165: = 000,00 / 12 * 1/1 =
B166: 6 | F166: Funktionstillæg 2 | G166: ="= "&TEXT(G18,"#.000,00")&" / 12 "&IF($D56>0," * "&TEXT(G$12,"0,0000"),"")&IF($E56>0," * "&G$10,"")&" * "&TEXT(G$4,"#0/#0")&" =" -> = 000,00 / 12 * 1,233095 * 1/1 = | H166: = 000,00 / 12 * 1,233095 * 1/1 = | I166: = 000,00 / 12 * 1,233095 * 1/1 = | J166: = 000,00 / 12 * * 1/1 = | K166: = 000,00 / 12 * 0 * 1/1 = | L166: = 000,00 / 12 * 0 * 1/1 = | M166: = 000,00 / 12 * 0 * 1/1 = | N166: = 000,00 / 12 * 0 * 1/1 = | O166: = 000,00 / 12 * * 1/1 = | P166: = 000,00 / 12 * 0 * 1/1 = | Q166: = 000,00 / 12 * 0 * 1/1 = | R166: = 000,00 / 12 * 0 * 1/1 = | S166: = 000,00 / 12 * 1,233095 * 1/1 = | T166: = 000,00 / 12 * 1,233095 * 1/1 = | U166: = 000,00 / 12 * 1,233095 * 1/1 = | V166: = 000,00 / 12 * 0 * 1/1 = | W166: = 000,00 / 12 * 0 * 1/1 = | X166: = 000,00 / 12 * 0 * 1/1 = | Y166: = 000,00 / 12 * 0 * 1/1 = | Z166: = 000,00 / 12 * 0 * 1/1 = | AA166: = 000,00 / 12 * 0 * 1/1 = | AB166: = 000,00 / 12 * 0 * 1/1 = | AC166: = 000,00 / 12 * 0 * 1/1 = | AD166: = 000,00 / 12 * 0 * 1/1 =
B167: 7 | F167: Funktionstillæg 3 | G167: = 000,00 / 12 * 1,233095 * 1/1 = | H167: = 000,00 / 12 * 1,233095 * 1/1 = | I167: = 000,00 / 12 * 1,233095 * 1/1 = | J167: = 000,00 / 12 * * 1/1 = | K167: = 000,00 / 12 * 0 * 1/1 = | L167: = 000,00 / 12 * 0 * 1/1 = | M167: = 000,00 / 12 * 0 * 1/1 = | N167: = 000,00 / 12 * 0 * 1/1 = | O167: = 000,00 / 12 * * 1/1 = | P167: = 000,00 / 12 * 0 * 1/1 = | Q167: = 000,00 / 12 * 0 * 1/1 = | R167: = 000,00 / 12 * 0 * 1/1 = | S167: = 000,00 / 12 * 1,233095 * 1/1 = | T167: = 000,00 / 12 * 1,233095 * 1/1 = | U167: = 000,00 / 12 * 1,233095 * 1/1 = | V167: = 000,00 / 12 * 0 * 1/1 = | W167: = 000,00 / 12 * 0 * 1/1 = | X167: = 000,00 / 12 * 0 * 1/1 = | Y167: = 000,00 / 12 * 0 * 1/1 = | Z167: = 000,00 / 12 * 0 * 1/1 = | AA167: = 000,00 / 12 * 0 * 1/1 = | AB167: = 000,00 / 12 * 0 * 1/1 = | AC167: = 000,00 / 12 * 0 * 1/1 = | AD167: = 000,00 / 12 * 0 * 1/1 =
B168: 8 | F168: Kvalifikationstillæg 1 | G168: = 000,00 / 12 * 0,0000 * 1,233095 * 1/1 = | H168: = 000,00 / 12 * 0,0000 * 1,233095 * 1/1 = | I168: = 000,00 / 12 * 0,0000 * 1,233095 * 1/1 = | J168: = 000,00 / 12 * 0,0000 * * 1/1 = | K168: = 000,00 / 12 * 0,0000 * 0 * 1/1 = | L168: = 000,00 / 12 * 0,0000 * 0 * 1/1 = | M168: = 000,00 / 12 * 0,0000 * 0 * 1/1 = | N168: = 000,00 / 12 * 0,0000 * 0 * 1/1 = | O168: = 000,00 / 12 * 0,0000 * * 1/1 = | P168: = 000,00 / 12 * 0,0000 * 0 * 1/1 = | Q168: = 000,00 / 12 * 0,0000 * 0 * 1/1 = | R168: = 000,00 / 12 * 0,0000 * 0 * 1/1 = | S168: = 000,00 / 12 * 0,0000 * 1,233095 * 1/1 = | T168: = 000,00 / 12 * 0,0000 * 1,233095 * 1/1 = | U168: = 000,00 / 12 * 0,0000 * 1,233095 * 1/1 = | V168: = 000,00 / 12 * 0,0000 * 0 * 1/1 = | W168: = 000,00 / 12 * 0,0000 * 0 * 1/1 = | X168: = 000,00 / 12 * 0,0000 * 0 * 1/1 = | Y168: = 000,00 / 12 * 0,0000 * 0 * 1/1 = | Z168: = 000,00 / 12 * 0,0000 * 0 * 1/1 = | AA168: = 000,00 / 12 * 0,0000 * 0 * 1/1 = | AB168: = 000,00 / 12 * 0,0000 * 0 * 1/1 = | AC168: = 000,00 / 12 * 0,0000 * 0 * 1/1 = | AD168: = 000,00 / 12 * 0,0000 * 0 * 1/1 =
B169: 9 | F169: Kvalifikationstillæg 2 | G169: = 000,00 / 12 * 0,0000 * 1,233095 * 1/1 = | H169: = 000,00 / 12 * 0,0000 * 1,233095 * 1/1 = | I169: = 000,00 / 12 * 0,0000 * 1,233095 * 1/1 = | J169: = 000,00 / 12 * 0,0000 * * 1/1 = | K169: = 000,00 / 12 * 0,0000 * 0 * 1/1 = | L169: = 000,00 / 12 * 0,0000 * 0 * 1/1 = | M169: = 000,00 / 12 * 0,0000 * 0 * 1/1 = | N169: = 000,00 / 12 * 0,0000 * 0 * 1/1 = | O169: = 000,00 / 12 * 0,0000 * * 1/1 = | P169: = 000,00 / 12 * 0,0000 * 0 * 1/1 = | Q169: = 000,00 / 12 * 0,0000 * 0 * 1/1 = | R169: = 000,00 / 12 * 0,0000 * 0 * 1/1 = | S169: = 000,00 / 12 * 0,0000 * 1,233095 * 1/1 = | T169: = 000,00 / 12 * 0,0000 * 1,233095 * 1/1 = | U169: = 000,00 / 12 * 0,0000 * 1,233095 * 1/1 = | V169: = 000,00 / 12 * 0,0000 * 0 * 1/1 = | W169: = 000,00 / 12 * 0,0000 * 0 * 1/1 = | X169: = 000,00 / 12 * 0,0000 * 0 * 1/1 = | Y169: = 000,00 / 12 * 0,0000 * 0 * 1/1 = | Z169: = 000,00 / 12 * 0,0000 * 0 * 1/1 = | AA169: = 000,00 / 12 * 0,0000 * 0 * 1/1 = | AB169: = 000,00 / 12 * 0,0000 * 0 * 1/1 = | AC169: = 000,00 / 12 * 0,0000 * 0 * 1/1 = | AD169: = 000,00 / 12 * 0,0000 * 0 * 1/1 =
B170: 10 | F170: Kvalifikationstillæg 3 | G170: = 000,00 / 12 * 0,0000 * 1,233095 * 1/1 = | H170: = 000,00 / 12 * 0,0000 * 1,233095 * 1/1 = | I170: = 000,00 / 12 * 0,0000 * 1,233095 * 1/1 = | J170: = 000,00 / 12 * 0,0000 * * 1/1 = | K170: = 000,00 / 12 * 0,0000 * 0 * 1/1 = | L170: = 000,00 / 12 * 0,0000 * 0 * 1/1 = | M170: = 000,00 / 12 * 0,0000 * 0 * 1/1 = | N170: = 000,00 / 12 * 0,0000 * 0 * 1/1 = | O170: = 000,00 / 12 * 0,0000 * * 1/1 = | P170: = 000,00 / 12 * 0,0000 * 0 * 1/1 = | Q170: = 000,00 / 12 * 0,0000 * 0 * 1/1 = | R170: = 000,00 / 12 * 0,0000 * 0 * 1/1 = | S170: = 000,00 / 12 * 0,0000 * 1,233095 * 1/1 = | T170: = 000,00 / 12 * 0,0000 * 1,233095 * 1/1 = | U170: = 000,00 / 12 * 0,0000 * 1,233095 * 1/1 = | V170: = 000,00 / 12 * 0,0000 * 0 * 1/1 = | W170: = 000,00 / 12 * 0,0000 * 0 * 1/1 = | X170: = 000,00 / 12 * 0,0000 * 0 * 1/1 = | Y170: = 000,00 / 12 * 0,0000 * 0 * 1/1 = | Z170: = 000,00 / 12 * 0,0000 * 0 * 1/1 = | AA170: = 000,00 / 12 * 0,0000 * 0 * 1/1 = | AB170: = 000,00 / 12 * 0,0000 * 0 * 1/1 = | AC170: = 000,00 / 12 * 0,0000 * 0 * 1/1 = | AD170: = 000,00 / 12 * 0,0000 * 0 * 1/1 =
B171: 11 | F171: Udligningstillæg | G171: = 000,00 / 12 * 0,0000 * 1,233095 * 1/1 = | H171: = 000,00 / 12 * 0,0000 * 1,233095 * 1/1 = | I171: = 000,00 / 12 * 0,0000 * 1,233095 * 1/1 = | J171: = 000,00 / 12 * 0,0000 * * 1/1 = | K171: = 000,00 / 12 * 0,0000 * 0 * 1/1 = | L171: = 000,00 / 12 * 0,0000 * 0 * 1/1 = | M171: = 000,00 / 12 * 0,0000 * 0 * 1/1 = | N171: = 000,00 / 12 * 0,0000 * 0 * 1/1 = | O171: = 000,00 / 12 * 0,0000 * * 1/1 = | P171: = 000,00 / 12 * 0,0000 * 0 * 1/1 = | Q171: = 000,00 / 12 * 0,0000 * 0 * 1/1 = | R171: = 000,00 / 12 * 0,0000 * 0 * 1/1 = | S171: = 000,00 / 12 * 0,0000 * 1,233095 * 1/1 = | T171: = 000,00 / 12 * 0,0000 * 1,233095 * 1/1 = | U171: = 000,00 / 12 * 0,0000 * 1,233095 * 1/1 = | V171: = 000,00 / 12 * 0,0000 * 0 * 1/1 = | W171: = 000,00 / 12 * 0,0000 * 0 * 1/1 = | X171: = 000,00 / 12 * 0,0000 * 0 * 1/1 = | Y171: = 000,00 / 12 * 0,0000 * 0 * 1/1 = | Z171: = 000,00 / 12 * 0,0000 * 0 * 1/1 = | AA171: = 000,00 / 12 * 0,0000 * 0 * 1/1 = | AB171: = 000,00 / 12 * 0,0000 * 0 * 1/1 = | AC171: = 000,00 / 12 * 0,0000 * 0 * 1/1 = | AD171: = 000,00 / 12 * 0,0000 * 0 * 1/1 =
F172: Seniorbonus | G172: 0,8% af alle fastpåregnelige tillæg | H172: 0,8% af alle fastpåregnelige tillæg | I172: 0,8% af alle fastpåregnelige tillæg | J172: 0,8% af alle fastpåregnelige tillæg | K172: 0,8% af alle fastpåregnelige tillæg | L172: 0,8% af alle fastpåregnelige tillæg | M172: 0,8% af alle fastpåregnelige tillæg | N172: 0,8% af alle fastpåregnelige tillæg | O172: 0,8% af alle fastpåregnelige tillæg | P172: 0,8% af alle fastpåregnelige tillæg | Q172: 0,8% af alle fastpåregnelige tillæg | R172: 0,8% af alle fastpåregnelige tillæg
B173: =B171+1 -> 12 | F173: Gruppelivstillæg | G173: ="= "&TEXT(G24,"#.##0,00")&" * "&TEXT(G$4,"#0/#0")&" =" -> = 0,00 * 1/1 = | H173: ="= "&TEXT(H24,"#.##0,00")&" * "&TEXT(H$4,"#0/#0")&" =" -> = 0,00 * 1/1 = | I173: = 0,00 * 1/1 = | J173: = 0,00 * 1/1 = | K173: = 0,00 * 1/1 = | L173: = 0,00 * 1/1 = | M173: = 0,00 * 1/1 = | N173: = 0,00 * 1/1 = | O173: = 0,00 * 1/1 = | P173: = 0,00 * 1/1 = | Q173: = 0,00 * 1/1 = | R173: = 0,00 * 1/1 = | S173: ="= "&TEXT(S24,"#.##0,00")&" * "&TEXT(S$4,"#0/#0")&" =" -> = 0,00 * 1/1 = | T173: ="= "&TEXT(T24,"#.##0,00")&" * "&TEXT(T$4,"#0/#0")&" =" -> = 0,00 * 1/1 = | U173: = 0,00 * 1/1 = | V173: = 0,00 * 1/1 = | W173: = 0,00 * 1/1 = | X173: = 0,00 * 1/1 = | Y173: = 0,00 * 1/1 = | Z173: = 0,00 * 1/1 = | AA173: = 0,00 * 1/1 = | AB173: = 0,00 * 1/1 = | AC173: = 0,00 * 1/1 = | AD173: = 0,00 * 1/1 =
B174: 13 | F174: Lokalaftalt ulempegodtgørelse | G174: ="= "&TEXT(G25,"#,00")&IF($D64>0," * "&TEXT(G$12,"0,0000"),"")&IF($E64>0," * "&G$10,"")&" * "&TEXT(G$4,"#0/#0")&" =" -> = ,00 * 1,233095 * 1/1 = | H174: = ,00 * 1,233095 * 1/1 = | I174: = ,00 * 1,233095 * 1/1 = | J174: = ,00 * * 1/1 = | K174: = ,00 * 0 * 1/1 = | L174: = ,00 * 0 * 1/1 = | M174: = ,00 * 0 * 1/1 = | N174: = ,00 * 0 * 1/1 = | O174: = ,00 * * 1/1 = | P174: = ,00 * 0 * 1/1 = | Q174: = ,00 * 0 * 1/1 = | R174: = ,00 * 0 * 1/1 = | S174: = ,00 * 1,233095 * 1/1 = | T174: = ,00 * 1,233095 * 1/1 = | U174: = ,00 * 1,233095 * 1/1 = | V174: = ,00 * 0 * 1/1 = | W174: = ,00 * 0 * 1/1 = | X174: = ,00 * 0 * 1/1 = | Y174: = ,00 * 0 * 1/1 = | Z174: = ,00 * 0 * 1/1 = | AA174: = ,00 * 0 * 1/1 = | AB174: = ,00 * 0 * 1/1 = | AC174: = ,00 * 0 * 1/1 = | AD174: = ,00 * 0 * 1/1 =
B175: 14 | F175: Lønfradrag for ikke optjent ferie mv. | G175: ="= - "&MAX(0,MIN(G26,G27*1))+G30&" * "&IF(G9="JA","4,62%","4,8%")&" * SUM(Lin. 1 - Lin 12)"&" * "&TEXT(G$4,"#0/#0")&" =" -> = - 0 * 4,62% * SUM(Lin. 1 - Lin 12) * 1/1 = | H175: ="= - "&MAX(0,MIN(H26,H27*1))+H30&" * "&IF(H9="JA","4,62%","4,8%")&" * SUM(Lin. 1 - Lin 12) =" -> = - 0 * 4,62% * SUM(Lin. 1 - Lin 12) = | I175: = - 0 * 4,62% * SUM(Lin. 1 - Lin 12) = | J175: = - 0 * 4,62% * SUM(Lin. 1 - Lin 12) = | K175: = - 0 * 4,62% * SUM(Lin. 1 - Lin 12) = | L175: = - 0 * 4,62% * SUM(Lin. 1 - Lin 12) = | M175: = - 0 * 4,62% * SUM(Lin. 1 - Lin 12) = | N175: = - 0 * 4,62% * SUM(Lin. 1 - Lin 12) = | O175: = - 0 * 4,62% * SUM(Lin. 1 - Lin 12) = | P175: = - 0 * 4,62% * SUM(Lin. 1 - Lin 12) = | Q175: = - 0 * 4,62% * SUM(Lin. 1 - Lin 12) = | R175: = - 0 * 4,62% * SUM(Lin. 1 - Lin 12) = | S175: ="= - "&MAX(0,MIN(S26,S27*1))+S30&" * "&IF(S9="JA","4,62%","4,8%")&" * SUM(Lin. 1 - Lin 12)"&" * "&TEXT(S$4,"#0/#0")&" =" -> = - 0 * 4,62% * SUM(Lin. 1 - Lin 12) * 1/1 = | T175: ="= - "&MAX(0,MIN(T26,T27*1))+T30&" * "&IF(T9="JA","4,62%","4,8%")&" * SUM(Lin. 1 - Lin 12) =" -> = - 0 * 4,62% * SUM(Lin. 1 - Lin 12) = | U175: = - 0 * 4,62% * SUM(Lin. 1 - Lin 12) = | V175: = - 0 * 4,62% * SUM(Lin. 1 - Lin 12) = | W175: = - 0 * 4,62% * SUM(Lin. 1 - Lin 12) = | X175: = - 0 * 4,62% * SUM(Lin. 1 - Lin 12) = | Y175: = - 0 * 4,62% * SUM(Lin. 1 - Lin 12) = | Z175: = - 0 * 4,62% * SUM(Lin. 1 - Lin 12) = | AA175: = - 0 * 4,62% * SUM(Lin. 1 - Lin 12) = | AB175: = - 0 * 4,62% * SUM(Lin. 1 - Lin 12) = | AC175: = - 0 * 4,62% * SUM(Lin. 1 - Lin 12) = | AD175: = - 0 * 4,62% * SUM(Lin. 1 - Lin 12) =
B176: 16 | F176: Feriedifference. Pensionsgivende | H176: ="= "&IF(LEFT(H9)="N","( "&H28&" - "&H12&") * 4,8% * "&H109&" * "&MAX((H26-H27),0)*H110,"( "&H28&" - "&H12&") * 4,62% * "&H109&" * "&MAX((H26-H27),0))&" =" -> = ( - 0) * 4,62% * 0 * 2 = | I176: = ( - 0) * 4,62% * 0 * 5 = | J176: = ( - 0) * 4,62% * 0 * 0 = | K176: = ( - 0) * 4,62% * 0 * 0 = | L176: = ( - 0) * 4,62% * 0 * 0 = | M176: = ( - 0) * 4,62% * 0 * 5 = | N176: = ( - 0) * 4,62% * 0 * 0 = | O176: = ( - 0) * 4,62% * 0 * 0 = | P176: ="= "&IF(LEFT(P9)="N","( "&ROUND(P29,4)&" - "&P12&") * 4,8% * "&P109&" * "&MAX((P26-P27),0)*P110,"( "&ROUND(P29,4)&" - "&P12&") * 4,62% * "&P109&" * "&MAX((P26-P27),0))&" =" -> = ( 0 - 0) * 4,62% * 0 * 0 = | Q176: ="= "&IF(LEFT(Q9)="N","( "&ROUND(Q29,4)&" - "&Q12&") * 4,8% * "&Q109&" * "&MAX((Q26-Q27),0)*Q110,"( "&ROUND(Q29,4)&" - "&Q12&") * 4,62% * "&Q109&" * "&MAX((Q26-Q27),0))&" =" -> = ( 0 - 0) * 4,62% * 0 * 0 = | R176: ="= "&IF(LEFT(R9)="N","( "&ROUND(R29,4)&" - "&R12&") * 4,8% * "&R109&" * "&MAX((R26-R27),0)*R110,"( "&ROUND(R29,4)&" - "&R12&") * 4,62% * "&R109&" * "&MAX((R26-R27),0))&" =" -> = ( 0 - 0) * 4,62% * 0 * 15 = | T176: ="= "&IF(LEFT(T9)="N","( "&T28&" - "&T12&") * 4,8% * "&T109&" * "&MAX((T26-T27),0)*T110,"( "&T28&" - "&T12&") * 4,62% * "&T109&" * "&MAX((T26-T27),0))&" =" -> = ( 0 - 0) * 4,62% * 0 * 2 = | U176: = ( 0 - 0) * 4,62% * 0 * 5 = | V176: = ( 0 - 0) * 4,62% * 0 * 0 = | W176: = ( 0 - 0) * 4,62% * 0 * 0 = | X176: = ( 0 - 0) * 4,62% * 0 * 0 = | Y176: = ( 0 - 0) * 4,62% * 0 * 5 = | Z176: = ( 0 - 0) * 4,62% * 0 * 0 = | AA176: = ( 0 - 0) * 4,62% * 0 * 0 = | AB176: ="= "&IF(LEFT(AB9)="N","( "&ROUND(AB29,4)&" - "&AB12&") * 4,8% * "&AB109&" * "&MAX((AB26-AB27),0)*AB110,"( "&ROUND(AB29,4)&" - "&AB12&") * 4,62% * "&AB109&" * "&MAX((AB26-AB27),0))&" =" -> = ( 0 - 0) * 4,62% * 0 * 0 = | AC176: ="= "&IF(LEFT(AC9)="N","( "&ROUND(AC29,4)&" - "&AC12&") * 4,8% * "&AC109&" * "&MAX((AC26-AC27),0)*AC110,"( "&ROUND(AC29,4)&" - "&AC12&") * 4,62% * "&AC109&" * "&MAX((AC26-AC27),0))&" =" -> = ( 0 - 0) * 4,62% * 0 * 0 = | AD176: ="= "&IF(LEFT(AD9)="N","( "&ROUND(AD29,4)&" - "&AD12&") * 4,8% * "&AD109&" * "&MAX((AD26-AD27),0)*AD110,"( "&ROUND(AD29,4)&" - "&AD12&") * 4,62% * "&AD109&" * "&MAX((AD26-AD27),0))&" =" -> = ( 0 - 0) * 4,62% * 0 * 15 =
B177: 17 | F177: Feriedifferende. Ikke pensionsgivende
B178: 18 | F178: Engangsudbetalinger iflg. specifikation | G178: =SUBSTITUTE(TRIM("=SUM("&MAX(G36-8000,0)&" "&G37&" "&G38&" "&G39&" "&G40&" "&G42&" "&G43&" "&G44&" "&G45&" "&G46&")")," ","; ")&" =" -> =SUM(0; ) = | H178: =SUBSTITUTE(TRIM("=SUM("&MAX(H36-8000,0)&" "&H37&" "&H38&" "&H39&" "&H40&" "&H42&" "&H43&" "&H44&" "&H45&" "&H46&")")," ","; ")&" =" -> =SUM(0; ) = | I178: =SUM(0; ) = | J178: =SUM(0; ) = | K178: =SUM(0; ) = | L178: =SUM(0; ) = | M178: =SUM(0; ) = | N178: =SUM(0; ) = | O178: =SUM(0; ) = | P178: =SUM(0; ) = | Q178: =SUM(0; ) = | R178: =SUM(0; ) = | S178: =SUBSTITUTE(TRIM("=SUM("&MAX(S36-8000,0)&" "&S37&" "&S38&" "&S39&" "&S40&" "&S42&" "&S43&" "&S44&" "&S45&" "&S46&")")," ","; ")&" =" -> =SUM(0; 0; 0; 0; 0; 0; 0; 0; 0; 0) = | T178: =SUBSTITUTE(TRIM("=SUM("&MAX(T36-8000,0)&" "&T37&" "&T38&" "&T39&" "&T40&" "&T42&" "&T43&" "&T44&" "&T45&" "&T46&")")," ","; ")&" =" -> =SUM(0; 0; 0; 0; 0; 0; 0; 0; 0; 0) = | U178: =SUM(0; 0; 0; 0; 0; 0; 0; 0; 0; 0) = | V178: =SUM(0; 0; 0; 0; 0; 0; 0; 0; 0; 0) = | W178: =SUM(0; 0; 0; 0; 0; 0; 0; 0; 0; 0) = | X178: =SUM(0; 0; 0; 0; 0; 0; 0; 0; 0; 0) = | Y178: =SUM(0; 0; 0; 0; 0; 0; 0; 0; 0; 0) = | Z178: =SUM(0; 0; 0; 0; 0; 0; 0; 0; 0; 0) = | AA178: =SUM(0; 0; 0; 0; 0; 0; 0; 0; 0; 0) = | AB178: =SUM(0; 0; 0; 0; 0; 0; 0; 0; 0; 0) = | AC178: =SUM(0; 0; 0; 0; 0; 0; 0; 0; 0; 0) = | AD178: =SUM(0; 0; 0; 0; 0; 0; 0; 0; 0; 0) =
B179: 19 | F179: Skattefri engangsudbetalinger iflg. spec. | G179: =SUBSTITUTE(TRIM("=SUM("&G33&" * "&$D33&" "&G34&" * "&$D34&" "&G35&" "&MIN(G36,8000)&")")," ","; ")&" =" -> =SUM(; *; 2,23; *; 3,81; 8000) = | H179: =SUBSTITUTE(TRIM("=SUM("&H33&" * "&$D33&" "&H34&" * "&$D34&" "&H35&" "&MIN(H36,8000)&")")," ","; ")&" =" -> =SUM(; *; 2,23; *; 3,81; 8000) = | I179: =SUBSTITUTE(TRIM("=SUM("&I33&" * "&$D33&" "&I34&" * "&$D34&" "&I35&" "&MIN(I36,8000)&")")," ","; ")&" =" -> =SUM(; *; 2,23; *; 3,81; 8000) = | J179: =SUBSTITUTE(TRIM("=SUM("&J33&" * "&$D33&" "&J34&" * "&$D34&" "&J35&" "&MIN(J36,8000)&")")," ","; ")&" =" -> =SUM(; *; 2,23; *; 3,81; 8000) = | K179: =SUBSTITUTE(TRIM("=SUM("&K33&" * "&$D33&" "&K34&" * "&$D34&" "&K35&" "&MIN(K36,8000)&")")," ","; ")&" =" -> =SUM(; *; 2,23; *; 3,81; 8000) = | L179: =SUBSTITUTE(TRIM("=SUM("&L33&" * "&$E33&" "&L34&" * "&$E34&" "&L35&" "&MIN(L36,8000)&")")," ","; ")&" =" -> =SUM(; *; *; 8000) = | M179: =SUBSTITUTE(TRIM("=SUM("&M33&" * "&$E33&" "&M34&" * "&$E34&" "&M35&" "&MIN(M36,8000)&")")," ","; ")&" =" -> =SUM(; *; *; 8000) = | N179: =SUM(; *; *; 8000) = | O179: =SUM(; *; *; 8000) = | P179: =SUM(; *; *; 8000) = | Q179: =SUM(; *; *; 8000) = | R179: =SUM(; *; *; 8000) = | S179: =SUBSTITUTE(TRIM("=SUM("&S33&" * "&$D33&" "&S34&" * "&$D34&" "&S35&" "&MIN(S36,8000)&")")," ","; ")&" =" -> =SUM(0; *; 2,23; 0; *; 3,81; 0; 0) = | T179: =SUBSTITUTE(TRIM("=SUM("&T33&" * "&$D33&" "&T34&" * "&$D34&" "&T35&" "&MIN(T36,8000)&")")," ","; ")&" =" -> =SUM(0; *; 2,23; 0; *; 3,81; 0; 0) = | U179: =SUBSTITUTE(TRIM("=SUM("&U33&" * "&$D33&" "&U34&" * "&$D34&" "&U35&" "&MIN(U36,8000)&")")," ","; ")&" =" -> =SUM(0; *; 2,23; 0; *; 3,81; 0; 0) = | V179: =SUBSTITUTE(TRIM("=SUM("&V33&" * "&$D33&" "&V34&" * "&$D34&" "&V35&" "&MIN(V36,8000)&")")," ","; ")&" =" -> =SUM(0; *; 2,23; 0; *; 3,81; 0; 0) = | W179: =SUBSTITUTE(TRIM("=SUM("&W33&" * "&$D33&" "&W34&" * "&$D34&" "&W35&" "&MIN(W36,8000)&")")," ","; ")&" =" -> =SUM(0; *; 2,23; 0; *; 3,81; 0; 0) = | X179: =SUBSTITUTE(TRIM("=SUM("&X33&" * "&$E33&" "&X34&" * "&$E34&" "&X35&" "&MIN(X36,8000)&")")," ","; ")&" =" -> =SUM(0; *; 0; *; 0; 0) = | Y179: =SUBSTITUTE(TRIM("=SUM("&Y33&" * "&$E33&" "&Y34&" * "&$E34&" "&Y35&" "&MIN(Y36,8000)&")")," ","; ")&" =" -> =SUM(0; *; 0; *; 0; 0) = | Z179: =SUM(0; *; 0; *; 0; 0) = | AA179: =SUM(0; *; 0; *; 0; 0) = | AB179: =SUM(0; *; 0; *; 0; 0) = | AC179: =SUM(0; *; 0; *; 0; 0) = | AD179: =SUM(0; *; 0; *; 0; 0) =
B180: 20 | F180: Bruttoløn (ekskl. pensionstillæg og ATP)
B181: 21 | F181: Pensionstillæg skalatrinsløn eller HK-løn | G181: ="= "&ROUND(VLOOKUP(G13,Skalalontabel12,7,0)*G$10,0)&" / 12 * "&TEXT(G$12,"0,0000")&" * "&G5&"% / 3 =" -> 
B182: 22 | F182: Pensionstillæg overenskomsttillæg | G182: =IF($C52>0,"= "&G52&" * "&G$5&"% / 3 =") -> = 0 * % / 3 = | H182: =IF($C52>0,H52&" * "&H$5&"% / 3 =") -> 0 * 0% / 3 = | I182: 0 * 0% / 3 = | J182: 0 * 0% / 3 = | K182: 0 * 0% / 3 = | L182: 0 * 0% / 3 = | M182: 0 * 0% / 3 = | N182: 0 * 0% / 3 = | O182: 0 * 0% / 3 = | P182: 0 * 0% / 3 = | Q182: 0 * 0% / 3 = | R182: 0 * 0% / 3 = | S182: =IF($C52>0,"= "&S52&" * "&S$5&"% / 3 =") -> = 0 * 0% / 3 = | T182: =IF($C52>0,T52&" * "&T$5&"% / 3 =") -> 0 * 0% / 3 = | U182: 0 * 0% / 3 = | V182: 0 * 0% / 3 = | W182: 0 * 0% / 3 = | X182: 0 * 0% / 3 = | Y182: 0 * 0% / 3 = | Z182: 0 * 0% / 3 = | AA182: 0 * 0% / 3 = | AB182: 0 * 0% / 3 = | AC182: 0 * 0% / 3 = | AD182: 0 * 0% / 3 =
F183: Pensionstillæg Trepartsaftale | G183: = 0 * % / 3 = | H183: = 0 * 0% / 3 = | I183: = 0 * 0% / 3 = | J183: = 0 * 0% / 3 = | K183: = 0 * 0% / 3 = | L183: = 0 * 0% / 3 = | M183: = 0 * 0% / 3 = | N183: = 0 * 0% / 3 = | O183: = 0 * 0% / 3 = | P183: = 0 * 0% / 3 = | Q183: = 0 * 0% / 3 = | R183: = 0 * 0% / 3 =
B184: =B182+1 -> 23 | F184: Pensionstillæg souscheftillæg | G184: = 0 * % / 3 = | H184: =IF($C54>0,H54&" * "&H$5&"% / 3 =") -> 0 * 0% / 3 = | I184: 0 * 0% / 3 = | J184: 0 * 0% / 3 = | K184: 0 * 0% / 3 = | L184: 0 * 0% / 3 = | M184: 0 * 0% / 3 = | N184: 0 * 0% / 3 = | O184: 0 * 0% / 3 = | P184: 0 * 0% / 3 = | Q184: 0 * 0% / 3 = | R184: 0 * 0% / 3 = | S184: =IF($C54>0,"= "&S54&" * "&S$5&"% / 3 =") -> = 0 * 0% / 3 = | T184: =IF($C54>0,T54&" * "&T$5&"% / 3 =") -> 0 * 0% / 3 = | U184: 0 * 0% / 3 = | V184: 0 * 0% / 3 = | W184: 0 * 0% / 3 = | X184: 0 * 0% / 3 = | Y184: 0 * 0% / 3 = | Z184: 0 * 0% / 3 = | AA184: 0 * 0% / 3 = | AB184: 0 * 0% / 3 = | AC184: 0 * 0% / 3 = | AD184: 0 * 0% / 3 =
B185: 24 | F185: Pensionstillæg Funktionstillæg 1 | G185: = 0 * % / 3 = | H185: 0 * 0% / 3 = | I185: 0 * 0% / 3 = | J185: 0 * 0% / 3 = | K185: 0 * 0% / 3 = | L185: 0 * 0% / 3 = | M185: 0 * 0% / 3 = | N185: 0 * 0% / 3 = | O185: 0 * 0% / 3 = | P185: 0 * 0% / 3 = | Q185: 0 * 0% / 3 = | R185: 0 * 0% / 3 = | S185: = 0 * 0% / 3 = | T185: 0 * 0% / 3 = | U185: 0 * 0% / 3 = | V185: 0 * 0% / 3 = | W185: 0 * 0% / 3 = | X185: 0 * 0% / 3 = | Y185: 0 * 0% / 3 = | Z185: 0 * 0% / 3 = | AA185: 0 * 0% / 3 = | AB185: 0 * 0% / 3 = | AC185: 0 * 0% / 3 = | AD185: 0 * 0% / 3 =
B186: 25 | F186: Pensionstillæg Funktionstillæg 2 | G186: = 0 * % / 3 = | H186: 0 * 0% / 3 = | I186: 0 * 0% / 3 = | J186: 0 * 0% / 3 = | K186: 0 * 0% / 3 = | L186: 0 * 0% / 3 = | M186: 0 * 0% / 3 = | N186: 0 * 0% / 3 = | O186: 0 * 0% / 3 = | P186: 0 * 0% / 3 = | Q186: 0 * 0% / 3 = | R186: 0 * 0% / 3 = | S186: = 0 * 0% / 3 = | T186: 0 * 0% / 3 = | U186: 0 * 0% / 3 = | V186: 0 * 0% / 3 = | W186: 0 * 0% / 3 = | X186: 0 * 0% / 3 = | Y186: 0 * 0% / 3 = | Z186: 0 * 0% / 3 = | AA186: 0 * 0% / 3 = | AB186: 0 * 0% / 3 = | AC186: 0 * 0% / 3 = | AD186: 0 * 0% / 3 =
B187: 26 | F187: Pensionstillæg Funktionstillæg 3 | G187: = 0 * % / 3 = | H187: 0 * 0% / 3 = | I187: 0 * 0% / 3 = | J187: 0 * 0% / 3 = | K187: 0 * 0% / 3 = | L187: 0 * 0% / 3 = | M187: 0 * 0% / 3 = | N187: 0 * 0% / 3 = | O187: 0 * 0% / 3 = | P187: 0 * 0% / 3 = | Q187: 0 * 0% / 3 = | R187: 0 * 0% / 3 = | S187: = 0 * 0% / 3 = | T187: 0 * 0% / 3 = | U187: 0 * 0% / 3 = | V187: 0 * 0% / 3 = | W187: 0 * 0% / 3 = | X187: 0 * 0% / 3 = | Y187: 0 * 0% / 3 = | Z187: 0 * 0% / 3 = | AA187: 0 * 0% / 3 = | AB187: 0 * 0% / 3 = | AC187: 0 * 0% / 3 = | AD187: 0 * 0% / 3 =
B188: 27 | F188: Pensionstillæg Kvalifikationstillæg 1 | G188: = 0 * % / 3 = | H188: 0 * 0% / 3 = | I188: 0 * 0% / 3 = | J188: 0 * 0% / 3 = | K188: 0 * 0% / 3 = | L188: 0 * 0% / 3 = | M188: 0 * 0% / 3 = | N188: 0 * 0% / 3 = | O188: 0 * 0% / 3 = | P188: 0 * 0% / 3 = | Q188: 0 * 0% / 3 = | R188: 0 * 0% / 3 = | S188: = 0 * 0% / 3 = | T188: 0 * 0% / 3 = | U188: 0 * 0% / 3 = | V188: 0 * 0% / 3 = | W188: 0 * 0% / 3 = | X188: 0 * 0% / 3 = | Y188: 0 * 0% / 3 = | Z188: 0 * 0% / 3 = | AA188: 0 * 0% / 3 = | AB188: 0 * 0% / 3 = | AC188: 0 * 0% / 3 = | AD188: 0 * 0% / 3 =
B189: 28 | F189: Pensionstillæg Kvalifikationstillæg 2 | G189: = 0 * % / 3 = | H189: 0 * 0% / 3 = | I189: 0 * 0% / 3 = | J189: 0 * 0% / 3 = | K189: 0 * 0% / 3 = | L189: 0 * 0% / 3 = | M189: 0 * 0% / 3 = | N189: 0 * 0% / 3 = | O189: 0 * 0% / 3 = | P189: 0 * 0% / 3 = | Q189: 0 * 0% / 3 = | R189: 0 * 0% / 3 = | S189: = 0 * 0% / 3 = | T189: 0 * 0% / 3 = | U189: 0 * 0% / 3 = | V189: 0 * 0% / 3 = | W189: 0 * 0% / 3 = | X189: 0 * 0% / 3 = | Y189: 0 * 0% / 3 = | Z189: 0 * 0% / 3 = | AA189: 0 * 0% / 3 = | AB189: 0 * 0% / 3 = | AC189: 0 * 0% / 3 = | AD189: 0 * 0% / 3 =
B190: 29 | F190: Pensionstillæg Kvalifikationstillæg 3 | G190: = 0 * % / 3 = | H190: 0 * 0% / 3 = | I190: 0 * 0% / 3 = | J190: 0 * 0% / 3 = | K190: 0 * 0% / 3 = | L190: 0 * 0% / 3 = | M190: 0 * 0% / 3 = | N190: 0 * 0% / 3 = | O190: 0 * 0% / 3 = | P190: 0 * 0% / 3 = | Q190: 0 * 0% / 3 = | R190: 0 * 0% / 3 = | S190: = 0 * 0% / 3 = | T190: 0 * 0% / 3 = | U190: 0 * 0% / 3 = | V190: 0 * 0% / 3 = | W190: 0 * 0% / 3 = | X190: 0 * 0% / 3 = | Y190: 0 * 0% / 3 = | Z190: 0 * 0% / 3 = | AA190: 0 * 0% / 3 = | AB190: 0 * 0% / 3 = | AC190: 0 * 0% / 3 = | AD190: 0 * 0% / 3 =
B191: 30 | F191: Pensionstillæg af udligningstillæg | G191: = 0 * % / 3 = | H191: 0 * 0% / 3 = | I191: 0 * 0% / 3 = | J191: 0 * 0% / 3 = | K191: 0 * 0% / 3 = | L191: 0 * 0% / 3 = | M191: 0 * 0% / 3 = | N191: 0 * 0% / 3 = | O191: 0 * 0% / 3 = | P191: 0 * 0% / 3 = | Q191: 0 * 0% / 3 = | R191: 0 * 0% / 3 = | S191: = 0 * 0% / 3 = | T191: 0 * 0% / 3 = | U191: 0 * 0% / 3 = | V191: 0 * 0% / 3 = | W191: 0 * 0% / 3 = | X191: 0 * 0% / 3 = | Y191: 0 * 0% / 3 = | Z191: 0 * 0% / 3 = | AA191: 0 * 0% / 3 = | AB191: 0 * 0% / 3 = | AC191: 0 * 0% / 3 = | AD191: 0 * 0% / 3 =
B192: 31 | F192: Fradrag i pensionstillæg for ikke optjent ferie mv. | G192: ="= "&G65&" * "&G$5&"% / 3 =" -> = 0 * % / 3 = | H192: = 0 * 0% / 3 = | I192: = 0 * 0% / 3 = | J192: = 0 * 0% / 3 = | K192: = 0 * 0% / 3 = | L192: = 0 * 0% / 3 = | M192: = 0 * 0% / 3 = | N192: = 0 * 0% / 3 = | O192: = 0 * 0% / 3 = | P192: = 0 * 0% / 3 = | Q192: = 0 * 0% / 3 = | R192: = 0 * 0% / 3 = | S192: = 0 * 0% / 3 = | T192: = 0 * 0% / 3 = | U192: = 0 * 0% / 3 = | V192: = 0 * 0% / 3 = | W192: = 0 * 0% / 3 = | X192: = 0 * 0% / 3 = | Y192: = 0 * 0% / 3 = | Z192: = 0 * 0% / 3 = | AA192: = 0 * 0% / 3 = | AB192: = 0 * 0% / 3 = | AC192: = 0 * 0% / 3 = | AD192: = 0 * 0% / 3 =
B193: 32 | F193: Pensionstillæg af feriedifference | G193: = 0 * % / 3 = | H193: = 0 * 0% / 3 = | I193: = 0 * 0% / 3 = | J193: = 0 * 0% / 3 = | K193: = 0 * 0% / 3 = | L193: = 0 * 0% / 3 = | M193: = 0 * 0% / 3 = | N193: = 0 * 0% / 3 = | O193: = 0 * 0% / 3 = | P193: = 0 * 0% / 3 = | Q193: = 0 * 0% / 3 = | R193: = 0 * 0% / 3 = | S193: = 0 * 0% / 3 = | T193: = 0 * 0% / 3 = | U193: = 0 * 0% / 3 = | V193: = 0 * 0% / 3 = | W193: = 0 * 0% / 3 = | X193: = 0 * 0% / 3 = | Y193: = 0 * 0% / 3 = | Z193: = 0 * 0% / 3 = | AA193: = 0 * 0% / 3 = | AB193: = 0 * 0% / 3 = | AC193: = 0 * 0% / 3 = | AD193: = 0 * 0% / 3 =
B194: 33 | F194: Pensionstillæg af pensiong. engangstillæg | G194: =SUBSTITUTE(TRIM("=SUM("&IF($G38>0,G38&" ","")&IF($C42<>"",G42&" ","")&IF($C43<>"",G43&" ","")&IF($C44<>"",G44&" ","")&IF($C45<>"",G45&" ","")&IF($C46<>"",G46,"")&")")," ","; ")&" * "&G5&"% / 3 =" -> =SUM(; ) * % / 3 = | H194: =SUM(; ) * 0% / 3 = | I194: =SUM(; ) * 0% / 3 = | J194: =SUM(; ) * 0% / 3 = | K194: =SUM(; ) * 0% / 3 = | L194: =SUM(; ) * 0% / 3 = | M194: =SUM(; ) * 0% / 3 = | N194: =SUM(; ) * 0% / 3 = | O194: =SUM(; ) * 0% / 3 = | P194: =SUM(; ) * 0% / 3 = | Q194: =SUM(; ) * 0% / 3 = | R194: =SUM(; ) * 0% / 3 = | S194: =SUM(0; 0; 0; ) * 0% / 3 = | T194: =SUM(0; 0; 0; ) * 0% / 3 = | U194: =SUM(0; 0; 0; ) * 0% / 3 = | V194: =SUM(0; 0; 0; ) * 0% / 3 = | W194: =SUM(0; 0; 0; ) * 0% / 3 = | X194: =SUM(0; 0; 0; ) * 0% / 3 = | Y194: =SUM(0; 0; 0; ) * 0% / 3 = | Z194: =SUM(0; 0; 0; ) * 0% / 3 = | AA194: =SUM(0; 0; 0; ) * 0% / 3 = | AB194: =SUM(0; 0; 0; ) * 0% / 3 = | AC194: =SUM(0; 0; 0; ) * 0% / 3 = | AD194: =SUM(0; 0; 0; ) * 0% / 3 =
B195: 34 | F195: Ekstra pension ved orlov uden løn | G195: Ekstra pension ved orlov uden løn | H195: Ekstra pension ved orlov uden løn | I195: Ekstra pension ved orlov uden løn | J195: Ekstra pension ved orlov uden løn | K195: Ekstra pension ved orlov uden løn | L195: Ekstra pension ved orlov uden løn | M195: Ekstra pension ved orlov uden løn | N195: Ekstra pension ved orlov uden løn | O195: Ekstra pension ved orlov uden løn | P195: Ekstra pension ved orlov uden løn | Q195: Ekstra pension ved orlov uden løn | R195: Ekstra pension ved orlov uden løn
B196: 35 | F196: Pensionstillæg i alt
B197: 36 | F197: Egetbidrag til ATP
B198: 37 | F198: AMB-grundlag | G198: ="= SUM(Lin. 1 - Lin. 18) + SUM(Lin 22 - Lin23) - "&G92&" =" -> = SUM(Lin. 1 - Lin. 18) + SUM(Lin 22 - Lin23) - 0 = | H198: ="= SUM(Lin. 1 - Lin. 18) + SUM(Lin 22 - Lin23) - "&H92&" =" -> = SUM(Lin. 1 - Lin. 18) + SUM(Lin 22 - Lin23) - 0 = | I198: = SUM(Lin. 1 - Lin. 18) + SUM(Lin 22 - Lin23) - 0 = | J198: = SUM(Lin. 1 - Lin. 18) + SUM(Lin 22 - Lin23) - 0 = | K198: = SUM(Lin. 1 - Lin. 18) + SUM(Lin 22 - Lin23) - 0 = | L198: = SUM(Lin. 1 - Lin. 18) + SUM(Lin 22 - Lin23) - 0 = | M198: = SUM(Lin. 1 - Lin. 18) + SUM(Lin 22 - Lin23) - 0 = | N198: = SUM(Lin. 1 - Lin. 18) + SUM(Lin 22 - Lin23) - 0 = | O198: = SUM(Lin. 1 - Lin. 18) + SUM(Lin 22 - Lin23) - 0 = | P198: = SUM(Lin. 1 - Lin. 18) + SUM(Lin 22 - Lin23) - 0 = | Q198: = SUM(Lin. 1 - Lin. 18) + SUM(Lin 22 - Lin23) - 0 = | R198: = SUM(Lin. 1 - Lin. 18) + SUM(Lin 22 - Lin23) - 0 = | S198: ="= SUM(Lin. 1 - Lin. 14) + SUM(Lin 19 - Lin28) - "&S92&" =" -> = SUM(Lin. 1 - Lin. 14) + SUM(Lin 19 - Lin28) - 0 = | T198: ="= SUM(Lin. 1 - Lin. 14) + SUM(Lin 19 - Lin28) - "&T92&" =" -> = SUM(Lin. 1 - Lin. 14) + SUM(Lin 19 - Lin28) - 0 = | U198: = SUM(Lin. 1 - Lin. 14) + SUM(Lin 19 - Lin28) - 0 = | V198: = SUM(Lin. 1 - Lin. 14) + SUM(Lin 19 - Lin28) - 0 = | W198: = SUM(Lin. 1 - Lin. 14) + SUM(Lin 19 - Lin28) - 0 = | X198: = SUM(Lin. 1 - Lin. 14) + SUM(Lin 19 - Lin28) - 0 = | Y198: = SUM(Lin. 1 - Lin. 14) + SUM(Lin 19 - Lin28) - 0 = | Z198: = SUM(Lin. 1 - Lin. 14) + SUM(Lin 19 - Lin28) - 0 = | AA198: = SUM(Lin. 1 - Lin. 14) + SUM(Lin 19 - Lin28) - 0 = | AB198: = SUM(Lin. 1 - Lin. 14) + SUM(Lin 19 - Lin28) - 0 = | AC198: = SUM(Lin. 1 - Lin. 14) + SUM(Lin 19 - Lin28) - 0 = | AD198: = SUM(Lin. 1 - Lin. 14) + SUM(Lin 19 - Lin28) - 0 =
B199: 38 | F199: AM-bidrag | G199: ="= "&G93&" * 8% (afrundet) =" -> = 0 * 8% (afrundet) = | H199: ="= "&H93&" * 8% (afrundet) =" -> = 0 * 8% (afrundet) = | I199: = 0 * 8% (afrundet) = | J199: = 0 * 8% (afrundet) = | K199: = 0 * 8% (afrundet) = | L199: = 0 * 8% (afrundet) = | M199: = 0 * 8% (afrundet) = | N199: = 0 * 8% (afrundet) = | O199: = 0 * 8% (afrundet) = | P199: = 0 * 8% (afrundet) = | Q199: = 0 * 8% (afrundet) = | R199: = 0 * 8% (afrundet) = | S199: ="= "&S93&" * 8% (afrundet) =" -> = 0 * 8% (afrundet) = | T199: ="= "&T93&" * 8% (afrundet) =" -> = 0 * 8% (afrundet) = | U199: = 0 * 8% (afrundet) = | V199: = 0 * 8% (afrundet) = | W199: = 0 * 8% (afrundet) = | X199: = 0 * 8% (afrundet) = | Y199: = 0 * 8% (afrundet) = | Z199: = 0 * 8% (afrundet) = | AA199: = 0 * 8% (afrundet) = | AB199: = 0 * 8% (afrundet) = | AC199: = 0 * 8% (afrundet) = | AD199: = 0 * 8% (afrundet) =
B200: 39 | F200: A-indkomst | G200: ="= "&G93&" - "&G94&" =" -> = 0 - 0 = | H200: ="= "&H93&" - "&H94&" =" -> = 0 - 0 = | I200: = 0 - 0 = | J200: = 0 - 0 = | K200: = 0 - 0 = | L200: = 0 - 0 = | M200: = 0 - 0 = | N200: = 0 - 0 = | O200: = 0 - 0 = | P200: = 0 - 0 = | Q200: = 0 - 0 = | R200: = 0 - 0 = | S200: ="= "&S93&" - "&S94&" =" -> = 0 - 0 = | T200: ="= "&T93&" - "&T94&" =" -> = 0 - 0 = | U200: = 0 - 0 = | V200: = 0 - 0 = | W200: = 0 - 0 = | X200: = 0 - 0 = | Y200: = 0 - 0 = | Z200: = 0 - 0 = | AA200: = 0 - 0 = | AB200: = 0 - 0 = | AC200: = 0 - 0 = | AD200: = 0 - 0 =
B201: 40 | F201: Skattegrundlag
B202: 41 | F202: Skat | G202: ="= ("&G95&" - "&G32&") (afrundet) * "&G31&" / 100 =" -> = (0 - ) (afrundet) * / 100 = | H202: ="= ("&H95&" - "&H32&") (afrundet) * "&H31&" / 100 =" -> = (0 - 0) (afrundet) * 0 / 100 = | I202: = (0 - 0) (afrundet) * 0 / 100 = | J202: = (0 - 0) (afrundet) * 0 / 100 = | K202: = (0 - 0) (afrundet) * 0 / 100 = | L202: = (0 - 0) (afrundet) * 0 / 100 = | M202: = (0 - 0) (afrundet) * 0 / 100 = | N202: = (0 - 0) (afrundet) * 0 / 100 = | O202: = (0 - 0) (afrundet) * 0 / 100 = | P202: = (0 - 0) (afrundet) * 0 / 100 = | Q202: = (0 - 0) (afrundet) * 0 / 100 = | R202: = (0 - 0) (afrundet) * 0 / 100 = | S202: ="= ("&S95&" - "&S32&") (afrundet) * "&S31&" / 100 =" -> = (0 - 0) (afrundet) * 0 / 100 = | T202: ="= ("&T95&" - "&T32&") (afrundet) * "&T31&" / 100 =" -> = (0 - 0) (afrundet) * 0 / 100 = | U202: = (0 - 0) (afrundet) * 0 / 100 = | V202: = (0 - 0) (afrundet) * 0 / 100 = | W202: = (0 - 0) (afrundet) * 0 / 100 = | X202: = (0 - 0) (afrundet) * 0 / 100 = | Y202: = (0 - 0) (afrundet) * 0 / 100 = | Z202: = (0 - 0) (afrundet) * 0 / 100 = | AA202: = (0 - 0) (afrundet) * 0 / 100 = | AB202: = (0 - 0) (afrundet) * 0 / 100 = | AC202: = (0 - 0) (afrundet) * 0 / 100 = | AD202: = (0 - 0) (afrundet) * 0 / 100 =
B203: 42 | F203: Feriegodtgørelsesgrundlag
B204: 43 | F204: ="Feriegodtgørelsesgrundlag, jan-juli "&Aar+1 -> Feriegodtgørelsesgrundlag, jan-juli 1
B205: 44 | F205: Egetbidrag til pensionskasse | G205: ="= Lin. 43 =" -> = Lin. 43 = | H205: ="= Lin. 43 =" -> = Lin. 43 = | I205: = Lin. 43 = | J205: = Lin. 43 = | K205: = Lin. 43 = | L205: = Lin. 43 = | M205: = Lin. 43 = | N205: = Lin. 43 = | O205: = Lin. 43 = | P205: = Lin. 43 = | Q205: = Lin. 43 = | R205: = Lin. 43 = | S205: ="= Lin. 43 =" -> = Lin. 43 = | T205: = Lin. 43 = | U205: = Lin. 43 = | V205: = Lin. 43 = | W205: = Lin. 43 = | X205: = Lin. 43 = | Y205: = Lin. 43 = | Z205: = Lin. 43 = | AA205: = Lin. 43 = | AB205: = Lin. 43 = | AC205: = Lin. 43 = | AD205: = Lin. 43 =
B206: 45 | F206: Arbejdsgiverbidrag til pensionskasse | G206: ="= Lin. 43 * 2 =" -> = Lin. 43 * 2 = | H206: ="= Lin. 43 * 2 =" -> = Lin. 43 * 2 = | I206: = Lin. 43 * 2 = | J206: = Lin. 43 * 2 = | K206: = Lin. 43 * 2 = | L206: = Lin. 43 * 2 = | M206: = Lin. 43 * 2 = | N206: = Lin. 43 * 2 = | O206: = Lin. 43 * 2 = | P206: = Lin. 43 * 2 = | Q206: = Lin. 43 * 2 = | R206: = Lin. 43 * 2 = | S206: ="= Lin. 43 * 2 =" -> = Lin. 43 * 2 = | T206: = Lin. 43 * 2 = | U206: = Lin. 43 * 2 = | V206: = Lin. 43 * 2 = | W206: = Lin. 43 * 2 = | X206: = Lin. 43 * 2 = | Y206: = Lin. 43 * 2 = | Z206: = Lin. 43 * 2 = | AA206: = Lin. 43 * 2 = | AB206: = Lin. 43 * 2 = | AC206: = Lin. 43 * 2 = | AD206: = Lin. 43 * 2 =
B207: 46 | F207: Arbejdsgiverbidrag til ATP | G207: ="= Lin. 44 * 2 =" -> = Lin. 44 * 2 = | H207: ="= Lin. 44 * 2 =" -> = Lin. 44 * 2 = | I207: = Lin. 44 * 2 = | J207: = Lin. 44 * 2 = | K207: = Lin. 44 * 2 = | L207: = Lin. 44 * 2 = | M207: = Lin. 44 * 2 = | N207: = Lin. 44 * 2 = | O207: = Lin. 44 * 2 = | P207: = Lin. 44 * 2 = | Q207: = Lin. 44 * 2 = | R207: = Lin. 44 * 2 = | S207: ="= Lin. 44 * 2 =" -> = Lin. 44 * 2 = | T207: = Lin. 44 * 2 = | U207: = Lin. 44 * 2 = | V207: = Lin. 44 * 2 = | W207: = Lin. 44 * 2 = | X207: = Lin. 44 * 2 = | Y207: = Lin. 44 * 2 = | Z207: = Lin. 44 * 2 = | AA207: = Lin. 44 * 2 = | AB207: = Lin. 44 * 2 = | AC207: = Lin. 44 * 2 = | AD207: = Lin. 44 * 2 =
B208: 47 | F208: Skolens samlede indbetaling til pensionskasse | G208: ="= Lin. 51 + Lin. 52 =" -> = Lin. 51 + Lin. 52 = | H208: ="= Lin. 51 + Lin. 52 =" -> = Lin. 51 + Lin. 52 = | I208: = Lin. 51 + Lin. 52 = | J208: = Lin. 51 + Lin. 52 = | K208: = Lin. 51 + Lin. 52 = | L208: = Lin. 51 + Lin. 52 = | M208: = Lin. 51 + Lin. 52 = | N208: = Lin. 51 + Lin. 52 = | O208: = Lin. 51 + Lin. 52 = | P208: = Lin. 51 + Lin. 52 = | Q208: = Lin. 51 + Lin. 52 = | R208: = Lin. 51 + Lin. 52 = | S208: ="= Lin. 51 + Lin. 52 =" -> = Lin. 51 + Lin. 52 = | T208: = Lin. 51 + Lin. 52 = | U208: = Lin. 51 + Lin. 52 = | V208: = Lin. 51 + Lin. 52 = | W208: = Lin. 51 + Lin. 52 = | X208: = Lin. 51 + Lin. 52 = | Y208: = Lin. 51 + Lin. 52 = | Z208: = Lin. 51 + Lin. 52 = | AA208: = Lin. 51 + Lin. 52 = | AB208: = Lin. 51 + Lin. 52 = | AC208: = Lin. 51 + Lin. 52 = | AD208: = Lin. 51 + Lin. 52 =
B209: 48 | F209: Skolens samlede indbetaling til ATP | G209: ="= Lin. 44 + Lin. 53 =" -> = Lin. 44 + Lin. 53 = | H209: ="= Lin. 44 + Lin. 53 =" -> = Lin. 44 + Lin. 53 = | I209: = Lin. 44 + Lin. 53 = | J209: = Lin. 44 + Lin. 53 = | K209: = Lin. 44 + Lin. 53 = | L209: = Lin. 44 + Lin. 53 = | M209: = Lin. 44 + Lin. 53 = | N209: = Lin. 44 + Lin. 53 = | O209: = Lin. 44 + Lin. 53 = | P209: = Lin. 44 + Lin. 53 = | Q209: = Lin. 44 + Lin. 53 = | R209: = Lin. 44 + Lin. 53 = | S209: ="= Lin. 44 + Lin. 53 =" -> = Lin. 44 + Lin. 53 = | T209: = Lin. 44 + Lin. 53 = | U209: = Lin. 44 + Lin. 53 = | V209: = Lin. 44 + Lin. 53 = | W209: = Lin. 44 + Lin. 53 = | X209: = Lin. 44 + Lin. 53 = | Y209: = Lin. 44 + Lin. 53 = | Z209: = Lin. 44 + Lin. 53 = | AA209: = Lin. 44 + Lin. 53 = | AB209: = Lin. 44 + Lin. 53 = | AC209: = Lin. 44 + Lin. 53 = | AD209: = Lin. 44 + Lin. 53 =
B210: 49 | F210: Indbetaling til Gruppeliv
B211: 50 | F211: Løn til den ansattes disposition | G211: ="= "&G74&" - ( "&G97&" + "&G92&" + "&G94&" + "&G105&") - SUM(lin 57 : 59) =" -> = 0 - ( 0 + 0 + 0 + 0) - SUM(lin 57 : 59) = | H211: ="= "&H74&" - ( "&H97&" + "&H92&" + "&H94&" + "&H105&") - SUM(lin 57 : 59) =" -> = 0 - ( 0 + 0 + 0 + 0) - SUM(lin 57 : 59) = | I211: = 0 - ( 0 + 0 + 0 + 0) - SUM(lin 57 : 59) = | J211: = 0 - ( 0 + 0 + 0 + 0) - SUM(lin 57 : 59) = | K211: = 0 - ( 0 + 0 + 0 + 0) - SUM(lin 57 : 59) = | L211: = 0 - ( 0 + 0 + 0 + 0) - SUM(lin 57 : 59) = | M211: = 0 - ( 0 + 0 + 0 + 0) - SUM(lin 57 : 59) = | N211: = 0 - ( 0 + 0 + 0 + 0) - SUM(lin 57 : 59) = | O211: = 0 - ( 0 + 0 + 0 + 0) - SUM(lin 57 : 59) = | P211: = 0 - ( 0 + 0 + 0 + 0) - SUM(lin 57 : 59) = | Q211: = 0 - ( 0 + 0 + 0 + 0) - SUM(lin 57 : 59) = | R211: = 0 - ( 0 + 0 + 0 + 0) - SUM(lin 57 : 59) = | S211: ="= "&S74&" - ( "&S97&" + "&S92&" + "&S94&" + "&S105&") - SUM(lin 57 : 59) =" -> = 0 - ( 0 + 0 + 0 + 0) - SUM(lin 57 : 59) = | T211: ="= "&T74&" - ( "&T97&" + "&T92&" + "&T94&" + "&T105&") - SUM(lin 57 : 59) =" -> = 0 - ( 0 + 0 + 0 + 0) - SUM(lin 57 : 59) = | U211: = 0 - ( 0 + 0 + 0 + 0) - SUM(lin 57 : 59) = | V211: = 0 - ( 0 + 0 + 0 + 0) - SUM(lin 57 : 59) = | W211: = 0 - ( 0 + 0 + 0 + 0) - SUM(lin 57 : 59) = | X211: = 0 - ( 0 + 0 + 0 + 0) - SUM(lin 57 : 59) = | Y211: = 0 - ( 0 + 0 + 0 + 0) - SUM(lin 57 : 59) = | Z211: = 0 - ( 0 + 0 + 0 + 0) - SUM(lin 57 : 59) = | AA211: = 0 - ( 0 + 0 + 0 + 0) - SUM(lin 57 : 59) = | AB211: = 0 - ( 0 + 0 + 0 + 0) - SUM(lin 57 : 59) = | AC211: = 0 - ( 0 + 0 + 0 + 0) - SUM(lin 57 : 59) = | AD211: = 0 - ( 0 + 0 + 0 + 0) - SUM(lin 57 : 59) =
B212: 51 | F212: ="Feriepengeberegningsgrundlag, jan-dec "&Aar -> Feriepengeberegningsgrundlag, jan-dec
F213: ="Feriepengeberegningsgrundlag, jan-jul "&Aar+1 -> Feriepengeberegningsgrundlag, jan-jul 1

Sheet S
A1: 2024-2025 | B1: 1 | C1: Pensionsg. | D1: BG-afh. | E1: Regu-leret | F1: Lønberegning for: (navn eller initialer) - variable løndele i lin. 30-43. | G1: S | H1: =G1 -> S | I1: =H1 -> S | J1: S | K1: S | L1: S | M1: S | N1: S | O1: S | P1: S | Q1: S | R1: S | S1: Q | T1: =S1 -> Q | U1: =T1 -> Q | V1: Q | W1: Q | X1: Q | Y1: Q | Z1: Q | AA1: Q | AB1: Q | AC1: Q | AD1: Q | AE1: Udfyld gule felter (alle forudfyldte tal i gule felter er eksempler)
B2: =B1+1 -> 2 | F2: Stillingsbetegnelse | G2: Stilling | H2: =G2 -> Stilling | I2: Stilling | J2: Stilling | K2: Stilling | L2: Stilling | M2: Stilling | N2: Stilling | O2: Stilling | P2: Stilling | Q2: Stilling | R2: Stilling | S2: Stilling | T2: =S2 -> Stilling | U2: Stilling | V2: Stilling | W2: Stilling | X2: Stilling | Y2: Stilling | Z2: Stilling | AA2: Stilling | AB2: Stilling | AC2: Stilling | AD2: Stilling
B3: =B2+1 -> 3 | F3: Måned | G3: ="AUG "&RIGHT(A1,2)+0 -> AUG 25 | H3: ="SEP "&RIGHT(A1,2)+0 -> SEP 25 | I3: ="OKT "&RIGHT(A1,2)+0 -> OKT 25 | J3: ="NOV "&RIGHT(A1,2)+0 -> NOV 25 | K3: ="DEC "&RIGHT(A1,2)+0 -> DEC 25 | L3: ="JAN "&RIGHT(A1,2)+1 -> JAN 26 | M3: ="FEB "&RIGHT(A1,2)+1 -> FEB 26 | N3: ="MAR "&RIGHT(A1,2)+1 -> MAR 26 | O3: ="APR "&RIGHT(A1,2)+1 -> APR 26 | P3: ="MAJ "&RIGHT(A1,2)+1 -> MAJ 26 | Q3: ="JUN "&RIGHT(A1,2)+1 -> JUN 26 | R3: ="JUL "&RIGHT(A1,2)+1 -> JUL 26 | S3: =G3 -> AUG 25 | T3: =H3 -> SEP 25 | U3: OKT 25 | V3: NOV 25 | W3: DEC 25 | X3: JAN 26 | Y3: FEB 26 | Z3: MAR 26 | AA3: APR 26 | AB3: MAJ 26 | AC3: JUN 26 | AD3: JUL 26 | AE3: ansat d.
B4: =B3+1 -> 4 | C4: sæt 'x' | D4: sæt 'x' | E4: sæt 'x' | F4: Del af måned antal kalenderdage/månedens kalenderdage | G4: 1 | H4: =G4 -> 1 | I4: =H4 -> 1 | J4: 1 | K4: 1 | L4: 1 | M4: 1 | N4: 1 | O4: 1 | P4: 1 | Q4: 1 | R4: 1 | S4: =G4 -> 1 | T4: 1 | U4: 1 | V4: 1 | W4: 1 | X4: 1 | Y4: 1 | Z4: 1 | AA4: 1 | AB4: 1 | AC4: 1 | AD4: 1 | AE4: Hvis ansat 10 oktober: 21/31 Hvis fratrådt 15. april: 15/30 | AF4: 2
B5: =B4+1 -> 5 | F5: Pensionsprocent | H5: =$G5 -> 0 | I5: 0 | J5: 0 | K5: 0 | L5: 0 | M5: 0 | N5: 0 | O5: 0 | P5: 0 | Q5: 0 | R5: 0 | S5: =G5 -> 0 | T5: 0 | U5: 0 | V5: 0 | W5: 0 | X5: 0 | Y5: 0 | Z5: 0 | AA5: 0 | AB5: 0 | AC5: 0 | AD5: 0 | AE5: Skriv ikke procenttegnet, fx 14,7% - skriv 14,70 | AF5: 3
B6: =B5+1 -> 6 | F6: Betales hele pensionen af skolen? JA/NEJ | G6: Ja | H6: =G6 -> Ja | I6: =H6 -> Ja | J6: Ja | K6: Ja | L6: Ja | M6: Ja | N6: Ja | O6: Ja | P6: Ja | Q6: Ja | R6: Ja | S6: =G6 -> Ja | T6: Ja | U6: Ja | V6: Ja | W6: Ja | X6: Ja | Y6: Ja | Z6: Ja | AA6: Ja | AB6: Ja | AC6: Ja | AD6: Ja | AE6: Se ansættelsesbrev | AF6: 4
B7: 7 | F7: Har den ansatte orlov uden løn men med pension? | G7: Nej | H7: =G7 -> Nej | I7: Nej | J7: Nej | K7: Nej | L7: Nej | M7: Nej | N7: Nej | O7: Nej | P7: Nej | Q7: Nej | R7: Nej
B8: =B7+1 -> 8 | F8: Har den ansatte ret til seniorbonus. BEMÆRK DET KUN GÆLDER HK-PRIVAT OG 3F. (IKKE BUPL-FOA). | G8: Nej | H8: =G8 -> Nej | I8: Nej | J8: Nej | K8: Nej | L8: Nej | M8: Nej | N8: Nej | O8: Nej | P8: Nej | Q8: Nej | R8: Nej
B9: =B8+1 -> 9 | F9: Beregnes feriedifferende mv. efter Ferieaftalen i staten JA, eller efter Ferieloven NEJ | G9: JA | H9: =G9 -> JA | I9: JA | J9: JA | K9: JA | L9: JA | M9: JA | N9: JA | O9: JA | P9: JA | Q9: JA | R9: JA | S9: =G9 -> JA | T9: =H9 -> JA | U9: JA | V9: JA | W9: JA | X9: JA | Y9: JA | Z9: JA | AA9: JA | AB9: JA | AC9: JA | AD9: JA | AE9: Ferieloven: mindst 20% differende, Ferieaftalen: enhver differende | AF9: 5
B10: 10 | F10: Procentregulering | G10: 1.233095 | H10: 1.233095 | I10: 1.233095 | K10: 0 | L10: 0 | M10: 0 | N10: 0 | P10: =O10 -> 0 | Q10: =P10 -> 0 | R10: =Q10 -> 0 | S10: =G10 -> 1.233095 | T10: 1.233095 | U10: 1.233095 | V10: 0 | W10: 0 | X10: 0 | Y10: 0 | Z10: 0 | AA10: 0 | AB10: 0 | AC10: 0 | AD10: 0 | AF10: 6
B11: 11 | F11: Skolens stedtillægsområde | H11: =G11 -> 0 | I11: 0 | J11: 0 | K11: 0 | L11: 0 | M11: 0 | N11: 0 | O11: 0 | P11: 0 | Q11: 0 | R11: 0 | S11: =G11 -> 0 | T11: 0 | U11: 0 | V11: 0 | W11: 0 | X11: 0 | Y11: 0 | Z11: 0 | AA11: 0 | AB11: 0 | AC11: 0 | AD11: 0
B12: 12 | F12: Beskæftigelsesgrad aktuel (Beskæftigelsesgrad løn beregnes ud fra) | H12: =G12 -> 0 | I12: 0 | J12: 0 | K12: 0 | L12: 0 | M12: 0 | N12: 0 | O12: 0 | P12: =O12 -> 0 | Q12: 0 | R12: 0 | S12: 0 | T12: 0 | U12: 0 | V12: 0 | W12: 0 | X12: 0 | Y12: 0 | Z12: 0 | AA12: 0 | AB12: 0 | AC12: 0 | AD12: 0
B13: 13 | C13: x | D13: x | E13: x | F13: Skalatrin | H13: =G13 -> 0 | I13: 0 | J13: 0 | K13: 0 | L13: 0 | M13: 0 | N13: 0 | O13: 0 | P13: 0 | Q13: 0 | R13: 0 | S13: 0 | T13: 0 | U13: 0 | V13: 0 | W13: 0 | X13: 0 | Y13: 0 | Z13: 0 | AA13: 0 | AB13: 0 | AC13: 0 | AD13: 0 | AE13: Statens løntabel eller HK-overenskomst-løntrin
B14: 14 | C14: x | D14: x | E14: x | F14: ="Overenskomstaftalt tillæg "&IF(E14<>"","i grundbeløb pr. 31.03.2012","(ikke reguleret)") -> Overenskomstaftalt tillæg i grundbeløb pr. 31.03.2012 | H14: 0 | I14: 0 | J14: 0 | K14: 0 | L14: 0 | M14: 0 | N14: 0 | O14: 0 | P14: 0 | Q14: 0 | R14: 0 | S14: 0 | T14: 0 | U14: 0 | V14: 0 | W14: 0 | X14: 0 | Y14: 0 | Z14: 0 | AA14: 0 | AB14: 0 | AC14: 0 | AD14: 0
B15: 15 | C15: x | D15: x | E15: x | F15: Trepartstillæg til pædagoger og afdelingsledere i årlig grundbeløb pr. 31.03.2012 | H15: =G15 -> 0 | I15: =H15 -> 0 | J15: 0 | K15: 0 | L15: 0 | M15: 0 | N15: 0 | O15: =N15 -> 0 | P15: 0 | Q15: 0 | R15: 0 | S15: 0 | T15: 0 | U15: 0 | V15: 0 | W15: 0 | X15: 0 | Y15: 0 | Z15: 0 | AA15: 0 | AB15: 0 | AC15: 0 | AD15: 0
B16: 16 | C16: x | E16: x | F16: Årligt sousdheftillæg eller lign. i grundbeløb | H16: =G16 -> 0 | I16: 0 | J16: 0 | K16: 0 | L16: 0 | M16: 0 | N16: 0 | O16: 0 | P16: 0 | Q16: 0 | R16: 0 | S16: 0 | T16: 0 | U16: 0 | V16: 0 | W16: 0 | X16: 0 | Y16: 0 | Z16: 0 | AA16: 0 | AB16: 0 | AC16: 0 | AD16: 0
B17: 17 | C17: x | E17: x | F17: Årligt funktionsstillæg i grundbeløb 1 | H17: =G17 -> 0 | I17: 0 | J17: 0 | K17: 0 | L17: 0 | M17: 0 | N17: 0 | O17: 0 | P17: 0 | Q17: 0 | R17: 0 | S17: 0 | T17: 0 | U17: 0 | V17: 0 | W17: 0 | X17: 0 | Y17: 0 | Z17: 0 | AA17: 0 | AB17: 0 | AC17: 0 | AD17: 0 | AF17: Ja
B18: 18 | C18: x | E18: x | F18: Årligt funktionsstillæg i grundbeløb 2 | H18: =G18 -> 0 | I18: 0 | J18: 0 | K18: 0 | L18: 0 | M18: 0 | N18: 0 | O18: 0 | P18: 0 | Q18: 0 | R18: 0 | S18: 0 | T18: 0 | U18: 0 | V18: 0 | W18: 0 | X18: 0 | Y18: 0 | Z18: 0 | AA18: 0 | AB18: 0 | AC18: 0 | AD18: 0 | AF18: Nej
B19: 19 | C19: x | E19: x | F19: Årligt funktionsstillæg i grundbeløb 3 | H19: =G19 -> 0 | I19: 0 | J19: 0 | K19: 0 | L19: 0 | M19: 0 | N19: 0 | O19: 0 | P19: 0 | Q19: 0 | R19: 0 | S19: 0 | T19: 0 | U19: 0 | V19: 0 | W19: 0 | X19: 0 | Y19: 0 | Z19: 0 | AA19: 0 | AB19: 0 | AC19: 0 | AD19: 0
B20: 20 | C20: x | D20: x | E20: x | F20: Årligt kvalifikationsstillæg i grundbeløb 1 | H20: 0 | I20: 0 | J20: 0 | K20: 0 | L20: 0 | M20: 0 | N20: 0 | O20: 0 | P20: 0 | Q20: 0 | R20: 0 | S20: 0 | T20: 0 | U20: 0 | V20: 0 | W20: 0 | X20: 0 | Y20: 0 | Z20: 0 | AA20: 0 | AB20: 0 | AC20: 0 | AD20: 0
B21: 21 | C21: x | D21: x | E21: x | F21: Årligt kvalifikationsstillæg i grundbeløb 2 | H21: 0 | I21: 0 | J21: 0 | K21: 0 | L21: 0 | M21: 0 | N21: 0 | O21: 0 | P21: 0 | Q21: 0 | R21: 0 | S21: 0 | T21: 0 | U21: 0 | V21: 0 | W21: 0 | X21: 0 | Y21: 0 | Z21: 0 | AA21: 0 | AB21: 0 | AC21: 0 | AD21: 0
B22: 22 | C22: x | D22: x | E22: x | F22: Årligt kvalifikationsstillæg i grundbeløb 3 | H22: 0 | I22: 0 | J22: 0 | K22: 0 | L22: 0 | M22: 0 | N22: 0 | O22: 0 | P22: 0 | Q22: 0 | R22: 0 | S22: 0 | T22: 0 | U22: 0 | V22: 0 | W22: 0 | X22: 0 | Y22: 0 | Z22: 0 | AA22: 0 | AB22: 0 | AC22: 0 | AD22: 0
B23: 23 | C23: x | D23: x | E23: x | F23: Udligningstillæg i årligt grundbeløb v. 100% BG | H23: 0 | I23: 0 | J23: 0 | K23: 0 | L23: 0 | M23: 0 | N23: 0 | O23: 0 | P23: 0 | Q23: 0 | R23: 0 | S23: 0 | T23: 0 | U23: 0 | V23: 0 | W23: 0 | X23: 0 | Y23: 0 | Z23: 0 | AA23: 0 | AB23: 0 | AC23: 0 | AD23: 0
B24: 24 | F24: Gruppelivsordning betalt af af skolen som et løntillæg. Skriv det månedlige beløb! | H24: 0 | I24: 0 | J24: 0 | K24: 0 | L24: 0 | M24: 0 | N24: 0 | O24: 0 | P24: 0 | Q24: 0 | R24: 0 | S24: 0 | T24: 0 | U24: 0 | V24: 0 | W24: 0 | X24: 0 | Y24: 0 | Z24: 0 | AA24: 0 | AB24: 0 | AC24: 0 | AD24: 0 | AE24: Spedielt ved virksomhedsoverdragelse
B25: 25 | E25: x | F25: Lokalaftalt fast ulempegodtgørelse pr. måned. - (pr. 31. marts 2012) | H25: =G25 -> 0 | I25: 0 | J25: 0 | K25: 0 | L25: 0 | M25: 0 | N25: 0 | O25: =N25 -> 0 | P25: 0 | Q25: 0 | R25: 0 | S25: 0 | T25: 0 | U25: 0 | V25: 0 | W25: 0 | X25: 0 | Y25: 0 | Z25: 0 | AA25: 0 | AB25: 0 | AC25: 0 | AD25: 0 | AE25: I stedet for variable arbejdstidsbestemte tillæg, iflg lokalaftale
B26: 26 | F26: Planlagte feriedage | G26: 2 | H26: =G26 -> 2 | I26: 5 | M26: 5 | R26: 15 | S26: =G26 -> 2 | T26: =H26 -> 2 | U26: 5 | V26: 0 | W26: 0 | X26: 0 | Y26: 5 | Z26: 0 | AA26: 0 | AB26: 0 | AC26: 0 | AD26: 15 | AE26: Normalt 15 dage i sommerhalvåret og 10 dage i vinterhalvåret
B27: 27 | F27: .. heraf antal feriedage, hvortil der ikke er optjent ferieret | H27: =G27 -> 0 | R27: 0 | S27: 0 | T27: 0 | U27: 0 | V27: 0 | W27: 0 | X27: 0 | Y27: 0 | Z27: 0 | AA27: 0 | AB27: 0 | AC27: 0 | AD27: 0 | AE27: Ferieloven: fradrag 4,8% pr. dag, Ferieaftalen: 4,62% pr. dag
B28: 28 | F28: Feriedifference pensionsgivende(udregnes i særskilt regneark) | S28: 0 | T28: 0 | U28: 0 | V28: 0 | W28: 0 | X28: 0 | Y28: 0 | Z28: 0 | AA28: 0 | AB28: 0 | AC28: 0 | AD28: 0 | AE28: Benyttes ved beregning af feriedifferende.
B29: 29 | F29: Feriedifference IKKE pensionsgivende(udregnes i særskilt regneark) | S29: 0 | T29: 0 | U29: 0 | V29: 0 | W29: 0 | X29: 0 | Y29: 0 | Z29: 0 | AA29: 0 | AB29: 0 | AC29: 0 | AD29: 0 | AE29: Benyttes ved beregning af feriedifference'
B30: 30 | F30: Egenbetalte fridage | S30: 0 | T30: 0 | U30: 0 | V30: 0 | W30: 0 | X30: 0 | Y30: 0 | Z30: 0 | AA30: 0 | AB30: 0 | AC30: 0 | AD30: 0 | AE30: Løn- og pensionsfradrag beregnes i lin 60 og 75
A31: Skatteop-lysninger | B31: 31 | F31: Skatteprocent | H31: =G31 -> 0 | I31: 0 | J31: 0 | K31: 0 | L31: 0 | M31: 0 | N31: 0 | O31: 0 | P31: 0 | Q31: 0 | R31: 0 | S31: 0 | T31: 0 | U31: 0 | V31: 0 | W31: 0 | X31: 0 | Y31: 0 | Z31: 0 | AA31: 0 | AB31: 0 | AC31: 0 | AD31: 0 | AE31: Skriv ikke procenttegnet, fx 42% - skriv 42
B32: 32 | C32: km- tak-ster | D32: =LEFT($A$1,4)+1 -> 2025 | E32: =LEFT($A$1,4)+2 -> 2026 | F32: Månedligt skattefradrag | H32: 0 | I32: 0 | J32: 0 | K32: 0 | L32: 0 | M32: 0 | N32: 0 | O32: 0 | P32: 0 | Q32: 0 | R32: 0 | S32: 0 | T32: 0 | U32: 0 | V32: 0 | W32: 0 | X32: 0 | Y32: 0 | Z32: 0 | AA32: 0 | AB32: 0 | AC32: 0 | AD32: 0
B33: 33 | D33: 2.23 | F33: Km.godtgørelse, lav sats (skattefri), antal km: | S33: 0 | T33: 0 | U33: 0 | V33: 0 | W33: 0 | X33: 0 | Y33: 0 | Z33: 0 | AA33: 0 | AB33: 0 | AC33: 0 | AD33: 0
B34: 34 | D34: 3.81 | F34: Km.godtgørelse, høj sats (skattefri), antal km: | S34: 0 | T34: 0 | U34: 0 | V34: 0 | W34: 0 | X34: 0 | Y34: 0 | Z34: 0 | AA34: 0 | AB34: 0 | AC34: 0 | AD34: 0
B35: 35 | F35: Timedagpenge (skattefri) - Beregn selv | S35: 0 | T35: 0 | U35: 0 | V35: 0 | W35: 0 | X35: 0 | Y35: 0 | Z35: 0 | AA35: 0 | AB35: 0 | AC35: 0 | AD35: 0 | AE35: Se løntabel
B36: 36 | F36: Jubilæumsgratiale (skattefri op til 8.000 kr.) | S36: 0 | T36: 0 | U36: 0 | V36: 0 | W36: 0 | X36: 0 | Y36: 0 | Z36: 0 | AA36: 0 | AB36: 0 | AC36: 0 | AD36: 0 | AE36: Se løntabel
B37: 37 | F37: Arbejds- og arbejdstidsbestemte tillæg. Beregn selv | S37: 0 | T37: 0 | U37: 0 | V37: 0 | W37: 0 | X37: 0 | Y37: 0 | Z37: 0 | AA37: 0 | AB37: 0 | AC37: 0 | AD37: 0 | AE37: ”Natpenge” iflg skema, hvis ikke der er lokalaftalt godtgørelse
B38: 38 | C38: x | F38: Merarbejdsbetaling. Beregn selv | S38: 0 | T38: 0 | U38: 0 | V38: 0 | W38: 0 | X38: 0 | Y38: 0 | Z38: 0 | AA38: 0 | AB38: 0 | AC38: 0 | AD38: 0 | AE38: Efter årsopgørelse eller ved fratræden
B39: 39 | F39: Overtidsbetaling. Beregn selv | S39: 0 | T39: 0 | U39: 0 | V39: 0 | W39: 0 | X39: 0 | Y39: 0 | Z39: 0 | AA39: 0 | AB39: 0 | AC39: 0 | AD39: 0 | AE39: Efter årsopgørelse eller ved fratræden
B40: 40 | F40: Særlige feriedage til udbetaling. Beregn selv | S40: =G40 -> 0 | T40: 0 | U40: 0 | V40: 0 | W40: 0 | X40: 0 | Y40: 0 | Z40: 0 | AA40: 0 | AB40: 0 | AC40: 0 | AD40: 0 | AE40: Efter årsafslutning eller ved fratræden. Se pjeden "Ferievejledning"
B41: 41 | F41: ="Særlig ferietillæg "&IF(G9="ja","2,02%","1,0%"&"") -> Særlig ferietillæg 2,02% | P41: 0 | S41: 0 | T41: 0 | U41: 0 | V41: 0 | W41: 0 | X41: 0 | Y41: 0 | Z41: 0 | AA41: 0 | AB41: 0 | AC41: 0 | AD41: 0
B42: 42 | C42: x | F42: Resultatlønstillæg | S42: 0 | T42: 0 | U42: 0 | V42: 0 | W42: 0 | X42: 0 | Y42: 0 | Z42: 0 | AA42: 0 | AB42: 0 | AC42: 0 | AD42: 0
B43: 43 | C43: x | F43: Engangs nylønstillæg | S43: 0 | T43: 0 | U43: 0 | V43: 0 | W43: 0 | X43: 0 | Y43: 0 | Z43: 0 | AA43: 0 | AB43: 0 | AC43: 0 | AD43: 0
B44: 44 | C44: x | F44: Praktiklærervederlag | S44: 0 | T44: 0 | U44: 0 | V44: 0 | W44: 0 | X44: 0 | Y44: 0 | Z44: 0 | AA44: 0 | AB44: 0 | AC44: 0 | AD44: 0 | AE44: =45*5*7.4 -> 1665
B45: 45 | F45: andet | S45: 0 | T45: 0 | U45: 0 | V45: 0 | W45: 0 | X45: 0 | Y45: 0 | Z45: 0 | AA45: 0 | AB45: 0 | AC45: 0 | AD45: 0
B46: 46 | F46: andet | S46: 0 | T46: 0 | U46: 0 | V46: 0 | W46: 0 | X46: 0 | Y46: 0 | Z46: 0 | AA46: 0 | AB46: 0 | AC46: 0 | AD46: 0
B47: 47 | C47: Disse tre linjer fradrages i den disponible løn | F47: gavekasse | H47: =G47 -> 0 | I47: =H47 -> 0 | J47: 0 | K47: 0 | L47: 0 | M47: 0 | N47: 0 | O47: 0 | P47: 0 | Q47: 0 | R47: 0 | S47: 0 | T47: 0 | U47: 0 | V47: 0 | W47: 0 | X47: 0 | Y47: 0 | Z47: 0 | AA47: 0 | AB47: 0 | AC47: 0 | AD47: 0 | AE47: Fx: 'Kaffekasse'
B48: 48 | F48: kaffekasse | H48: =G48 -> 0 | I48: 0 | J48: 0 | K48: 0 | L48: 0 | M48: 0 | N48: 0 | O48: 0 | P48: 0 | Q48: 0 | R48: 0 | S48: 0 | T48: 0 | U48: 0 | V48: 0 | W48: 0 | X48: 0 | Y48: 0 | Z48: 0 | AA48: 0 | AB48: 0 | AC48: 0 | AD48: 0 | AE48: Fx: 'Gavekasse'
B49: 49 | F49: Fagforenings-kontingent | H49: =G49 -> 0 | I49: 0 | J49: 0 | K49: 0 | L49: 0 | M49: 0 | N49: 0 | O49: 0 | P49: 0 | Q49: 0 | R49: 0 | S49: 0 | T49: 0 | U49: 0 | V49: 0 | W49: 0 | X49: 0 | Y49: 0 | Z49: 0 | AA49: 0 | AB49: 0 | AC49: 0 | AD49: 0 | AE49: FX: 'Fagforeningskontingent'
A50: =A3 -> 1904-01-01 | B50: 50 | F50: Måned | G50: =G3 -> AUG 25 | H50: SEP 25 | I50: OKT 25 | J50: NOV 25 | K50: DEC 25 | L50: JAN 26 | M50: FEB 26 | N50: MAR 26 | O50: APR 26 | P50: MAJ 26 | Q50: JUN 26 | R50: JUL 26 | S50: AUG 25 | T50: SEP 25 | U50: OKT 25 | V50: NOV 25 | W50: DEC 25 | X50: JAN 26 | Y50: FEB 26 | Z50: MAR 26 | AA50: APR 26 | AB50: MAJ 26 | AC50: JUN 26 | AD50: JUL 26 | AE50: SUM
B51: 51 | C51: =(C13<>"")*1 -> 1 | D51: 1 | E51: 1 | F51: =IF(ISNUMBER(G13),"Skalatrinsløn","HK-løn") -> HK-løn | G51: =IF(G7="Ja",0,ROUND(IF(AND(G$12>0,G13>0),ROUND((ROUND(VLOOKUP(G13,Skalalontabel12,G11,0)*G10,0))/12,2),0)*G12*G4,2)) -> 0 | H51: 0 | I51: 0 | J51: 0 | K51: 0 | L51: 0 | M51: 0 | N51: 0 | O51: 0 | P51: 0 | Q51: 0 | R51: 0 | S51: =ROUND(IF(AND(S$12>0,S13>0),ROUND((ROUND(VLOOKUP(S13,Skalalontabel12,S11,0)*S10,0))/12,2),0)*S12*S4,2) -> 0 | T51: 0 | U51: 0 | V51: 0 | W51: 0 | X51: 0 | Y51: 0 | Z51: 0 | AA51: 0 | AB51: 0 | AC51: 0 | AD51: 0 | AE51: =SUM(G51:R51) -> 0
B52: 52 | C52: 1 | D52: 1 | E52: 1 | F52: OK-tillæg | G52: =IF(G7="Ja",0,ROUND(IF(G14>0,G14/12)*IF($D14<>"",G$12,1)*IF($E14<>"",G$10,1)*G4,2)) -> 0 | H52: 0 | I52: 0 | J52: 0 | K52: 0 | L52: 0 | M52: 0 | N52: 0 | O52: 0 | P52: 0 | Q52: 0 | R52: 0 | S52: =ROUND(IF(S14>0,S14/12)*IF($D14<>"",S$12,1)*IF($E14<>"",S$10,1)*S4,2) -> 0 | T52: 0 | U52: 0 | V52: 0 | W52: 0 | X52: 0 | Y52: 0 | Z52: 0 | AA52: 0 | AB52: 0 | AC52: 0 | AD52: 0 | AE52: 0
B53: 53 | C53: 1 | D53: 1 | E53: 1 | F53: Trepartstillæg | G53: =IF(G7="Ja",0,ROUND(IF(G15>0,G15/12)*IF($D15<>"",G$12,1)*IF($E15<>"",G$10,1)*G5,2)) -> 0 | H53: =IF(H7="Ja",0,ROUND(IF(H15>0,H15/12)*IF($D15<>"",H$12,1)*IF($E15<>"",H$10,1)*H4,2)) -> 0 | I53: =IF(I7="Ja",0,ROUND(IF(I15>0,I15/12)*IF($D15<>"",I$12,1)*IF($E15<>"",I$10,1)*I4,2)) -> 0 | J53: 0 | K53: 0 | L53: 0 | M53: 0 | N53: 0 | O53: 0 | P53: 0 | Q53: 0 | R53: 0 | S53: 0 | T53: 0 | U53: 0 | V53: 0 | W53: 0 | X53: 0 | Y53: 0 | Z53: 0 | AA53: 0 | AB53: 0 | AC53: 0 | AD53: 0 | AE53: =SUM(G53:R53) -> 0
B54: 54 | C54: 1 | D54: 0 | E54: 1 | F54: Souscheftillæg ell. lign. | G54: =IF(G7="Ja",0,ROUND(IF(AND(G$12>0,G16>0),G16/12)*IF($D16<>"",G$12,1)*IF($E16<>"",G$10,1)*G4,2)) -> 0 | H54: 0 | I54: 0 | J54: 0 | K54: 0 | L54: 0 | M54: 0 | N54: 0 | O54: 0 | P54: 0 | Q54: 0 | R54: 0 | S54: =ROUND(IF(AND(S$12>0,S16>0),S16/12)*IF($D16<>"",S$12,1)*IF($E16<>"",S$10,1)*S4,2) -> 0 | T54: 0 | U54: 0 | V54: 0 | W54: 0 | X54: 0 | Y54: 0 | Z54: 0 | AA54: 0 | AB54: 0 | AC54: 0 | AD54: 0 | AE54: 0
B55: 55 | C55: 1 | D55: 0 | E55: 1 | F55: Funktionstillæg 1 | G55: =IF(G7="Ja",0,ROUND(IF(AND(G$12>0,G17>0),G17/12)*IF($D17<>"",G$12,1)*IF($E17<>"",G$10,1)*G4,2)) -> 0 | H55: 0 | I55: 0 | J55: 0 | K55: 0 | L55: 0 | M55: 0 | N55: 0 | O55: 0 | P55: 0 | Q55: 0 | R55: 0 | S55: =ROUND(IF(AND(S$12>0,S17>0),S17/12)*IF($D17<>"",S$12,1)*IF($E17<>"",S$10,1)*S4,2) -> 0 | T55: 0 | U55: 0 | V55: 0 | W55: 0 | X55: 0 | Y55: 0 | Z55: 0 | AA55: 0 | AB55: 0 | AC55: 0 | AD55: 0 | AE55: 0
B56: 56 | C56: 1 | D56: 0 | E56: 1 | F56: Funktionstillæg 2 | G56: =IF(G7="Ja",0,ROUND(IF(AND(G$12>0,G18>0),G18/12)*IF($D18<>"",G$12,1)*IF($E18<>"",G$10,1)*G4,2)) -> 0 | H56: 0 | I56: 0 | J56: 0 | K56: 0 | L56: 0 | M56: 0 | N56: 0 | O56: 0 | P56: 0 | Q56: 0 | R56: 0 | S56: =ROUND(IF(AND(S$12>0,S18>0),S18/12)*IF($D18<>"",S$12,1)*IF($E18<>"",S$10,1)*S4,2) -> 0 | T56: 0 | U56: 0 | V56: 0 | W56: 0 | X56: 0 | Y56: 0 | Z56: 0 | AA56: 0 | AB56: 0 | AC56: 0 | AD56: 0 | AE56: 0
B57: 57 | C57: 1 | D57: 0 | E57: 1 | F57: Funktionstillæg 3 | G57: =IF(G7="Ja",0,ROUND(IF(AND(G$12>0,G19>0),G19/12)*IF($D19<>"",G$12,1)*IF($E19<>"",G$10,1)*G4,2)) -> 0 | H57: 0 | I57: 0 | J57: 0 | K57: 0 | L57: 0 | M57: 0 | N57: 0 | O57: 0 | P57: 0 | Q57: 0 | R57: 0 | S57: =ROUND(IF(AND(S$12>0,S19>0),S19/12)*IF($D19<>"",S$12,1)*IF($E19<>"",S$10,1)*S4,2) -> 0 | T57: 0 | U57: 0 | V57: 0 | W57: 0 | X57: 0 | Y57: 0 | Z57: 0 | AA57: 0 | AB57: 0 | AC57: 0 | AD57: 0 | AE57: 0
B58: 58 | C58: 1 | D58: 1 | E58: 1 | F58: Kvalifikationstillæg 1 | G58: =IF(G7="Ja",0,ROUND(IF(AND(G$12>0,G20>0),G20/12)*IF($D20<>"",G$12,1)*IF($E20<>"",G$10,1)*G4,2)) -> 0 | H58: 0 | I58: 0 | J58: 0 | K58: 0 | L58: 0 | M58: 0 | N58: 0 | O58: 0 | P58: 0 | Q58: 0 | R58: 0 | S58: =ROUND(IF(AND(S$12>0,S20>0),S20/12)*IF($D20<>"",S$12,1)*IF($E20<>"",S$10,1)*S4,2) -> 0 | T58: 0 | U58: 0 | V58: 0 | W58: 0 | X58: 0 | Y58: 0 | Z58: 0 | AA58: 0 | AB58: 0 | AC58: 0 | AD58: 0 | AE58: 0
B59: 59 | C59: 1 | D59: 1 | E59: 1 | F59: Kvalifikationstillæg 2 | G59: =IF(G7="Ja",0,ROUND(IF(AND(G$12>0,G21>0),G21/12)*IF($D21<>"",G$12,1)*IF($E21<>"",G$10,1)*G4,2)) -> 0 | H59: 0 | I59: 0 | J59: 0 | K59: 0 | L59: 0 | M59: 0 | N59: 0 | O59: 0 | P59: 0 | Q59: 0 | R59: 0 | S59: =ROUND(IF(AND(S$12>0,S21>0),S21/12)*IF($D21<>"",S$12,1)*IF($E21<>"",S$10,1)*S4,2) -> 0 | T59: 0 | U59: 0 | V59: 0 | W59: 0 | X59: 0 | Y59: 0 | Z59: 0 | AA59: 0 | AB59: 0 | AC59: 0 | AD59: 0 | AE59: 0
B60: 60 | C60: 1 | D60: 1 | E60: 1 | F60: Kvalifikationstillæg 3 | G60: =IF(G7="Ja",0,ROUND(IF(AND(G$12>0,G22>0),G22/12)*IF($D22<>"",G$12,1)*IF($E22<>"",G$10,1)*G$4,2)) -> 0 | H60: 0 | I60: 0 | J60: 0 | K60: 0 | L60: 0 | M60: 0 | N60: 0 | O60: 0 | P60: 0 | Q60: 0 | R60: 0 | S60: =ROUND(IF(AND(S$12>0,S22>0),S22/12)*IF($D22<>"",S$12,1)*IF($E22<>"",S$10,1)*S$4,2) -> 0 | T60: 0 | U60: 0 | V60: 0 | W60: 0 | X60: 0 | Y60: 0 | Z60: 0 | AA60: 0 | AB60: 0 | AC60: 0 | AD60: 0 | AE60: 0
B61: 61 | C61: 1 | D61: 1 | E61: 1 | F61: Udligningstillæg | G61: =IF(G7="Ja",0,ROUND(IF(AND(G$12>0,G23>0),G23/12)*IF($D23<>"",G$12,1)*IF($E23<>"",G$10,1)*G$4,2)) -> 0 | H61: 0 | I61: 0 | J61: 0 | K61: 0 | L61: 0 | M61: 0 | N61: 0 | O61: 0 | P61: 0 | Q61: 0 | R61: 0 | S61: 0 | T61: 0 | U61: 0 | V61: 0 | W61: 0 | X61: 0 | Y61: 0 | Z61: 0 | AA61: 0 | AB61: 0 | AC61: 0 | AD61: 0 | AE61: 0
B62: 62 | C62: 1 | F62: Seniorbonus | G62: =IF(G8="Ja",(SUM(G51:G61)*0.8%),0) -> 0 | H62: =IF(H8="Ja",(SUM(H51:H61)*0.8%),0) -> 0 | I62: 0 | J62: 0 | K62: 0 | L62: 0 | M62: 0 | N62: 0 | O62: 0 | P62: 0 | Q62: 0 | R62: 0
B63: 63 | F63: Gruppelivstillæg | G63: =IF(G7="Ja",0,ROUND(IF(AND(G$12>0,G24>0),G24)*IF($D24<>"",G$12,1)*IF($E24<>"",G$10,1),2)) -> 0 | H63: =IF(H7="Ja",0,ROUND(IF(AND(H$12>0,H24>0),H24)*IF($D24<>"",H$12,1)*IF($E24<>"",H$10,1),2)) -> 0 | I63: 0 | J63: 0 | K63: 0 | L63: 0 | M63: 0 | N63: 0 | O63: 0 | P63: 0 | Q63: 0 | R63: 0 | S63: =ROUND(IF(AND(S$12>0,S24>0),S24)*IF($D24<>"",S$12,1)*IF($E24<>"",S$10,1)*S$4,2) -> 0 | T63: 0 | U63: 0 | V63: 0 | W63: 0 | X63: 0 | Y63: 0 | Z63: 0 | AA63: 0 | AB63: 0 | AC63: 0 | AD63: 0 | AE63: 0
B64: 64 | D64: =(D25<>"")*1 -> 0 | E64: =(E25<>"")*1 -> 1 | F64: Lokalaftalt ulempegodtgørelse | G64: =IF(G7="Ja",0,ROUND(IF(AND(G$12>0,G25>0),G25)*IF($D25<>"",G$12,1)*IF($E25<>"",G$10,1)*G$4,2)) -> 0 | H64: =IF(H7="Ja",0,ROUND(IF(AND(H$12>0,H25>0),H25)*IF($D25<>"",H$12,1)*IF($E25<>"",H$10,1)*H$4,2)) -> 0 | I64: 0 | J64: 0 | K64: 0 | L64: 0 | M64: 0 | N64: 0 | O64: 0 | P64: 0 | Q64: 0 | R64: 0 | S64: 0 | T64: 0 | U64: 0 | V64: 0 | W64: 0 | X64: 0 | Y64: 0 | Z64: 0 | AA64: 0 | AB64: 0 | AC64: 0 | AD64: 0 | AE64: 0
B65: 65 | C65: 1 | F65: Lønfradrag for ikke optjent ferie mv. | G65: =-ROUND((MAX(0,MIN(S26,S27*1))+S30)*IF(S9="JA",4.62%,4.8%)*(S51+S52+G53+S54+S55+S56+S57+S58+S59+S60+S61+G62+S64)*S$4,2) -> 0 | H65: =-ROUND((MAX(0,MIN(T26,T27*1))+T30)*IF(T9="JA",4.62%,4.8%)*(T51+T52+H53+T54+T55+T56+T57+T58+T59+T60+T61+H62+T64)*T$4,2) -> 0 | I65: 0 | J65: 0 | K65: 0 | L65: 0 | M65: 0 | N65: 0 | O65: 0 | P65: 0 | Q65: 0 | R65: =-ROUND((MAX(0,MIN(AD26,AD27*1))+AD30)*IF(AD9="JA",4.62%,4.8%)*(AD51+AD52+R53+AD54+AD55+AD56+AD57+AD58+AD59+AD60+AD61+R62+AD64)*AD$4,2) -> 0 | S65: =-ROUND((MAX(0,MIN(S26,S27*1))+S30)*IF(S9="JA",4.62%,4.8%)*(S51+S52+S54+S55+S56+S57+S58+S59+S60+S61+S64)*S$4,2) -> 0 | T65: 0 | U65: 0 | V65: 0 | W65: 0 | X65: 0 | Y65: 0 | Z65: 0 | AA65: 0 | AB65: 0 | AC65: 0 | AD65: 0 | AE65: 0
B66: 66 | C66: 1 | F66: Feriedifference pensionsgivende(udregnes i særskilt fane) | G66: =G28 -> 0 | H66: =H28 -> 0 | I66: 0 | J66: 0 | K66: 0 | L66: 0 | M66: 0 | N66: 0 | O66: 0 | P66: 0 | Q66: 0 | R66: 0 | S66: =S28 -> 0 | T66: =T28 -> 0 | U66: 0 | V66: 0 | W66: 0 | X66: 0 | Y66: 0 | Z66: 0 | AA66: 0 | AB66: 0 | AC66: 0 | AD66: 0 | AE66: 0
B67: 67 | F67: Feriedifference IKKE pensionsgivende(udregnes i særskilt fane) | G67: =G29 -> 0 | H67: =H29 -> 0 | I67: 0 | J67: 0 | K67: 0 | L67: 0 | M67: 0 | N67: 0 | O67: 0 | P67: 0 | Q67: 0 | R67: 0 | S67: =S29 -> 0 | T67: 0 | U67: 0 | V67: 0 | W67: 0 | X67: 0 | Y67: 0 | Z67: 0 | AA67: 0 | AB67: 0 | AC67: 0 | AD67: 0
B68: 68 | F68: Engangsudbetalinger iflg. specifikation | G68: =SUM(G37:G46) -> 0 | H68: =SUM(H37:H46) -> 0 | I68: 0 | J68: 0 | K68: 0 | L68: 0 | M68: 0 | N68: 0 | O68: 0 | P68: 0 | Q68: 0 | R68: 0 | S68: =SUM(S37:S46) -> 0 | T68: =SUM(T37:T46)+MAX(T36*T10-8000,0) -> 0 | U68: 0 | V68: 0 | W68: 0 | X68: 0 | Y68: 0 | Z68: 0 | AA68: 0 | AB68: 0 | AC68: 0 | AD68: 0 | AE68: 0
B69: 69 | F69: Skattefrie km. Godtgørelse lav sats | G69: =G33*$D$33 -> 0 | H69: =H33*$D$33 -> 0 | I69: 0 | J69: 0 | K69: 0 | L69: 0 | M69: 0 | N69: 0 | O69: 0 | P69: 0 | Q69: 0 | R69: 0 | S69: =S33*$D$33 -> 0 | T69: =T33*$D$33 -> 0 | U69: 0 | V69: 0 | W69: 0 | X69: 0 | Y69: 0 | Z69: 0 | AA69: 0 | AB69: 0 | AC69: 0 | AD69: 0
B70: 70 | F70: Skattefrie km. Godtgørelse høj sats | G70: =G34*$D$34 -> 0 | H70: =H34*$D$34 -> 0 | I70: 0 | J70: 0 | K70: 0 | L70: 0 | M70: 0 | N70: 0 | O70: 0 | P70: 0 | Q70: 0 | R70: 0 | S70: =S34*$D$34 -> 0 | T70: =T34*$D$34 -> 0 | U70: 0 | V70: 0 | W70: 0 | X70: 0 | Y70: 0 | Z70: 0 | AA70: 0 | AB70: 0 | AC70: 0 | AD70: 0
B71: 71 | F71: Timedagpenge(skattefrie) | G71: =IF(G35>0,G35,0) -> 0 | H71: =IF(H35>0,H35,0) -> 0 | I71: 0 | J71: 0 | K71: 0 | L71: 0 | M71: 0 | N71: 0 | O71: 0 | P71: 0 | Q71: 0 | R71: 0 | S71: =IF(S35>0,S35,0) -> 0 | T71: =IF(T35>0,T35,0) -> 0 | U71: 0 | V71: 0 | W71: 0 | X71: 0 | Y71: 0 | Z71: 0 | AA71: 0 | AB71: 0 | AC71: 0 | AD71: 0 | AE71: 0
B72: 72 | F72: Skattefri jubilæumsgratiale | G72: =MIN(8000,G36*G10) -> 0 | H72: 0 | I72: 0 | J72: 0 | K72: 0 | L72: 0 | M72: 0 | N72: 0 | O72: 0 | P72: 0 | Q72: 0 | R72: 0 | S72: 0 | T72: 0 | U72: 0 | V72: 0 | W72: 0 | X72: 0 | Y72: 0 | Z72: 0 | AA72: 0 | AB72: 0 | AC72: 0 | AD72: 0
B73: =B72+1 -> 73 | F73: Skattepligtig jubilæumsgratiaale | G73: =IF(G36>0,MAX(G36*G10-8000,0),0) -> 0 | H73: 0 | I73: 0 | J73: 0 | K73: 0 | L73: 0 | M73: 0 | N73: 0 | O73: 0 | P73: 0 | Q73: 0 | R73: 0 | S73: 0 | T73: 0 | U73: 0 | V73: 0 | W73: 0 | X73: 0 | Y73: 0 | Z73: 0 | AA73: 0 | AB73: 0 | AC73: 0 | AD73: 0
B74: 74 | F74: Bruttoløn (ekskl. pensionstillæg og ATP) | G74: =SUM(G51:G73) -> 0 | H74: =SUM(H51:H73) -> 0 | I74: =SUM(I51:I73) -> 0 | J74: 0 | K74: 0 | L74: 0 | M74: 0 | N74: 0 | O74: 0 | P74: 0 | Q74: 0 | R74: 0 | S74: 0 | T74: 0 | U74: 0 | V74: 0 | W74: 0 | X74: 0 | Y74: 0 | Z74: 0 | AA74: 0 | AB74: 0 | AC74: 0 | AD74: 0 | AE74: 0
B75: 75 | F75: ="Pensionstillæg af pensionsg. "&IF(ISNUMBER(G13),"Skalatrinsløn","HK-løn") -> Pensionstillæg af pensionsg. HK-løn | G75: =IF(G7="Ja",0,ROUND(IF(AND(G$12>0,G13>0),ROUND((ROUND(VLOOKUP(G13,Skalalontabel12,7,0)*G10,0))/12,2),0)*G12*G4*G5/100/3,2)) -> 0 | H75: 0 | I75: 0 | J75: 0 | K75: 0 | L75: 0 | M75: 0 | N75: 0 | O75: 0 | P75: 0 | Q75: 0 | R75: 0 | S75: =ROUND(IF(AND(S$12>0,S13>0),ROUND((ROUND(VLOOKUP(S13,Skalalontabel12,7,0)*S10,0))/12,2),0)*S12*S4*S5/100/3,2) -> 0 | T75: 0 | U75: 0 | V75: 0 | W75: 0 | X75: 0 | Y75: 0 | Z75: 0 | AA75: 0 | AB75: 0 | AC75: 0 | AD75: 0 | AE75: 0
B76: 76 | F76: Pensionstillæg overenskomsttillæg | G76: =ROUND(G52*$C52*G$5/100/3,2) -> 0 | H76: 0 | I76: 0 | J76: 0 | K76: 0 | L76: 0 | M76: 0 | N76: 0 | O76: 0 | P76: 0 | Q76: 0 | R76: 0 | S76: 0 | T76: 0 | U76: 0 | V76: 0 | W76: 0 | X76: 0 | Y76: 0 | Z76: 0 | AA76: 0 | AB76: 0 | AC76: 0 | AD76: 0 | AE76: 0
F77: Pensionstillæg af Trepartstillæg | G77: 0 | H77: 0 | I77: 0 | J77: 0 | K77: 0 | L77: 0 | M77: 0 | N77: 0 | O77: 0 | P77: 0 | Q77: 0 | R77: 0
B78: =B76+1 -> 77 | F78: Pensionstillæg souscheftillæg | G78: 0 | H78: 0 | I78: 0 | J78: 0 | K78: 0 | L78: 0 | M78: 0 | N78: 0 | O78: 0 | P78: 0 | Q78: 0 | R78: 0 | S78: 0 | T78: 0 | U78: 0 | V78: 0 | W78: 0 | X78: 0 | Y78: 0 | Z78: 0 | AA78: 0 | AB78: 0 | AC78: 0 | AD78: 0 | AE78: 0
B79: 78 | F79: Pensionstillæg Funktionstillæg 1 | G79: 0 | H79: 0 | I79: 0 | J79: 0 | K79: 0 | L79: 0 | M79: 0 | N79: 0 | O79: 0 | P79: 0 | Q79: 0 | R79: 0 | S79: 0 | T79: 0 | U79: 0 | V79: 0 | W79: 0 | X79: 0 | Y79: 0 | Z79: 0 | AA79: 0 | AB79: 0 | AC79: 0 | AD79: 0 | AE79: 0
B80: 79 | F80: Pensionstillæg Funktionstillæg 2 | G80: 0 | H80: 0 | I80: 0 | J80: 0 | K80: 0 | L80: 0 | M80: 0 | N80: 0 | O80: 0 | P80: 0 | Q80: 0 | R80: 0 | S80: 0 | T80: 0 | U80: 0 | V80: 0 | W80: 0 | X80: 0 | Y80: 0 | Z80: 0 | AA80: 0 | AB80: 0 | AC80: 0 | AD80: 0 | AE80: 0
B81: 80 | F81: Pensionstillæg Funktionstillæg 3 | G81: 0 | H81: 0 | I81: 0 | J81: 0 | K81: 0 | L81: 0 | M81: 0 | N81: 0 | O81: 0 | P81: 0 | Q81: 0 | R81: 0 | S81: 0 | T81: 0 | U81: 0 | V81: 0 | W81: 0 | X81: 0 | Y81: 0 | Z81: 0 | AA81: 0 | AB81: 0 | AC81: 0 | AD81: 0 | AE81: 0
B82: 81 | F82: Pensionstillæg Kvalifikationstillæg 1 | G82: 0 | H82: 0 | I82: 0 | J82: 0 | K82: 0 | L82: 0 | M82: 0 | N82: 0 | O82: 0 | P82: 0 | Q82: 0 | R82: 0 | S82: 0 | T82: 0 | U82: 0 | V82: 0 | W82: 0 | X82: 0 | Y82: 0 | Z82: 0 | AA82: 0 | AB82: 0 | AC82: 0 | AD82: 0 | AE82: 0
B83: 82 | F83: Pensionstillæg Kvalifikationstillæg 2 | G83: 0 | H83: 0 | I83: 0 | J83: 0 | K83: 0 | L83: 0 | M83: 0 | N83: 0 | O83: 0 | P83: 0 | Q83: 0 | R83: 0 | S83: 0 | T83: 0 | U83: 0 | V83: 0 | W83: 0 | X83: 0 | Y83: 0 | Z83: 0 | AA83: 0 | AB83: 0 | AC83: 0 | AD83: 0 | AE83: 0
B84: 83 | F84: Pensionstillæg Kvalifikationstillæg 3 | G84: 0 | H84: 0 | I84: 0 | J84: 0 | K84: 0 | L84: 0 | M84: 0 | N84: 0 | O84: 0 | P84: 0 | Q84: 0 | R84: 0 | S84: 0 | T84: 0 | U84: 0 | V84: 0 | W84: 0 | X84: 0 | Y84: 0 | Z84: 0 | AA84: 0 | AB84: 0 | AC84: 0 | AD84: 0 | AE84: 0
B85: 84 | F85: Pensionstillæg af udligningstillæg | G85: 0 | H85: 0 | I85: 0 | J85: 0 | K85: 0 | L85: 0 | M85: 0 | N85: 0 | O85: 0 | P85: 0 | Q85: 0 | R85: 0 | S85: 0 | T85: 0 | U85: 0 | V85: 0 | W85: 0 | X85: 0 | Y85: 0 | Z85: 0 | AA85: 0 | AB85: 0 | AC85: 0 | AD85: 0 | AE85: 0
B86: 85 | F86: Pensionstillæg af seniorbonus | G86: =ROUND(G62*$C62*G$5/100/3,2) -> 0 | H86: 0 | I86: 0 | J86: 0 | K86: 0 | L86: 0 | M86: 0 | N86: 0 | O86: 0 | P86: 0 | Q86: 0 | R86: 0
B87: 86 | F87: Fradrag i pensionstillæg for ikke optjent ferie mv. | G87: =ROUND(G65*$C65*G$5/100/3,2) -> 0 | H87: 0 | I87: 0 | J87: 0 | K87: 0 | L87: 0 | M87: 0 | N87: 0 | O87: 0 | P87: 0 | Q87: 0 | R87: 0 | S87: 0 | T87: 0 | U87: 0 | V87: 0 | W87: 0 | X87: 0 | Y87: 0 | Z87: 0 | AA87: 0 | AB87: 0 | AC87: 0 | AD87: 0 | AE87: 0
B88: 87 | F88: Pensionstillæg af feriedifference | G88: 0 | H88: 0 | I88: 0 | J88: 0 | K88: 0 | L88: 0 | M88: 0 | N88: 0 | O88: 0 | P88: 0 | Q88: 0 | R88: 0 | S88: 0 | T88: 0 | U88: 0 | V88: 0 | W88: 0 | X88: 0 | Y88: 0 | Z88: 0 | AA88: 0 | AB88: 0 | AC88: 0 | AD88: 0 | AE88: 0
B89: 88 | F89: Pensionstillæg af pensiong. engangstillæg | G89: =ROUND(G38*G5/100/3+G42*($C42<>"")*G5/100/3+G43*($C43<>"")*G5/100/3+G44*($C44<>"")*G5/100/3+G45*($C45<>"")*G5/100/3+G46*($C46<>"")*G5/100/3,2) -> 0 | H89: =ROUND(H38*H5/100/3+H42*($C42<>"")*H5/100/3+H43*($C43<>"")*H5/100/3+H44*($C44<>"")*H5/100/3+H45*($C45<>"")*H5/100/3+H46*($C46<>"")*H5/100/3,2) -> 0 | I89: 0 | J89: 0 | K89: 0 | L89: 0 | M89: 0 | N89: 0 | O89: 0 | P89: 0 | Q89: 0 | R89: 0 | S89: 0 | T89: 0 | U89: 0 | V89: 0 | W89: 0 | X89: 0 | Y89: 0 | Z89: 0 | AA89: 0 | AB89: 0 | AC89: 0 | AD89: 0 | AE89: 0
B90: 89 | F90: Ekstra pension hvis orlov uden løn | G90: =IF(G7="Ja",SUM(S75:S88)-SUM(G75:G89),0) -> 0 | H90: =IF(H7="Ja",SUM(T75:T89)-SUM(H75:H89),0) -> 0 | I90: =IF(I7="Ja",SUM(U75:U88)-SUM(I75:I89),0) -> 0 | J90: 0 | K90: 0 | L90: 0 | M90: 0 | N90: 0 | O90: 0 | P90: 0 | Q90: 0 | R90: 0
B91: 90 | F91: Pensionstillæg i alt | G91: =SUM(G75:G90) -> 0 | H91: =SUM(H75:H90) -> 0 | I91: 0 | J91: 0 | K91: 0 | L91: 0 | M91: 0 | N91: 0 | O91: 0 | P91: 0 | Q91: 0 | R91: 0 | S91: =SUM(S75:S89) -> 0 | T91: =SUM(T75:T89) -> 0 | U91: 0 | V91: 0 | W91: 0 | X91: 0 | Y91: 0 | Z91: 0 | AA91: 0 | AB91: 0 | AC91: 0 | AD91: 0 | AE91: 0
B92: 91 | F92: Egetbidrag til ATP | G92: =ROUND(G104/3,2) -> 0 | H92: =ROUND(H104/3,2) -> 0 | I92: 0 | J92: 0 | K92: 0 | L92: 0 | M92: 0 | N92: 0 | O92: 0 | P92: 0 | Q92: 0 | R92: 0 | S92: =ROUND(S104/3,2) -> 0 | T92: =ROUND(T104/3,2) -> 0 | U92: 0 | V92: 0 | W92: 0 | X92: 0 | Y92: 0 | Z92: 0 | AA92: 0 | AB92: 0 | AC92: 0 | AD92: 0 | AE92: =SUM(G92:R92) -> 0
B93: 92 | F93: AMB-grundlag | G93: =IF(G6="nej",G91*-1)+SUM(G51:G68)-G92+G73 -> 0 | H93: =IF(H6="nej",H91*-1)+SUM(H51:H68)-H92+H73 -> 0 | I93: =IF(I6="nej",I91*-1)+SUM(I51:I68)-I92+I73 -> 0 | J93: 0 | K93: 0 | L93: 0 | M93: 0 | N93: 0 | O93: 0 | P93: 0 | Q93: 0 | R93: 0 | S93: =IF(S6="nej",S91*-1)+SUM(S51:S68)-S92 -> 0 | T93: 0 | U93: 0 | V93: 0 | W93: 0 | X93: 0 | Y93: 0 | Z93: 0 | AA93: 0 | AB93: 0 | AC93: 0 | AD93: 0 | AE93: =SUM(G93:R93) -> 0
B94: 93 | F94: AM-bidrag | G94: =ROUND(G93*8%,0) -> 0 | H94: =ROUND(H93*8%,0) -> 0 | I94: 0 | J94: 0 | K94: 0 | L94: 0 | M94: 0 | N94: 0 | O94: 0 | P94: 0 | Q94: 0 | R94: 0 | S94: =ROUND(S93*8%,0) -> 0 | T94: =ROUND(T93*8%,0) -> 0 | U94: 0 | V94: 0 | W94: 0 | X94: 0 | Y94: 0 | Z94: 0 | AA94: 0 | AB94: 0 | AC94: 0 | AD94: 0 | AE94: 0
B95: 94 | F95: A-indkomst | G95: =G93-G94 -> 0 | H95: =H93-H94 -> 0 | I95: 0 | J95: 0 | K95: 0 | L95: 0 | M95: 0 | N95: 0 | O95: 0 | P95: 0 | Q95: 0 | R95: 0 | S95: =S93-S94 -> 0 | T95: =T93-T94 -> 0 | U95: 0 | V95: 0 | W95: 0 | X95: 0 | Y95: 0 | Z95: 0 | AA95: 0 | AB95: 0 | AC95: 0 | AD95: 0 | AE95: 0
B96: 95 | F96: Skattegrundlag | G96: =FLOOR(G95-G32,10) -> 0 | H96: =FLOOR(H95-H32,10) -> 0 | I96: 0 | J96: 0 | K96: 0 | L96: 0 | M96: 0 | N96: 0 | O96: 0 | P96: 0 | Q96: 0 | R96: 0 | S96: =FLOOR(S95-S32,10) -> 0 | T96: =FLOOR(T95-T32,10) -> 0 | U96: 0 | V96: 0 | W96: 0 | X96: 0 | Y96: 0 | Z96: 0 | AA96: 0 | AB96: 0 | AC96: 0 | AD96: 0
B97: 96 | F97: Skat | G97: =ROUND(G96*G31/100,0) -> 0 | H97: 0 | I97: 0 | J97: 0 | K97: 0 | L97: 0 | M97: 0 | N97: 0 | O97: 0 | P97: 0 | Q97: 0 | R97: 0 | S97: 0 | T97: 0 | U97: 0 | V97: 0 | W97: 0 | X97: 0 | Y97: 0 | Z97: 0 | AA97: 0 | AB97: 0 | AC97: 0 | AD97: 0 | AE97: 0
B98: 97 | F98: Feriegodtgørelsesgrundlag | G98: =SUM(G51:G68) -> 0 | H98: =SUM(H51:H68) -> 0 | I98: =SUM(I51:I68) -> 0 | J98: =SUM(J51:J68) -> 0 | K98: =SUM(K51:K68) -> 0 | L98: =SUM(L51:L68) -> 0 | M98: 0 | N98: 0 | O98: 0 | P98: 0 | Q98: 0 | R98: 0 | S98: =SUM(S51:S68) -> 0 | T98: =SUM(T51:T68) -> 0 | U98: =SUM(U51:U68) -> 0 | V98: =SUM(V51:V68) -> 0 | W98: =SUM(W51:W68) -> 0 | X98: =SUM(X51:X68) -> 0 | Y98: 0 | Z98: 0 | AA98: 0 | AB98: 0 | AC98: 0 | AD98: 0 | AE98: =SUM(H98:P98) -> 0
B99: 98 | F99: ="Feriegodtgørelsesgrundlag, juni-juli " -> Feriegodtgørelsesgrundlag, juni-juli | Q99: =SUM(Q51:Q68)-Q41 -> 0 | R99: =SUM(R51:R68)-R41 -> 0 | AC99: =SUM(AC51:AC68)-AC41 -> 0 | AD99: =SUM(AD51:AD68)-AD41 -> 0 | AE99: =SUM(G99:R99) -> 0
B100: 99 | F100: Egetbidrag til pensionskasse | G100: =G91 -> 0 | H100: =H91 -> 0 | I100: 0 | J100: 0 | K100: 0 | L100: 0 | M100: 0 | N100: 0 | O100: 0 | P100: 0 | Q100: 0 | R100: 0 | S100: =S91 -> 0 | T100: =T91 -> 0 | U100: 0 | V100: 0 | W100: 0 | X100: 0 | Y100: 0 | Z100: 0 | AA100: 0 | AB100: 0 | AC100: 0 | AD100: 0 | AE100: 0
B101: 100 | F101: Arbejdsgiverbidrag til pensionskasse | G101: =G100*2 -> 0 | H101: =H100*2 -> 0 | I101: 0 | J101: 0 | K101: 0 | L101: 0 | M101: 0 | N101: 0 | O101: 0 | P101: 0 | Q101: 0 | R101: 0 | S101: =S100*2 -> 0 | T101: =T100*2 -> 0 | U101: 0 | V101: 0 | W101: 0 | X101: 0 | Y101: 0 | Z101: 0 | AA101: 0 | AB101: 0 | AC101: 0 | AD101: 0 | AE101: 0
B102: 101 | F102: Arbejdsgiverbidrag til ATP | G102: =G104*2/3 -> 0 | H102: =H104*2/3 -> 0 | I102: 0 | J102: 0 | K102: 0 | L102: 0 | M102: 0 | N102: 0 | O102: 0 | P102: 0 | Q102: 0 | R102: 0 | S102: =S104*2/3 -> 0 | T102: =T104*2/3 -> 0 | U102: 0 | V102: 0 | W102: 0 | X102: 0 | Y102: 0 | Z102: 0 | AA102: 0 | AB102: 0 | AC102: 0 | AD102: 0 | AE102: 0
B103: 102 | F103: Skolens samlede indbetaling til pensionskasse | G103: =G100+G101 -> 0 | H103: =H100+H101 -> 0 | I103: 0 | J103: 0 | K103: 0 | L103: 0 | M103: 0 | N103: 0 | O103: 0 | P103: 0 | Q103: 0 | R103: 0 | S103: =S100+S101 -> 0 | T103: =T100+T101 -> 0 | U103: 0 | V103: 0 | W103: 0 | X103: 0 | Y103: 0 | Z103: 0 | AA103: 0 | AB103: 0 | AC103: 0 | AD103: 0 | AE103: 0
B104: 103 | F104: Skolens samlede indbetaling til ATP | G104: =297/3*(((G12*G4)>=9/37)+((G12*G4)>=18/37)+((G12*G4)>=27/37)) -> 0 | H104: 0 | I104: 0 | J104: 0 | K104: 0 | L104: =297/3*(((L12*L4)>=9/37)+((L12*L4)>=18/37)+((L12*L4)>=27/37)) -> 0 | M104: =297/3*(((M12*M4)>=9/37)+((M12*M4)>=18/37)+((M12*M4)>=27/37)) -> 0 | N104: 0 | O104: 0 | P104: 0 | Q104: 0 | R104: 0 | S104: 0 | T104: 0 | U104: 0 | V104: 0 | W104: 0 | X104: 0 | Y104: 0 | Z104: 0 | AA104: 0 | AB104: 0 | AC104: 0 | AD104: 0 | AE104: 0
B105: 104 | F105: Indbetaling til Gruppeliv | G105: =G24 -> 0 | H105: =H24 -> 0 | I105: 0 | J105: 0 | K105: 0 | L105: 0 | M105: 0 | N105: 0 | O105: 0 | P105: 0 | Q105: 0 | R105: 0 | S105: =S24 -> 0 | T105: =T24 -> 0 | U105: 0 | V105: 0 | W105: 0 | X105: 0 | Y105: 0 | Z105: 0 | AA105: 0 | AB105: 0 | AC105: 0 | AD105: 0 | AE105: 0
B106: 105 | F106: Løn til den ansattes disposition | G106: =IF(G6="nej",G91*-1)+G74-(G97+G92+G94+G105)-G47-G48-G49 -> 0 | H106: 0 | I106: 0 | J106: 0 | K106: 0 | L106: 0 | M106: 0 | N106: 0 | O106: 0 | P106: 0 | Q106: 0 | R106: 0 | S106: 0 | T106: 0 | U106: 0 | V106: 0 | W106: 0 | X106: 0 | Y106: 0 | Z106: 0 | AA106: 0 | AB106: 0 | AC106: 0 | AD106: 0 | AE106: =SUM(G106:R106) -> 0
B107: 106 | F107: ="Feriepengeberegningsgrundlag, jan-dec "&Aar -> Feriepengeberegningsgrundlag, jan-dec | G107: =(SUM(G51:G68)+G91+G92)*(1-12/260*G26) -> 0 | H107: =(SUM(H51:H68)+H91+H92)*(1-12/260*H26) -> 0 | I107: =(SUM(I51:I68)+I91+I92)*(1-12/260*I26) -> 0 | J107: =(SUM(J51:J68)+J91+J92)*(1-12/260*J26) -> 0 | K107: =(SUM(K51:K68)+K91+K92)*(1-12/260*K26) -> 0 | L107: Kalenderårets sum benyttes ved fratræden og særlige feriedage | S107: =(SUM(S51:S68)+S91+S92)*(1-12/260*S26) -> 0 | T107: =(SUM(T51:T68)+T91+T92)*(1-12/260*T26) -> 0 | U107: =(SUM(U51:U68)+U91+U92)*(1-12/260*U26) -> 0 | V107: =(SUM(V51:V68)+V91+V92)*(1-12/260*V26) -> 0 | W107: =(SUM(W51:W68)+W91+W92)*(1-12/260*W26) -> 0 | X107: Kalenderårets sum benyttes ved fratræden og særlige feriedage | AE107: =A107+SUM(G107:K107) -> 0
B108: 107 | F108: ="Feriepengeberegningsgrundlag, jan-jul "&Aar -> Feriepengeberegningsgrundlag, jan-jul | G108: Kalenderårets sum benyttes ved fratræden og særlige feriedage | L108: =(SUM(L$51:L$68)+L$91+L92)*(1-12/260*L$26) -> 0 | M108: =(SUM(M$51:M$68)+M$91+M92)*(1-12/260*M$26) -> 0 | N108: 0 | O108: 0 | P108: 0 | Q108: 0 | R108: 0 | S108: Kalenderårets sum benyttes ved fratræden og særlige feriedage | X108: =(SUM(X$51:X$68)+X$91+X92)*(1-12/260*X$26) -> 0 | Y108: =(SUM(Y$51:Y$68)+Y$91+Y92)*(1-12/260*Y$26) -> 0 | Z108: 0 | AA108: 0 | AB108: 0 | AC108: 0 | AD108: 0 | AE108: 0
B109: 108 | F109: BG-afhængige løndele | G109: =G51*$D51+G52*$D52+G54*$D54+G55*$D55+G56*$D56+G57*$D57+G58*$D58+G59*$D59+G60*$D60+G61*$D61+G64*$D64 -> 0 | H109: 0 | I109: 0 | J109: 0 | K109: 0 | L109: 0 | M109: 0 | N109: 0 | O109: 0 | P109: 0 | Q109: 0 | R109: 0 | S109: 0 | T109: 0 | U109: 0 | V109: 0 | W109: 0 | X109: 0 | Y109: 0 | Z109: 0 | AA109: 0 | AB109: 0 | AC109: 0 | AD109: 0
B110: 109 | F110: BG-difference >=20% | G110: =IF(G12>0,IF(G12>G28,(G12-G28)/G28>=20%,(G12-G28)/G28<=-20%),"") ->  | P110: =IF(P12>0,IF(P12>P29,(P12-P29)/P29>=20%,(P12-P29)/P29<=-20%),"") ->  | Q110: =IF(Q12>0,IF(Q12>Q29,(Q12-Q29)/Q29>=20%,(Q12-Q29)/Q29<=-20%),"") ->  | R110: =IF(R12>0,IF(R12>R29,(R12-R29)/R29>=20%,(R12-R29)/R29<=-20%),"") ->  | S110: =IF(S12>0,IF(S12>S28,(S12-S28)/S28>=20%,(S12-S28)/S28<=-20%),"") ->  | AB110: =IF(AB12>0,IF(AB12>AB29,(AB12-AB29)/AB29>=20%,(AB12-AB29)/AB29<=-20%),"") ->  | AC110: =IF(AC12>0,IF(AC12>AC29,(AC12-AC29)/AC29>=20%,(AC12-AC29)/AC29<=-20%),"") ->  | AD110: =IF(AD12>0,IF(AD12>AD29,(AD12-AD29)/AD29>=20%,(AD12-AD29)/AD29<=-20%),"") -> 
B160: =B159+1 -> 1
B161: 2 | F161: =IF(ISNUMBER(G1),"Skalatrinsløn","HK-løn") -> HK-løn | G161: ="= "&TEXT(ROUND(VLOOKUP(G13,Skalalontabel12,G11,0)*G10,0),"#.000")&" / 12 * "&TEXT(G12,"0,0000")&" * "&TEXT(G$4,"#0/#0")&" =" -> 
B162: 3 | F162: Fast løn | G162: ="= "&TEXT(G14,"#.000,00")&" / 12 "&IF($D52>0," * "&TEXT(G$12,"0,0000"),"")&IF($E52>0," * "&G$10,"")&" * "&TEXT(G$4,"#0/#0")&" =" -> = 000,00 / 12 * 0,0000 * 1,233095 * 1/1 = | H162: = 000,00 / 12 * 0,0000 * 1,233095 * 1/1 = | I162: = 000,00 / 12 * 0,0000 * 1,233095 * 1/1 = | J162: = 000,00 / 12 * 0,0000 * * 1/1 = | K162: = 000,00 / 12 * 0,0000 * 0 * 1/1 = | L162: = 000,00 / 12 * 0,0000 * 0 * 1/1 = | M162: = 000,00 / 12 * 0,0000 * 0 * 1/1 = | N162: = 000,00 / 12 * 0,0000 * 0 * 1/1 = | O162: = 000,00 / 12 * 0,0000 * * 1/1 = | P162: = 000,00 / 12 * 0,0000 * 0 * 1/1 = | Q162: = 000,00 / 12 * 0,0000 * 0 * 1/1 = | R162: = 000,00 / 12 * 0,0000 * 0 * 1/1 = | S162: = 000,00 / 12 * 0,0000 * 1,233095 * 1/1 = | T162: = 000,00 / 12 * 0,0000 * 1,233095 * 1/1 = | U162: = 000,00 / 12 * 0,0000 * 1,233095 * 1/1 = | V162: = 000,00 / 12 * 0,0000 * 0 * 1/1 = | W162: = 000,00 / 12 * 0,0000 * 0 * 1/1 = | X162: = 000,00 / 12 * 0,0000 * 0 * 1/1 = | Y162: = 000,00 / 12 * 0,0000 * 0 * 1/1 = | Z162: = 000,00 / 12 * 0,0000 * 0 * 1/1 = | AA162: = 000,00 / 12 * 0,0000 * 0 * 1/1 = | AB162: = 000,00 / 12 * 0,0000 * 0 * 1/1 = | AC162: = 000,00 / 12 * 0,0000 * 0 * 1/1 = | AD162: = 000,00 / 12 * 0,0000 * 0 * 1/1 =
F163: Trepartstllæg | G163: = 000,00 / 12 * 0,0000 * 1,233095 * 1/1 = | H163: = 000,00 / 12 * 0,0000 * 1,233095 * 1/1 = | I163: = 000,00 / 12 * 0,0000 * 1,233095 * 1/1 = | J163: = 000,00 / 12 * 0,0000 * * 1/1 = | K163: = 000,00 / 12 * 0,0000 * 0 * 1/1 = | L163: = 000,00 / 12 * 0,0000 * 0 * 1/1 = | M163: = 000,00 / 12 * 0,0000 * 0 * 1/1 = | N163: = 000,00 / 12 * 0,0000 * 0 * 1/1 = | O163: = 000,00 / 12 * 0,0000 * * 1/1 = | P163: = 000,00 / 12 * 0,0000 * 0 * 1/1 = | Q163: = 000,00 / 12 * 0,0000 * 0 * 1/1 = | R163: = 000,00 / 12 * 0,0000 * 0 * 1/1 =
B164: =B162+1 -> 4 | F164: Sousdheftillæg | G164: = 000,00 / 12 * 1,233095 * 1/1 = | H164: = 000,00 / 12 * 1,233095 * 1/1 = | I164: = 000,00 / 12 * 1,233095 * 1/1 = | J164: = 000,00 / 12 * * 1/1 = | K164: = 000,00 / 12 * 0 * 1/1 = | L164: = 000,00 / 12 * 0 * 1/1 = | M164: = 000,00 / 12 * 0 * 1/1 = | N164: = 000,00 / 12 * 0 * 1/1 = | O164: = 000,00 / 12 * * 1/1 = | P164: = 000,00 / 12 * 0 * 1/1 = | Q164: = 000,00 / 12 * 0 * 1/1 = | R164: = 000,00 / 12 * 0 * 1/1 = | S164: = 000,00 / 12 * 1,233095 * 1/1 = | T164: = 000,00 / 12 * 1,233095 * 1/1 = | U164: = 000,00 / 12 * 1,233095 * 1/1 = | V164: = 000,00 / 12 * 0 * 1/1 = | W164: = 000,00 / 12 * 0 * 1/1 = | X164: = 000,00 / 12 * 0 * 1/1 = | Y164: = 000,00 / 12 * 0 * 1/1 = | Z164: = 000,00 / 12 * 0 * 1/1 = | AA164: = 000,00 / 12 * 0 * 1/1 = | AB164: = 000,00 / 12 * 0 * 1/1 = | AC164: = 000,00 / 12 * 0 * 1/1 = | AD164: = 000,00 / 12 * 0 * 1/1 =
B165: 5 | F165: Funktionstillæg 1 | G165: ="= "&TEXT(G17,"#.000,00")&" / 12 "&IF($D55>0," * "&TEXT(G$12,"0,0000"),"")&IF($E55>0," * "&G$10,"")&" * "&TEXT(G$4,"#0/#0")&" =" -> = 000,00 / 12 * 1,233095 * 1/1 = | H165: ="= "&TEXT(H17,"#.000,00")&" / 12 "&IF($D55>0," * "&TEXT(H$12,"0,0000"),"")&IF($E165>0," * "&H$10,"")&" * "&TEXT(H$4,"#0/#0")&" =" -> = 000,00 / 12 * 1/1 = | I165: = 000,00 / 12 * 1/1 = | J165: = 000,00 / 12 * 1/1 = | K165: = 000,00 / 12 * 1/1 = | L165: = 000,00 / 12 * 1/1 = | M165: = 000,00 / 12 * 1/1 = | N165: = 000,00 / 12 * 1/1 = | O165: = 000,00 / 12 * 1/1 = | P165: = 000,00 / 12 * 1/1 = | Q165: = 000,00 / 12 * 1/1 = | R165: = 000,00 / 12 * 1/1 = | S165: = 000,00 / 12 * 1/1 = | T165: = 000,00 / 12 * 1/1 = | U165: = 000,00 / 12 * 1/1 = | V165: = 000,00 / 12 * 1/1 = | W165: = 000,00 / 12 * 1/1 = | X165: = 000,00 / 12 * 1/1 = | Y165: = 000,00 / 12 * 1/1 = | Z165: = 000,00 / 12 * 1/1 = | AA165: = 000,00 / 12 * 1/1 = | AB165: = 000,00 / 12 * 1/1 = | AC165: = 000,00 / 12 * 1/1 = | AD165: = 000,00 / 12 * 1/1 =
B166: 6 | F166: Funktionstillæg 2 | G166: ="= "&TEXT(G18,"#.000,00")&" / 12 "&IF($D56>0," * "&TEXT(G$12,"0,0000"),"")&IF($E56>0," * "&G$10,"")&" * "&TEXT(G$4,"#0/#0")&" =" -> = 000,00 / 12 * 1,233095 * 1/1 = | H166: = 000,00 / 12 * 1,233095 * 1/1 = | I166: = 000,00 / 12 * 1,233095 * 1/1 = | J166: = 000,00 / 12 * * 1/1 = | K166: = 000,00 / 12 * 0 * 1/1 = | L166: = 000,00 / 12 * 0 * 1/1 = | M166: = 000,00 / 12 * 0 * 1/1 = | N166: = 000,00 / 12 * 0 * 1/1 = | O166: = 000,00 / 12 * * 1/1 = | P166: = 000,00 / 12 * 0 * 1/1 = | Q166: = 000,00 / 12 * 0 * 1/1 = | R166: = 000,00 / 12 * 0 * 1/1 = | S166: = 000,00 / 12 * 1,233095 * 1/1 = | T166: = 000,00 / 12 * 1,233095 * 1/1 = | U166: = 000,00 / 12 * 1,233095 * 1/1 = | V166: = 000,00 / 12 * 0 * 1/1 = | W166: = 000,00 / 12 * 0 * 1/1 = | X166: = 000,00 / 12 * 0 * 1/1 = | Y166: = 000,00 / 12 * 0 * 1/1 = | Z166: = 000,00 / 12 * 0 * 1/1 = | AA166: = 000,00 / 12 * 0 * 1/1 = | AB166: = 000,00 / 12 * 0 * 1/1 = | AC166: = 000,00 / 12 * 0 * 1/1 = | AD166: = 000,00 / 12 * 0 * 1/1 =
B167: 7 | F167: Funktionstillæg 3 | G167: = 000,00 / 12 * 1,233095 * 1/1 = | H167: = 000,00 / 12 * 1,233095 * 1/1 = | I167: = 000,00 / 12 * 1,233095 * 1/1 = | J167: = 000,00 / 12 * * 1/1 = | K167: = 000,00 / 12 * 0 * 1/1 = | L167: = 000,00 / 12 * 0 * 1/1 = | M167: = 000,00 / 12 * 0 * 1/1 = | N167: = 000,00 / 12 * 0 * 1/1 = | O167: = 000,00 / 12 * * 1/1 = | P167: = 000,00 / 12 * 0 * 1/1 = | Q167: = 000,00 / 12 * 0 * 1/1 = | R167: = 000,00 / 12 * 0 * 1/1 = | S167: = 000,00 / 12 * 1,233095 * 1/1 = | T167: = 000,00 / 12 * 1,233095 * 1/1 = | U167: = 000,00 / 12 * 1,233095 * 1/1 = | V167: = 000,00 / 12 * 0 * 1/1 = | W167: = 000,00 / 12 * 0 * 1/1 = | X167: = 000,00 / 12 * 0 * 1/1 = | Y167: = 000,00 / 12 * 0 * 1/1 = | Z167: = 000,00 / 12 * 0 * 1/1 = | AA167: = 000,00 / 12 * 0 * 1/1 = | AB167: = 000,00 / 12 * 0 * 1/1 = | AC167: = 000,00 / 12 * 0 * 1/1 = | AD167: = 000,00 / 12 * 0 * 1/1 =
B168: 8 | F168: Kvalifikationstillæg 1 | G168: = 000,00 / 12 * 0,0000 * 1,233095 * 1/1 = | H168: = 000,00 / 12 * 0,0000 * 1,233095 * 1/1 = | I168: = 000,00 / 12 * 0,0000 * 1,233095 * 1/1 = | J168: = 000,00 / 12 * 0,0000 * * 1/1 = | K168: = 000,00 / 12 * 0,0000 * 0 * 1/1 = | L168: = 000,00 / 12 * 0,0000 * 0 * 1/1 = | M168: = 000,00 / 12 * 0,0000 * 0 * 1/1 = | N168: = 000,00 / 12 * 0,0000 * 0 * 1/1 = | O168: = 000,00 / 12 * 0,0000 * * 1/1 = | P168: = 000,00 / 12 * 0,0000 * 0 * 1/1 = | Q168: = 000,00 / 12 * 0,0000 * 0 * 1/1 = | R168: = 000,00 / 12 * 0,0000 * 0 * 1/1 = | S168: = 000,00 / 12 * 0,0000 * 1,233095 * 1/1 = | T168: = 000,00 / 12 * 0,0000 * 1,233095 * 1/1 = | U168: = 000,00 / 12 * 0,0000 * 1,233095 * 1/1 = | V168: = 000,00 / 12 * 0,0000 * 0 * 1/1 = | W168: = 000,00 / 12 * 0,0000 * 0 * 1/1 = | X168: = 000,00 / 12 * 0,0000 * 0 * 1/1 = | Y168: = 000,00 / 12 * 0,0000 * 0 * 1/1 = | Z168: = 000,00 / 12 * 0,0000 * 0 * 1/1 = | AA168: = 000,00 / 12 * 0,0000 * 0 * 1/1 = | AB168: = 000,00 / 12 * 0,0000 * 0 * 1/1 = | AC168: = 000,00 / 12 * 0,0000 * 0 * 1/1 = | AD168: = 000,00 / 12 * 0,0000 * 0 * 1/1 =
B169: 9 | F169: Kvalifikationstillæg 2 | G169: = 000,00 / 12 * 0,0000 * 1,233095 * 1/1 = | H169: = 000,00 / 12 * 0,0000 * 1,233095 * 1/1 = | I169: = 000,00 / 12 * 0,0000 * 1,233095 * 1/1 = | J169: = 000,00 / 12 * 0,0000 * * 1/1 = | K169: = 000,00 / 12 * 0,0000 * 0 * 1/1 = | L169: = 000,00 / 12 * 0,0000 * 0 * 1/1 = | M169: = 000,00 / 12 * 0,0000 * 0 * 1/1 = | N169: = 000,00 / 12 * 0,0000 * 0 * 1/1 = | O169: = 000,00 / 12 * 0,0000 * * 1/1 = | P169: = 000,00 / 12 * 0,0000 * 0 * 1/1 = | Q169: = 000,00 / 12 * 0,0000 * 0 * 1/1 = | R169: = 000,00 / 12 * 0,0000 * 0 * 1/1 = | S169: = 000,00 / 12 * 0,0000 * 1,233095 * 1/1 = | T169: = 000,00 / 12 * 0,0000 * 1,233095 * 1/1 = | U169: = 000,00 / 12 * 0,0000 * 1,233095 * 1/1 = | V169: = 000,00 / 12 * 0,0000 * 0 * 1/1 = | W169: = 000,00 / 12 * 0,0000 * 0 * 1/1 = | X169: = 000,00 / 12 * 0,0000 * 0 * 1/1 = | Y169: = 000,00 / 12 * 0,0000 * 0 * 1/1 = | Z169: = 000,00 / 12 * 0,0000 * 0 * 1/1 = | AA169: = 000,00 / 12 * 0,0000 * 0 * 1/1 = | AB169: = 000,00 / 12 * 0,0000 * 0 * 1/1 = | AC169: = 000,00 / 12 * 0,0000 * 0 * 1/1 = | AD169: = 000,00 / 12 * 0,0000 * 0 * 1/1 =
B170: 10 | F170: Kvalifikationstillæg 3 | G170: = 000,00 / 12 * 0,0000 * 1,233095 * 1/1 = | H170: = 000,00 / 12 * 0,0000 * 1,233095 * 1/1 = | I170: = 000,00 / 12 * 0,0000 * 1,233095 * 1/1 = | J170: = 000,00 / 12 * 0,0000 * * 1/1 = | K170: = 000,00 / 12 * 0,0000 * 0 * 1/1 = | L170: = 000,00 / 12 * 0,0000 * 0 * 1/1 = | M170: = 000,00 / 12 * 0,0000 * 0 * 1/1 = | N170: = 000,00 / 12 * 0,0000 * 0 * 1/1 = | O170: = 000,00 / 12 * 0,0000 * * 1/1 = | P170: = 000,00 / 12 * 0,0000 * 0 * 1/1 = | Q170: = 000,00 / 12 * 0,0000 * 0 * 1/1 = | R170: = 000,00 / 12 * 0,0000 * 0 * 1/1 = | S170: = 000,00 / 12 * 0,0000 * 1,233095 * 1/1 = | T170: = 000,00 / 12 * 0,0000 * 1,233095 * 1/1 = | U170: = 000,00 / 12 * 0,0000 * 1,233095 * 1/1 = | V170: = 000,00 / 12 * 0,0000 * 0 * 1/1 = | W170: = 000,00 / 12 * 0,0000 * 0 * 1/1 = | X170: = 000,00 / 12 * 0,0000 * 0 * 1/1 = | Y170: = 000,00 / 12 * 0,0000 * 0 * 1/1 = | Z170: = 000,00 / 12 * 0,0000 * 0 * 1/1 = | AA170: = 000,00 / 12 * 0,0000 * 0 * 1/1 = | AB170: = 000,00 / 12 * 0,0000 * 0 * 1/1 = | AC170: = 000,00 / 12 * 0,0000 * 0 * 1/1 = | AD170: = 000,00 / 12 * 0,0000 * 0 * 1/1 =
B171: 11 | F171: Udligningstillæg | G171: = 000,00 / 12 * 0,0000 * 1,233095 * 1/1 = | H171: = 000,00 / 12 * 0,0000 * 1,233095 * 1/1 = | I171: = 000,00 / 12 * 0,0000 * 1,233095 * 1/1 = | J171: = 000,00 / 12 * 0,0000 * * 1/1 = | K171: = 000,00 / 12 * 0,0000 * 0 * 1/1 = | L171: = 000,00 / 12 * 0,0000 * 0 * 1/1 = | M171: = 000,00 / 12 * 0,0000 * 0 * 1/1 = | N171: = 000,00 / 12 * 0,0000 * 0 * 1/1 = | O171: = 000,00 / 12 * 0,0000 * * 1/1 = | P171: = 000,00 / 12 * 0,0000 * 0 * 1/1 = | Q171: = 000,00 / 12 * 0,0000 * 0 * 1/1 = | R171: = 000,00 / 12 * 0,0000 * 0 * 1/1 = | S171: = 000,00 / 12 * 0,0000 * 1,233095 * 1/1 = | T171: = 000,00 / 12 * 0,0000 * 1,233095 * 1/1 = | U171: = 000,00 / 12 * 0,0000 * 1,233095 * 1/1 = | V171: = 000,00 / 12 * 0,0000 * 0 * 1/1 = | W171: = 000,00 / 12 * 0,0000 * 0 * 1/1 = | X171: = 000,00 / 12 * 0,0000 * 0 * 1/1 = | Y171: = 000,00 / 12 * 0,0000 * 0 * 1/1 = | Z171: = 000,00 / 12 * 0,0000 * 0 * 1/1 = | AA171: = 000,00 / 12 * 0,0000 * 0 * 1/1 = | AB171: = 000,00 / 12 * 0,0000 * 0 * 1/1 = | AC171: = 000,00 / 12 * 0,0000 * 0 * 1/1 = | AD171: = 000,00 / 12 * 0,0000 * 0 * 1/1 =
F172: Seniorbonus | G172: 0,8% af alle fastpåregnelige tillæg | H172: 0,8% af alle fastpåregnelige tillæg | I172: 0,8% af alle fastpåregnelige tillæg | J172: 0,8% af alle fastpåregnelige tillæg | K172: 0,8% af alle fastpåregnelige tillæg | L172: 0,8% af alle fastpåregnelige tillæg | M172: 0,8% af alle fastpåregnelige tillæg | N172: 0,8% af alle fastpåregnelige tillæg | O172: 0,8% af alle fastpåregnelige tillæg | P172: 0,8% af alle fastpåregnelige tillæg | Q172: 0,8% af alle fastpåregnelige tillæg | R172: 0,8% af alle fastpåregnelige tillæg
B173: =B171+1 -> 12 | F173: Gruppelivstillæg | G173: ="= "&TEXT(G24,"#.##0,00")&" * "&TEXT(G$4,"#0/#0")&" =" -> = 0,00 * 1/1 = | H173: ="= "&TEXT(H24,"#.##0,00")&" * "&TEXT(H$4,"#0/#0")&" =" -> = 0,00 * 1/1 = | I173: = 0,00 * 1/1 = | J173: = 0,00 * 1/1 = | K173: = 0,00 * 1/1 = | L173: = 0,00 * 1/1 = | M173: = 0,00 * 1/1 = | N173: = 0,00 * 1/1 = | O173: = 0,00 * 1/1 = | P173: = 0,00 * 1/1 = | Q173: = 0,00 * 1/1 = | R173: = 0,00 * 1/1 = | S173: ="= "&TEXT(S24,"#.##0,00")&" * "&TEXT(S$4,"#0/#0")&" =" -> = 0,00 * 1/1 = | T173: ="= "&TEXT(T24,"#.##0,00")&" * "&TEXT(T$4,"#0/#0")&" =" -> = 0,00 * 1/1 = | U173: = 0,00 * 1/1 = | V173: = 0,00 * 1/1 = | W173: = 0,00 * 1/1 = | X173: = 0,00 * 1/1 = | Y173: = 0,00 * 1/1 = | Z173: = 0,00 * 1/1 = | AA173: = 0,00 * 1/1 = | AB173: = 0,00 * 1/1 = | AC173: = 0,00 * 1/1 = | AD173: = 0,00 * 1/1 =
B174: 13 | F174: Lokalaftalt ulempegodtgørelse | G174: ="= "&TEXT(G25,"#,00")&IF($D64>0," * "&TEXT(G$12,"0,0000"),"")&IF($E64>0," * "&G$10,"")&" * "&TEXT(G$4,"#0/#0")&" =" -> = ,00 * 1,233095 * 1/1 = | H174: = ,00 * 1,233095 * 1/1 = | I174: = ,00 * 1,233095 * 1/1 = | J174: = ,00 * * 1/1 = | K174: = ,00 * 0 * 1/1 = | L174: = ,00 * 0 * 1/1 = | M174: = ,00 * 0 * 1/1 = | N174: = ,00 * 0 * 1/1 = | O174: = ,00 * * 1/1 = | P174: = ,00 * 0 * 1/1 = | Q174: = ,00 * 0 * 1/1 = | R174: = ,00 * 0 * 1/1 = | S174: = ,00 * 1,233095 * 1/1 = | T174: = ,00 * 1,233095 * 1/1 = | U174: = ,00 * 1,233095 * 1/1 = | V174: = ,00 * 0 * 1/1 = | W174: = ,00 * 0 * 1/1 = | X174: = ,00 * 0 * 1/1 = | Y174: = ,00 * 0 * 1/1 = | Z174: = ,00 * 0 * 1/1 = | AA174: = ,00 * 0 * 1/1 = | AB174: = ,00 * 0 * 1/1 = | AC174: = ,00 * 0 * 1/1 = | AD174: = ,00 * 0 * 1/1 =
B175: 14 | F175: Lønfradrag for ikke optjent ferie mv. | G175: ="= - "&MAX(0,MIN(G26,G27*1))+G30&" * "&IF(G9="JA","4,62%","4,8%")&" * SUM(Lin. 1 - Lin 12)"&" * "&TEXT(G$4,"#0/#0")&" =" -> = - 0 * 4,62% * SUM(Lin. 1 - Lin 12) * 1/1 = | H175: ="= - "&MAX(0,MIN(H26,H27*1))+H30&" * "&IF(H9="JA","4,62%","4,8%")&" * SUM(Lin. 1 - Lin 12) =" -> = - 0 * 4,62% * SUM(Lin. 1 - Lin 12) = | I175: = - 0 * 4,62% * SUM(Lin. 1 - Lin 12) = | J175: = - 0 * 4,62% * SUM(Lin. 1 - Lin 12) = | K175: = - 0 * 4,62% * SUM(Lin. 1 - Lin 12) = | L175: = - 0 * 4,62% * SUM(Lin. 1 - Lin 12) = | M175: = - 0 * 4,62% * SUM(Lin. 1 - Lin 12) = | N175: = - 0 * 4,62% * SUM(Lin. 1 - Lin 12) = | O175: = - 0 * 4,62% * SUM(Lin. 1 - Lin 12) = | P175: = - 0 * 4,62% * SUM(Lin. 1 - Lin 12) = | Q175: = - 0 * 4,62% * SUM(Lin. 1 - Lin 12) = | R175: = - 0 * 4,62% * SUM(Lin. 1 - Lin 12) = | S175: ="= - "&MAX(0,MIN(S26,S27*1))+S30&" * "&IF(S9="JA","4,62%","4,8%")&" * SUM(Lin. 1 - Lin 12)"&" * "&TEXT(S$4,"#0/#0")&" =" -> = - 0 * 4,62% * SUM(Lin. 1 - Lin 12) * 1/1 = | T175: ="= - "&MAX(0,MIN(T26,T27*1))+T30&" * "&IF(T9="JA","4,62%","4,8%")&" * SUM(Lin. 1 - Lin 12) =" -> = - 0 * 4,62% * SUM(Lin. 1 - Lin 12) = | U175: = - 0 * 4,62% * SUM(Lin. 1 - Lin 12) = | V175: = - 0 * 4,62% * SUM(Lin. 1 - Lin 12) = | W175: = - 0 * 4,62% * SUM(Lin. 1 - Lin 12) = | X175: = - 0 * 4,62% * SUM(Lin. 1 - Lin 12) = | Y175: = - 0 * 4,62% * SUM(Lin. 1 - Lin 12) = | Z175: = - 0 * 4,62% * SUM(Lin. 1 - Lin 12) = | AA175: = - 0 * 4,62% * SUM(Lin. 1 - Lin 12) = | AB175: = - 0 * 4,62% * SUM(Lin. 1 - Lin 12) = | AC175: = - 0 * 4,62% * SUM(Lin. 1 - Lin 12) = | AD175: = - 0 * 4,62% * SUM(Lin. 1 - Lin 12) =
